{"text_format":"1","workbook":"xlsx","n_sheets":12,"sheets":["Gesamtliste","Straße komplex","Straße","Straßenoffensive","Lichtsignalanlagen (LSA)","Beleuchtung","Bushaltestellen","Stadtbahnbau","Brücke","Radverkehr","Verkehrswendebüro","Besonderheiten"],"not_rendered":{"charts":0,"images":0,"macros":0,"external_links":1,"defined_names":24,"comments":0,"pivot_tables":0},"unopened":[],"bounds":{"document_bytes":16777216,"sheet_cells":100000,"rows_first":2000,"rows_last":500,"rows_between":2000,"halvings":0,"cell_chars":16384,"cell_head_chars":4096},"cells_cut":0,"cells_raw":0,"read":"whole","date_system":"1900"}

{"sheet":"Gesamtliste","index":0,"n_rows":280,"n_cols":38,"rows_kept":280,"cut":false,"hidden":false,"merged":[[1,33,3,37],[2,9,2,10],[4,33,16,33],[4,34,16,34],[4,10,16,10],[1,13,16,13],[1,14,16,14],[3,7,3,10],[3,11,16,11],[3,12,16,12],[4,7,16,7],[4,8,16,8],[4,9,16,9],[2,19,3,19],[4,35,16,35],[4,36,16,36],[4,37,16,37],[2,11,2,12],[4,27,16,27],[4,28,16,28],[4,29,16,29],[4,30,16,30],[4,31,16,31],[4,32,16,32],[4,19,16,19],[4,20,16,20],[4,21,16,21],[4,22,16,22],[4,23,16,23],[4,26,16,26],[2,20,3,25],[2,26,3,28],[1,15,16,15],[1,16,16,16],[1,17,16,17],[1,18,16,18],[2,29,3,32],[4,24,16,24],[4,25,16,25],[1,19,1,32],[3,6,16,6],[1,0,16,0],[1,1,16,1],[1,2,16,2],[1,3,16,3],[1,5,16,5],[1,4,16,4]]}
[]
["Projektnr.:","Projekt-blatt","Bezeichnung","Stadtbezirk","Gewerk","Art","P","V","B","S",null,"E",null,"Drucksachen-nummer mit Link zum Online-Dokument","Beschreibung","Bemerkungen","Maßnahmenstatus","Prioritätenklasse","Summe Gewichtungspunkte","Bewertungstatbestände mit Gewichtung",null,null,null,null,null,null,null,null,null,null,null,null,null,"Beteiligter Bereich"]
[null,null,null,null,null,null,"= Planung","= Vorbereitung","= Bau","= Schlussrechnung",null,"= Ende der Baumaßnahme",null,null,null,null,null,null,null,4,3,null,null,null,null,null,2,null,null,1]
[null,null,null,null,null,null,2025,2026,null,null,null,2027,2028]
[null,null,null,null,null,null,null,"I","II","III","IV",null,null,null,null,null,null,null,null,"Maßnahme in Ausführung / Auftrag erteilt","Herstellung der Verkehrssicherheit / hoher Unterhaltungsaufwand / kritischer Zustand","Straßenoffensive","Velorouten / Radschnellwege","Maßnahme ist Bestandteil \neines sonstigen Bauprogramms","ÖPNV / Barrierefreiheit","Vergabeverfahren läuft","Baubeschluss liegt vor","Förderantrag bewilligt","Planung weit fortgeschritten","Verkehrliche Bedeutung (Hauptstraßen)","Radverkehr","Refinanzierung möglich / Förderantrag gestellt / Anliegerbeiträge / BV-Mittel","gemeinsame Maßnahme mit Dritten"," Verkehrswege","Verkehrsbauwerke","Verkehrstechnik","Betrieb","Verkehrswendebüro"]
[]
[]
[]
[]
[]
[]
[]
[]
[]
[]
[]
[]
[8,"ja","Märkische Straße, Ophoff, Brückenplatte 1","Innenstadt-Ost","Straße komplex","9 Einzelmaßnahme Straße investiv","B","B","B","B","S","S","E","17138-20","Grundsanierung der Brückenplatten mit Querschnittsanpassungen. Veränderungen im Bereich der Kreuzung sowie Aufzugsnachrüstung der Stadtbahnhaltestelle Ophoff (separates Projekt Stadtbahnbau). ",null,"im Bau",{"$f":"IF(S18=0,\"keine\",IF(AND(S18>0,S18<6),\"3\",IF(AND(S18>5,S18<11),\"2\",\"1\")))","v":"1"},{"$f":"SUM(SUMPRODUCT((ISNUMBER(SEARCH(\"x\",T18)))*4),(SUMPRODUCT((ISNUMBER(SEARCH(\"x\",U18:Z18)))*3)),(SUMPRODUCT((ISNUMBER(SEARCH(\"x\",AA18:AC18)))*2)),(SUMPRODUCT((ISNUMBER(SEARCH(\"x\",AD18:AG18)))*1)))","v":23},"x","x",null,null,null,"x","x","x","x","x","x","x","x","x","x","x","x",".","."]
[1018,"ja","Veloroute 8 - Lütgendortmund - Teilstück 1a \"Lange Straße\" von Hoher Wall bis Möllerstraße ","INN-West","Radverkehr","10 Einzelmaßnahme Verkehrswendebüro","B","B","S","S","S","S","E","36619-24","Einrichtung einer Fahrradstraße (Beschilderung und Markierung) ",null,"im Bau","1",{"$f":"SUM(SUMPRODUCT((ISNUMBER(SEARCH(\"x\",T19)))*4),(SUMPRODUCT((ISNUMBER(SEARCH(\"x\",U19:Z19)))*3)),(SUMPRODUCT((ISNUMBER(SEARCH(\"x\",AA19:AC19)))*2)),(SUMPRODUCT((ISNUMBER(SEARCH(\"x\",AD19:AG19)))*1)))","v":21},"x",null,null,"x","x","x","x","x",null,"x",null,"x",null,null,".","x","x",".","x"]
[23,"ja","Wickeder Str. Husener Eichwaldstr. bis Lohheide","Scharnhorst","Straße ","9 Einzelmaßnahme Straße investiv","B","B","S","S","S","E",null,"31958-23","Grundhafte Erneuerung der Fahrbahn der Wickeder Straße von Husener Eichwaldstraße bis Lohheide.",null,"im Bau","1",{"$f":"SUM(SUMPRODUCT((ISNUMBER(SEARCH(\"x\",T20)))*4),(SUMPRODUCT((ISNUMBER(SEARCH(\"x\",U20:Z20)))*3)),(SUMPRODUCT((ISNUMBER(SEARCH(\"x\",AA20:AC20)))*2)),(SUMPRODUCT((ISNUMBER(SEARCH(\"x\",AD20:AG20)))*1)))","v":19},"x","x",null,null,null,null,"x","x","x","x","x","x","x",null,"x",".","x",".","."]
[22,"ja","Märkische Straße 2.BA -  B1 bis  Semerteichstraße (Treppenanlage Karl-Harr-Straße, beide Fahrtrichtungen)","überörtlich","Straße ","9 Einzelmaßnahme Straße investiv","B","B","S","S","S","E",null,"33760-24","Erneuerung des bituminösen Oberbaus beide Fahrttrichtungen.",null,"im Bau","1",{"$f":"SUM(SUMPRODUCT((ISNUMBER(SEARCH(\"x\",T21)))*4),(SUMPRODUCT((ISNUMBER(SEARCH(\"x\",U21:Z21)))*3)),(SUMPRODUCT((ISNUMBER(SEARCH(\"x\",AA21:AC21)))*2)),(SUMPRODUCT((ISNUMBER(SEARCH(\"x\",AD21:AG21)))*1)))","v":19},"x","x",null,null,null,null,"x","x","x","x","x",null,"x","x","x",".","x",".","."]
[136,"ja","Baulos 20 (Bls) -Umbau Hauptbahnhof Dortmund -","überörtlich","Stadtbahnbau","11 Einzelmaßnahme Stadtbahnbau","B","B","B","S","S","S","E","31918-23","Umbau und Erweiterung der Stadtbahnanlage Hauptbahnhof. ",null,"im Bau","1",{"$f":"SUM(SUMPRODUCT((ISNUMBER(SEARCH(\"x\",T22)))*4),(SUMPRODUCT((ISNUMBER(SEARCH(\"x\",U22:Z22)))*3)),(SUMPRODUCT((ISNUMBER(SEARCH(\"x\",AA22:AC22)))*2)),(SUMPRODUCT((ISNUMBER(SEARCH(\"x\",AD22:AG22)))*1)))","v":18},"x",null,null,null,null,"x","x","x","x","x",null,null,"x","x",".","x",".",".","."]
[708,"ja","Kommunale Schiene NRW: Erneuerungsinvestitionen in Stadtbahnstrecken und -anlagen","überörtlich","Stadtbahnbau","11 Einzelmaßnahme Stadtbahnbau",null,null,null,null,null,null,null,"26217-22","Erneuerungsinvestitionen in Stadtbahnstrecken und -anlagen.","DSW21 wird als Generalunternehmer für die Stadt Dortmund tätig.","im Bau","1",{"$f":"SUM(SUMPRODUCT((ISNUMBER(SEARCH(\"x\",T23)))*4),(SUMPRODUCT((ISNUMBER(SEARCH(\"x\",U23:Z23)))*3)),(SUMPRODUCT((ISNUMBER(SEARCH(\"x\",AA23:AC23)))*2)),(SUMPRODUCT((ISNUMBER(SEARCH(\"x\",AD23:AG23)))*1)))","v":18},"x",null,null,null,null,"x","x","x","x","x",null,null,"x","x",".","x",".",".","."]
[854,"ja","LSA 0104 Stockumer Straße / Am Beilstück-Steinäckerstraße  ","Hombruch","LSA","3a Einzelmaßnahme Radwege investiv","B","B","S","S","S","E",null,"35799-24","Erneuerung der LSA 0104 Stockumer Straße / Am Beilstück-Steinäckerstraße  ",null,"im Bau","1",{"$f":"SUM(SUMPRODUCT((ISNUMBER(SEARCH(\"x\",T24)))*4),(SUMPRODUCT((ISNUMBER(SEARCH(\"x\",U24:Z24)))*3)),(SUMPRODUCT((ISNUMBER(SEARCH(\"x\",AA24:AC24)))*2)),(SUMPRODUCT((ISNUMBER(SEARCH(\"x\",AD24:AG24)))*1)))","v":18},"x","x",null,null,null,null,"x","x","x","x",null,"x","x",null,".",".","x",".","."]
[1124,"ja","Falterweg","Aplerbeck","Straße ","6 Straßenoffensive","B","B","B","S","S","E",null,"32994-23","Erneuerung des bit. Oberbaus, ggf. inkl. ungebundener Tragschicht. Austausch von Straßen­entwässerungs­leitungen. Ggf. lokal Baugruben für punktuelle Kanalsanierung EB70","Umsetzung abhängig u.a. von Witterung und Kapazitäten des Auftragnehmers. Genauer Zeitpunkt kann aktuell nicht dargestellt werden. Aus diesem Grund Bauphase im Arbeitsprogramm  auf mehrere Quartale ausgedehnt.","im Bau","1",{"$f":"SUM(SUMPRODUCT((ISNUMBER(SEARCH(\"x\",T25)))*4),(SUMPRODUCT((ISNUMBER(SEARCH(\"x\",U25:Z25)))*3)),(SUMPRODUCT((ISNUMBER(SEARCH(\"x\",AA25:AC25)))*2)),(SUMPRODUCT((ISNUMBER(SEARCH(\"x\",AD25:AG25)))*1)))","v":17},"x","x","x",null,null,null,"x","x",null,"x",null,null,null,null,".",".",".","x","."]
[420,"ja","IGA - Brückenbauwerk Haldensprung","Huckarde","Brücke","13 Einzelmaßnahme FB 61 - 67","B","B","S","S","S","E",null,"30959-23","Brückenbauwerk zwischen dem Grünanger und dem Deusenberg. ",null,"im Bau","1",{"$f":"SUM(SUMPRODUCT((ISNUMBER(SEARCH(\"x\",T26)))*4),(SUMPRODUCT((ISNUMBER(SEARCH(\"x\",U26:Z26)))*3)),(SUMPRODUCT((ISNUMBER(SEARCH(\"x\",AA26:AC26)))*2)),(SUMPRODUCT((ISNUMBER(SEARCH(\"x\",AD26:AG26)))*1)))","v":16},"x",null,null,null,null,null,"x","x","x","x",null,"x","x","x",".","x",".",".","."]
[171,"ja","Hörde, Südspange","Hörde","Straße komplex","9 Einzelmaßnahme Straße investiv","B","B","B","S","S","S","E","31920-23","Straßenverbindung der Robert-Schumann-Str. mit dem Kreisverkehr Gildenstraße inkl. Brücke für Radwegeüberführung.",null,"im Bau","1",{"$f":"SUM(SUMPRODUCT((ISNUMBER(SEARCH(\"x\",T27)))*4),(SUMPRODUCT((ISNUMBER(SEARCH(\"x\",U27:Z27)))*3)),(SUMPRODUCT((ISNUMBER(SEARCH(\"x\",AA27:AC27)))*2)),(SUMPRODUCT((ISNUMBER(SEARCH(\"x\",AD27:AG27)))*1)))","v":16},"x",null,null,null,null,null,"x","x","x","x",null,"x","x","x","x","x","x",".","."]
[1146,"ja","Veloroute 5  - Hörde - Teilstück 12a \"Am Bruchheck von Goystraße bis An der Goymark\"","Hörde","Radverkehr","10 Einzelmaßnahme Verkehrswendebüro","B","B","S","S","S","E",null,"34041-24","Einrichtung einer Fahrradstraße (Beschilderung, Markierung und Rotbeschichtung)",null,"im Bau","1",{"$f":"SUM(SUMPRODUCT((ISNUMBER(SEARCH(\"x\",T28)))*4),(SUMPRODUCT((ISNUMBER(SEARCH(\"x\",U28:Z28)))*3)),(SUMPRODUCT((ISNUMBER(SEARCH(\"x\",AA28:AC28)))*2)),(SUMPRODUCT((ISNUMBER(SEARCH(\"x\",AD28:AG28)))*1)))","v":16},"x",null,null,"x",null,null,"x","x",null,"x",null,"x","x",null,".",".","x",".","x"]
[866,"ja","Lärmminderungsmaßnahmen: Geschwindigkeitsbegrenzungen auf Tempo 30  - konsumtive Maßnahmen-","überörtlich","Konsumtive Maßnahmen","1b Verkehrstechnik konsumtiv","B","B","B","B","B","S","E","22817-21","19 Maßnahmen über gesamtes Stadtgebiet verteilt",null,"im Bau","1",{"$f":"SUM(SUMPRODUCT((ISNUMBER(SEARCH(\"x\",T29)))*4),(SUMPRODUCT((ISNUMBER(SEARCH(\"x\",U29:Z29)))*3)),(SUMPRODUCT((ISNUMBER(SEARCH(\"x\",AA29:AC29)))*2)),(SUMPRODUCT((ISNUMBER(SEARCH(\"x\",AD29:AG29)))*1)))","v":15},"x","x",null,null,"x",null,"x",null,null,"x",null,null,null,null,".",".","x",".","."]
[135,"ja","Sandkopf u. a. Erschließung AP 130","Aplerbeck","Straße komplex","9 Einzelmaßnahme Straße investiv","B","B","S","S","S","E",null,"26343-22","Endgültige Herstellung der Straße Sandkopf.",null,"im Bau","1",{"$f":"SUM(SUMPRODUCT((ISNUMBER(SEARCH(\"x\",T30)))*4),(SUMPRODUCT((ISNUMBER(SEARCH(\"x\",U30:Z30)))*3)),(SUMPRODUCT((ISNUMBER(SEARCH(\"x\",AA30:AC30)))*2)),(SUMPRODUCT((ISNUMBER(SEARCH(\"x\",AD30:AG30)))*1)))","v":14},"x",null,null,null,null,null,"x","x","x","x",null,null,"x",null,"x",".",".",".","."]
[783,"ja","LSA 0078 - Bornstraße/Glückaufstraße/Juliusstraße","Innenstadt-Nord","LSA","1a Einzelmaßnahme Verkehrstechnik investiv","B","B","S","S","S","E",null,"35549-24","Erneuerung der LSA 0078 - Bornstraße / Glückaufstraße / Juliusstraße.",null,"im Bau","1",{"$f":"SUM(SUMPRODUCT((ISNUMBER(SEARCH(\"x\",T31)))*4),(SUMPRODUCT((ISNUMBER(SEARCH(\"x\",U31:Z31)))*3)),(SUMPRODUCT((ISNUMBER(SEARCH(\"x\",AA31:AC31)))*2)),(SUMPRODUCT((ISNUMBER(SEARCH(\"x\",AD31:AG31)))*1)))","v":14},"x","x",null,null,null,null,"x","x",null,"x",null,null,null,null,".",".","x",".","."]
[806,"ja","Hellwegschiene - Erneuerung LSA","überörtlich","LSA","1a Einzelmaßnahme Verkehrstechnik investiv","B","B","B","S","S","S","E","26048-22","Erneuerung von 11 Lichtsignalanlagen (LSA) auf der sogenannten \"Hellwegschiene\"",null,"im Bau","1",{"$f":"SUM(SUMPRODUCT((ISNUMBER(SEARCH(\"x\",T32)))*4),(SUMPRODUCT((ISNUMBER(SEARCH(\"x\",U32:Z32)))*3)),(SUMPRODUCT((ISNUMBER(SEARCH(\"x\",AA32:AC32)))*2)),(SUMPRODUCT((ISNUMBER(SEARCH(\"x\",AD32:AG32)))*1)))","v":14},"x","x",null,null,null,null,"x","x",null,"x",null,null,null,null,".",".","x",".","."]
[767,"ja","Langenacker - BPlan Mg 116 \"Kraftwerk Knepper\" ","Mengede","Straße komplex","9 Einzelmaßnahme Straße investiv","B","B","B","B","S","S","E","25141-22","Ausbau der Straße Langenacker von der südlichen Grenze des Bebauungsplans MG 116 in Richtung Knotenpunkt Langenacker/Königshalt (ca. 160 m nordwestlich Königshalt).","Begleitung","im Bau","1",{"$f":"SUM(SUMPRODUCT((ISNUMBER(SEARCH(\"x\",T33)))*4),(SUMPRODUCT((ISNUMBER(SEARCH(\"x\",U33:Z33)))*3)),(SUMPRODUCT((ISNUMBER(SEARCH(\"x\",AA33:AC33)))*2)),(SUMPRODUCT((ISNUMBER(SEARCH(\"x\",AD33:AG33)))*1)))","v":13},"x",null,null,null,null,null,"x","x",null,"x",null,null,"x","x","x","x","x",".","."]
[516,"ja","Erweiterung/Verbesserung Straßenbeleuchtung - Deggingstr. bis Märkische Str. - Rad-/Hundeweg (Neubau) P663332217","Innenstadt-Ost","Beleuchtung","15a BV investiv (Einzelmaßnahme Beleuchtung) ","B","B","B","B","B","S","E","26337-22","Neubau einer Beleuchtungsanlage entlang des Rad- / Hundeweges zwischen der Degginstr. und Märkische Str. Bau von 50 Mastleuchten sowie die Installation einer verkehrsabhängigen Beleuchtungssteuerung (Bewegungsmelder / Stromzähler).",null,"im Bau","1",{"$f":"SUM(SUMPRODUCT((ISNUMBER(SEARCH(\"x\",T34)))*4),(SUMPRODUCT((ISNUMBER(SEARCH(\"x\",U34:Z34)))*3)),(SUMPRODUCT((ISNUMBER(SEARCH(\"x\",AA34:AC34)))*2)),(SUMPRODUCT((ISNUMBER(SEARCH(\"x\",AD34:AG34)))*1)))","v":12},"x",null,null,null,null,null,"x","x",null,"x",null,"x",null,null,".",".","x",".","."]
[583,"ja","Beschleunigung via Road-Side-Units","überörtlich","LSA","1a Einzelmaßnahme Verkehrstechnik investiv","B","B","B","B","B","S","E","33773-24","Beschleunigung von Bussen und Einsatzfahrzeugen der Feuerwehr durch Funktelegramme an LSA (Lichtsignalanlagen) innerhalb der Bezirke Huckarde und Lütgendortmund.","Pilotprojekt","im Bau","1",{"$f":"SUM(SUMPRODUCT((ISNUMBER(SEARCH(\"x\",T35)))*4),(SUMPRODUCT((ISNUMBER(SEARCH(\"x\",U35:Z35)))*3)),(SUMPRODUCT((ISNUMBER(SEARCH(\"x\",AA35:AC35)))*2)),(SUMPRODUCT((ISNUMBER(SEARCH(\"x\",AD35:AG35)))*1)))","v":12},"x",null,null,null,null,null,"x","x",null,"x",null,null,null,"x",".",".","x",".","."]
[748,"ja","Fahrrad-Anlehnbügel 250 St., 2024-2025 ","überörtlich","Radverkehr","3a Einzelmaßnahme Radwege investiv","B","B","B","B","B","S","E","24257-22","Bau von 250 Fahrrad-Anlehnbügeln für das ganze Stadtgebiet Dortmund. ",null,"im Bau","1",{"$f":"SUM(SUMPRODUCT((ISNUMBER(SEARCH(\"x\",T36)))*4),(SUMPRODUCT((ISNUMBER(SEARCH(\"x\",U36:Z36)))*3)),(SUMPRODUCT((ISNUMBER(SEARCH(\"x\",AA36:AC36)))*2)),(SUMPRODUCT((ISNUMBER(SEARCH(\"x\",AD36:AG36)))*1)))","v":12},"x",null,null,null,null,null,"x","x",null,"x",null,"x",null,null,".",".",".","x","."]
[979,"ja","Rheinischer Esel - Grundinstandsetzung Abschnitt 2","Hombruch","Radverkehr","3a Einzelmaßnahme Radwege investiv","B","B","B","S","S","E",null,"34097-24","Erneuerung des Bahntrassenradwegs „Rheinischer Esel“, 2. BA von Hellerstraße bis zur Autobahnbrücke über die A 45",null,"im Bau","1",{"$f":"SUM(SUMPRODUCT((ISNUMBER(SEARCH(\"x\",T37)))*4),(SUMPRODUCT((ISNUMBER(SEARCH(\"x\",U37:Z37)))*3)),(SUMPRODUCT((ISNUMBER(SEARCH(\"x\",AA37:AC37)))*2)),(SUMPRODUCT((ISNUMBER(SEARCH(\"x\",AD37:AG37)))*1)))","v":12},"x",null,null,null,null,null,"x","x",null,"x",null,"x",null,null,".",".",".","x","."]
[636,"ja","Wasserriefen Phoenix West","Hörde","Besonderheiten","9 Einzelmaßnahme Straße investiv","B","B","B","B","B","S","E","25972-22","Ertüchtigung der Wasserriefen zum Erhalt des Habitats für die Kreuzkröte. ","Nur Finanzierung durch FB 66.","im Bau","1",{"$f":"SUM(SUMPRODUCT((ISNUMBER(SEARCH(\"x\",T38)))*4),(SUMPRODUCT((ISNUMBER(SEARCH(\"x\",U38:Z38)))*3)),(SUMPRODUCT((ISNUMBER(SEARCH(\"x\",AA38:AC38)))*2)),(SUMPRODUCT((ISNUMBER(SEARCH(\"x\",AD38:AG38)))*1)))","v":12},"x",null,null,null,null,null,"x","x",null,"x",null,null,null,"x","x",".",".",".","."]
[845,"ja","Nachrüstung und Austausch investiver Komponenten bei Lichtsignalanlage (Einzelmaßnahmen)","überörtlich","LSA","1a Einzelmaßnahme Verkehrstechnik investiv","B","B","B","B","B","S","E","25698-22","Austausch von Lichtsignalanlagentechnik Im Falle von Störungen oder Gerätedefekten; „erstmalige Herstellung“ der Barrierefreiheit von Lichtsignalanlagen durch spezielle akustische Signalgeber (Blindensignalanforderungsgeräte); Installation zusätzlicher Signalgeber an unfallträchtigen Knotenpunkten; erstmaliger Einbau von Verkehrsdetektoren, insbesondere Video- und Wärmebildkameras, statt der herkömmlichen Induktionsschleifen. ",null,"im Bau","1",{"$f":"SUM(SUMPRODUCT((ISNUMBER(SEARCH(\"x\",T39)))*4),(SUMPRODUCT((ISNUMBER(SEARCH(\"x\",U39:Z39)))*3)),(SUMPRODUCT((ISNUMBER(SEARCH(\"x\",AA39:AC39)))*2)),(SUMPRODUCT((ISNUMBER(SEARCH(\"x\",AD39:AG39)))*1)))","v":11},"x",null,null,null,null,null,"x","x",null,"x",null,null,null,null,".",".","x",".","."]
[1139,"ja","Neubau Steuerkabelstrecke VSR (KRITIS)","überörtlich","Besonderheiten","1a Einzelmaßnahme Verkehrstechnik investiv","B","B","S","S","S","E",null,"37929-25","Für den Umzug des Verkehrsrechners muss eine Steuerkabelstrecke zum Rechenzentrum erstellt werden. ",null,"im Bau","1",{"$f":"SUM(SUMPRODUCT((ISNUMBER(SEARCH(\"x\",T40)))*4),(SUMPRODUCT((ISNUMBER(SEARCH(\"x\",U40:Z40)))*3)),(SUMPRODUCT((ISNUMBER(SEARCH(\"x\",AA40:AC40)))*2)),(SUMPRODUCT((ISNUMBER(SEARCH(\"x\",AD40:AG40)))*1)))","v":11},"x",null,null,null,null,null,"x","x",null,"x",null,null,null,null,".",".","x",".","."]
[340,"ja","Deusener Straße BHS, Höhe Haus Nr. 282","Huckarde","Bushaltestelle","8 Einzelmaßnahme Bushaltestellenprogramm","V","B","B","S","S","E",null,"31903-23","Erneuerung und barrierefreier Ausbau der Haltestelle.",null,"nach Auftragserteilung ruhend","1",{"$f":"SUM(SUMPRODUCT((ISNUMBER(SEARCH(\"x\",T41)))*4),(SUMPRODUCT((ISNUMBER(SEARCH(\"x\",U41:Z41)))*3)),(SUMPRODUCT((ISNUMBER(SEARCH(\"x\",AA41:AC41)))*2)),(SUMPRODUCT((ISNUMBER(SEARCH(\"x\",AD41:AG41)))*1)))","v":20},"x",null,null,null,"x","x","x","x","x","x",null,null,"x",null,"x",".",".",".","."]
[341,"ja","Deusener Straße / Stiegenweg BHS","Huckarde","Bushaltestelle","8 Einzelmaßnahme Bushaltestellenprogramm","V","B","B","S","S","E",null,"31903-23","Umbau der Haltestelleninsel im Bereich Deusener Straße / Stiegenweg zur Entlastung der Haltestelle BSH Höhe Haus Nr. 282a",null,"nach Auftragserteilung ruhend","1",{"$f":"SUM(SUMPRODUCT((ISNUMBER(SEARCH(\"x\",T42)))*4),(SUMPRODUCT((ISNUMBER(SEARCH(\"x\",U42:Z42)))*3)),(SUMPRODUCT((ISNUMBER(SEARCH(\"x\",AA42:AC42)))*2)),(SUMPRODUCT((ISNUMBER(SEARCH(\"x\",AD42:AG42)))*1)))","v":20},"x",null,null,null,"x","x","x","x","x","x",null,null,"x",null,"x",".",".",".","."]
[987,"ja","Hacheneyer Kirchweg, von Zillestraße bis Auffahrt B54 FE","Hörde","Straße","6 Straßenoffensive",null,null,"B","B","S","E",null,"32994-23","Sanierung/Erneuerung im Rahmen der Straßenoffensive 2024/2025",null,"nach Auftragserteilung ruhend","1",{"$f":"SUM(SUMPRODUCT((ISNUMBER(SEARCH(\"x\",T43)))*4),(SUMPRODUCT((ISNUMBER(SEARCH(\"x\",U43:Z43)))*3)),(SUMPRODUCT((ISNUMBER(SEARCH(\"x\",AA43:AC43)))*2)),(SUMPRODUCT((ISNUMBER(SEARCH(\"x\",AD43:AG43)))*1)))","v":20},"x","x","x",null,null,null,"x","x","x","x",null,null,"x",null,".",".",".","x","."]
[1010,"ja","Otto-Hahn-Straße 20, BHS Martin-Schmeißer-Weg","Hombruch","Bushaltestelle","8 Einzelmaßnahme Bushaltestellenprogramm","V","B","B","S","S","E",null,"34091-24","Erneuerung und barrieregerechter Umbau von Bushaltestellen durch Ausstattung mit Buskapsteinen und Bodenindikatoren.",null,"nach Auftragserteilung ruhend","1",{"$f":"SUM(SUMPRODUCT((ISNUMBER(SEARCH(\"x\",T44)))*4),(SUMPRODUCT((ISNUMBER(SEARCH(\"x\",U44:Z44)))*3)),(SUMPRODUCT((ISNUMBER(SEARCH(\"x\",AA44:AC44)))*2)),(SUMPRODUCT((ISNUMBER(SEARCH(\"x\",AD44:AG44)))*1)))","v":20},"x",null,null,null,"x","x","x","x","x","x",null,null,"x",null,"x",".",".",".","."]
[1011,"ja","Otto-Hahn-Straße 23, BHS Martin-Schmeißer-Weg","Hombruch","Bushaltestelle","8 Einzelmaßnahme Bushaltestellenprogramm","V","B","B","S","S","E",null,"34091-24","Erneuerung und barrieregerechter Umbau von Bushaltestellen durch Ausstattung mit Buskapsteinen und Bodenindikatoren.",null,"nach Auftragserteilung ruhend","1",{"$f":"SUM(SUMPRODUCT((ISNUMBER(SEARCH(\"x\",T45)))*4),(SUMPRODUCT((ISNUMBER(SEARCH(\"x\",U45:Z45)))*3)),(SUMPRODUCT((ISNUMBER(SEARCH(\"x\",AA45:AC45)))*2)),(SUMPRODUCT((ISNUMBER(SEARCH(\"x\",AD45:AG45)))*1)))","v":20},"x",null,null,null,"x","x","x","x","x","x",null,null,"x",null,"x",".",".",".","."]
[1012,"ja","Otto-Hahn-Straße ggü. 11, BHS Meitnerweg","Hombruch","Bushaltestelle","8 Einzelmaßnahme Bushaltestellenprogramm","V","B","B","S","S","E",null,"34091-24","Erneuerung und barrieregerechter Umbau von Bushaltestellen durch Ausstattung mit Buskapsteinen und Bodenindikatoren.",null,"nach Auftragserteilung ruhend","1",{"$f":"SUM(SUMPRODUCT((ISNUMBER(SEARCH(\"x\",T46)))*4),(SUMPRODUCT((ISNUMBER(SEARCH(\"x\",U46:Z46)))*3)),(SUMPRODUCT((ISNUMBER(SEARCH(\"x\",AA46:AC46)))*2)),(SUMPRODUCT((ISNUMBER(SEARCH(\"x\",AD46:AG46)))*1)))","v":20},"x",null,null,null,"x","x","x","x","x","x",null,null,"x",null,"x",".",".",".","."]
[1013,"ja","Otto-Hahn-Straße 11, BHS Meitnerweg","Hombruch","Bushaltestelle","8 Einzelmaßnahme Bushaltestellenprogramm","V","B","B","S","S","E",null,"34091-24","Erneuerung und barrieregerechter Umbau von Bushaltestellen durch Ausstattung mit Buskapsteinen und Bodenindikatoren.",null,"nach Auftragserteilung ruhend","1",{"$f":"SUM(SUMPRODUCT((ISNUMBER(SEARCH(\"x\",T47)))*4),(SUMPRODUCT((ISNUMBER(SEARCH(\"x\",U47:Z47)))*3)),(SUMPRODUCT((ISNUMBER(SEARCH(\"x\",AA47:AC47)))*2)),(SUMPRODUCT((ISNUMBER(SEARCH(\"x\",AD47:AG47)))*1)))","v":20},"x",null,null,null,"x","x","x","x","x","x",null,null,"x",null,"x",".",".",".","."]
[1035,"ja","Froschlake","Lütgendortmund","Straße ","6 Straßenoffensive","V","B","B","B","B","S","E","32994-23","Sanierung/Erneuerung im Rahmen der Straßenoffensive 2024/2025","Anschlussarbeiten an Kanalerneuerung des EB 70. ","nach Auftragserteilung ruhend","1",{"$f":"SUM(SUMPRODUCT((ISNUMBER(SEARCH(\"x\",T48)))*4),(SUMPRODUCT((ISNUMBER(SEARCH(\"x\",U48:Z48)))*3)),(SUMPRODUCT((ISNUMBER(SEARCH(\"x\",AA48:AC48)))*2)),(SUMPRODUCT((ISNUMBER(SEARCH(\"x\",AD48:AG48)))*1)))","v":18},"x","x","x",null,null,null,"x","x",null,"x",null,null,null,"x",".",".",".","x","."]
[238,"ja","Umbau Siegenstraße von Burgring bis Mengeder Straße","Mengede","Straße ","9a Einzelmaßnahme Straße investiv (Sonderprojekt)","V","B","B","B","S","S","E","24110-22","Umbau der Straße aufgrund von notwendigen Veränderungen (Verlegung des heute im Gehweg liegenden Kanals in die Fahrbahn).",null,"nach Auftragserteilung ruhend","1",{"$f":"SUM(SUMPRODUCT((ISNUMBER(SEARCH(\"x\",T49)))*4),(SUMPRODUCT((ISNUMBER(SEARCH(\"x\",U49:Z49)))*3)),(SUMPRODUCT((ISNUMBER(SEARCH(\"x\",AA49:AC49)))*2)),(SUMPRODUCT((ISNUMBER(SEARCH(\"x\",AD49:AG49)))*1)))","v":18},"x",null,null,null,null,"x","x","x","x","x","x",null,"x",null,"x",".","x",".","."]
[1109,"ja","Brache - Quartier Lütgendortmund -","Lütgendortmund","Straße ","6 Straßenoffensive","V","B","B","B","S","S","E","32994-23","Sanierung/Erneuerung im Rahmen der Straßenoffensive 2024/2025","Umsetzung abhängig u.a. von Witterung und Kapazitäten des Auftragnehmers. Genauer Zeitpunkt kann aktuell nicht dargestellt werden. Aus diesem Grund Bauphase im Arbeitsprogramm  auf mehrere Quartale ausgedehnt.","nach Auftragserteilung ruhend","1",{"$f":"SUM(SUMPRODUCT((ISNUMBER(SEARCH(\"x\",T50)))*4),(SUMPRODUCT((ISNUMBER(SEARCH(\"x\",U50:Z50)))*3)),(SUMPRODUCT((ISNUMBER(SEARCH(\"x\",AA50:AC50)))*2)),(SUMPRODUCT((ISNUMBER(SEARCH(\"x\",AD50:AG50)))*1)))","v":17},"x","x","x",null,null,null,"x","x",null,"x",null,null,null,null,".",".",".","x","."]
[1110,"ja","Junoweg - Quartier Lütgendortmund -","Lütgendortmund","Straße ","6 Straßenoffensive","V","B","B","B","S","S","E","32994-23","Sanierung/Erneuerung im Rahmen der Straßenoffensive 2024/2025","Umsetzung abhängig u.a. von Witterung und Kapazitäten des Auftragnehmers. Genauer Zeitpunkt kann aktuell nicht dargestellt werden. Aus diesem Grund Bauphase im Arbeitsprogramm  auf mehrere Quartale ausgedehnt.","nach Auftragserteilung ruhend","1",{"$f":"SUM(SUMPRODUCT((ISNUMBER(SEARCH(\"x\",T51)))*4),(SUMPRODUCT((ISNUMBER(SEARCH(\"x\",U51:Z51)))*3)),(SUMPRODUCT((ISNUMBER(SEARCH(\"x\",AA51:AC51)))*2)),(SUMPRODUCT((ISNUMBER(SEARCH(\"x\",AD51:AG51)))*1)))","v":17},"x","x","x",null,null,null,"x","x",null,"x",null,null,null,null,".",".",".","x","."]
[1111,"ja","Neptunstraße - Quartier Lütgendortmund - von Brache bis Unterdelle\r\n","Lütgendortmund","Straße ","6 Straßenoffensive","V","B","B","B","S","S","E","32994-23","Sanierung/Erneuerung im Rahmen der Straßenoffensive 2024/2025","Umsetzung abhängig u.a. von Witterung und Kapazitäten des Auftragnehmers. Genauer Zeitpunkt kann aktuell nicht dargestellt werden. Aus diesem Grund Bauphase im Arbeitsprogramm  auf mehrere Quartale ausgedehnt.","nach Auftragserteilung ruhend","1",{"$f":"SUM(SUMPRODUCT((ISNUMBER(SEARCH(\"x\",T52)))*4),(SUMPRODUCT((ISNUMBER(SEARCH(\"x\",U52:Z52)))*3)),(SUMPRODUCT((ISNUMBER(SEARCH(\"x\",AA52:AC52)))*2)),(SUMPRODUCT((ISNUMBER(SEARCH(\"x\",AD52:AG52)))*1)))","v":17},"x","x","x",null,null,null,"x","x",null,"x",null,null,null,null,".",".",".","x","."]
[1112,"ja","Oberdelle - Quartier Lütgendortmund -","Lütgendortmund","Straße ","6 Straßenoffensive","V","B","B","B","S","S","E","32994-23","Sanierung/Erneuerung im Rahmen der Straßenoffensive 2024/2025","Umsetzung abhängig u.a. von Witterung und Kapazitäten des Auftragnehmers. Genauer Zeitpunkt kann aktuell nicht dargestellt werden. Aus diesem Grund Bauphase im Arbeitsprogramm  auf mehrere Quartale ausgedehnt.","nach Auftragserteilung ruhend","1",{"$f":"SUM(SUMPRODUCT((ISNUMBER(SEARCH(\"x\",T53)))*4),(SUMPRODUCT((ISNUMBER(SEARCH(\"x\",U53:Z53)))*3)),(SUMPRODUCT((ISNUMBER(SEARCH(\"x\",AA53:AC53)))*2)),(SUMPRODUCT((ISNUMBER(SEARCH(\"x\",AD53:AG53)))*1)))","v":17},"x","x","x",null,null,null,"x","x",null,"x",null,null,null,null,".",".",".","x","."]
[1113,"ja","Stemmkeweg - Quartier Lütgendortmund -","Lütgendortmund","Straße ","6 Straßenoffensive","V","B","B","B","S","S","E","32994-23","Sanierung/Erneuerung im Rahmen der Straßenoffensive 2024/2025","Umsetzung abhängig u.a. von Witterung und Kapazitäten des Auftragnehmers. Genauer Zeitpunkt kann aktuell nicht dargestellt werden. Aus diesem Grund Bauphase im Arbeitsprogramm  auf mehrere Quartale ausgedehnt.","nach Auftragserteilung ruhend","1",{"$f":"SUM(SUMPRODUCT((ISNUMBER(SEARCH(\"x\",T54)))*4),(SUMPRODUCT((ISNUMBER(SEARCH(\"x\",U54:Z54)))*3)),(SUMPRODUCT((ISNUMBER(SEARCH(\"x\",AA54:AC54)))*2)),(SUMPRODUCT((ISNUMBER(SEARCH(\"x\",AD54:AG54)))*1)))","v":17},"x","x","x",null,null,null,"x","x",null,"x",null,null,null,null,".",".",".","x","."]
[1114,"ja","Uranusstraße - Quartier Lütgendortmund - von Neptunstraße bis Brache \r\n","Lütgendortmund","Straße ","6 Straßenoffensive","V","B","B","B","S","S","E","32994-23","Sanierung/Erneuerung im Rahmen der Straßenoffensive 2024/2025","Umsetzung abhängig u.a. von Witterung und Kapazitäten des Auftragnehmers. Genauer Zeitpunkt kann aktuell nicht dargestellt werden. Aus diesem Grund Bauphase im Arbeitsprogramm  auf mehrere Quartale ausgedehnt.","nach Auftragserteilung ruhend","1",{"$f":"SUM(SUMPRODUCT((ISNUMBER(SEARCH(\"x\",T55)))*4),(SUMPRODUCT((ISNUMBER(SEARCH(\"x\",U55:Z55)))*3)),(SUMPRODUCT((ISNUMBER(SEARCH(\"x\",AA55:AC55)))*2)),(SUMPRODUCT((ISNUMBER(SEARCH(\"x\",AD55:AG55)))*1)))","v":17},"x","x","x",null,null,null,"x","x",null,"x",null,null,null,null,".",".",".","x","."]
[1022,"ja","Paul-Fleming-Straße FE - Quartier -","Mengede","Straße ","6 Straßenoffensive","V","B","S","S","S","E",null,"32994-23","Sanierung/Erneuerung im Rahmen der Straßenoffensive 2024/2025",null,"nach Auftragserteilung ruhend","1",{"$f":"SUM(SUMPRODUCT((ISNUMBER(SEARCH(\"x\",T56)))*4),(SUMPRODUCT((ISNUMBER(SEARCH(\"x\",U56:Z56)))*3)),(SUMPRODUCT((ISNUMBER(SEARCH(\"x\",AA56:AC56)))*2)),(SUMPRODUCT((ISNUMBER(SEARCH(\"x\",AD56:AG56)))*1)))","v":17},"x","x","x",null,null,null,"x","x",null,"x",null,null,null,null,".",".",".","x","."]
[1023,"ja","Ristweg, FE - Quartier -","Mengede","Straße ","6 Straßenoffensive","V","B","S","S","S","E",null,"32994-23","Sanierung/Erneuerung im Rahmen der Straßenoffensive 2024/2025",null,"nach Auftragserteilung ruhend","1",{"$f":"SUM(SUMPRODUCT((ISNUMBER(SEARCH(\"x\",T57)))*4),(SUMPRODUCT((ISNUMBER(SEARCH(\"x\",U57:Z57)))*3)),(SUMPRODUCT((ISNUMBER(SEARCH(\"x\",AA57:AC57)))*2)),(SUMPRODUCT((ISNUMBER(SEARCH(\"x\",AD57:AG57)))*1)))","v":17},"x","x","x",null,null,null,"x","x",null,"x",null,null,null,null,".",".",".","x","."]
[1024,"ja","Weckherlinweg von Haus-Nr. 13 bis 28, Deckensanierung - Quartier -","Mengede","Straße ","6 Straßenoffensive","V","B","S","S","S","E",null,"32994-23","Sanierung/Erneuerung im Rahmen der Straßenoffensive 2024/2025",null,"nach Auftragserteilung ruhend","1",{"$f":"SUM(SUMPRODUCT((ISNUMBER(SEARCH(\"x\",T58)))*4),(SUMPRODUCT((ISNUMBER(SEARCH(\"x\",U58:Z58)))*3)),(SUMPRODUCT((ISNUMBER(SEARCH(\"x\",AA58:AC58)))*2)),(SUMPRODUCT((ISNUMBER(SEARCH(\"x\",AD58:AG58)))*1)))","v":17},"x","x","x",null,null,null,"x","x",null,"x",null,null,null,null,".",".",".","x","."]
[1025,"ja","Waterloostr. von Paul-Gerhardt-Str. bis Ende, FE - Quartier -","Mengede","Straße ","6 Straßenoffensive","V","B","B","S","S","E",null,"32994-23","Sanierung/Erneuerung im Rahmen der Straßenoffensive 2024/2025",null,"nach Auftragserteilung ruhend","1",{"$f":"SUM(SUMPRODUCT((ISNUMBER(SEARCH(\"x\",T59)))*4),(SUMPRODUCT((ISNUMBER(SEARCH(\"x\",U59:Z59)))*3)),(SUMPRODUCT((ISNUMBER(SEARCH(\"x\",AA59:AC59)))*2)),(SUMPRODUCT((ISNUMBER(SEARCH(\"x\",AD59:AG59)))*1)))","v":17},"x","x","x",null,null,null,"x","x",null,"x",null,null,null,null,".",".",".","x","."]
[1033,"ja","Limbecker Straße (Haus Nr. 1 bis 13)","Lütgendortmund","Straße ","6 Straßenoffensive","V",null,"B","B","B","S","E","32994-23","Sanierung/Erneuerung im Rahmen der Straßenoffensive 2024/2025",null,"nach Auftragserteilung ruhend","1",{"$f":"SUM(SUMPRODUCT((ISNUMBER(SEARCH(\"x\",T60)))*4),(SUMPRODUCT((ISNUMBER(SEARCH(\"x\",U60:Z60)))*3)),(SUMPRODUCT((ISNUMBER(SEARCH(\"x\",AA60:AC60)))*2)),(SUMPRODUCT((ISNUMBER(SEARCH(\"x\",AD60:AG60)))*1)))","v":17},"x","x","x",null,null,null,"x","x",null,"x",null,null,null,null,".",".",".","x","."]
[1043,"ja","Albroweg - Quartier Brackel - Wiscelusweg bis g Am Ostbrink","Brackel","Straße ","6 Straßenoffensive","V","V","B","B","S","S","E","32994-23","Sanierung/Erneuerung im Rahmen der Straßenoffensive 2024/2025","Umsetzung abhängig u.a. von Witterung und Kapazitäten des Auftragnehmers. Genauer Zeitpunkt kann aktuell nicht dargestellt werden. Aus diesem Grund Bauphase im Arbeitsprogramm ggfs. auf mehrere Quartale ausgedehnt.","nach Auftragserteilung ruhend","1",{"$f":"SUM(SUMPRODUCT((ISNUMBER(SEARCH(\"x\",T61)))*4),(SUMPRODUCT((ISNUMBER(SEARCH(\"x\",U61:Z61)))*3)),(SUMPRODUCT((ISNUMBER(SEARCH(\"x\",AA61:AC61)))*2)),(SUMPRODUCT((ISNUMBER(SEARCH(\"x\",AD61:AG61)))*1)))","v":17},"x","x","x",null,null,null,"x","x",null,"x",null,null,null,null,".",".",".","x","."]
[1044,"ja","Randolfweg - Quartier Brackel - Wiscelhusweg bis Sackgasse","Brackel","Straße ","6 Straßenoffensive","V","V","B","B","S","S","E","32994-23","Sanierung/Erneuerung im Rahmen der Straßenoffensive 2024/2025","Umsetzung abhängig u.a. von Witterung und Kapazitäten des Auftragnehmers. Genauer Zeitpunkt kann aktuell nicht dargestellt werden. Aus diesem Grund Bauphase im Arbeitsprogramm ggfs. auf mehrere Quartale ausgedehnt.","nach Auftragserteilung ruhend","1",{"$f":"SUM(SUMPRODUCT((ISNUMBER(SEARCH(\"x\",T62)))*4),(SUMPRODUCT((ISNUMBER(SEARCH(\"x\",U62:Z62)))*3)),(SUMPRODUCT((ISNUMBER(SEARCH(\"x\",AA62:AC62)))*2)),(SUMPRODUCT((ISNUMBER(SEARCH(\"x\",AD62:AG62)))*1)))","v":17},"x","x","x",null,null,null,"x","x",null,"x",null,null,null,null,".",".",".","x","."]
[1045,"ja","Adickestraße FE - Quartier -","INN-Ost","Straße ","6 Straßenoffensive","V","B","S","S","S","E",null,"32994-23","Sanierung/Erneuerung im Rahmen der Straßenoffensive 2024/2025","Umsetzung abhängig u.a. von Witterung und Kapazitäten des Auftragnehmers. Genauer Zeitpunkt kann aktuell nicht dargestellt werden. Aus diesem Grund Bauphase im Arbeitsprogramm ggfs. auf mehrere Quartale ausgedehnt.","nach Auftragserteilung ruhend","1",{"$f":"SUM(SUMPRODUCT((ISNUMBER(SEARCH(\"x\",T63)))*4),(SUMPRODUCT((ISNUMBER(SEARCH(\"x\",U63:Z63)))*3)),(SUMPRODUCT((ISNUMBER(SEARCH(\"x\",AA63:AC63)))*2)),(SUMPRODUCT((ISNUMBER(SEARCH(\"x\",AD63:AG63)))*1)))","v":17},"x","x","x",null,null,null,"x","x",null,"x",null,null,null,null,".",".",".","x","."]
[1046,"ja","Donnerstraße - Quartier Brackel - Am Ostbrink bis Am Ostbrink","Brackel","Straße ","6 Straßenoffensive","V","V","B","B","S","S","E","32994-23","Sanierung/Erneuerung im Rahmen der Straßenoffensive 2024/2025","Umsetzung abhängig u.a. von Witterung und Kapazitäten des Auftragnehmers. Genauer Zeitpunkt kann aktuell nicht dargestellt werden. Aus diesem Grund Bauphase im Arbeitsprogramm ggfs. auf mehrere Quartale ausgedehnt.","nach Auftragserteilung ruhend","1",{"$f":"SUM(SUMPRODUCT((ISNUMBER(SEARCH(\"x\",T64)))*4),(SUMPRODUCT((ISNUMBER(SEARCH(\"x\",U64:Z64)))*3)),(SUMPRODUCT((ISNUMBER(SEARCH(\"x\",AA64:AC64)))*2)),(SUMPRODUCT((ISNUMBER(SEARCH(\"x\",AD64:AG64)))*1)))","v":17},"x","x","x",null,null,null,"x","x",null,"x",null,null,null,null,".",".",".","x","."]
[1047,"ja","Gerhart-Hauptmann-Straße, Deckensanierung - Quartier -","INN-Ost","Straße ","6 Straßenoffensive","V","B","S","S","S","E",null,"32994-23","Sanierung/Erneuerung im Rahmen der Straßenoffensive 2024/2025","Umsetzung abhängig u.a. von Witterung und Kapazitäten des Auftragnehmers. Genauer Zeitpunkt kann aktuell nicht dargestellt werden. Aus diesem Grund Bauphase im Arbeitsprogramm ggfs. auf mehrere Quartale ausgedehnt.","nach Auftragserteilung ruhend","1",{"$f":"SUM(SUMPRODUCT((ISNUMBER(SEARCH(\"x\",T65)))*4),(SUMPRODUCT((ISNUMBER(SEARCH(\"x\",U65:Z65)))*3)),(SUMPRODUCT((ISNUMBER(SEARCH(\"x\",AA65:AC65)))*2)),(SUMPRODUCT((ISNUMBER(SEARCH(\"x\",AD65:AG65)))*1)))","v":17},"x","x","x",null,null,null,"x","x",null,"x",null,null,null,null,".",".",".","x","."]
[1049,"ja","Schönaichstraße, FE - Quartier -","INN-Ost","Straße ","6 Straßenoffensive","V","B","S","S","S","E",null,"32994-23","Sanierung/Erneuerung im Rahmen der Straßenoffensive 2024/2025","Umsetzung abhängig u.a. von Witterung und Kapazitäten des Auftragnehmers. Genauer Zeitpunkt kann aktuell nicht dargestellt werden. Aus diesem Grund Bauphase im Arbeitsprogramm ggfs. auf mehrere Quartale ausgedehnt.","nach Auftragserteilung ruhend","1",{"$f":"SUM(SUMPRODUCT((ISNUMBER(SEARCH(\"x\",T66)))*4),(SUMPRODUCT((ISNUMBER(SEARCH(\"x\",U66:Z66)))*3)),(SUMPRODUCT((ISNUMBER(SEARCH(\"x\",AA66:AC66)))*2)),(SUMPRODUCT((ISNUMBER(SEARCH(\"x\",AD66:AG66)))*1)))","v":17},"x","x","x",null,null,null,"x","x",null,"x",null,null,null,null,".",".",".","x","."]
[1050,"ja","Ertmarweg - Quartier Brackel - Briefsweg bis Sackgasse mit Abzweig","Brackel","Straße ","6 Straßenoffensive","V","V","B","B","S","S","E","32994-23","Sanierung/Erneuerung im Rahmen der Straßenoffensive 2024/2025","Umsetzung abhängig u.a. von Witterung und Kapazitäten des Auftragnehmers. Genauer Zeitpunkt kann aktuell nicht dargestellt werden. Aus diesem Grund Bauphase im Arbeitsprogramm ggfs. auf mehrere Quartale ausgedehnt.","nach Auftragserteilung ruhend","1",{"$f":"SUM(SUMPRODUCT((ISNUMBER(SEARCH(\"x\",T67)))*4),(SUMPRODUCT((ISNUMBER(SEARCH(\"x\",U67:Z67)))*3)),(SUMPRODUCT((ISNUMBER(SEARCH(\"x\",AA67:AC67)))*2)),(SUMPRODUCT((ISNUMBER(SEARCH(\"x\",AD67:AG67)))*1)))","v":17},"x","x","x",null,null,null,"x","x",null,"x",null,null,null,null,".",".",".","x","."]
[1051,"ja","Thomas-Mann-Straße, FE - Quartier -","INN-Ost","Straße ","6 Straßenoffensive","V","B","S","S","S","E",null,"32994-23","Sanierung/Erneuerung im Rahmen der Straßenoffensive 2024/2025","Umsetzung abhängig u.a. von Witterung und Kapazitäten des Auftragnehmers. Genauer Zeitpunkt kann aktuell nicht dargestellt werden. Aus diesem Grund Bauphase im Arbeitsprogramm ggfs. auf mehrere Quartale ausgedehnt.","nach Auftragserteilung ruhend","1",{"$f":"SUM(SUMPRODUCT((ISNUMBER(SEARCH(\"x\",T68)))*4),(SUMPRODUCT((ISNUMBER(SEARCH(\"x\",U68:Z68)))*3)),(SUMPRODUCT((ISNUMBER(SEARCH(\"x\",AA68:AC68)))*2)),(SUMPRODUCT((ISNUMBER(SEARCH(\"x\",AD68:AG68)))*1)))","v":17},"x","x","x",null,null,null,"x","x",null,"x",null,null,null,null,".",".",".","x","."]
[1061,"ja","Asternstraße","Aplerbeck","Straße ","6 Straßenoffensive","V","B","B","B","B","S","E","32994-23","Sanierung/Erneuerung im Rahmen der Straßenoffensive 2024/2025","Umsetzung abhängig u.a. von Witterung und Kapazitäten des Auftragnehmers. Genauer Zeitpunkt kann aktuell nicht dargestellt werden. Aus diesem Grund Bauphase im Arbeitsprogramm ggfs. auf mehrere Quartale ausgedehnt.","nach Auftragserteilung ruhend","1",{"$f":"SUM(SUMPRODUCT((ISNUMBER(SEARCH(\"x\",T69)))*4),(SUMPRODUCT((ISNUMBER(SEARCH(\"x\",U69:Z69)))*3)),(SUMPRODUCT((ISNUMBER(SEARCH(\"x\",AA69:AC69)))*2)),(SUMPRODUCT((ISNUMBER(SEARCH(\"x\",AD69:AG69)))*1)))","v":17},"x","x","x",null,null,null,"x","x",null,"x",null,null,null,null,".",".",".","x","."]
[1117,"ja","Westricher Straße- von Westermannstraße bis Hausnr. 57\n","Lütgendortmund","Straße ","6 Straßenoffensive","V","V","B","S","S","S","E","32994-23","Sanierung/Erneuerung im Rahmen der Straßenoffensive 2024/2025","Umsetzung abhängig u.a. von Witterung und Kapazitäten des Auftragnehmers. Genauer Zeitpunkt kann aktuell nicht dargestellt werden. Aus diesem Grund Bauphase im Arbeitsprogramm ggfs. auf mehrere Quartale ausgedehnt.","nach Auftragserteilung ruhend","1",{"$f":"SUM(SUMPRODUCT((ISNUMBER(SEARCH(\"x\",T70)))*4),(SUMPRODUCT((ISNUMBER(SEARCH(\"x\",U70:Z70)))*3)),(SUMPRODUCT((ISNUMBER(SEARCH(\"x\",AA70:AC70)))*2)),(SUMPRODUCT((ISNUMBER(SEARCH(\"x\",AD70:AG70)))*1)))","v":17},"x","x","x",null,null,null,"x","x",null,"x",null,null,null,null,".",".",".","x","."]
[1148,"ja","Gleiwitzstraße, BHS Gleiwitzstraße U, beide FR","Scharnhorst","Bushaltestelle","8 Einzelmaßnahme Bushaltestellenprogramm","V","B","B","S","S","E",null,"n. v.","Barrierefreier Ausbau der Bushaltestelle Gleiwitzstraße U, beide Fahrtrichtungen",null,"nach Auftragserteilung ruhend","1",{"$f":"SUM(SUMPRODUCT((ISNUMBER(SEARCH(\"x\",T71)))*4),(SUMPRODUCT((ISNUMBER(SEARCH(\"x\",U71:Z71)))*3)),(SUMPRODUCT((ISNUMBER(SEARCH(\"x\",AA71:AC71)))*2)),(SUMPRODUCT((ISNUMBER(SEARCH(\"x\",AD71:AG71)))*1)))","v":17},"x",null,null,null,null,"x","x","x","x","x",null,null,"x",null,"x",".",".",".","."]
[995,"ja","Linie 400 - Abschnitt 10 bis 15; Heiliger Weg bis  Im Spähenfelde; Abschnitt Funkenburg - Stadthaus; Abschnitt Funkenburg - Hörde Bf.","INN-Ost","Straße","9 Einzelmaßnahme Straße investiv","V","B","B","B","S","S","E","35774-24","Einführung der Buslinie 400 mit erforderlichen Anpassungen an BHS, Parkregelungen, Signalsteuerungen (Busbeschleunigung)",null,"nach Auftragserteilung ruhend","1",{"$f":"SUM(SUMPRODUCT((ISNUMBER(SEARCH(\"x\",T72)))*4),(SUMPRODUCT((ISNUMBER(SEARCH(\"x\",U72:Z72)))*3)),(SUMPRODUCT((ISNUMBER(SEARCH(\"x\",AA72:AC72)))*2)),(SUMPRODUCT((ISNUMBER(SEARCH(\"x\",AD72:AG72)))*1)))","v":16},"x",null,null,null,null,"x","x","x",null,"x",null,null,"x","x","x",".",".",".","."]
[996,"ja","Linie 400 - Abschnitt 16 bis 19; Brackeler Straße über Borsigplatz, Borsigstraße,  Mallinckrodtstraße bis Leopoldstraße","INN-Nord","Straße","9 Einzelmaßnahme Straße investiv","V","B","B","B","S","S","E","35120-24","Einführung der Buslinie 400 mit erforderlichen Anpassungen an BHS, Parkregelungen, Signalsteuerungen (Busbeschleunigung)",null,"nach Auftragserteilung ruhend","1",{"$f":"SUM(SUMPRODUCT((ISNUMBER(SEARCH(\"x\",T73)))*4),(SUMPRODUCT((ISNUMBER(SEARCH(\"x\",U73:Z73)))*3)),(SUMPRODUCT((ISNUMBER(SEARCH(\"x\",AA73:AC73)))*2)),(SUMPRODUCT((ISNUMBER(SEARCH(\"x\",AD73:AG73)))*1)))","v":16},"x",null,null,null,null,"x","x","x",null,"x",null,null,"x","x","x",".",".",".","."]
[183,"ja","Lührmannstraße v. Wittbräucker Straße bis Hs 2a, Ausbau ","Hörde","Straße komplex","9 Einzelmaßnahme Straße investiv","V","B","B","S","S","E",null,"30561-23","Umgestaltung der Einmündung mit der Wittbräucker Straße, Ausbau des fehlenden Teilstücks von Haus Nr. 2 in Richtung Einmündung, barrierefreier Ausbau der beiden Haltestellen und des Fußgängerüberweges. Gleichzeitige Erneuerung des südlichen Gehweges der Wittbräucker Straße von der Haltestelle bis zum Ende der neuen Einmündung in die Lührmannstraße. ","Bauzeit voraussichtlich 3 Monate, abhängig von Witterung.","nach Auftragserteilung ruhend","1",{"$f":"SUM(SUMPRODUCT((ISNUMBER(SEARCH(\"x\",T74)))*4),(SUMPRODUCT((ISNUMBER(SEARCH(\"x\",U74:Z74)))*3)),(SUMPRODUCT((ISNUMBER(SEARCH(\"x\",AA74:AC74)))*2)),(SUMPRODUCT((ISNUMBER(SEARCH(\"x\",AD74:AG74)))*1)))","v":15},"x",null,null,null,null,"x","x","x",null,"x",null,null,null,"x","x",".","x",".","."]
[610,"ja","LSA 2051 Sölder Straße (Hs.Nr.70) / Nathmerichstraße -  Aufrüstung Radverkehrsbeschleunigung und Baumscheibenerstellung/Bordsteinabsenkung","Aplerbeck","LSA","3a Einzelmaßnahme Radwege investiv","V","B","S","S","S","E",null,"35799-24","Nachrüstung der LSA mit 2 Wärmebilddetektoren und Herstellung einer Baumscheibe.",null,"nach Auftragserteilung ruhend","1",{"$f":"SUM(SUMPRODUCT((ISNUMBER(SEARCH(\"x\",T75)))*4),(SUMPRODUCT((ISNUMBER(SEARCH(\"x\",U75:Z75)))*3)),(SUMPRODUCT((ISNUMBER(SEARCH(\"x\",AA75:AC75)))*2)),(SUMPRODUCT((ISNUMBER(SEARCH(\"x\",AD75:AG75)))*1)))","v":15},"x",null,null,null,null,null,"x","x","x","x",null,"x","x",null,".",".","x",".","."]
[743,"ja","Haltestellen Linie X13","Lütgendortmund","Bushaltestelle","9 Einzelmaßnahme Straße investiv","V","B","B","S","S","E",null,"24501-22","Bau neuer Haltestellen für die neue Schnellbuslinie X13 ; zwei Bussteige an der Kokerei Hansa, zwei Bussteige am Busbahnhof Huckarde; Pausenposition im Bereich Otto-Hahn-Straße. ",null,"nach Auftragserteilung ruhend","1",{"$f":"SUM(SUMPRODUCT((ISNUMBER(SEARCH(\"x\",T76)))*4),(SUMPRODUCT((ISNUMBER(SEARCH(\"x\",U76:Z76)))*3)),(SUMPRODUCT((ISNUMBER(SEARCH(\"x\",AA76:AC76)))*2)),(SUMPRODUCT((ISNUMBER(SEARCH(\"x\",AD76:AG76)))*1)))","v":15},"x",null,null,null,null,"x","x","x",null,"x",null,null,null,"x","x",".",".",".","."]
[949,"ja","LSA 0044 Grüne Straße / Schützenstraße / Blücherstraße","INN-Nord","LSA","1a Einzelmaßnahme Verkehrstechnik investiv","V","B","S","S","S","E",null,"34935-24","Erneuerung der LSA 0044 Grüne Straße / Schützenstraße / Blücherstraße und Einbau aktueller sehbehindertengerechter Ausstattung (Blindensignale / Blindentaster).",null,"nach Auftragserteilung ruhend","1",{"$f":"SUM(SUMPRODUCT((ISNUMBER(SEARCH(\"x\",T77)))*4),(SUMPRODUCT((ISNUMBER(SEARCH(\"x\",U77:Z77)))*3)),(SUMPRODUCT((ISNUMBER(SEARCH(\"x\",AA77:AC77)))*2)),(SUMPRODUCT((ISNUMBER(SEARCH(\"x\",AD77:AG77)))*1)))","v":14},"x","x",null,null,null,null,"x","x",null,"x",null,null,null,null,".",".","x",".","."]
[956,"ja","LSA 2320 Roßbachstraße / Kirchplatz","Huckarde","LSA","1a Einzelmaßnahme Verkehrstechnik investiv","V","B","S","S","S","E",null,"34958-24","Erneuerung der LSA 2320 Roßbachstraße / Kirchplatz und Einbau aktueller sehbehindertengerechter Ausstattung (Blindensignale / Blindentaster).",null,"nach Auftragserteilung ruhend","1",{"$f":"SUM(SUMPRODUCT((ISNUMBER(SEARCH(\"x\",T78)))*4),(SUMPRODUCT((ISNUMBER(SEARCH(\"x\",U78:Z78)))*3)),(SUMPRODUCT((ISNUMBER(SEARCH(\"x\",AA78:AC78)))*2)),(SUMPRODUCT((ISNUMBER(SEARCH(\"x\",AD78:AG78)))*1)))","v":14},"x","x",null,null,null,null,"x","x",null,"x",null,null,null,null,".",".","x",".","."]
[966,"ja","LSA 2344 Friedrich-Hölscher-Straße/Mödershof","Scharnhorst","LSA","1a Einzelmaßnahme Verkehrstechnik investiv","V","B","S","S","S","E",null,"34951-24","Erneuerung der LSA 2344 Friedrich-Hölscher-Straße/Mödershof und Einbau aktueller sehbehindertengerechter Ausstattung (Blindensignale / Blindentaster).",null,"nach Auftragserteilung ruhend","1",{"$f":"SUM(SUMPRODUCT((ISNUMBER(SEARCH(\"x\",T79)))*4),(SUMPRODUCT((ISNUMBER(SEARCH(\"x\",U79:Z79)))*3)),(SUMPRODUCT((ISNUMBER(SEARCH(\"x\",AA79:AC79)))*2)),(SUMPRODUCT((ISNUMBER(SEARCH(\"x\",AD79:AG79)))*1)))","v":14},"x","x",null,null,null,null,"x","x",null,"x",null,null,null,null,".",".","x",".","."]
[967,"ja","LSA 0414 Brambauerstraße  /Heitkampstraße","Eving","LSA","1a Einzelmaßnahme Verkehrstechnik investiv","V","B","S","S","S","E",null,"34965-24","Erneuerung der LSA 0414 Brambauerstraße  /Heitkampstraße und Einbau aktueller sehbehindertengerechter Ausstattung (Blindensignale / Blindentaster).",null,"nach Auftragserteilung ruhend","1",{"$f":"SUM(SUMPRODUCT((ISNUMBER(SEARCH(\"x\",T80)))*4),(SUMPRODUCT((ISNUMBER(SEARCH(\"x\",U80:Z80)))*3)),(SUMPRODUCT((ISNUMBER(SEARCH(\"x\",AA80:AC80)))*2)),(SUMPRODUCT((ISNUMBER(SEARCH(\"x\",AD80:AG80)))*1)))","v":14},"x","x",null,null,null,null,"x","x",null,"x",null,null,null,null,".",".","x",".","."]
[704,"ja","LSA 0535 - Kesselborn/Martener Straße","Lütgendortmund","LSA","1a Einzelmaßnahme Verkehrstechnik investiv","V","B","S","S","S","E",null,"22299-21","Neubau der Lichtsignalanlage Kesselborn/Martener Straße (LSA 0535).",null,"nach Auftragserteilung ruhend","1",{"$f":"SUM(SUMPRODUCT((ISNUMBER(SEARCH(\"x\",T81)))*4),(SUMPRODUCT((ISNUMBER(SEARCH(\"x\",U81:Z81)))*3)),(SUMPRODUCT((ISNUMBER(SEARCH(\"x\",AA81:AC81)))*2)),(SUMPRODUCT((ISNUMBER(SEARCH(\"x\",AD81:AG81)))*1)))","v":14},"x","x",null,null,null,null,"x","x",null,"x",null,null,null,null,".",".","x",".","."]
[781,"ja","LSA 0276 - Derner Straße/An den Teichen","Eving","LSA","1a Einzelmaßnahme Verkehrstechnik investiv","V","B","S","S","S","E",null,"35548-24","Erneuerung der LSA 0276 - Derner Straße / An den Teichen.",null,"nach Auftragserteilung ruhend",{"$f":"IF(S82=0,\"keine\",IF(AND(S82>0,S82<6),\"3\",IF(AND(S82>5,S82<11),\"2\",\"1\")))","v":"1"},{"$f":"SUM(SUMPRODUCT((ISNUMBER(SEARCH(\"x\",T82)))*4),(SUMPRODUCT((ISNUMBER(SEARCH(\"x\",U82:Z82)))*3)),(SUMPRODUCT((ISNUMBER(SEARCH(\"x\",AA82:AC82)))*2)),(SUMPRODUCT((ISNUMBER(SEARCH(\"x\",AD82:AG82)))*1)))","v":14},"x","x",null,null,null,null,"x","x",null,"x",null,null,null,null,".",".","x",".","."]
[785,"ja","LSA 0357 - Bornstraße/Bergmannstraße/Brunnenstraße","Innenstadt-Nord","LSA","1a Einzelmaßnahme Verkehrstechnik investiv","V","B","S","S","S","E",null,"35549-24","Erneuerung der LSA 0357 - Bornstraße / Bergmannstraße / Brunnenstraße.",null,"nach Auftragserteilung ruhend","1",{"$f":"SUM(SUMPRODUCT((ISNUMBER(SEARCH(\"x\",T83)))*4),(SUMPRODUCT((ISNUMBER(SEARCH(\"x\",U83:Z83)))*3)),(SUMPRODUCT((ISNUMBER(SEARCH(\"x\",AA83:AC83)))*2)),(SUMPRODUCT((ISNUMBER(SEARCH(\"x\",AD83:AG83)))*1)))","v":14},"x","x",null,null,null,null,"x","x",null,"x",null,null,null,null,".",".","x",".","."]
[791,"ja","LSA 0417 Deutsche Straße/Gewerbestraße","Eving","LSA","1a Einzelmaßnahme Verkehrstechnik investiv","V","B","S","S","S","E",null,"34965-24","Erneuerung der Lichtsignalanlage (LSA 0417) Deutsche Straße/Gewerbestraße .",null,"nach Auftragserteilung ruhend","1",{"$f":"SUM(SUMPRODUCT((ISNUMBER(SEARCH(\"x\",T84)))*4),(SUMPRODUCT((ISNUMBER(SEARCH(\"x\",U84:Z84)))*3)),(SUMPRODUCT((ISNUMBER(SEARCH(\"x\",AA84:AC84)))*2)),(SUMPRODUCT((ISNUMBER(SEARCH(\"x\",AD84:AG84)))*1)))","v":14},"x","x",null,null,null,null,"x","x",null,"x",null,null,null,null,".",".","x",".","."]
[911,"ja","LSA 0143 Waltroper Straße / Schaphusstraße","Mengede","LSA","1a Einzelmaßnahme Verkehrstechnik investiv","V","B","S","S","S","E",null,"34954-24","Erneuerung der Lichtsignalanlage (LSA 0143 Waltroper Straße/Schaphusstraße)",null,"nach Auftragserteilung ruhend","1",{"$f":"SUM(SUMPRODUCT((ISNUMBER(SEARCH(\"x\",T85)))*4),(SUMPRODUCT((ISNUMBER(SEARCH(\"x\",U85:Z85)))*3)),(SUMPRODUCT((ISNUMBER(SEARCH(\"x\",AA85:AC85)))*2)),(SUMPRODUCT((ISNUMBER(SEARCH(\"x\",AD85:AG85)))*1)))","v":14},"x","x",null,null,null,null,"x","x",null,"x",null,null,null,null,".",".","x",".","."]
[915,"ja","LSA 0333 Heyden-Rynsch-Straße Hausnummer 12","Innenstadt-West","LSA","1a Einzelmaßnahme Verkehrstechnik investiv","V","B","S","S","S","E",null,"33679-23","Erneuerung der Lichtsignalanlage (LSA 0333 Heyden-Rynsch-Straße Hausnummer 12)",null,"nach Auftragserteilung ruhend","1",{"$f":"SUM(SUMPRODUCT((ISNUMBER(SEARCH(\"x\",T86)))*4),(SUMPRODUCT((ISNUMBER(SEARCH(\"x\",U86:Z86)))*3)),(SUMPRODUCT((ISNUMBER(SEARCH(\"x\",AA86:AC86)))*2)),(SUMPRODUCT((ISNUMBER(SEARCH(\"x\",AD86:AG86)))*1)))","v":14},"x","x",null,null,null,null,"x","x",null,"x",null,null,null,null,".",".","x",".","."]
[916,"ja","LSA 0466 Heyden-Rynsch-Straße / Auf dem Brümmer","Innenstadt-West","LSA","1a Einzelmaßnahme Verkehrstechnik investiv","V","B","S","S","S","E",null,"33679-23","Erneuerung der Lichtsignalanlage (LSA 0466 Heyden-Rynsch-Straße / Auf dem Brümmer)",null,"nach Auftragserteilung ruhend","1",{"$f":"SUM(SUMPRODUCT((ISNUMBER(SEARCH(\"x\",T87)))*4),(SUMPRODUCT((ISNUMBER(SEARCH(\"x\",U87:Z87)))*3)),(SUMPRODUCT((ISNUMBER(SEARCH(\"x\",AA87:AC87)))*2)),(SUMPRODUCT((ISNUMBER(SEARCH(\"x\",AD87:AG87)))*1)))","v":14},"x","x",null,null,null,null,"x","x",null,"x",null,null,null,null,".",".","x",".","."]
[922,"ja","LSA 0444 Aplerbecker-Mark-Straße / Tunnelweg","Aplerbeck","LSA","1a Einzelmaßnahme Verkehrstechnik investiv","V","B","S","S","S","E",null,"33920-24","Erneuerung der Lichtsignalanlage (LSA 0444 Aplerbecker-Mark-Straße / Tunnelweg)",null,"nach Auftragserteilung ruhend","1",{"$f":"SUM(SUMPRODUCT((ISNUMBER(SEARCH(\"x\",T88)))*4),(SUMPRODUCT((ISNUMBER(SEARCH(\"x\",U88:Z88)))*3)),(SUMPRODUCT((ISNUMBER(SEARCH(\"x\",AA88:AC88)))*2)),(SUMPRODUCT((ISNUMBER(SEARCH(\"x\",AD88:AG88)))*1)))","v":14},"x","x",null,null,null,null,"x","x",null,"x",null,null,null,null,".",".","x",".","."]
[975,"ja","Linie 400 - Abschnitt 2; 4-6; Westentor über Rheinische Straße, Lange Straße, Kuithanstraße bis Kreuzstraße","INN-West","Bushaltestelle","8 Einzelmaßnahme Bushaltestellenprogramm","V","V","B","B","S","S","E","35120-24","Einführung der Buslinie 400 mit erforderlichen Anpassungen an BHS, Parkregelungen, Signalsteuerungen (Busbeschleunigung)\nhier: barrierefreier Ausbau der Haltestelle Leibniz Gymnasium ","hier: barrierefreier Ausbau der Haltestelle Leibniz Gymnasium ","nach Auftragserteilung ruhend","1",{"$f":"SUM(SUMPRODUCT((ISNUMBER(SEARCH(\"x\",T89)))*4),(SUMPRODUCT((ISNUMBER(SEARCH(\"x\",U89:Z89)))*3)),(SUMPRODUCT((ISNUMBER(SEARCH(\"x\",AA89:AC89)))*2)),(SUMPRODUCT((ISNUMBER(SEARCH(\"x\",AD89:AG89)))*1)))","v":14},"x",null,null,null,null,"x","x",null,null,"x",null,null,"x","x","x",".",".",".","."]
[945,"ja","LSA 0473 Freie-Vogel-Straße / Stockholmer Allee","Aplerbeck","LSA","1a Einzelmaßnahme Verkehrstechnik investiv","V","B","S","S","S","E",null,"33860-24","Erneuerung der LSA 0473 Freie-Vogel-Straße / Stockholmer Allee und Einbau aktueller sehbehindertengerechter Ausstattung (Blindensignale / Blindentaster).",null,"nach Auftragserteilung ruhend","1",{"$f":"SUM(SUMPRODUCT((ISNUMBER(SEARCH(\"x\",T90)))*4),(SUMPRODUCT((ISNUMBER(SEARCH(\"x\",U90:Z90)))*3)),(SUMPRODUCT((ISNUMBER(SEARCH(\"x\",AA90:AC90)))*2)),(SUMPRODUCT((ISNUMBER(SEARCH(\"x\",AD90:AG90)))*1)))","v":14},"x","x",null,null,null,null,"x","x",null,"x",null,null,null,null,".",".","x",".","."]
[946,"ja","LSA 2316 Marsbruchstraße / Schürbankstraße","Aplerbeck","LSA","1a Einzelmaßnahme Verkehrstechnik investiv","V","B","S","S","S","E",null,"33860-24","Erneuerung der LSA 2316 Marsbruchstraße / Schürbankstraße und Einbau aktueller sehbehindertengerechter Ausstattung (Blindensignale / Blindentaster).",null,"nach Auftragserteilung ruhend","1",{"$f":"SUM(SUMPRODUCT((ISNUMBER(SEARCH(\"x\",T91)))*4),(SUMPRODUCT((ISNUMBER(SEARCH(\"x\",U91:Z91)))*3)),(SUMPRODUCT((ISNUMBER(SEARCH(\"x\",AA91:AC91)))*2)),(SUMPRODUCT((ISNUMBER(SEARCH(\"x\",AD91:AG91)))*1)))","v":14},"x","x",null,null,null,null,"x","x",null,"x",null,null,null,null,".",".","x",".","."]
[947,"ja","LSA 2317 Marsbruchstraße (Hausnummer 132) / Westendorfstraße)","Aplerbeck","LSA","1a Einzelmaßnahme Verkehrstechnik investiv","V","V","B","S","S","S","E","33860-24","Erneuerung der LSA 2317 Marsbruchstraße (Hausnummer 132) / Westendorfstraße) und Einbau aktueller sehbehindertengerechter Ausstattung (Blindensignale / Blindentaster).",null,"nach Auftragserteilung ruhend","1",{"$f":"SUM(SUMPRODUCT((ISNUMBER(SEARCH(\"x\",T92)))*4),(SUMPRODUCT((ISNUMBER(SEARCH(\"x\",U92:Z92)))*3)),(SUMPRODUCT((ISNUMBER(SEARCH(\"x\",AA92:AC92)))*2)),(SUMPRODUCT((ISNUMBER(SEARCH(\"x\",AD92:AG92)))*1)))","v":14},"x","x",null,null,null,null,"x","x",null,"x",null,null,null,null,".",".","x",".","."]
[948,"ja","LSA 0002 Mallinckrodtstraße / Borsigstraße / Brunnenstraße","INN-Nord","LSA","1a Einzelmaßnahme Verkehrstechnik investiv","V","B","S","S","S","E",null,"34935-24","Erneuerung der LSA 0002 Mallinckrodtstraße / Borsigstraße / Brunnenstraße  und Einbau aktueller sehbehindertengerechter Ausstattung (Blindensignale / Blindentaster).",null,"nach Auftragserteilung ruhend","1",{"$f":"SUM(SUMPRODUCT((ISNUMBER(SEARCH(\"x\",T93)))*4),(SUMPRODUCT((ISNUMBER(SEARCH(\"x\",U93:Z93)))*3)),(SUMPRODUCT((ISNUMBER(SEARCH(\"x\",AA93:AC93)))*2)),(SUMPRODUCT((ISNUMBER(SEARCH(\"x\",AD93:AG93)))*1)))","v":14},"x","x",null,null,null,null,"x","x",null,"x",null,null,null,null,".",".","x",".","."]
[953,"ja","LSA 0426 Hülshof (L609n) / Oberfeldstraße","Huckarde","LSA","1a Einzelmaßnahme Verkehrstechnik investiv","V","B","S","S","S","E",null,"34957-24","Erneuerung der LSA 0426 Hülshof (L609n) / Oberfeldstraße und Einbau aktueller sehbehindertengerechter Ausstattung (Blindensignale / Blindentaster).\n",null,"nach Auftragserteilung ruhend","1",{"$f":"SUM(SUMPRODUCT((ISNUMBER(SEARCH(\"x\",T94)))*4),(SUMPRODUCT((ISNUMBER(SEARCH(\"x\",U94:Z94)))*3)),(SUMPRODUCT((ISNUMBER(SEARCH(\"x\",AA94:AC94)))*2)),(SUMPRODUCT((ISNUMBER(SEARCH(\"x\",AD94:AG94)))*1)))","v":14},"x","x",null,null,null,null,"x","x",null,"x",null,null,null,null,".",".","x",".","."]
[957,"ja","LSA 0280 Brennaborstraße / Wulfshofstraße / Wendenweg","Lütgendortmund","LSA","1a Einzelmaßnahme Verkehrstechnik investiv","V","B","B","S","S","E",null,"34946-24","Erneuerung der LSA 0280 Brennaborstraße / Wulfshofstraße / Wendenweg und Einbau aktueller sehbehindertengerechter Ausstattung (Blindensignale / Blindentaster).",null,"nach Auftragserteilung ruhend","1",{"$f":"SUM(SUMPRODUCT((ISNUMBER(SEARCH(\"x\",T95)))*4),(SUMPRODUCT((ISNUMBER(SEARCH(\"x\",U95:Z95)))*3)),(SUMPRODUCT((ISNUMBER(SEARCH(\"x\",AA95:AC95)))*2)),(SUMPRODUCT((ISNUMBER(SEARCH(\"x\",AD95:AG95)))*1)))","v":14},"x","x",null,null,null,null,"x","x",null,"x",null,null,null,null,".",".","x",".","."]
[958,"ja","LSA 0290 Alter Hellweg / Martener Hellweg / Overhoffstraße","Lütgendortmund","LSA","1a Einzelmaßnahme Verkehrstechnik investiv","V","B","B","S","S","S","E","34946-24","Erneuerung der LSA 0290 Alter Hellweg / Martener Hellweg / Overhoffstraße und Einbau aktueller sehbehindertengerechter Ausstattung (Blindensignale / Blindentaster).",null,"nach Auftragserteilung ruhend","1",{"$f":"SUM(SUMPRODUCT((ISNUMBER(SEARCH(\"x\",T96)))*4),(SUMPRODUCT((ISNUMBER(SEARCH(\"x\",U96:Z96)))*3)),(SUMPRODUCT((ISNUMBER(SEARCH(\"x\",AA96:AC96)))*2)),(SUMPRODUCT((ISNUMBER(SEARCH(\"x\",AD96:AG96)))*1)))","v":14},"x","x",null,null,null,null,"x","x",null,"x",null,null,null,null,".",".","x",".","."]
[959,"ja","LSA 2337 Bockenfelder Straße / Hangeneystraße ","Lütgendortmund","LSA","1a Einzelmaßnahme Verkehrstechnik investiv","V","B","S","S","S","E",null,"34946-24","Erneuerung der LSA 2337 Bockenfelder Straße / Hangeneystraße und Einbau aktueller sehbehindertengerechter Ausstattung (Blindensignale / Blindentaster).",null,"nach Auftragserteilung ruhend","1",{"$f":"SUM(SUMPRODUCT((ISNUMBER(SEARCH(\"x\",T97)))*4),(SUMPRODUCT((ISNUMBER(SEARCH(\"x\",U97:Z97)))*3)),(SUMPRODUCT((ISNUMBER(SEARCH(\"x\",AA97:AC97)))*2)),(SUMPRODUCT((ISNUMBER(SEARCH(\"x\",AD97:AG97)))*1)))","v":14},"x","x",null,null,null,null,"x","x",null,"x",null,null,null,null,".",".","x",".","."]
[965,"ja","LSA 2327 Westholz (Hs.Nr.53) / Gleiwitzstraße","Scharnhorst","LSA","1a Einzelmaßnahme Verkehrstechnik investiv","V","V","V","B","S","S","E","34951-24","Erneuerung derLSA 2327 Westholz (Hs.Nr.53) / Gleiwitzstraße und Einbau aktueller sehbehindertengerechter Ausstattung (Blindensignale / Blindentaster).",null,"nach Auftragserteilung ruhend","1",{"$f":"SUM(SUMPRODUCT((ISNUMBER(SEARCH(\"x\",T98)))*4),(SUMPRODUCT((ISNUMBER(SEARCH(\"x\",U98:Z98)))*3)),(SUMPRODUCT((ISNUMBER(SEARCH(\"x\",AA98:AC98)))*2)),(SUMPRODUCT((ISNUMBER(SEARCH(\"x\",AD98:AG98)))*1)))","v":14},"x","x",null,null,null,null,"x","x",null,"x",null,null,null,null,".",".","x",".","."]
[950,"ja","LSA 0418 Bärenbruch / Revierstraße","Huckarde","LSA","1a Einzelmaßnahme Verkehrstechnik investiv","V","B","S","S","S","E",null,"34957-24","Erneuerung der Lichtsignalanlage LSA 0418 Bärenbruch / Revierstraße und Einbau aktueller sehbehindertengerechter Ausstattung (Blindensignale / Blindentaster).",null,"nach Auftragserteilung ruhend","1",{"$f":"SUM(SUMPRODUCT((ISNUMBER(SEARCH(\"x\",T99)))*4),(SUMPRODUCT((ISNUMBER(SEARCH(\"x\",U99:Z99)))*3)),(SUMPRODUCT((ISNUMBER(SEARCH(\"x\",AA99:AC99)))*2)),(SUMPRODUCT((ISNUMBER(SEARCH(\"x\",AD99:AG99)))*1)))","v":14},"x","x",null,null,null,null,"x","x",null,"x",null,null,null,null,".",".","x",".","."]
[551,"ja","In der Liethe - Projekt 2.1 - nördliche Dorfergänzung Grevel - Stichstraße nordöstlich In der Liethe (Teil A), Stichstraße nordwestlich In der Liethe (Teil B)","Scharnhorst","Straße komplex","12 Sondervermögen","V","B","B","B","S","S","E","37909-25","Herstellung der 1. Ausbaustufe der Erschließungsanlagen:\nProjekt 2: Stichstraße nordöstlich, Stichstraße nordwestlich und die Straße In der Liethe von der Greveler Straße bis zur nordwestlichen Stichstraße.",null,"nach Auftragserteilung ruhend","1",{"$f":"SUM(SUMPRODUCT((ISNUMBER(SEARCH(\"x\",T100)))*4),(SUMPRODUCT((ISNUMBER(SEARCH(\"x\",U100:Z100)))*3)),(SUMPRODUCT((ISNUMBER(SEARCH(\"x\",AA100:AC100)))*2)),(SUMPRODUCT((ISNUMBER(SEARCH(\"x\",AD100:AG100)))*1)))","v":13},"x",null,null,null,null,null,"x","x",null,"x",null,null,"x","x","x",".",".",".","."]
[666,"ja","Huckarde-Nord, Stadterneuerung  “Vernetzung von Freiflächen”","Huckarde","Straße ","13 Einzelmaßnahme FB 61 - 67","V","V","B","S","S","E",null,"34599-24","Qualifizierung von Wegeverbindungen in Huckarde-Nord.",null,"nach Auftragserteilung ruhend","1",{"$f":"SUM(SUMPRODUCT((ISNUMBER(SEARCH(\"x\",T101)))*4),(SUMPRODUCT((ISNUMBER(SEARCH(\"x\",U101:Z101)))*3)),(SUMPRODUCT((ISNUMBER(SEARCH(\"x\",AA101:AC101)))*2)),(SUMPRODUCT((ISNUMBER(SEARCH(\"x\",AD101:AG101)))*1)))","v":13},"x",null,null,null,null,null,"x","x",null,"x",null,null,"x","x","x",".",".",".","."]
[846,"ja","Neubau Rettungswache 12 - Neubau LSA  Parsevalstraße, Anpassung LSA  Lindberghstraße","Hörde","LSA","16 Einzelmaßnahme inv. Dienstleistungen für andere FB ",null,null,"B","S","S","S","E","34342-24","Neubau der LSA Parsevalstraße und Anpassungen an der  LSA Lindberghstraße aufgrund des Neubaus der RW 12 in Huckarde, sowie Veränderungen im Straßenbereich der Ausfahrt der RW 12. ",null,"nach Auftragserteilung ruhend","1",{"$f":"SUM(SUMPRODUCT((ISNUMBER(SEARCH(\"x\",T102)))*4),(SUMPRODUCT((ISNUMBER(SEARCH(\"x\",U102:Z102)))*3)),(SUMPRODUCT((ISNUMBER(SEARCH(\"x\",AA102:AC102)))*2)),(SUMPRODUCT((ISNUMBER(SEARCH(\"x\",AD102:AG102)))*1)))","v":13},"x",null,null,null,null,null,"x","x",null,"x",null,null,"x","x",".",".","x",".","."]
[46,"ja","LSA 0077 - Burgholzstraße/Eberstraße-Eisenstraße ","Innenstadt-Nord","LSA","1a Einzelmaßnahme Verkehrstechnik investiv","V","B","S","S","S","E",null,"05926-16","Erneuerung der Lichtsignalanlage Burgholz/Eberstraße-Eisenstraße (LSA 0077)",null,"nach Auftragserteilung ruhend","1",{"$f":"SUM(SUMPRODUCT((ISNUMBER(SEARCH(\"x\",T103)))*4),(SUMPRODUCT((ISNUMBER(SEARCH(\"x\",U103:Z103)))*3)),(SUMPRODUCT((ISNUMBER(SEARCH(\"x\",AA103:AC103)))*2)),(SUMPRODUCT((ISNUMBER(SEARCH(\"x\",AD103:AG103)))*1)))","v":11},"x",null,null,null,null,null,"x","x",null,"x",null,null,null,null,".",".","x",".","."]
[782,"ja","LSA 0320 - Derner Straße/Osterfeldstraße","Eving","LSA","1a Einzelmaßnahme Verkehrstechnik investiv","V","B","S","S","S","E",null,"35548-24","Erneuerung der LSA LSA 0320 - Derner Straße / Osterfeldstraße.",null,"nach Auftragserteilung ruhend","1",{"$f":"SUM(SUMPRODUCT((ISNUMBER(SEARCH(\"x\",T104)))*4),(SUMPRODUCT((ISNUMBER(SEARCH(\"x\",U104:Z104)))*3)),(SUMPRODUCT((ISNUMBER(SEARCH(\"x\",AA104:AC104)))*2)),(SUMPRODUCT((ISNUMBER(SEARCH(\"x\",AD104:AG104)))*1)))","v":11},"x",null,null,null,null,null,"x","x",null,"x",null,null,null,null,".",".","x",".","."]
[784,"ja","LSA 0150 - Bornstraße/Eisenstraße","Innenstadt-Nord","LSA","1a Einzelmaßnahme Verkehrstechnik investiv","V","B","S","S","S","E",null,"35549-24","Erneuerung der LSA LSA 0150 - Bornstraße / Eisenstraße.",null,"nach Auftragserteilung ruhend","1",{"$f":"SUM(SUMPRODUCT((ISNUMBER(SEARCH(\"x\",T105)))*4),(SUMPRODUCT((ISNUMBER(SEARCH(\"x\",U105:Z105)))*3)),(SUMPRODUCT((ISNUMBER(SEARCH(\"x\",AA105:AC105)))*2)),(SUMPRODUCT((ISNUMBER(SEARCH(\"x\",AD105:AG105)))*1)))","v":11},"x",null,null,null,null,null,"x","x",null,"x",null,null,null,null,".",".","x",".","."]
[802,"ja","LSA 2369 - Klönnestraße/Lüneburgerstraße","Innenstadt-Ost","LSA","1a Einzelmaßnahme Verkehrstechnik investiv","V",null,"B","B","S","S","E","33838-24","Erneuerung der Lichtsignalanlage (LSA 2369) Klönnestraße/Lüneburgerstraße",null,"nach Auftragserteilung ruhend","1",{"$f":"SUM(SUMPRODUCT((ISNUMBER(SEARCH(\"x\",T106)))*4),(SUMPRODUCT((ISNUMBER(SEARCH(\"x\",U106:Z106)))*3)),(SUMPRODUCT((ISNUMBER(SEARCH(\"x\",AA106:AC106)))*2)),(SUMPRODUCT((ISNUMBER(SEARCH(\"x\",AD106:AG106)))*1)))","v":11},"x",null,null,null,null,null,"x","x",null,"x",null,null,null,null,".",".","x",".","."]
[918,"ja","LSA 0020 Lindemannstraße / Kreuzstraße","Innenstadt-West","LSA","1a Einzelmaßnahme Verkehrstechnik investiv","V","B","S","S","S","E",null,"33679-23","Erneuerung der Lichtsignalanlage (LSA 0020 Lindemannstraße / Kreuzstraße)",null,"nach Auftragserteilung ruhend","1",{"$f":"SUM(SUMPRODUCT((ISNUMBER(SEARCH(\"x\",T107)))*4),(SUMPRODUCT((ISNUMBER(SEARCH(\"x\",U107:Z107)))*3)),(SUMPRODUCT((ISNUMBER(SEARCH(\"x\",AA107:AC107)))*2)),(SUMPRODUCT((ISNUMBER(SEARCH(\"x\",AD107:AG107)))*1)))","v":11},"x",null,null,null,null,null,"x","x",null,"x",null,null,null,null,".",".","x",".","."]
[963,"ja","LSA 0037 Hohe Straße / Gerstenstraße / Markgrafenstraße","INN-Ost","LSA","1a Einzelmaßnahme Verkehrstechnik investiv","V","V","V","B","S","S","E","35395-24","Erneuerung der LSA 0037 Hohe Straße / Gerstenstraße / Markgrafenstraße und Einbau aktueller sehbehindertengerechter Ausstattung (Blindensignale / Blindentaster).",null,"nach Auftragserteilung ruhend","1",{"$f":"SUM(SUMPRODUCT((ISNUMBER(SEARCH(\"x\",T108)))*4),(SUMPRODUCT((ISNUMBER(SEARCH(\"x\",U108:Z108)))*3)),(SUMPRODUCT((ISNUMBER(SEARCH(\"x\",AA108:AC108)))*2)),(SUMPRODUCT((ISNUMBER(SEARCH(\"x\",AD108:AG108)))*1)))","v":11},"x",null,null,null,null,null,"x","x",null,"x",null,null,null,null,".",".","x",".","."]
[1163,"ja","LSA 0342 Rheinische Straße - Emscherbrücke","INN-West","LSA","1a Einzelmaßnahme Verkehrstechnik investiv","V","B","S","S","S","E",null,"35511-25","Erneuerung der Lichtsignalanlage (LSA 0342) Rheinische Straße / Emscherbrücke",null,"nach Auftragserteilung ruhend","1",{"$f":"SUM(SUMPRODUCT((ISNUMBER(SEARCH(\"x\",T109)))*4),(SUMPRODUCT((ISNUMBER(SEARCH(\"x\",U109:Z109)))*3)),(SUMPRODUCT((ISNUMBER(SEARCH(\"x\",AA109:AC109)))*2)),(SUMPRODUCT((ISNUMBER(SEARCH(\"x\",AD109:AG109)))*1)))","v":11},"x",null,null,null,null,null,"x","x",null,"x",null,null,null,null,".",".","x",".","."]
[805,"ja","LSA 2265 - Bornstraße/Missundestraße","INN-Nord","LSA","1a Einzelmaßnahme Verkehrstechnik investiv",null,"V","V","B","S","E",null,"37851-25","Erneuerung der Lichtsignalanlage LSA 2265 - Bornstraße/Missundestraße.",null,"nach Auftragserteilung ruhend","1",{"$f":"SUM(SUMPRODUCT((ISNUMBER(SEARCH(\"x\",T110)))*4),(SUMPRODUCT((ISNUMBER(SEARCH(\"x\",U110:Z110)))*3)),(SUMPRODUCT((ISNUMBER(SEARCH(\"x\",AA110:AC110)))*2)),(SUMPRODUCT((ISNUMBER(SEARCH(\"x\",AD110:AG110)))*1)))","v":11},"x",null,null,null,null,null,"x","x",null,"x",null,null,null,null,".",".","x",".","."]
[932,"nein","Kruckeler Straße von von Autobahnbrücke (BAB 45) bis Löttringhauser Straße","Hombruch","Straße","6 Straßenoffensive","V","V","B","B","S","E",null,"32994-23","Sanierung/Erneuerung im Rahmen der Straßenoffensive 2024/2025",null,"in Bauvorbereitung","1",{"$f":"SUM(SUMPRODUCT((ISNUMBER(SEARCH(\"x\",T111)))*4),(SUMPRODUCT((ISNUMBER(SEARCH(\"x\",U111:Z111)))*3)),(SUMPRODUCT((ISNUMBER(SEARCH(\"x\",AA111:AC111)))*2)),(SUMPRODUCT((ISNUMBER(SEARCH(\"x\",AD111:AG111)))*1)))","v":16},null,"x","x",null,null,null,"x","x","x","x",null,null,"x",null,".",".",".","x","."]
[1016,"nein","Veloroute 1 - Eving - Teilstück 8b \"Evinger Straße 422 bis 448\"","Eving","Radverkehr","10 Einzelmaßnahme Verkehrswendebüro","V","V","V","B","S","E",null,"37154-24","Einrichtung einer Fahrradstraße (Beschilderung und Markierung)",null,"in Bauvorbereitung","1",{"$f":"SUM(SUMPRODUCT((ISNUMBER(SEARCH(\"x\",T112)))*4),(SUMPRODUCT((ISNUMBER(SEARCH(\"x\",U112:Z112)))*3)),(SUMPRODUCT((ISNUMBER(SEARCH(\"x\",AA112:AC112)))*2)),(SUMPRODUCT((ISNUMBER(SEARCH(\"x\",AD112:AG112)))*1)))","v":15},null,null,null,"x","x","x",null,"x",null,"x",null,"x","x",null,".",".","x",".","x"]
[1017,"nein","Veloroute 1 - Eving - Teilstück 8d \"Evinger Straße 474 bis 502\"","Eving","Radverkehr","10 Einzelmaßnahme Verkehrswendebüro","V","V","V","B","S","E",null,"37154-24","Einrichtung einer Fahrradstraße (Beschilderung und Markierung)",null,"in Bauvorbereitung","1",{"$f":"SUM(SUMPRODUCT((ISNUMBER(SEARCH(\"x\",T113)))*4),(SUMPRODUCT((ISNUMBER(SEARCH(\"x\",U113:Z113)))*3)),(SUMPRODUCT((ISNUMBER(SEARCH(\"x\",AA113:AC113)))*2)),(SUMPRODUCT((ISNUMBER(SEARCH(\"x\",AD113:AG113)))*1)))","v":15},null,null,null,"x","x","x",null,"x",null,"x",null,"x","x",null,".",".","x",".","x"]
[1015,"nein","Veloroute 1 - Eving - Teilstück 7 \"Holzheck\"","Eving","Radverkehr","10 Einzelmaßnahme Verkehrswendebüro","V","V","V","B","S","E",null,"37154-24","Einrichtung einer Fahrradstraße (Beschilderung und Markierung)",null,"in Bauvorbereitung","1",{"$f":"SUM(SUMPRODUCT((ISNUMBER(SEARCH(\"x\",T114)))*4),(SUMPRODUCT((ISNUMBER(SEARCH(\"x\",U114:Z114)))*3)),(SUMPRODUCT((ISNUMBER(SEARCH(\"x\",AA114:AC114)))*2)),(SUMPRODUCT((ISNUMBER(SEARCH(\"x\",AD114:AG114)))*1)))","v":15},null,null,null,"x","x","x",null,"x",null,"x",null,"x","x",null,".",".","x",".","x"]
[982,"nein","Aplerbecker Marktplatz 21, BHS Aplerbeck Markt","Aplerbeck","Bushaltestelle","8 Einzelmaßnahme Bushaltestellenprogramm","V","B","S","S","S","E",null,"n. v.","Barrierefreier Ausbau der Bushaltstelle Aplerbeck Markt, Aplerbecker Marktplatz 21",null,"in Bauvorbereitung","1",{"$f":"SUM(SUMPRODUCT((ISNUMBER(SEARCH(\"x\",T115)))*4),(SUMPRODUCT((ISNUMBER(SEARCH(\"x\",U115:Z115)))*3)),(SUMPRODUCT((ISNUMBER(SEARCH(\"x\",AA115:AC115)))*2)),(SUMPRODUCT((ISNUMBER(SEARCH(\"x\",AD115:AG115)))*1)))","v":14},null,null,null,null,"x","x","x",null,"x","x",null,null,"x",null,"x",".",".",".","."]
[937,"nein","Holthauser Straße, von Haus-Nr. 72 bis Schiffhorst - FE","Eving","Straße","6 Straßenoffensive","V","V","V","B","B","S","E","32994-23","Sanierung/Erneuerung im Rahmen der Straßenoffensive 2024/2025",null,"in Bauvorbereitung","1",{"$f":"SUM(SUMPRODUCT((ISNUMBER(SEARCH(\"x\",T116)))*4),(SUMPRODUCT((ISNUMBER(SEARCH(\"x\",U116:Z116)))*3)),(SUMPRODUCT((ISNUMBER(SEARCH(\"x\",AA116:AC116)))*2)),(SUMPRODUCT((ISNUMBER(SEARCH(\"x\",AD116:AG116)))*1)))","v":13},null,"x","x",null,null,null,null,"x","x","x",null,null,"x",null,".",".",".","x","."]
[29,"nein","B54/B1 - Grunderneuerung (BW. 750)","Innenstadt-Ost","Brücke","5a Einzelmaßnahme Brücke","P","V","V","B","B","B","S","33937-24","Grunderneuerung des Brückenüberbaus",null,"in Bauvorbereitung","1",{"$f":"SUM(SUMPRODUCT((ISNUMBER(SEARCH(\"x\",T117)))*4),(SUMPRODUCT((ISNUMBER(SEARCH(\"x\",U117:Z117)))*3)),(SUMPRODUCT((ISNUMBER(SEARCH(\"x\",AA117:AC117)))*2)),(SUMPRODUCT((ISNUMBER(SEARCH(\"x\",AD117:AG117)))*1)))","v":12},null,"x",null,null,null,null,null,"x","x","x","x","x","x",null,".","x",".",".","."]
[752,"nein","Franziusstraße - Rückbau und Ersatzneubau (BW 510)","überörtlich","Brücke","5a Einzelmaßnahme Brücke","V","V","B","B","B","B","S","36124-24","Ersatzneubau Straßenüberführung Franziusstraße.","Abbruch bereits erfolgt","in Bauvorbereitung","1",{"$f":"SUM(SUMPRODUCT((ISNUMBER(SEARCH(\"x\",T118)))*4),(SUMPRODUCT((ISNUMBER(SEARCH(\"x\",U118:Z118)))*3)),(SUMPRODUCT((ISNUMBER(SEARCH(\"x\",AA118:AC118)))*2)),(SUMPRODUCT((ISNUMBER(SEARCH(\"x\",AD118:AG118)))*1)))","v":11},null,null,null,null,null,null,"x","x",null,"x","x","x","x","x",".","x",".",".","."]
[875,"nein","Emscherallee 20, BHS Kokerei Hansa","Huckarde","Bushaltestelle","8 Einzelmaßnahme Bushaltestellenprogramm","V","V","V","B","S","E",null,"38017-25","Erneuerung und barrieregerechter Umbau von Bushaltestellen durch Ausstattung mit Buskapsteinen und Bodenindikatoren.",null,"in Bauvorbereitung","1",{"$f":"SUM(SUMPRODUCT((ISNUMBER(SEARCH(\"x\",T119)))*4),(SUMPRODUCT((ISNUMBER(SEARCH(\"x\",U119:Z119)))*3)),(SUMPRODUCT((ISNUMBER(SEARCH(\"x\",AA119:AC119)))*2)),(SUMPRODUCT((ISNUMBER(SEARCH(\"x\",AD119:AG119)))*1)))","v":11},null,null,null,null,"x","x",null,"x",null,"x",null,null,"x",null,"x",".",".",".","."]
[888,"nein","Emscher Allee 13, BHS Kokerei Hansa","Huckarde","Bushaltestelle","8 Einzelmaßnahme Bushaltestellenprogramm","V","V","V","B","S","E",null,"38017-25","Erneuerung und barrieregerechter Umbau von Bushaltestellen durch Ausstattung mit Buskapsteinen und Bodenindikatoren.",null,"in Bauvorbereitung","1",{"$f":"SUM(SUMPRODUCT((ISNUMBER(SEARCH(\"x\",T120)))*4),(SUMPRODUCT((ISNUMBER(SEARCH(\"x\",U120:Z120)))*3)),(SUMPRODUCT((ISNUMBER(SEARCH(\"x\",AA120:AC120)))*2)),(SUMPRODUCT((ISNUMBER(SEARCH(\"x\",AD120:AG120)))*1)))","v":11},null,null,null,null,"x","x",null,"x",null,"x",null,null,"x",null,"x",".",".",".","."]
[1203,"nein","Untere Pekingstraße - Fahrbahnerneuerung von Meinbergstraße bis B236  ","Aplerbeck","Straße ","9 Einzelmaßnahme Straße investiv","V","V","V","B","B","S","E","39638-25","Erneuerung des Asphaltoberbaus inkl. Regulierung von Bordsteinen und Erneuerung der Entwässerungseinrichtungen ","Vor Vollausbau zunächst Sanierung der Straße. Vollausbau nach 2030.","in Bauvorbereitung","1",{"$f":"SUM(SUMPRODUCT((ISNUMBER(SEARCH(\"x\",T121)))*4),(SUMPRODUCT((ISNUMBER(SEARCH(\"x\",U121:Z121)))*3)),(SUMPRODUCT((ISNUMBER(SEARCH(\"x\",AA121:AC121)))*2)),(SUMPRODUCT((ISNUMBER(SEARCH(\"x\",AD121:AG121)))*1)))","v":11},null,"x",null,"x",null,null,null,"x",null,"x",null,"x",null,null,".",".",".","x","x"]
[1053,"nein","Mondstraße - Deckensanierung","Aplerbeck","Straße ","6 Straßenoffensive","V","V","B","B","B","S","E","38453-25","Sanierung/Erneuerung im Rahmen der Straßenoffensive 2024/2025","Umsetzung abhängig u.a. von Witterung und Kapazitäten des Auftragnehmers. Genauer Zeitpunkt kann aktuell nicht dargestellt werden. Aus diesem Grund Bauphase im Arbeitsprogramm ggfs. auf mehrere Quartale ausgedehnt.",{"$f":"VLOOKUP($A122,'[1]komplett mit Formeln'!$A:$AJ,19,0)","v":"in Bauvorbereitung"},"2",{"$f":"SUM(SUMPRODUCT((ISNUMBER(SEARCH(\"x\",T122)))*4),(SUMPRODUCT((ISNUMBER(SEARCH(\"x\",U122:Z122)))*3)),(SUMPRODUCT((ISNUMBER(SEARCH(\"x\",AA122:AC122)))*2)),(SUMPRODUCT((ISNUMBER(SEARCH(\"x\",AD122:AG122)))*1)))","v":10},null,"x","x",null,null,null,null,"x",null,"x",null,null,null,null,".",".",".","x","."]
[1060,"nein","Eiderstraße - Deckensanierung","Aplerbeck","Straße ","6 Straßenoffensive","V","V","B","B","B","S","E","38453-25","Sanierung/Erneuerung im Rahmen der Straßenoffensive 2024/2025","Umsetzung abhängig u.a. von Witterung und Kapazitäten des Auftragnehmers. Genauer Zeitpunkt kann aktuell nicht dargestellt werden. Aus diesem Grund Bauphase im Arbeitsprogramm ggfs. auf mehrere Quartale ausgedehnt.",{"$f":"VLOOKUP($A123,'[1]komplett mit Formeln'!$A:$AJ,19,0)","v":"in Bauvorbereitung"},"2",{"$f":"SUM(SUMPRODUCT((ISNUMBER(SEARCH(\"x\",T123)))*4),(SUMPRODUCT((ISNUMBER(SEARCH(\"x\",U123:Z123)))*3)),(SUMPRODUCT((ISNUMBER(SEARCH(\"x\",AA123:AC123)))*2)),(SUMPRODUCT((ISNUMBER(SEARCH(\"x\",AD123:AG123)))*1)))","v":10},null,"x","x",null,null,null,null,"x",null,"x",null,null,null,null,".",".",".","x","."]
[1076,"nein","Kiebitzweg - Quartier Hombruch","Hombruch","Straße ","6 Straßenoffensive","V","V","V","B","B","S","E","32994-23","Sanierung/Erneuerung im Rahmen der Straßenoffensive 2024/2025","Umsetzung abhängig u.a. von Witterung und Kapazitäten des Auftragnehmers. Genauer Zeitpunkt kann aktuell nicht dargestellt werden. Aus diesem Grund Bauphase im Arbeitsprogramm ggfs. auf mehrere Quartale ausgedehnt.","in Bauvorbereitung","2",{"$f":"SUM(SUMPRODUCT((ISNUMBER(SEARCH(\"x\",T124)))*4),(SUMPRODUCT((ISNUMBER(SEARCH(\"x\",U124:Z124)))*3)),(SUMPRODUCT((ISNUMBER(SEARCH(\"x\",AA124:AC124)))*2)),(SUMPRODUCT((ISNUMBER(SEARCH(\"x\",AD124:AG124)))*1)))","v":10},null,"x","x",null,null,null,null,"x",null,"x",null,null,null,null,".",".",".","x","."]
[1079,"nein","Kolibriweg- Quartier Hombruch","Hombruch","Straße ","6 Straßenoffensive","V","V","V","B","B","S","E","32994-23","Sanierung/Erneuerung im Rahmen der Straßenoffensive 2024/2025","Umsetzung abhängig u.a. von Witterung und Kapazitäten des Auftragnehmers. Genauer Zeitpunkt kann aktuell nicht dargestellt werden. Aus diesem Grund Bauphase im Arbeitsprogramm ggfs. auf mehrere Quartale ausgedehnt.","in Bauvorbereitung","2",{"$f":"SUM(SUMPRODUCT((ISNUMBER(SEARCH(\"x\",T125)))*4),(SUMPRODUCT((ISNUMBER(SEARCH(\"x\",U125:Z125)))*3)),(SUMPRODUCT((ISNUMBER(SEARCH(\"x\",AA125:AC125)))*2)),(SUMPRODUCT((ISNUMBER(SEARCH(\"x\",AD125:AG125)))*1)))","v":10},null,"x","x",null,null,null,null,"x",null,"x",null,null,null,null,".",".",".","x","."]
[1080,"nein","Kuckucksweg- Quartier Hombruch","Hombruch","Straße ","6 Straßenoffensive","V","V","V","B","B","S","E","32994-23","Sanierung/Erneuerung im Rahmen der Straßenoffensive 2024/2025","Umsetzung abhängig u.a. von Witterung und Kapazitäten des Auftragnehmers. Genauer Zeitpunkt kann aktuell nicht dargestellt werden. Aus diesem Grund Bauphase im Arbeitsprogramm ggfs. auf mehrere Quartale ausgedehnt.","in Bauvorbereitung","2",{"$f":"SUM(SUMPRODUCT((ISNUMBER(SEARCH(\"x\",T126)))*4),(SUMPRODUCT((ISNUMBER(SEARCH(\"x\",U126:Z126)))*3)),(SUMPRODUCT((ISNUMBER(SEARCH(\"x\",AA126:AC126)))*2)),(SUMPRODUCT((ISNUMBER(SEARCH(\"x\",AD126:AG126)))*1)))","v":10},null,"x","x",null,null,null,null,"x",null,"x",null,null,null,null,".",".",".","x","."]
[1082,"nein","Nachtigallenweg- Quartier Hombruch","Hombruch","Straße ","6 Straßenoffensive","V","V","V","B","B","S","E","32994-23","Sanierung/Erneuerung im Rahmen der Straßenoffensive 2024/2025","Umsetzung abhängig u.a. von Witterung und Kapazitäten des Auftragnehmers. Genauer Zeitpunkt kann aktuell nicht dargestellt werden. Aus diesem Grund Bauphase im Arbeitsprogramm ggfs. auf mehrere Quartale ausgedehnt.","in Bauvorbereitung","2",{"$f":"SUM(SUMPRODUCT((ISNUMBER(SEARCH(\"x\",T127)))*4),(SUMPRODUCT((ISNUMBER(SEARCH(\"x\",U127:Z127)))*3)),(SUMPRODUCT((ISNUMBER(SEARCH(\"x\",AA127:AC127)))*2)),(SUMPRODUCT((ISNUMBER(SEARCH(\"x\",AD127:AG127)))*1)))","v":10},null,"x","x",null,null,null,null,"x",null,"x",null,null,null,null,".",".",".","x","."]
[1083,"nein","Rebhuhnweg Quartier Hombruch","Hombruch","Straße ","6 Straßenoffensive","V","V","V","B","B","S","E","32994-23","Sanierung/Erneuerung im Rahmen der Straßenoffensive 2024/2025","Umsetzung abhängig u.a. von Witterung und Kapazitäten des Auftragnehmers. Genauer Zeitpunkt kann aktuell nicht dargestellt werden. Aus diesem Grund Bauphase im Arbeitsprogramm ggfs. auf mehrere Quartale ausgedehnt.","in Bauvorbereitung","2",{"$f":"SUM(SUMPRODUCT((ISNUMBER(SEARCH(\"x\",T128)))*4),(SUMPRODUCT((ISNUMBER(SEARCH(\"x\",U128:Z128)))*3)),(SUMPRODUCT((ISNUMBER(SEARCH(\"x\",AA128:AC128)))*2)),(SUMPRODUCT((ISNUMBER(SEARCH(\"x\",AD128:AG128)))*1)))","v":10},null,"x","x",null,null,null,null,"x",null,"x",null,null,null,null,".",".",".","x","."]
[1084,"nein","Regenpfeifferweg- Quartier Hombruch","Hombruch","Straße ","6 Straßenoffensive","V","V","V","B","B","S","E","32994-23","Sanierung/Erneuerung im Rahmen der Straßenoffensive 2024/2025","Umsetzung abhängig u.a. von Witterung und Kapazitäten des Auftragnehmers. Genauer Zeitpunkt kann aktuell nicht dargestellt werden. Aus diesem Grund Bauphase im Arbeitsprogramm ggfs. auf mehrere Quartale ausgedehnt.","in Bauvorbereitung","2",{"$f":"SUM(SUMPRODUCT((ISNUMBER(SEARCH(\"x\",T129)))*4),(SUMPRODUCT((ISNUMBER(SEARCH(\"x\",U129:Z129)))*3)),(SUMPRODUCT((ISNUMBER(SEARCH(\"x\",AA129:AC129)))*2)),(SUMPRODUCT((ISNUMBER(SEARCH(\"x\",AD129:AG129)))*1)))","v":10},null,"x","x",null,null,null,null,"x",null,"x",null,null,null,null,".",".",".","x","."]
[1085,"nein","Rotkehlchenweg- Quartier Hombruch","Hombruch","Straße ","6 Straßenoffensive","V","V","V","B","B","S","E","32994-23","Sanierung/Erneuerung im Rahmen der Straßenoffensive 2024/2025","Umsetzung abhängig u.a. von Witterung und Kapazitäten des Auftragnehmers. Genauer Zeitpunkt kann aktuell nicht dargestellt werden. Aus diesem Grund Bauphase im Arbeitsprogramm ggfs. auf mehrere Quartale ausgedehnt.","in Bauvorbereitung","2",{"$f":"SUM(SUMPRODUCT((ISNUMBER(SEARCH(\"x\",T130)))*4),(SUMPRODUCT((ISNUMBER(SEARCH(\"x\",U130:Z130)))*3)),(SUMPRODUCT((ISNUMBER(SEARCH(\"x\",AA130:AC130)))*2)),(SUMPRODUCT((ISNUMBER(SEARCH(\"x\",AD130:AG130)))*1)))","v":10},null,"x","x",null,null,null,null,"x",null,"x",null,null,null,null,".",".",".","x","."]
[1086,"nein","Schwarzdrosselweg- Quartier Hombruch","Hombruch","Straße ","6 Straßenoffensive","V","V","V","B","B","S","E","32994-23","Sanierung/Erneuerung im Rahmen der Straßenoffensive 2024/2025","Umsetzung abhängig u.a. von Witterung und Kapazitäten des Auftragnehmers. Genauer Zeitpunkt kann aktuell nicht dargestellt werden. Aus diesem Grund Bauphase im Arbeitsprogramm ggfs. auf mehrere Quartale ausgedehnt.","in Bauvorbereitung","2",{"$f":"SUM(SUMPRODUCT((ISNUMBER(SEARCH(\"x\",T131)))*4),(SUMPRODUCT((ISNUMBER(SEARCH(\"x\",U131:Z131)))*3)),(SUMPRODUCT((ISNUMBER(SEARCH(\"x\",AA131:AC131)))*2)),(SUMPRODUCT((ISNUMBER(SEARCH(\"x\",AD131:AG131)))*1)))","v":10},null,"x","x",null,null,null,null,"x",null,"x",null,null,null,null,".",".",".","x","."]
[1087,"nein","Zaunkönigweg- Quartier Hombruch","Hombruch","Straße ","6 Straßenoffensive","V","V","V","B","B","S","E","32994-23","Sanierung/Erneuerung im Rahmen der Straßenoffensive 2024/2025","Umsetzung abhängig u.a. von Witterung und Kapazitäten des Auftragnehmers. Genauer Zeitpunkt kann aktuell nicht dargestellt werden. Aus diesem Grund Bauphase im Arbeitsprogramm ggfs. auf mehrere Quartale ausgedehnt.","in Bauvorbereitung","2",{"$f":"SUM(SUMPRODUCT((ISNUMBER(SEARCH(\"x\",T132)))*4),(SUMPRODUCT((ISNUMBER(SEARCH(\"x\",U132:Z132)))*3)),(SUMPRODUCT((ISNUMBER(SEARCH(\"x\",AA132:AC132)))*2)),(SUMPRODUCT((ISNUMBER(SEARCH(\"x\",AD132:AG132)))*1)))","v":10},null,"x","x",null,null,null,null,"x",null,"x",null,null,null,null,".",".",".","x","."]
[1224,"nein","Gevelsbergstraße - Deckensanierung von Bergmeisterstraße bis Marsbruchstraße","Aplerbeck","Straße ","6 Straßenoffensive","V","V","B","B","B","S","E","38453-25","Deckensanierung im Rahmen der Straßenoffensive 2026/2027.","Umsetzung abhängig u.a. von Witterung und Kapazitäten des Auftragnehmers. Genauer Zeitpunkt kann aktuell nicht dargestellt werden. Aus diesem Grund Bauphase im Arbeitsprogramm ggfs. auf mehrere Quartale ausgedehnt.",{"$f":"VLOOKUP($A133,'[1]komplett mit Formeln'!$A:$AJ,19,0)","v":"in Bauvorbereitung"},"2",{"$f":"SUM(SUMPRODUCT((ISNUMBER(SEARCH(\"x\",T133)))*4),(SUMPRODUCT((ISNUMBER(SEARCH(\"x\",U133:Z133)))*3)),(SUMPRODUCT((ISNUMBER(SEARCH(\"x\",AA133:AC133)))*2)),(SUMPRODUCT((ISNUMBER(SEARCH(\"x\",AD133:AG133)))*1)))","v":10},null,"x","x",null,null,null,null,"x",null,"x",null,null,null,null,".",".",".","x","."]
[1225,"nein","Am Funkturm - Deckensanierung","Brackel","Straße ","6 Straßenoffensive","V","V","B","B","B","S","E","38453-25","Deckensanierung im Rahmen der Straßenoffensive 2026/2027.","Umsetzung abhängig u.a. von Witterung und Kapazitäten des Auftragnehmers. Genauer Zeitpunkt kann aktuell nicht dargestellt werden. Aus diesem Grund Bauphase im Arbeitsprogramm ggfs. auf mehrere Quartale ausgedehnt.",{"$f":"VLOOKUP($A134,'[1]komplett mit Formeln'!$A:$AJ,19,0)","v":"in Bauvorbereitung"},"2",{"$f":"SUM(SUMPRODUCT((ISNUMBER(SEARCH(\"x\",T134)))*4),(SUMPRODUCT((ISNUMBER(SEARCH(\"x\",U134:Z134)))*3)),(SUMPRODUCT((ISNUMBER(SEARCH(\"x\",AA134:AC134)))*2)),(SUMPRODUCT((ISNUMBER(SEARCH(\"x\",AD134:AG134)))*1)))","v":10},null,"x","x",null,null,null,null,"x",null,"x",null,null,null,null,".",".",".","x","."]
[1226,"nein","Ebbinghausstraße - Deckensanierung von Hausnr. 45 bis 53","Brackel","Straße ","6 Straßenoffensive","V","V","B","B","B","S","E","38453-25","Deckensanierung im Rahmen der Straßenoffensive 2026/2027.","Umsetzung abhängig u.a. von Witterung und Kapazitäten des Auftragnehmers. Genauer Zeitpunkt kann aktuell nicht dargestellt werden. Aus diesem Grund Bauphase im Arbeitsprogramm ggfs. auf mehrere Quartale ausgedehnt.",{"$f":"VLOOKUP($A135,'[1]komplett mit Formeln'!$A:$AJ,19,0)","v":"in Bauvorbereitung"},"2",{"$f":"SUM(SUMPRODUCT((ISNUMBER(SEARCH(\"x\",T135)))*4),(SUMPRODUCT((ISNUMBER(SEARCH(\"x\",U135:Z135)))*3)),(SUMPRODUCT((ISNUMBER(SEARCH(\"x\",AA135:AC135)))*2)),(SUMPRODUCT((ISNUMBER(SEARCH(\"x\",AD135:AG135)))*1)))","v":10},null,"x","x",null,null,null,null,"x",null,"x",null,null,null,null,".",".",".","x","."]
[1227,"nein","Küßnachtstraße - Quartier 2 Brackel - Deckensanierung von Rütlistraße bis Auf dem Hohwart vor Rütlistraße","Brackel","Straße ","6 Straßenoffensive","V","V","B","B","B","S","E","38453-25","Deckensanierung im Rahmen der Straßenoffensive 2026/2027.","Umsetzung abhängig u.a. von Witterung und Kapazitäten des Auftragnehmers. Genauer Zeitpunkt kann aktuell nicht dargestellt werden. Aus diesem Grund Bauphase im Arbeitsprogramm ggfs. auf mehrere Quartale ausgedehnt.",{"$f":"VLOOKUP($A136,'[1]komplett mit Formeln'!$A:$AJ,19,0)","v":"in Bauvorbereitung"},"2",{"$f":"SUM(SUMPRODUCT((ISNUMBER(SEARCH(\"x\",T136)))*4),(SUMPRODUCT((ISNUMBER(SEARCH(\"x\",U136:Z136)))*3)),(SUMPRODUCT((ISNUMBER(SEARCH(\"x\",AA136:AC136)))*2)),(SUMPRODUCT((ISNUMBER(SEARCH(\"x\",AD136:AG136)))*1)))","v":10},null,"x","x",null,null,null,null,"x",null,"x",null,null,null,null,".",".",".","x","."]
[1228,"nein","Melchtalstraße - Quartier 2 Brackel - Deckensanierung von Auf dem Hohwart bis Rütlistraße","Brackel","Straße ","6 Straßenoffensive","V","V","B","B","B","S","E","38453-25","Deckensanierung im Rahmen der Straßenoffensive 2026/2027.","Umsetzung abhängig u.a. von Witterung und Kapazitäten des Auftragnehmers. Genauer Zeitpunkt kann aktuell nicht dargestellt werden. Aus diesem Grund Bauphase im Arbeitsprogramm ggfs. auf mehrere Quartale ausgedehnt.",{"$f":"VLOOKUP($A137,'[1]komplett mit Formeln'!$A:$AJ,19,0)","v":"in Bauvorbereitung"},"2",{"$f":"SUM(SUMPRODUCT((ISNUMBER(SEARCH(\"x\",T137)))*4),(SUMPRODUCT((ISNUMBER(SEARCH(\"x\",U137:Z137)))*3)),(SUMPRODUCT((ISNUMBER(SEARCH(\"x\",AA137:AC137)))*2)),(SUMPRODUCT((ISNUMBER(SEARCH(\"x\",AD137:AG137)))*1)))","v":10},null,"x","x",null,null,null,null,"x",null,"x",null,null,null,null,".",".",".","x","."]
[1229,"nein","Rütlistraße - Quartier 2 Brackel - Deckensanierung","Brackel","Straße ","6 Straßenoffensive","V","V","B","B","B","S","E","38453-25","Deckensanierung im Rahmen der Straßenoffensive 2026/2027.","Umsetzung abhängig u.a. von Witterung und Kapazitäten des Auftragnehmers. Genauer Zeitpunkt kann aktuell nicht dargestellt werden. Aus diesem Grund Bauphase im Arbeitsprogramm ggfs. auf mehrere Quartale ausgedehnt.",{"$f":"VLOOKUP($A138,'[1]komplett mit Formeln'!$A:$AJ,19,0)","v":"in Bauvorbereitung"},"2",{"$f":"SUM(SUMPRODUCT((ISNUMBER(SEARCH(\"x\",T138)))*4),(SUMPRODUCT((ISNUMBER(SEARCH(\"x\",U138:Z138)))*3)),(SUMPRODUCT((ISNUMBER(SEARCH(\"x\",AA138:AC138)))*2)),(SUMPRODUCT((ISNUMBER(SEARCH(\"x\",AD138:AG138)))*1)))","v":10},null,"x","x",null,null,null,null,"x",null,"x",null,null,null,null,".",".",".","x","."]
[1230,"nein","Stauffacherstraße - Quartier 2 Brackel - Deckensanierung von Rütlistraße bis Auf dem Hohwart vor Rütlistraße","Brackel","Straße ","6 Straßenoffensive","V","V","B","B","B","S","E","38453-25","Deckensanierung im Rahmen der Straßenoffensive 2026/2027.","Umsetzung abhängig u.a. von Witterung und Kapazitäten des Auftragnehmers. Genauer Zeitpunkt kann aktuell nicht dargestellt werden. Aus diesem Grund Bauphase im Arbeitsprogramm ggfs. auf mehrere Quartale ausgedehnt.",{"$f":"VLOOKUP($A139,'[1]komplett mit Formeln'!$A:$AJ,19,0)","v":"in Bauvorbereitung"},"2",{"$f":"SUM(SUMPRODUCT((ISNUMBER(SEARCH(\"x\",T139)))*4),(SUMPRODUCT((ISNUMBER(SEARCH(\"x\",U139:Z139)))*3)),(SUMPRODUCT((ISNUMBER(SEARCH(\"x\",AA139:AC139)))*2)),(SUMPRODUCT((ISNUMBER(SEARCH(\"x\",AD139:AG139)))*1)))","v":10},null,"x","x",null,null,null,null,"x",null,"x",null,null,null,null,".",".",".","x","."]
[1231,"nein","Tellstraße - Quartier 2 Brackel - Deckensanierung von Auf dem Hohwart bis Rütlistraße","Brackel","Straße ","6 Straßenoffensive","V","V","B","B","B","S","E","38453-25","Deckensanierung im Rahmen der Straßenoffensive 2026/2027.","Umsetzung abhängig u.a. von Witterung und Kapazitäten des Auftragnehmers. Genauer Zeitpunkt kann aktuell nicht dargestellt werden. Aus diesem Grund Bauphase im Arbeitsprogramm ggfs. auf mehrere Quartale ausgedehnt.",{"$f":"VLOOKUP($A140,'[1]komplett mit Formeln'!$A:$AJ,19,0)","v":"in Bauvorbereitung"},"2",{"$f":"SUM(SUMPRODUCT((ISNUMBER(SEARCH(\"x\",T140)))*4),(SUMPRODUCT((ISNUMBER(SEARCH(\"x\",U140:Z140)))*3)),(SUMPRODUCT((ISNUMBER(SEARCH(\"x\",AA140:AC140)))*2)),(SUMPRODUCT((ISNUMBER(SEARCH(\"x\",AD140:AG140)))*1)))","v":10},null,"x","x",null,null,null,null,"x",null,"x",null,null,null,null,".",".",".","x","."]
[1232,"nein","Attinghausenstraße - Quartier 2 Brackel - Deckensanierung von Auf dem Hohwart bis Rütlistraße","Brackel","Straße ","6 Straßenoffensive","V","V","B","B","B","S","E","38453-25","Deckensanierung im Rahmen der Straßenoffensive 2026/2027.","Umsetzung abhängig u.a. von Witterung und Kapazitäten des Auftragnehmers. Genauer Zeitpunkt kann aktuell nicht dargestellt werden. Aus diesem Grund Bauphase im Arbeitsprogramm ggfs. auf mehrere Quartale ausgedehnt.",{"$f":"VLOOKUP($A141,'[1]komplett mit Formeln'!$A:$AJ,19,0)","v":"in Bauvorbereitung"},"2",{"$f":"SUM(SUMPRODUCT((ISNUMBER(SEARCH(\"x\",T141)))*4),(SUMPRODUCT((ISNUMBER(SEARCH(\"x\",U141:Z141)))*3)),(SUMPRODUCT((ISNUMBER(SEARCH(\"x\",AA141:AC141)))*2)),(SUMPRODUCT((ISNUMBER(SEARCH(\"x\",AD141:AG141)))*1)))","v":10},null,"x","x",null,null,null,null,"x",null,"x",null,null,null,null,".",".",".","x","."]
[1233,"nein","Rösselmannstraße - Quartier 2 Brackel - Deckensanierung","Brackel","Straße ","6 Straßenoffensive","V","V","B","B","B","S","E","38453-25","Deckensanierung im Rahmen der Straßenoffensive 2026/2027.","Umsetzung abhängig u.a. von Witterung und Kapazitäten des Auftragnehmers. Genauer Zeitpunkt kann aktuell nicht dargestellt werden. Aus diesem Grund Bauphase im Arbeitsprogramm ggfs. auf mehrere Quartale ausgedehnt.",{"$f":"VLOOKUP($A142,'[1]komplett mit Formeln'!$A:$AJ,19,0)","v":"in Bauvorbereitung"},"2",{"$f":"SUM(SUMPRODUCT((ISNUMBER(SEARCH(\"x\",T142)))*4),(SUMPRODUCT((ISNUMBER(SEARCH(\"x\",U142:Z142)))*3)),(SUMPRODUCT((ISNUMBER(SEARCH(\"x\",AA142:AC142)))*2)),(SUMPRODUCT((ISNUMBER(SEARCH(\"x\",AD142:AG142)))*1)))","v":10},null,"x","x",null,null,null,null,"x",null,"x",null,null,null,null,".",".",".","x","."]
[1234,"nein","Bayrische Straße - Deckensanierung von Württemberger Straße bis Deutsche Straße","Eving","Straße ","6 Straßenoffensive","V","V","B","B","B","S","E","38453-25","Deckensanierung im Rahmen der Straßenoffensive 2026/2027.","Umsetzung abhängig u.a. von Witterung und Kapazitäten des Auftragnehmers. Genauer Zeitpunkt kann aktuell nicht dargestellt werden. Aus diesem Grund Bauphase im Arbeitsprogramm ggfs. auf mehrere Quartale ausgedehnt.",{"$f":"VLOOKUP($A143,'[1]komplett mit Formeln'!$A:$AJ,19,0)","v":"in Bauvorbereitung"},"2",{"$f":"SUM(SUMPRODUCT((ISNUMBER(SEARCH(\"x\",T143)))*4),(SUMPRODUCT((ISNUMBER(SEARCH(\"x\",U143:Z143)))*3)),(SUMPRODUCT((ISNUMBER(SEARCH(\"x\",AA143:AC143)))*2)),(SUMPRODUCT((ISNUMBER(SEARCH(\"x\",AD143:AG143)))*1)))","v":10},null,"x","x",null,null,null,null,"x",null,"x",null,null,null,null,".",".",".","x","."]
[1235,"nein","Deutsche Straße - Deckensanierung von Hausnr. 70 bis Hausnr. 84","Eving","Straße ","6 Straßenoffensive","V","V","B","B","B","S","E","38453-25","Deckensanierung im Rahmen der Straßenoffensive 2026/2027.","Umsetzung abhängig u.a. von Witterung und Kapazitäten des Auftragnehmers. Genauer Zeitpunkt kann aktuell nicht dargestellt werden. Aus diesem Grund Bauphase im Arbeitsprogramm ggfs. auf mehrere Quartale ausgedehnt.",{"$f":"VLOOKUP($A144,'[1]komplett mit Formeln'!$A:$AJ,19,0)","v":"in Bauvorbereitung"},{"$f":"IF(S144=0,\"keine\",IF(AND(S144>0,S144<6),\"3\",IF(AND(S144>5,S144<11),\"2\",\"1\")))","v":"2"},{"$f":"SUM(SUMPRODUCT((ISNUMBER(SEARCH(\"x\",T144)))*4),(SUMPRODUCT((ISNUMBER(SEARCH(\"x\",U144:Z144)))*3)),(SUMPRODUCT((ISNUMBER(SEARCH(\"x\",AA144:AC144)))*2)),(SUMPRODUCT((ISNUMBER(SEARCH(\"x\",AD144:AG144)))*1)))","v":10},null,"x","x",null,null,null,null,"x",null,"x",null,null,null,null,".",".",".","x","."]
[1236,"nein","An der Palmweide - Deckensanierung von Krückenweg bis Emil-Figge-Straße","Hombruch","Straße ","6 Straßenoffensive","V","V","B","B","B","S","E","38453-25","Deckensanierung im Rahmen der Straßenoffensive 2026/2027.","Umsetzung abhängig u.a. von Witterung und Kapazitäten des Auftragnehmers. Genauer Zeitpunkt kann aktuell nicht dargestellt werden. Aus diesem Grund Bauphase im Arbeitsprogramm ggfs. auf mehrere Quartale ausgedehnt.",{"$f":"VLOOKUP($A145,'[1]komplett mit Formeln'!$A:$AJ,19,0)","v":"in Bauvorbereitung"},"2",{"$f":"SUM(SUMPRODUCT((ISNUMBER(SEARCH(\"x\",T145)))*4),(SUMPRODUCT((ISNUMBER(SEARCH(\"x\",U145:Z145)))*3)),(SUMPRODUCT((ISNUMBER(SEARCH(\"x\",AA145:AC145)))*2)),(SUMPRODUCT((ISNUMBER(SEARCH(\"x\",AD145:AG145)))*1)))","v":10},null,"x","x",null,null,null,null,"x",null,"x",null,null,null,null,".",".",".","x","."]
[1237,"nein","Hagener Straße - Deckensanierung von Fritz-Kahl-Straße bis Mergelteichstraße","Hombruch","Straße ","6 Straßenoffensive","V","V","B","B","B","S","E","38453-25","Deckensanierung im Rahmen der Straßenoffensive 2026/2027.","Umsetzung abhängig u.a. von Witterung und Kapazitäten des Auftragnehmers. Genauer Zeitpunkt kann aktuell nicht dargestellt werden. Aus diesem Grund Bauphase im Arbeitsprogramm ggfs. auf mehrere Quartale ausgedehnt.",{"$f":"VLOOKUP($A146,'[1]komplett mit Formeln'!$A:$AJ,19,0)","v":"in Bauvorbereitung"},"2",{"$f":"SUM(SUMPRODUCT((ISNUMBER(SEARCH(\"x\",T146)))*4),(SUMPRODUCT((ISNUMBER(SEARCH(\"x\",U146:Z146)))*3)),(SUMPRODUCT((ISNUMBER(SEARCH(\"x\",AA146:AC146)))*2)),(SUMPRODUCT((ISNUMBER(SEARCH(\"x\",AD146:AG146)))*1)))","v":10},null,"x","x",null,null,null,null,"x",null,"x",null,null,null,null,".",".",".","x","."]
[1238,"nein","Eschenstraße - Quartier 2 Hombruch - Deckensanierung von Hausnr. 10 bis zum Ende","Hombruch","Straße ","6 Straßenoffensive","V","V","B","B","B","S","E","38453-25","Deckensanierung im Rahmen der Straßenoffensive 2026/2027.","Umsetzung abhängig u.a. von Witterung und Kapazitäten des Auftragnehmers. Genauer Zeitpunkt kann aktuell nicht dargestellt werden. Aus diesem Grund Bauphase im Arbeitsprogramm ggfs. auf mehrere Quartale ausgedehnt.",{"$f":"VLOOKUP($A147,'[1]komplett mit Formeln'!$A:$AJ,19,0)","v":"in Bauvorbereitung"},"2",{"$f":"SUM(SUMPRODUCT((ISNUMBER(SEARCH(\"x\",T147)))*4),(SUMPRODUCT((ISNUMBER(SEARCH(\"x\",U147:Z147)))*3)),(SUMPRODUCT((ISNUMBER(SEARCH(\"x\",AA147:AC147)))*2)),(SUMPRODUCT((ISNUMBER(SEARCH(\"x\",AD147:AG147)))*1)))","v":10},null,"x","x",null,null,null,null,"x",null,"x",null,null,null,null,".",".",".","x","."]
[1239,"nein","Kieferstraße - Quartier 2 Hombruch - Deckensanierung von Hausnr. 13 bis zum Ende","Hombruch","Straße ","6 Straßenoffensive","V","V","B","B","B","S","E","38453-25","Deckensanierung im Rahmen der Straßenoffensive 2026/2027.","Umsetzung abhängig u.a. von Witterung und Kapazitäten des Auftragnehmers. Genauer Zeitpunkt kann aktuell nicht dargestellt werden. Aus diesem Grund Bauphase im Arbeitsprogramm ggfs. auf mehrere Quartale ausgedehnt.",{"$f":"VLOOKUP($A148,'[1]komplett mit Formeln'!$A:$AJ,19,0)","v":"in Bauvorbereitung"},"2",{"$f":"SUM(SUMPRODUCT((ISNUMBER(SEARCH(\"x\",T148)))*4),(SUMPRODUCT((ISNUMBER(SEARCH(\"x\",U148:Z148)))*3)),(SUMPRODUCT((ISNUMBER(SEARCH(\"x\",AA148:AC148)))*2)),(SUMPRODUCT((ISNUMBER(SEARCH(\"x\",AD148:AG148)))*1)))","v":10},null,"x","x",null,null,null,null,"x",null,"x",null,null,null,null,".",".",".","x","."]
[1240,"nein","Kuntzestraße - Quartier 2 Hombruch - Deckensanierung von Eschenstraße bis Deutsch-Luxemburger-Straße","Hombruch","Straße ","6 Straßenoffensive","V","V","B","B","B","S","E","38453-25","Deckensanierung im Rahmen der Straßenoffensive 2026/2027.","Umsetzung abhängig u.a. von Witterung und Kapazitäten des Auftragnehmers. Genauer Zeitpunkt kann aktuell nicht dargestellt werden. Aus diesem Grund Bauphase im Arbeitsprogramm ggfs. auf mehrere Quartale ausgedehnt.",{"$f":"VLOOKUP($A149,'[1]komplett mit Formeln'!$A:$AJ,19,0)","v":"in Bauvorbereitung"},"2",{"$f":"SUM(SUMPRODUCT((ISNUMBER(SEARCH(\"x\",T149)))*4),(SUMPRODUCT((ISNUMBER(SEARCH(\"x\",U149:Z149)))*3)),(SUMPRODUCT((ISNUMBER(SEARCH(\"x\",AA149:AC149)))*2)),(SUMPRODUCT((ISNUMBER(SEARCH(\"x\",AD149:AG149)))*1)))","v":10},null,"x","x",null,null,null,null,"x",null,"x",null,null,null,null,".",".",".","x","."]
[1241,"nein","Oehlmühlenweg - Quartier 2 Hombruch - Deckensanierung","Hombruch","Straße ","6 Straßenoffensive","V","V","B","B","B","S","E","38453-25","Deckensanierung im Rahmen der Straßenoffensive 2026/2027.","Umsetzung abhängig u.a. von Witterung und Kapazitäten des Auftragnehmers. Genauer Zeitpunkt kann aktuell nicht dargestellt werden. Aus diesem Grund Bauphase im Arbeitsprogramm ggfs. auf mehrere Quartale ausgedehnt.",{"$f":"VLOOKUP($A150,'[1]komplett mit Formeln'!$A:$AJ,19,0)","v":"in Bauvorbereitung"},"2",{"$f":"SUM(SUMPRODUCT((ISNUMBER(SEARCH(\"x\",T150)))*4),(SUMPRODUCT((ISNUMBER(SEARCH(\"x\",U150:Z150)))*3)),(SUMPRODUCT((ISNUMBER(SEARCH(\"x\",AA150:AC150)))*2)),(SUMPRODUCT((ISNUMBER(SEARCH(\"x\",AD150:AG150)))*1)))","v":10},null,"x","x",null,null,null,null,"x",null,"x",null,null,null,null,".",".",".","x","."]
[1242,"nein","Leostraße - Quartier 2 Hombruch - Deckensanierung von Oehlmühlenweg bis Vulkanstraße.","Hombruch","Straße ","6 Straßenoffensive","V","V","B","B","B","S","E","38453-25","Deckensanierung im Rahmen der Straßenoffensive 2026/2027.","Umsetzung abhängig u.a. von Witterung und Kapazitäten des Auftragnehmers. Genauer Zeitpunkt kann aktuell nicht dargestellt werden. Aus diesem Grund Bauphase im Arbeitsprogramm ggfs. auf mehrere Quartale ausgedehnt.",{"$f":"VLOOKUP($A151,'[1]komplett mit Formeln'!$A:$AJ,19,0)","v":"in Bauvorbereitung"},"2",{"$f":"SUM(SUMPRODUCT((ISNUMBER(SEARCH(\"x\",T151)))*4),(SUMPRODUCT((ISNUMBER(SEARCH(\"x\",U151:Z151)))*3)),(SUMPRODUCT((ISNUMBER(SEARCH(\"x\",AA151:AC151)))*2)),(SUMPRODUCT((ISNUMBER(SEARCH(\"x\",AD151:AG151)))*1)))","v":10},null,"x","x",null,null,null,null,"x",null,"x",null,null,null,null,".",".",".","x","."]
[1243,"nein","Singerhoffstraße - Quartier 2 Hombruch - Deckensanierung","Hombruch","Straße ","6 Straßenoffensive","V","V","B","B","B","S","E","38453-25","Deckensanierung im Rahmen der Straßenoffensive 2026/2027.","Umsetzung abhängig u.a. von Witterung und Kapazitäten des Auftragnehmers. Genauer Zeitpunkt kann aktuell nicht dargestellt werden. Aus diesem Grund Bauphase im Arbeitsprogramm ggfs. auf mehrere Quartale ausgedehnt.",{"$f":"VLOOKUP($A152,'[1]komplett mit Formeln'!$A:$AJ,19,0)","v":"in Bauvorbereitung"},"2",{"$f":"SUM(SUMPRODUCT((ISNUMBER(SEARCH(\"x\",T152)))*4),(SUMPRODUCT((ISNUMBER(SEARCH(\"x\",U152:Z152)))*3)),(SUMPRODUCT((ISNUMBER(SEARCH(\"x\",AA152:AC152)))*2)),(SUMPRODUCT((ISNUMBER(SEARCH(\"x\",AD152:AG152)))*1)))","v":10},null,"x","x",null,null,null,null,"x",null,"x",null,null,null,null,".",".",".","x","."]
[1244,"nein","Preinstraße - Deckensanierung","Hörde","Straße ","6 Straßenoffensive","V","V","B","B","B","S","E","38453-25","Deckensanierung im Rahmen der Straßenoffensive 2026/2027.","Umsetzung abhängig u.a. von Witterung und Kapazitäten des Auftragnehmers. Genauer Zeitpunkt kann aktuell nicht dargestellt werden. Aus diesem Grund Bauphase im Arbeitsprogramm ggfs. auf mehrere Quartale ausgedehnt.",{"$f":"VLOOKUP($A153,'[1]komplett mit Formeln'!$A:$AJ,19,0)","v":"in Bauvorbereitung"},"2",{"$f":"SUM(SUMPRODUCT((ISNUMBER(SEARCH(\"x\",T153)))*4),(SUMPRODUCT((ISNUMBER(SEARCH(\"x\",U153:Z153)))*3)),(SUMPRODUCT((ISNUMBER(SEARCH(\"x\",AA153:AC153)))*2)),(SUMPRODUCT((ISNUMBER(SEARCH(\"x\",AD153:AG153)))*1)))","v":10},null,"x","x",null,null,null,null,"x",null,"x",null,null,null,null,".",".",".","x","."]
[1245,"nein","An der Hundeweise - Deckensanierung von Hausnr. 27 bis Ende","Hörde","Straße ","6 Straßenoffensive","V","V","B","B","B","S","E","38453-25","Deckensanierung im Rahmen der Straßenoffensive 2026/2027.","Umsetzung abhängig u.a. von Witterung und Kapazitäten des Auftragnehmers. Genauer Zeitpunkt kann aktuell nicht dargestellt werden. Aus diesem Grund Bauphase im Arbeitsprogramm ggfs. auf mehrere Quartale ausgedehnt.",{"$f":"VLOOKUP($A154,'[1]komplett mit Formeln'!$A:$AJ,19,0)","v":"in Bauvorbereitung"},"2",{"$f":"SUM(SUMPRODUCT((ISNUMBER(SEARCH(\"x\",T154)))*4),(SUMPRODUCT((ISNUMBER(SEARCH(\"x\",U154:Z154)))*3)),(SUMPRODUCT((ISNUMBER(SEARCH(\"x\",AA154:AC154)))*2)),(SUMPRODUCT((ISNUMBER(SEARCH(\"x\",AD154:AG154)))*1)))","v":10},null,"x","x",null,null,null,null,"x",null,"x",null,null,null,null,".",".",".","x","."]
[1246,"nein","Brandisstraße - Deckensanierung","Hörde","Straße ","6 Straßenoffensive","V","V","B","B","B","S","E","38453-25","Deckensanierung im Rahmen der Straßenoffensive 2026/2027.","Umsetzung abhängig u.a. von Witterung und Kapazitäten des Auftragnehmers. Genauer Zeitpunkt kann aktuell nicht dargestellt werden. Aus diesem Grund Bauphase im Arbeitsprogramm ggfs. auf mehrere Quartale ausgedehnt.",{"$f":"VLOOKUP($A155,'[1]komplett mit Formeln'!$A:$AJ,19,0)","v":"in Bauvorbereitung"},"2",{"$f":"SUM(SUMPRODUCT((ISNUMBER(SEARCH(\"x\",T155)))*4),(SUMPRODUCT((ISNUMBER(SEARCH(\"x\",U155:Z155)))*3)),(SUMPRODUCT((ISNUMBER(SEARCH(\"x\",AA155:AC155)))*2)),(SUMPRODUCT((ISNUMBER(SEARCH(\"x\",AD155:AG155)))*1)))","v":10},null,"x","x",null,null,null,null,"x",null,"x",null,null,null,null,".",".",".","x","."]
[1247,"nein","Heyerstraße - Quartier 1 Hörde - Deckensanierung","Hörde","Straße ","6 Straßenoffensive","V","V","B","B","B","S","E","38453-25","Deckensanierung im Rahmen der Straßenoffensive 2026/2027.","Umsetzung abhängig u.a. von Witterung und Kapazitäten des Auftragnehmers. Genauer Zeitpunkt kann aktuell nicht dargestellt werden. Aus diesem Grund Bauphase im Arbeitsprogramm ggfs. auf mehrere Quartale ausgedehnt.",{"$f":"VLOOKUP($A156,'[1]komplett mit Formeln'!$A:$AJ,19,0)","v":"in Bauvorbereitung"},"2",{"$f":"SUM(SUMPRODUCT((ISNUMBER(SEARCH(\"x\",T156)))*4),(SUMPRODUCT((ISNUMBER(SEARCH(\"x\",U156:Z156)))*3)),(SUMPRODUCT((ISNUMBER(SEARCH(\"x\",AA156:AC156)))*2)),(SUMPRODUCT((ISNUMBER(SEARCH(\"x\",AD156:AG156)))*1)))","v":10},null,"x","x",null,null,null,null,"x",null,"x",null,null,null,null,".",".",".","x","."]
[1248,"nein","Brandbruchstraße - Quartier 1 Hörde - Deckensanierung","Hörde","Straße ","6 Straßenoffensive","V","V","B","B","B","S","E","38453-25","Deckensanierung im Rahmen der Straßenoffensive 2026/2027.","Umsetzung abhängig u.a. von Witterung und Kapazitäten des Auftragnehmers. Genauer Zeitpunkt kann aktuell nicht dargestellt werden. Aus diesem Grund Bauphase im Arbeitsprogramm ggfs. auf mehrere Quartale ausgedehnt.",{"$f":"VLOOKUP($A157,'[1]komplett mit Formeln'!$A:$AJ,19,0)","v":"in Bauvorbereitung"},"2",{"$f":"SUM(SUMPRODUCT((ISNUMBER(SEARCH(\"x\",T157)))*4),(SUMPRODUCT((ISNUMBER(SEARCH(\"x\",U157:Z157)))*3)),(SUMPRODUCT((ISNUMBER(SEARCH(\"x\",AA157:AC157)))*2)),(SUMPRODUCT((ISNUMBER(SEARCH(\"x\",AD157:AG157)))*1)))","v":10},null,"x","x",null,null,null,null,"x",null,"x",null,null,null,null,".",".",".","x","."]
[1249,"nein","Vinklöther Mark - Quartier 1 Hörde - Deckensanierung","Hörde","Straße ","6 Straßenoffensive","V","V","B","B","B","S","E","38453-25","Deckensanierung im Rahmen der Straßenoffensive 2026/2027.","Umsetzung abhängig u.a. von Witterung und Kapazitäten des Auftragnehmers. Genauer Zeitpunkt kann aktuell nicht dargestellt werden. Aus diesem Grund Bauphase im Arbeitsprogramm ggfs. auf mehrere Quartale ausgedehnt.",{"$f":"VLOOKUP($A158,'[1]komplett mit Formeln'!$A:$AJ,19,0)","v":"in Bauvorbereitung"},"2",{"$f":"SUM(SUMPRODUCT((ISNUMBER(SEARCH(\"x\",T158)))*4),(SUMPRODUCT((ISNUMBER(SEARCH(\"x\",U158:Z158)))*3)),(SUMPRODUCT((ISNUMBER(SEARCH(\"x\",AA158:AC158)))*2)),(SUMPRODUCT((ISNUMBER(SEARCH(\"x\",AD158:AG158)))*1)))","v":10},null,"x","x",null,null,null,null,"x",null,"x",null,null,null,null,".",".",".","x","."]
[1250,"nein","Cottastraße - Quartier 1 Hörde - Deckensanierung","Hörde","Straße ","6 Straßenoffensive","V","V","B","B","B","S","E","38453-25","Deckensanierung im Rahmen der Straßenoffensive 2026/2027.","Umsetzung abhängig u.a. von Witterung und Kapazitäten des Auftragnehmers. Genauer Zeitpunkt kann aktuell nicht dargestellt werden. Aus diesem Grund Bauphase im Arbeitsprogramm ggfs. auf mehrere Quartale ausgedehnt.",{"$f":"VLOOKUP($A159,'[1]komplett mit Formeln'!$A:$AJ,19,0)","v":"in Bauvorbereitung"},"2",{"$f":"SUM(SUMPRODUCT((ISNUMBER(SEARCH(\"x\",T159)))*4),(SUMPRODUCT((ISNUMBER(SEARCH(\"x\",U159:Z159)))*3)),(SUMPRODUCT((ISNUMBER(SEARCH(\"x\",AA159:AC159)))*2)),(SUMPRODUCT((ISNUMBER(SEARCH(\"x\",AD159:AG159)))*1)))","v":10},null,"x","x",null,null,null,null,"x",null,"x",null,null,null,null,".",".",".","x","."]
[1251,"nein","Bannenberg - Deckensanierung von Rahmer Straße bis Hausnr. 23","Huckarde","Straße ","6 Straßenoffensive","V","V","B","B","B","S","E","38453-25","Deckensanierung im Rahmen der Straßenoffensive 2026/2027.","Umsetzung abhängig u.a. von Witterung und Kapazitäten des Auftragnehmers. Genauer Zeitpunkt kann aktuell nicht dargestellt werden. Aus diesem Grund Bauphase im Arbeitsprogramm ggfs. auf mehrere Quartale ausgedehnt.",{"$f":"VLOOKUP($A160,'[1]komplett mit Formeln'!$A:$AJ,19,0)","v":"in Bauvorbereitung"},"2",{"$f":"SUM(SUMPRODUCT((ISNUMBER(SEARCH(\"x\",T160)))*4),(SUMPRODUCT((ISNUMBER(SEARCH(\"x\",U160:Z160)))*3)),(SUMPRODUCT((ISNUMBER(SEARCH(\"x\",AA160:AC160)))*2)),(SUMPRODUCT((ISNUMBER(SEARCH(\"x\",AD160:AG160)))*1)))","v":10},null,"x","x",null,null,null,null,"x",null,"x",null,null,null,null,".",".",".","x","."]
[1252,"nein","Urbanusstraße - Deckensanierung von Hausnr. 6 bis Varziner Straße","Huckarde","Straße ","6 Straßenoffensive","V","V","B","B","B","S","E","38453-25","Deckensanierung im Rahmen der Straßenoffensive 2026/2027.","Umsetzung abhängig u.a. von Witterung und Kapazitäten des Auftragnehmers. Genauer Zeitpunkt kann aktuell nicht dargestellt werden. Aus diesem Grund Bauphase im Arbeitsprogramm ggfs. auf mehrere Quartale ausgedehnt.",{"$f":"VLOOKUP($A161,'[1]komplett mit Formeln'!$A:$AJ,19,0)","v":"in Bauvorbereitung"},"2",{"$f":"SUM(SUMPRODUCT((ISNUMBER(SEARCH(\"x\",T161)))*4),(SUMPRODUCT((ISNUMBER(SEARCH(\"x\",U161:Z161)))*3)),(SUMPRODUCT((ISNUMBER(SEARCH(\"x\",AA161:AC161)))*2)),(SUMPRODUCT((ISNUMBER(SEARCH(\"x\",AD161:AG161)))*1)))","v":10},null,"x","x",null,null,null,null,"x",null,"x",null,null,null,null,".",".",".","x","."]
[1253,"nein","Wischlinger Weg - Deckensanierung zwischen Rahmer Straße und Parkplatz Friedhof","Huckarde","Straße ","6 Straßenoffensive","V","V","B","B","B","S","E","38453-25","Deckensanierung im Rahmen der Straßenoffensive 2026/2027.","Umsetzung abhängig u.a. von Witterung und Kapazitäten des Auftragnehmers. Genauer Zeitpunkt kann aktuell nicht dargestellt werden. Aus diesem Grund Bauphase im Arbeitsprogramm ggfs. auf mehrere Quartale ausgedehnt.",{"$f":"VLOOKUP($A162,'[1]komplett mit Formeln'!$A:$AJ,19,0)","v":"in Bauvorbereitung"},"2",{"$f":"SUM(SUMPRODUCT((ISNUMBER(SEARCH(\"x\",T162)))*4),(SUMPRODUCT((ISNUMBER(SEARCH(\"x\",U162:Z162)))*3)),(SUMPRODUCT((ISNUMBER(SEARCH(\"x\",AA162:AC162)))*2)),(SUMPRODUCT((ISNUMBER(SEARCH(\"x\",AD162:AG162)))*1)))","v":10},null,"x","x",null,null,null,null,"x",null,"x",null,null,null,null,".",".",".","x","."]
[1254,"nein","Ehrlichstraße - Quartier 1 Huckarde - Deckensanierung von Hausnr. 11 bis Ende","Huckarde","Straße ","6 Straßenoffensive","V","V","B","B","B","S","E","38453-25","Deckensanierung im Rahmen der Straßenoffensive 2026/2027.","Umsetzung abhängig u.a. von Witterung und Kapazitäten des Auftragnehmers. Genauer Zeitpunkt kann aktuell nicht dargestellt werden. Aus diesem Grund Bauphase im Arbeitsprogramm ggfs. auf mehrere Quartale ausgedehnt.",{"$f":"VLOOKUP($A163,'[1]komplett mit Formeln'!$A:$AJ,19,0)","v":"in Bauvorbereitung"},"2",{"$f":"SUM(SUMPRODUCT((ISNUMBER(SEARCH(\"x\",T163)))*4),(SUMPRODUCT((ISNUMBER(SEARCH(\"x\",U163:Z163)))*3)),(SUMPRODUCT((ISNUMBER(SEARCH(\"x\",AA163:AC163)))*2)),(SUMPRODUCT((ISNUMBER(SEARCH(\"x\",AD163:AG163)))*1)))","v":10},null,"x","x",null,null,null,null,"x",null,"x",null,null,null,null,".",".",".","x","."]
[1255,"nein","Jungferntalstraße - Quartier 1 Huckarde - Deckensanierung von Hausnr. 70 bis Ende","Huckarde","Straße ","6 Straßenoffensive","V","V","B","B","B","S","E","38453-25","Deckensanierung im Rahmen der Straßenoffensive 2026/2027.","Umsetzung abhängig u.a. von Witterung und Kapazitäten des Auftragnehmers. Genauer Zeitpunkt kann aktuell nicht dargestellt werden. Aus diesem Grund Bauphase im Arbeitsprogramm ggfs. auf mehrere Quartale ausgedehnt.",{"$f":"VLOOKUP($A164,'[1]komplett mit Formeln'!$A:$AJ,19,0)","v":"in Bauvorbereitung"},"2",{"$f":"SUM(SUMPRODUCT((ISNUMBER(SEARCH(\"x\",T164)))*4),(SUMPRODUCT((ISNUMBER(SEARCH(\"x\",U164:Z164)))*3)),(SUMPRODUCT((ISNUMBER(SEARCH(\"x\",AA164:AC164)))*2)),(SUMPRODUCT((ISNUMBER(SEARCH(\"x\",AD164:AG164)))*1)))","v":10},null,"x","x",null,null,null,null,"x",null,"x",null,null,null,null,".",".",".","x","."]
[1256,"nein","Wienstraße - Quartier 1 Huckarde - Deckensanierung","Huckarde","Straße ","6 Straßenoffensive","V","V","B","B","B","S","E","38453-25","Deckensanierung im Rahmen der Straßenoffensive 2026/2027.","Umsetzung abhängig u.a. von Witterung und Kapazitäten des Auftragnehmers. Genauer Zeitpunkt kann aktuell nicht dargestellt werden. Aus diesem Grund Bauphase im Arbeitsprogramm ggfs. auf mehrere Quartale ausgedehnt.",{"$f":"VLOOKUP($A165,'[1]komplett mit Formeln'!$A:$AJ,19,0)","v":"in Bauvorbereitung"},"2",{"$f":"SUM(SUMPRODUCT((ISNUMBER(SEARCH(\"x\",T165)))*4),(SUMPRODUCT((ISNUMBER(SEARCH(\"x\",U165:Z165)))*3)),(SUMPRODUCT((ISNUMBER(SEARCH(\"x\",AA165:AC165)))*2)),(SUMPRODUCT((ISNUMBER(SEARCH(\"x\",AD165:AG165)))*1)))","v":10},null,"x","x",null,null,null,null,"x",null,"x",null,null,null,null,".",".",".","x","."]
[1257,"nein","Lauestraße - Quartier 1 Huckarde - Deckensanierung","Huckarde","Straße ","6 Straßenoffensive","V","V","B","B","B","S","E","38453-25","Deckensanierung im Rahmen der Straßenoffensive 2026/2027.","Umsetzung abhängig u.a. von Witterung und Kapazitäten des Auftragnehmers. Genauer Zeitpunkt kann aktuell nicht dargestellt werden. Aus diesem Grund Bauphase im Arbeitsprogramm ggfs. auf mehrere Quartale ausgedehnt.",{"$f":"VLOOKUP($A166,'[1]komplett mit Formeln'!$A:$AJ,19,0)","v":"in Bauvorbereitung"},"2",{"$f":"SUM(SUMPRODUCT((ISNUMBER(SEARCH(\"x\",T166)))*4),(SUMPRODUCT((ISNUMBER(SEARCH(\"x\",U166:Z166)))*3)),(SUMPRODUCT((ISNUMBER(SEARCH(\"x\",AA166:AC166)))*2)),(SUMPRODUCT((ISNUMBER(SEARCH(\"x\",AD166:AG166)))*1)))","v":10},null,"x","x",null,null,null,null,"x",null,"x",null,null,null,null,".",".",".","x","."]
[1258,"nein","Wallachstraße - Quartier 1 Huckarde - Deckensanierung","Huckarde","Straße ","6 Straßenoffensive","V","V","B","B","B","S","E","38453-25","Deckensanierung im Rahmen der Straßenoffensive 2026/2027.","Umsetzung abhängig u.a. von Witterung und Kapazitäten des Auftragnehmers. Genauer Zeitpunkt kann aktuell nicht dargestellt werden. Aus diesem Grund Bauphase im Arbeitsprogramm ggfs. auf mehrere Quartale ausgedehnt.",{"$f":"VLOOKUP($A167,'[1]komplett mit Formeln'!$A:$AJ,19,0)","v":"in Bauvorbereitung"},"2",{"$f":"SUM(SUMPRODUCT((ISNUMBER(SEARCH(\"x\",T167)))*4),(SUMPRODUCT((ISNUMBER(SEARCH(\"x\",U167:Z167)))*3)),(SUMPRODUCT((ISNUMBER(SEARCH(\"x\",AA167:AC167)))*2)),(SUMPRODUCT((ISNUMBER(SEARCH(\"x\",AD167:AG167)))*1)))","v":10},null,"x","x",null,null,null,null,"x",null,"x",null,null,null,null,".",".",".","x","."]
[1259,"nein","Willstätterstraße - Quartier 1 Huckarde - Deckensanierung","Huckarde","Straße ","6 Straßenoffensive","V","V","B","B","B","S","E","38453-25","Deckensanierung im Rahmen der Straßenoffensive 2026/2027.","Umsetzung abhängig u.a. von Witterung und Kapazitäten des Auftragnehmers. Genauer Zeitpunkt kann aktuell nicht dargestellt werden. Aus diesem Grund Bauphase im Arbeitsprogramm ggfs. auf mehrere Quartale ausgedehnt.",{"$f":"VLOOKUP($A168,'[1]komplett mit Formeln'!$A:$AJ,19,0)","v":"in Bauvorbereitung"},"2",{"$f":"SUM(SUMPRODUCT((ISNUMBER(SEARCH(\"x\",T168)))*4),(SUMPRODUCT((ISNUMBER(SEARCH(\"x\",U168:Z168)))*3)),(SUMPRODUCT((ISNUMBER(SEARCH(\"x\",AA168:AC168)))*2)),(SUMPRODUCT((ISNUMBER(SEARCH(\"x\",AD168:AG168)))*1)))","v":10},null,"x","x",null,null,null,null,"x",null,"x",null,null,null,null,".",".",".","x","."]
[1260,"nein","Windhausstraße - Quartier 1 Huckarde - Deckensanierung","Huckarde","Straße ","6 Straßenoffensive","V","V","B","B","B","S","E","38453-25","Deckensanierung im Rahmen der Straßenoffensive 2026/2027.","Umsetzung abhängig u.a. von Witterung und Kapazitäten des Auftragnehmers. Genauer Zeitpunkt kann aktuell nicht dargestellt werden. Aus diesem Grund Bauphase im Arbeitsprogramm ggfs. auf mehrere Quartale ausgedehnt.",{"$f":"VLOOKUP($A169,'[1]komplett mit Formeln'!$A:$AJ,19,0)","v":"in Bauvorbereitung"},"2",{"$f":"SUM(SUMPRODUCT((ISNUMBER(SEARCH(\"x\",T169)))*4),(SUMPRODUCT((ISNUMBER(SEARCH(\"x\",U169:Z169)))*3)),(SUMPRODUCT((ISNUMBER(SEARCH(\"x\",AA169:AC169)))*2)),(SUMPRODUCT((ISNUMBER(SEARCH(\"x\",AD169:AG169)))*1)))","v":10},null,"x","x",null,null,null,null,"x",null,"x",null,null,null,null,".",".",".","x","."]
[1261,"nein","Braunstraße - Quartier 1 Huckarde - Deckensanierung","INN-Nord","Straße ","6 Straßenoffensive","V","V","B","B","B","S","E","38453-25","Deckensanierung im Rahmen der Straßenoffensive 2026/2027.","Umsetzung abhängig u.a. von Witterung und Kapazitäten des Auftragnehmers. Genauer Zeitpunkt kann aktuell nicht dargestellt werden. Aus diesem Grund Bauphase im Arbeitsprogramm ggfs. auf mehrere Quartale ausgedehnt.",{"$f":"VLOOKUP($A170,'[1]komplett mit Formeln'!$A:$AJ,19,0)","v":"in Bauvorbereitung"},"2",{"$f":"SUM(SUMPRODUCT((ISNUMBER(SEARCH(\"x\",T170)))*4),(SUMPRODUCT((ISNUMBER(SEARCH(\"x\",U170:Z170)))*3)),(SUMPRODUCT((ISNUMBER(SEARCH(\"x\",AA170:AC170)))*2)),(SUMPRODUCT((ISNUMBER(SEARCH(\"x\",AD170:AG170)))*1)))","v":10},null,"x","x",null,null,null,null,"x",null,"x",null,null,null,null,".",".",".","x","."]
[1262,"nein","Kosselstraße - Quartier 1 Huckarde - Deckensanierung","Huckarde","Straße ","6 Straßenoffensive","V","V","B","B","B","S","E","38453-25","Deckensanierung im Rahmen der Straßenoffensive 2026/2027.","Umsetzung abhängig u.a. von Witterung und Kapazitäten des Auftragnehmers. Genauer Zeitpunkt kann aktuell nicht dargestellt werden. Aus diesem Grund Bauphase im Arbeitsprogramm ggfs. auf mehrere Quartale ausgedehnt.",{"$f":"VLOOKUP($A171,'[1]komplett mit Formeln'!$A:$AJ,19,0)","v":"in Bauvorbereitung"},"2",{"$f":"SUM(SUMPRODUCT((ISNUMBER(SEARCH(\"x\",T171)))*4),(SUMPRODUCT((ISNUMBER(SEARCH(\"x\",U171:Z171)))*3)),(SUMPRODUCT((ISNUMBER(SEARCH(\"x\",AA171:AC171)))*2)),(SUMPRODUCT((ISNUMBER(SEARCH(\"x\",AD171:AG171)))*1)))","v":10},null,"x","x",null,null,null,null,"x",null,"x",null,null,null,null,".",".",".","x","."]
[1263,"nein","Lortzingstraße - Deckensanierung von Burgholzstraße bis Haydnstraße","INN-Nord","Straße ","6 Straßenoffensive","V","V","B","B","B","S","E","38453-25","Deckensanierung im Rahmen der Straßenoffensive 2026/2027.","Umsetzung abhängig u.a. von Witterung und Kapazitäten des Auftragnehmers. Genauer Zeitpunkt kann aktuell nicht dargestellt werden. Aus diesem Grund Bauphase im Arbeitsprogramm ggfs. auf mehrere Quartale ausgedehnt.",{"$f":"VLOOKUP($A172,'[1]komplett mit Formeln'!$A:$AJ,19,0)","v":"in Bauvorbereitung"},"2",{"$f":"SUM(SUMPRODUCT((ISNUMBER(SEARCH(\"x\",T172)))*4),(SUMPRODUCT((ISNUMBER(SEARCH(\"x\",U172:Z172)))*3)),(SUMPRODUCT((ISNUMBER(SEARCH(\"x\",AA172:AC172)))*2)),(SUMPRODUCT((ISNUMBER(SEARCH(\"x\",AD172:AG172)))*1)))","v":10},null,"x","x",null,null,null,null,"x",null,"x",null,null,null,null,".",".",".","x","."]
[1264,"nein","Bornstraße - Deckensanierung von Mallinckrodtstraße bis Stollenstraße","INN-Nord","Straße ","6 Straßenoffensive","V","V","B","B","B","S","E","38453-25","Deckensanierung im Rahmen der Straßenoffensive 2026/2027.","Umsetzung abhängig u.a. von Witterung und Kapazitäten des Auftragnehmers. Genauer Zeitpunkt kann aktuell nicht dargestellt werden. Aus diesem Grund Bauphase im Arbeitsprogramm ggfs. auf mehrere Quartale ausgedehnt.",{"$f":"VLOOKUP($A173,'[1]komplett mit Formeln'!$A:$AJ,19,0)","v":"in Bauvorbereitung"},"2",{"$f":"SUM(SUMPRODUCT((ISNUMBER(SEARCH(\"x\",T173)))*4),(SUMPRODUCT((ISNUMBER(SEARCH(\"x\",U173:Z173)))*3)),(SUMPRODUCT((ISNUMBER(SEARCH(\"x\",AA173:AC173)))*2)),(SUMPRODUCT((ISNUMBER(SEARCH(\"x\",AD173:AG173)))*1)))","v":10},null,"x","x",null,null,null,null,"x",null,"x",null,null,null,null,".",".",".","x","."]
[1265,"nein","Bornstraße - Deckensanierung von Hausnr. 266 bis 329 (stadtauswärts)","INN-Nord","Straße ","6 Straßenoffensive","V","V","B","B","B","S","E","38453-25","Deckensanierung im Rahmen der Straßenoffensive 2026/2027.","Umsetzung abhängig u.a. von Witterung und Kapazitäten des Auftragnehmers. Genauer Zeitpunkt kann aktuell nicht dargestellt werden. Aus diesem Grund Bauphase im Arbeitsprogramm ggfs. auf mehrere Quartale ausgedehnt.",{"$f":"VLOOKUP($A174,'[1]komplett mit Formeln'!$A:$AJ,19,0)","v":"in Bauvorbereitung"},"2",{"$f":"SUM(SUMPRODUCT((ISNUMBER(SEARCH(\"x\",T174)))*4),(SUMPRODUCT((ISNUMBER(SEARCH(\"x\",U174:Z174)))*3)),(SUMPRODUCT((ISNUMBER(SEARCH(\"x\",AA174:AC174)))*2)),(SUMPRODUCT((ISNUMBER(SEARCH(\"x\",AD174:AG174)))*1)))","v":10},null,"x","x",null,null,null,null,"x",null,"x",null,null,null,null,".",".",".","x","."]
[1266,"nein","Blücherstraße - Quartier 1 Innenstadt-Nord - Deckensanierung von Hausnr. 2 bis 20","INN-Nord","Straße ","6 Straßenoffensive","V","V","B","B","B","S","E","38453-25","Deckensanierung im Rahmen der Straßenoffensive 2026/2027.","Umsetzung abhängig u.a. von Witterung und Kapazitäten des Auftragnehmers. Genauer Zeitpunkt kann aktuell nicht dargestellt werden. Aus diesem Grund Bauphase im Arbeitsprogramm ggfs. auf mehrere Quartale ausgedehnt.",{"$f":"VLOOKUP($A175,'[1]komplett mit Formeln'!$A:$AJ,19,0)","v":"in Bauvorbereitung"},"2",{"$f":"SUM(SUMPRODUCT((ISNUMBER(SEARCH(\"x\",T175)))*4),(SUMPRODUCT((ISNUMBER(SEARCH(\"x\",U175:Z175)))*3)),(SUMPRODUCT((ISNUMBER(SEARCH(\"x\",AA175:AC175)))*2)),(SUMPRODUCT((ISNUMBER(SEARCH(\"x\",AD175:AG175)))*1)))","v":10},null,"x","x",null,null,null,null,"x",null,"x",null,null,null,null,".",".",".","x","."]
[1267,"nein","Feldherrnstraße - Quartier 1 Innenstadt-Nord - Deckensanierung von Hausnr. 1 bis 26","INN-Nord","Straße ","6 Straßenoffensive","V","V","B","B","B","S","E","38453-25","Deckensanierung im Rahmen der Straßenoffensive 2026/2027.","Umsetzung abhängig u.a. von Witterung und Kapazitäten des Auftragnehmers. Genauer Zeitpunkt kann aktuell nicht dargestellt werden. Aus diesem Grund Bauphase im Arbeitsprogramm ggfs. auf mehrere Quartale ausgedehnt.",{"$f":"VLOOKUP($A176,'[1]komplett mit Formeln'!$A:$AJ,19,0)","v":"in Bauvorbereitung"},"2",{"$f":"SUM(SUMPRODUCT((ISNUMBER(SEARCH(\"x\",T176)))*4),(SUMPRODUCT((ISNUMBER(SEARCH(\"x\",U176:Z176)))*3)),(SUMPRODUCT((ISNUMBER(SEARCH(\"x\",AA176:AC176)))*2)),(SUMPRODUCT((ISNUMBER(SEARCH(\"x\",AD176:AG176)))*1)))","v":10},null,"x","x",null,null,null,null,"x",null,"x",null,null,null,null,".",".",".","x","."]
[1268,"nein","Gneisenaustraße - Quartier 1 Innenstadt-Nord - Deckensanierung von Kesselstraße bis Feldherrnstraße","INN-Nord","Straße ","6 Straßenoffensive","V","V","B","B","B","S","E","38453-25","Deckensanierung im Rahmen der Straßenoffensive 2026/2027.","Umsetzung abhängig u.a. von Witterung und Kapazitäten des Auftragnehmers. Genauer Zeitpunkt kann aktuell nicht dargestellt werden. Aus diesem Grund Bauphase im Arbeitsprogramm ggfs. auf mehrere Quartale ausgedehnt.",{"$f":"VLOOKUP($A177,'[1]komplett mit Formeln'!$A:$AJ,19,0)","v":"in Bauvorbereitung"},"2",{"$f":"SUM(SUMPRODUCT((ISNUMBER(SEARCH(\"x\",T177)))*4),(SUMPRODUCT((ISNUMBER(SEARCH(\"x\",U177:Z177)))*3)),(SUMPRODUCT((ISNUMBER(SEARCH(\"x\",AA177:AC177)))*2)),(SUMPRODUCT((ISNUMBER(SEARCH(\"x\",AD177:AG177)))*1)))","v":10},null,"x","x",null,null,null,null,"x",null,"x",null,null,null,null,".",".",".","x","."]
[1269,"nein","Martha-Gillessen-Straße - Quartier 1 Innenstadt-Nord - Deckensanierung","INN-Nord","Straße ","6 Straßenoffensive","V","V","B","B","B","S","E","38453-25","Deckensanierung im Rahmen der Straßenoffensive 2026/2027.","Umsetzung abhängig u.a. von Witterung und Kapazitäten des Auftragnehmers. Genauer Zeitpunkt kann aktuell nicht dargestellt werden. Aus diesem Grund Bauphase im Arbeitsprogramm ggfs. auf mehrere Quartale ausgedehnt.",{"$f":"VLOOKUP($A178,'[1]komplett mit Formeln'!$A:$AJ,19,0)","v":"in Bauvorbereitung"},"2",{"$f":"SUM(SUMPRODUCT((ISNUMBER(SEARCH(\"x\",T178)))*4),(SUMPRODUCT((ISNUMBER(SEARCH(\"x\",U178:Z178)))*3)),(SUMPRODUCT((ISNUMBER(SEARCH(\"x\",AA178:AC178)))*2)),(SUMPRODUCT((ISNUMBER(SEARCH(\"x\",AD178:AG178)))*1)))","v":10},null,"x","x",null,null,null,null,"x",null,"x",null,null,null,null,".",".",".","x","."]
[1270,"nein","Treibstraße - Quartier 1 Innenstadt-Nord - Deckensanierung von Hausnr. 37 bis 63","INN-Nord","Straße ","6 Straßenoffensive","V","V","B","B","B","S","E","38453-25","Deckensanierung im Rahmen der Straßenoffensive 2026/2027.","Umsetzung abhängig u.a. von Witterung und Kapazitäten des Auftragnehmers. Genauer Zeitpunkt kann aktuell nicht dargestellt werden. Aus diesem Grund Bauphase im Arbeitsprogramm ggfs. auf mehrere Quartale ausgedehnt.",{"$f":"VLOOKUP($A179,'[1]komplett mit Formeln'!$A:$AJ,19,0)","v":"in Bauvorbereitung"},"2",{"$f":"SUM(SUMPRODUCT((ISNUMBER(SEARCH(\"x\",T179)))*4),(SUMPRODUCT((ISNUMBER(SEARCH(\"x\",U179:Z179)))*3)),(SUMPRODUCT((ISNUMBER(SEARCH(\"x\",AA179:AC179)))*2)),(SUMPRODUCT((ISNUMBER(SEARCH(\"x\",AD179:AG179)))*1)))","v":10},null,"x","x",null,null,null,null,"x",null,"x",null,null,null,null,".",".",".","x","."]
[1271,"nein","Scharnhorststraße - Quartier 1 Innenstadt-Nord - Deckensanierung","INN-Nord","Straße ","6 Straßenoffensive","V","V","B","B","B","S","E","38453-25","Deckensanierung im Rahmen der Straßenoffensive 2026/2027.","Umsetzung abhängig u.a. von Witterung und Kapazitäten des Auftragnehmers. Genauer Zeitpunkt kann aktuell nicht dargestellt werden. Aus diesem Grund Bauphase im Arbeitsprogramm ggfs. auf mehrere Quartale ausgedehnt.",{"$f":"VLOOKUP($A180,'[1]komplett mit Formeln'!$A:$AJ,19,0)","v":"in Bauvorbereitung"},"2",{"$f":"SUM(SUMPRODUCT((ISNUMBER(SEARCH(\"x\",T180)))*4),(SUMPRODUCT((ISNUMBER(SEARCH(\"x\",U180:Z180)))*3)),(SUMPRODUCT((ISNUMBER(SEARCH(\"x\",AA180:AC180)))*2)),(SUMPRODUCT((ISNUMBER(SEARCH(\"x\",AD180:AG180)))*1)))","v":10},null,"x","x",null,null,null,null,"x",null,"x",null,null,null,null,".",".",".","x","."]
[1272,"nein","Clemens-Veltum-Straße - Quartier 1 Innenstadt-Nord - Deckensanierung von Hausnr. 73 bis 92","INN-Nord","Straße ","6 Straßenoffensive","V","V","B","B","B","S","E","38453-25","Deckensanierung im Rahmen der Straßenoffensive 2026/2027.","Umsetzung abhängig u.a. von Witterung und Kapazitäten des Auftragnehmers. Genauer Zeitpunkt kann aktuell nicht dargestellt werden. Aus diesem Grund Bauphase im Arbeitsprogramm ggfs. auf mehrere Quartale ausgedehnt.",{"$f":"VLOOKUP($A181,'[1]komplett mit Formeln'!$A:$AJ,19,0)","v":"in Bauvorbereitung"},"2",{"$f":"SUM(SUMPRODUCT((ISNUMBER(SEARCH(\"x\",T181)))*4),(SUMPRODUCT((ISNUMBER(SEARCH(\"x\",U181:Z181)))*3)),(SUMPRODUCT((ISNUMBER(SEARCH(\"x\",AA181:AC181)))*2)),(SUMPRODUCT((ISNUMBER(SEARCH(\"x\",AD181:AG181)))*1)))","v":10},null,"x","x",null,null,null,null,"x",null,"x",null,null,null,null,".",".",".","x","."]
[1273,"nein","Kesselstraße - Quartier 1 Innenstadt-Nord - Deckensanierung von Scharnhorststraße bis Gneisenaustraße","INN-Nord","Straße ","6 Straßenoffensive","V","V","B","B","B","S","E","38453-25","Deckensanierung im Rahmen der Straßenoffensive 2026/2027.","Umsetzung abhängig u.a. von Witterung und Kapazitäten des Auftragnehmers. Genauer Zeitpunkt kann aktuell nicht dargestellt werden. Aus diesem Grund Bauphase im Arbeitsprogramm ggfs. auf mehrere Quartale ausgedehnt.",{"$f":"VLOOKUP($A182,'[1]komplett mit Formeln'!$A:$AJ,19,0)","v":"in Bauvorbereitung"},"2",{"$f":"SUM(SUMPRODUCT((ISNUMBER(SEARCH(\"x\",T182)))*4),(SUMPRODUCT((ISNUMBER(SEARCH(\"x\",U182:Z182)))*3)),(SUMPRODUCT((ISNUMBER(SEARCH(\"x\",AA182:AC182)))*2)),(SUMPRODUCT((ISNUMBER(SEARCH(\"x\",AD182:AG182)))*1)))","v":10},null,"x","x",null,null,null,null,"x",null,"x",null,null,null,null,".",".",".","x","."]
[1274,"nein","Blumenstraße - Quartier 1 Innenstadt-Nord - Deckensanierung von Scharnhorststraße bis Gneisenaustraße","INN-Nord","Straße ","6 Straßenoffensive","V","V","B","B","B","S","E","38453-25","Deckensanierung im Rahmen der Straßenoffensive 2026/2027.","Umsetzung abhängig u.a. von Witterung und Kapazitäten des Auftragnehmers. Genauer Zeitpunkt kann aktuell nicht dargestellt werden. Aus diesem Grund Bauphase im Arbeitsprogramm ggfs. auf mehrere Quartale ausgedehnt.",{"$f":"VLOOKUP($A183,'[1]komplett mit Formeln'!$A:$AJ,19,0)","v":"in Bauvorbereitung"},"2",{"$f":"SUM(SUMPRODUCT((ISNUMBER(SEARCH(\"x\",T183)))*4),(SUMPRODUCT((ISNUMBER(SEARCH(\"x\",U183:Z183)))*3)),(SUMPRODUCT((ISNUMBER(SEARCH(\"x\",AA183:AC183)))*2)),(SUMPRODUCT((ISNUMBER(SEARCH(\"x\",AD183:AG183)))*1)))","v":10},null,"x","x",null,null,null,null,"x",null,"x",null,null,null,null,".",".",".","x","."]
[1275,"nein","Max-Eyth-Straße - Deckensanierung","INN-Ost","Straße ","6 Straßenoffensive","V","V","B","B","B","S","E","38453-25","Deckensanierung im Rahmen der Straßenoffensive 2026/2027.","Umsetzung abhängig u.a. von Witterung und Kapazitäten des Auftragnehmers. Genauer Zeitpunkt kann aktuell nicht dargestellt werden. Aus diesem Grund Bauphase im Arbeitsprogramm ggfs. auf mehrere Quartale ausgedehnt.",{"$f":"VLOOKUP($A184,'[1]komplett mit Formeln'!$A:$AJ,19,0)","v":"in Bauvorbereitung"},"2",{"$f":"SUM(SUMPRODUCT((ISNUMBER(SEARCH(\"x\",T184)))*4),(SUMPRODUCT((ISNUMBER(SEARCH(\"x\",U184:Z184)))*3)),(SUMPRODUCT((ISNUMBER(SEARCH(\"x\",AA184:AC184)))*2)),(SUMPRODUCT((ISNUMBER(SEARCH(\"x\",AD184:AG184)))*1)))","v":10},null,"x","x",null,null,null,null,"x",null,"x",null,null,null,null,".",".",".","x","."]
[1276,"nein","Tucholskystraße - Deckensanierung","INN-Ost","Straße ","6 Straßenoffensive","V","V","B","B","B","S","E","38453-25","Deckensanierung im Rahmen der Straßenoffensive 2026/2027.","Umsetzung abhängig u.a. von Witterung und Kapazitäten des Auftragnehmers. Genauer Zeitpunkt kann aktuell nicht dargestellt werden. Aus diesem Grund Bauphase im Arbeitsprogramm ggfs. auf mehrere Quartale ausgedehnt.",{"$f":"VLOOKUP($A185,'[1]komplett mit Formeln'!$A:$AJ,19,0)","v":"in Bauvorbereitung"},"2",{"$f":"SUM(SUMPRODUCT((ISNUMBER(SEARCH(\"x\",T185)))*4),(SUMPRODUCT((ISNUMBER(SEARCH(\"x\",U185:Z185)))*3)),(SUMPRODUCT((ISNUMBER(SEARCH(\"x\",AA185:AC185)))*2)),(SUMPRODUCT((ISNUMBER(SEARCH(\"x\",AD185:AG185)))*1)))","v":10},null,"x","x",null,null,null,null,"x",null,"x",null,null,null,null,".",".",".","x","."]
[1277,"nein","Baeumerstraße - Quartier 2 Innenstadt-Ost - Deckensanierung von Hausnr. 10 bis 26","INN-Ost","Straße ","6 Straßenoffensive","V","V","B","B","B","S","E","38453-25","Deckensanierung im Rahmen der Straßenoffensive 2026/2027.","Umsetzung abhängig u.a. von Witterung und Kapazitäten des Auftragnehmers. Genauer Zeitpunkt kann aktuell nicht dargestellt werden. Aus diesem Grund Bauphase im Arbeitsprogramm ggfs. auf mehrere Quartale ausgedehnt.",{"$f":"VLOOKUP($A186,'[1]komplett mit Formeln'!$A:$AJ,19,0)","v":"in Bauvorbereitung"},"2",{"$f":"SUM(SUMPRODUCT((ISNUMBER(SEARCH(\"x\",T186)))*4),(SUMPRODUCT((ISNUMBER(SEARCH(\"x\",U186:Z186)))*3)),(SUMPRODUCT((ISNUMBER(SEARCH(\"x\",AA186:AC186)))*2)),(SUMPRODUCT((ISNUMBER(SEARCH(\"x\",AD186:AG186)))*1)))","v":10},null,"x","x",null,null,null,null,"x",null,"x",null,null,null,null,".",".",".","x","."]
[1278,"nein","Baurat-Marx-Allee - Quartier 2 Innenstadt-Ost - Deckensanierung zwischen B1 und Sckellstraße","INN-Ost","Straße ","6 Straßenoffensive","V","V","B","B","B","S","E","38453-25","Deckensanierung im Rahmen der Straßenoffensive 2026/2027.","Umsetzung abhängig u.a. von Witterung und Kapazitäten des Auftragnehmers. Genauer Zeitpunkt kann aktuell nicht dargestellt werden. Aus diesem Grund Bauphase im Arbeitsprogramm ggfs. auf mehrere Quartale ausgedehnt.",{"$f":"VLOOKUP($A187,'[1]komplett mit Formeln'!$A:$AJ,19,0)","v":"in Bauvorbereitung"},"2",{"$f":"SUM(SUMPRODUCT((ISNUMBER(SEARCH(\"x\",T187)))*4),(SUMPRODUCT((ISNUMBER(SEARCH(\"x\",U187:Z187)))*3)),(SUMPRODUCT((ISNUMBER(SEARCH(\"x\",AA187:AC187)))*2)),(SUMPRODUCT((ISNUMBER(SEARCH(\"x\",AD187:AG187)))*1)))","v":10},null,"x","x",null,null,null,null,"x",null,"x",null,null,null,null,".",".",".","x","."]
[1279,"nein","Hohenfriedberger Straße - Quartier 2 Innenstadt-Ost - Deckensanierung von Hausnr. 1 bis 27","INN-Ost","Straße ","6 Straßenoffensive","V","V","B","B","B","S","E","38453-25","Deckensanierung im Rahmen der Straßenoffensive 2026/2027.","Umsetzung abhängig u.a. von Witterung und Kapazitäten des Auftragnehmers. Genauer Zeitpunkt kann aktuell nicht dargestellt werden. Aus diesem Grund Bauphase im Arbeitsprogramm ggfs. auf mehrere Quartale ausgedehnt.",{"$f":"VLOOKUP($A188,'[1]komplett mit Formeln'!$A:$AJ,19,0)","v":"in Bauvorbereitung"},"2",{"$f":"SUM(SUMPRODUCT((ISNUMBER(SEARCH(\"x\",T188)))*4),(SUMPRODUCT((ISNUMBER(SEARCH(\"x\",U188:Z188)))*3)),(SUMPRODUCT((ISNUMBER(SEARCH(\"x\",AA188:AC188)))*2)),(SUMPRODUCT((ISNUMBER(SEARCH(\"x\",AD188:AG188)))*1)))","v":10},null,"x","x",null,null,null,null,"x",null,"x",null,null,null,null,".",".",".","x","."]
[1280,"nein","Karl-Liebknecht-Straße - Quartier 2 Innenstadt-Ost - Deckensanierung von Hausnr. 6 bis 33","INN-Ost","Straße ","6 Straßenoffensive","V","V","B","B","B","S","E","38453-25","Deckensanierung im Rahmen der Straßenoffensive 2026/2027.","Umsetzung abhängig u.a. von Witterung und Kapazitäten des Auftragnehmers. Genauer Zeitpunkt kann aktuell nicht dargestellt werden. Aus diesem Grund Bauphase im Arbeitsprogramm ggfs. auf mehrere Quartale ausgedehnt.",{"$f":"VLOOKUP($A189,'[1]komplett mit Formeln'!$A:$AJ,19,0)","v":"in Bauvorbereitung"},"2",{"$f":"SUM(SUMPRODUCT((ISNUMBER(SEARCH(\"x\",T189)))*4),(SUMPRODUCT((ISNUMBER(SEARCH(\"x\",U189:Z189)))*3)),(SUMPRODUCT((ISNUMBER(SEARCH(\"x\",AA189:AC189)))*2)),(SUMPRODUCT((ISNUMBER(SEARCH(\"x\",AD189:AG189)))*1)))","v":10},null,"x","x",null,null,null,null,"x",null,"x",null,null,null,null,".",".",".","x","."]
[1281,"nein","Ziethenstraße - Quartier 2 Innenstadt-Ost - Deckensanierung von Winterfeldstraße bis Oberschlesierstraße","INN-Ost","Straße ","6 Straßenoffensive","V","V","B","B","B","S","E","38453-25","Deckensanierung im Rahmen der Straßenoffensive 2026/2027.","Umsetzung abhängig u.a. von Witterung und Kapazitäten des Auftragnehmers. Genauer Zeitpunkt kann aktuell nicht dargestellt werden. Aus diesem Grund Bauphase im Arbeitsprogramm ggfs. auf mehrere Quartale ausgedehnt.",{"$f":"VLOOKUP($A190,'[1]komplett mit Formeln'!$A:$AJ,19,0)","v":"in Bauvorbereitung"},"2",{"$f":"SUM(SUMPRODUCT((ISNUMBER(SEARCH(\"x\",T190)))*4),(SUMPRODUCT((ISNUMBER(SEARCH(\"x\",U190:Z190)))*3)),(SUMPRODUCT((ISNUMBER(SEARCH(\"x\",AA190:AC190)))*2)),(SUMPRODUCT((ISNUMBER(SEARCH(\"x\",AD190:AG190)))*1)))","v":10},null,"x","x",null,null,null,null,"x",null,"x",null,null,null,null,".",".",".","x","."]
[1282,"nein","Bünnerhelfstraße - Deckensanierung","INN-West","Straße ","6 Straßenoffensive","V","V","B","B","B","S","E","38453-25","Deckensanierung im Rahmen der Straßenoffensive 2026/2027.","Umsetzung abhängig u.a. von Witterung und Kapazitäten des Auftragnehmers. Genauer Zeitpunkt kann aktuell nicht dargestellt werden. Aus diesem Grund Bauphase im Arbeitsprogramm ggfs. auf mehrere Quartale ausgedehnt.",{"$f":"VLOOKUP($A191,'[1]komplett mit Formeln'!$A:$AJ,19,0)","v":"in Bauvorbereitung"},"2",{"$f":"SUM(SUMPRODUCT((ISNUMBER(SEARCH(\"x\",T191)))*4),(SUMPRODUCT((ISNUMBER(SEARCH(\"x\",U191:Z191)))*3)),(SUMPRODUCT((ISNUMBER(SEARCH(\"x\",AA191:AC191)))*2)),(SUMPRODUCT((ISNUMBER(SEARCH(\"x\",AD191:AG191)))*1)))","v":10},null,"x","x",null,null,null,null,"x",null,"x",null,null,null,null,".",".",".","x","."]
[1283,"nein","Iggelhorst - Deckensanierung von Kortental bis Bünnerhelfstraße","INN-West","Straße ","6 Straßenoffensive","V","V","B","B","B","S","E","38453-25","Deckensanierung im Rahmen der Straßenoffensive 2026/2027.","Umsetzung abhängig u.a. von Witterung und Kapazitäten des Auftragnehmers. Genauer Zeitpunkt kann aktuell nicht dargestellt werden. Aus diesem Grund Bauphase im Arbeitsprogramm ggfs. auf mehrere Quartale ausgedehnt.",{"$f":"VLOOKUP($A192,'[1]komplett mit Formeln'!$A:$AJ,19,0)","v":"in Bauvorbereitung"},"2",{"$f":"SUM(SUMPRODUCT((ISNUMBER(SEARCH(\"x\",T192)))*4),(SUMPRODUCT((ISNUMBER(SEARCH(\"x\",U192:Z192)))*3)),(SUMPRODUCT((ISNUMBER(SEARCH(\"x\",AA192:AC192)))*2)),(SUMPRODUCT((ISNUMBER(SEARCH(\"x\",AD192:AG192)))*1)))","v":10},null,"x","x",null,null,null,null,"x",null,"x",null,null,null,null,".",".",".","x","."]
[1284,"nein","Amalienstraße - Quartier 1 Innenstadt-West - Deckensanierung","INN-West","Straße ","6 Straßenoffensive","V","V","B","B","B","S","E","38453-25","Deckensanierung im Rahmen der Straßenoffensive 2026/2027.","Umsetzung abhängig u.a. von Witterung und Kapazitäten des Auftragnehmers. Genauer Zeitpunkt kann aktuell nicht dargestellt werden. Aus diesem Grund Bauphase im Arbeitsprogramm ggfs. auf mehrere Quartale ausgedehnt.",{"$f":"VLOOKUP($A193,'[1]komplett mit Formeln'!$A:$AJ,19,0)","v":"in Bauvorbereitung"},"2",{"$f":"SUM(SUMPRODUCT((ISNUMBER(SEARCH(\"x\",T193)))*4),(SUMPRODUCT((ISNUMBER(SEARCH(\"x\",U193:Z193)))*3)),(SUMPRODUCT((ISNUMBER(SEARCH(\"x\",AA193:AC193)))*2)),(SUMPRODUCT((ISNUMBER(SEARCH(\"x\",AD193:AG193)))*1)))","v":10},null,"x","x",null,null,null,null,"x",null,"x",null,null,null,null,".",".",".","x","."]
[1285,"nein","Frankenstraße - Quartier 1 Innenstadt-West - Deckensanierung","INN-West","Straße ","6 Straßenoffensive","V","V","B","B","B","S","E","38453-25","Deckensanierung im Rahmen der Straßenoffensive 2026/2027.","Umsetzung abhängig u.a. von Witterung und Kapazitäten des Auftragnehmers. Genauer Zeitpunkt kann aktuell nicht dargestellt werden. Aus diesem Grund Bauphase im Arbeitsprogramm ggfs. auf mehrere Quartale ausgedehnt.",{"$f":"VLOOKUP($A194,'[1]komplett mit Formeln'!$A:$AJ,19,0)","v":"in Bauvorbereitung"},"2",{"$f":"SUM(SUMPRODUCT((ISNUMBER(SEARCH(\"x\",T194)))*4),(SUMPRODUCT((ISNUMBER(SEARCH(\"x\",U194:Z194)))*3)),(SUMPRODUCT((ISNUMBER(SEARCH(\"x\",AA194:AC194)))*2)),(SUMPRODUCT((ISNUMBER(SEARCH(\"x\",AD194:AG194)))*1)))","v":10},null,"x","x",null,null,null,null,"x",null,"x",null,null,null,null,".",".",".","x","."]
[1286,"nein","Gustavstraße - Quartier 1 Innenstadt-West - Deckensanierung","INN-West","Straße ","6 Straßenoffensive","V","V","B","B","B","S","E","38453-25","Deckensanierung im Rahmen der Straßenoffensive 2026/2027.","Umsetzung abhängig u.a. von Witterung und Kapazitäten des Auftragnehmers. Genauer Zeitpunkt kann aktuell nicht dargestellt werden. Aus diesem Grund Bauphase im Arbeitsprogramm ggfs. auf mehrere Quartale ausgedehnt.",{"$f":"VLOOKUP($A195,'[1]komplett mit Formeln'!$A:$AJ,19,0)","v":"in Bauvorbereitung"},"2",{"$f":"SUM(SUMPRODUCT((ISNUMBER(SEARCH(\"x\",T195)))*4),(SUMPRODUCT((ISNUMBER(SEARCH(\"x\",U195:Z195)))*3)),(SUMPRODUCT((ISNUMBER(SEARCH(\"x\",AA195:AC195)))*2)),(SUMPRODUCT((ISNUMBER(SEARCH(\"x\",AD195:AG195)))*1)))","v":10},null,"x","x",null,null,null,null,"x",null,"x",null,null,null,null,".",".",".","x","."]
[1287,"nein","Humboldtstraße - Quartier 1 Innenstadt-West - Deckensanierung von Hausnr. 45 bis Ende","INN-West","Straße ","6 Straßenoffensive","V","V","B","B","B","S","E","38453-25","Deckensanierung im Rahmen der Straßenoffensive 2026/2027.","Umsetzung abhängig u.a. von Witterung und Kapazitäten des Auftragnehmers. Genauer Zeitpunkt kann aktuell nicht dargestellt werden. Aus diesem Grund Bauphase im Arbeitsprogramm ggfs. auf mehrere Quartale ausgedehnt.",{"$f":"VLOOKUP($A196,'[1]komplett mit Formeln'!$A:$AJ,19,0)","v":"in Bauvorbereitung"},"2",{"$f":"SUM(SUMPRODUCT((ISNUMBER(SEARCH(\"x\",T196)))*4),(SUMPRODUCT((ISNUMBER(SEARCH(\"x\",U196:Z196)))*3)),(SUMPRODUCT((ISNUMBER(SEARCH(\"x\",AA196:AC196)))*2)),(SUMPRODUCT((ISNUMBER(SEARCH(\"x\",AD196:AG196)))*1)))","v":10},null,"x","x",null,null,null,null,"x",null,"x",null,null,null,null,".",".",".","x","."]
[1288,"nein","Hüttemannstraße - Quartier 1 Innenstadt-West - Deckensanierung von Hausnr. 1 bis 53.","INN-West","Straße ","6 Straßenoffensive","V","V","B","B","B","S","E","38453-25","Deckensanierung im Rahmen der Straßenoffensive 2026/2027.","Umsetzung abhängig u.a. von Witterung und Kapazitäten des Auftragnehmers. Genauer Zeitpunkt kann aktuell nicht dargestellt werden. Aus diesem Grund Bauphase im Arbeitsprogramm ggfs. auf mehrere Quartale ausgedehnt.",{"$f":"VLOOKUP($A197,'[1]komplett mit Formeln'!$A:$AJ,19,0)","v":"in Bauvorbereitung"},"2",{"$f":"SUM(SUMPRODUCT((ISNUMBER(SEARCH(\"x\",T197)))*4),(SUMPRODUCT((ISNUMBER(SEARCH(\"x\",U197:Z197)))*3)),(SUMPRODUCT((ISNUMBER(SEARCH(\"x\",AA197:AC197)))*2)),(SUMPRODUCT((ISNUMBER(SEARCH(\"x\",AD197:AG197)))*1)))","v":10},null,"x","x",null,null,null,null,"x",null,"x",null,null,null,null,".",".",".","x","."]
[1289,"nein","Johannesstraße - Quartier 1 Innenstadt-West - Deckensanierung von Hausnr. 6 bis Ende","INN-West","Straße ","6 Straßenoffensive","V","V","B","B","B","S","E","38453-25","Deckensanierung im Rahmen der Straßenoffensive 2026/2027.","Umsetzung abhängig u.a. von Witterung und Kapazitäten des Auftragnehmers. Genauer Zeitpunkt kann aktuell nicht dargestellt werden. Aus diesem Grund Bauphase im Arbeitsprogramm ggfs. auf mehrere Quartale ausgedehnt.",{"$f":"VLOOKUP($A198,'[1]komplett mit Formeln'!$A:$AJ,19,0)","v":"in Bauvorbereitung"},"2",{"$f":"SUM(SUMPRODUCT((ISNUMBER(SEARCH(\"x\",T198)))*4),(SUMPRODUCT((ISNUMBER(SEARCH(\"x\",U198:Z198)))*3)),(SUMPRODUCT((ISNUMBER(SEARCH(\"x\",AA198:AC198)))*2)),(SUMPRODUCT((ISNUMBER(SEARCH(\"x\",AD198:AG198)))*1)))","v":10},null,"x","x",null,null,null,null,"x",null,"x",null,null,null,null,".",".",".","x","."]
[1290,"nein","Josephstraße - Quartier 1 Innenstadt-West - Deckensanierung","INN-West","Straße ","6 Straßenoffensive","V","V","B","B","B","S","E","38453-25","Deckensanierung im Rahmen der Straßenoffensive 2026/2027.","Umsetzung abhängig u.a. von Witterung und Kapazitäten des Auftragnehmers. Genauer Zeitpunkt kann aktuell nicht dargestellt werden. Aus diesem Grund Bauphase im Arbeitsprogramm ggfs. auf mehrere Quartale ausgedehnt.",{"$f":"VLOOKUP($A199,'[1]komplett mit Formeln'!$A:$AJ,19,0)","v":"in Bauvorbereitung"},"2",{"$f":"SUM(SUMPRODUCT((ISNUMBER(SEARCH(\"x\",T199)))*4),(SUMPRODUCT((ISNUMBER(SEARCH(\"x\",U199:Z199)))*3)),(SUMPRODUCT((ISNUMBER(SEARCH(\"x\",AA199:AC199)))*2)),(SUMPRODUCT((ISNUMBER(SEARCH(\"x\",AD199:AG199)))*1)))","v":10},null,"x","x",null,null,null,null,"x",null,"x",null,null,null,null,".",".",".","x","."]
[1291,"nein","Poststraße - Quartier 1 Innenstadt-West - Deckensanierung von Hohe Straße bis Luisenstraße","INN-West","Straße ","6 Straßenoffensive","V","V","B","B","B","S","E","38453-25","Deckensanierung im Rahmen der Straßenoffensive 2026/2027.","Umsetzung abhängig u.a. von Witterung und Kapazitäten des Auftragnehmers. Genauer Zeitpunkt kann aktuell nicht dargestellt werden. Aus diesem Grund Bauphase im Arbeitsprogramm ggfs. auf mehrere Quartale ausgedehnt.",{"$f":"VLOOKUP($A200,'[1]komplett mit Formeln'!$A:$AJ,19,0)","v":"in Bauvorbereitung"},"2",{"$f":"SUM(SUMPRODUCT((ISNUMBER(SEARCH(\"x\",T200)))*4),(SUMPRODUCT((ISNUMBER(SEARCH(\"x\",U200:Z200)))*3)),(SUMPRODUCT((ISNUMBER(SEARCH(\"x\",AA200:AC200)))*2)),(SUMPRODUCT((ISNUMBER(SEARCH(\"x\",AD200:AG200)))*1)))","v":10},null,"x","x",null,null,null,null,"x",null,"x",null,null,null,null,".",".",".","x","."]
[1292,"nein","Wilhelmstraße - Quartier 1 Innenstadt-West - Deckensanierung","INN-West","Straße ","6 Straßenoffensive","V","V","B","B","B","S","E","38453-25","Deckensanierung im Rahmen der Straßenoffensive 2026/2027.","Umsetzung abhängig u.a. von Witterung und Kapazitäten des Auftragnehmers. Genauer Zeitpunkt kann aktuell nicht dargestellt werden. Aus diesem Grund Bauphase im Arbeitsprogramm ggfs. auf mehrere Quartale ausgedehnt.",{"$f":"VLOOKUP($A201,'[1]komplett mit Formeln'!$A:$AJ,19,0)","v":"in Bauvorbereitung"},"2",{"$f":"SUM(SUMPRODUCT((ISNUMBER(SEARCH(\"x\",T201)))*4),(SUMPRODUCT((ISNUMBER(SEARCH(\"x\",U201:Z201)))*3)),(SUMPRODUCT((ISNUMBER(SEARCH(\"x\",AA201:AC201)))*2)),(SUMPRODUCT((ISNUMBER(SEARCH(\"x\",AD201:AG201)))*1)))","v":10},null,"x","x",null,null,null,null,"x",null,"x",null,null,null,null,".",".",".","x","."]
[1293,"nein","Werner Straße - Deckensanierung von Provinzialstraße bis Lütgendortmunder Straße","Lütgendortmund","Straße ","6 Straßenoffensive","V","V","B","B","B","S","E","38453-25","Deckensanierung im Rahmen der Straßenoffensive 2026/2027.","Umsetzung abhängig u.a. von Witterung und Kapazitäten des Auftragnehmers. Genauer Zeitpunkt kann aktuell nicht dargestellt werden. Aus diesem Grund Bauphase im Arbeitsprogramm ggfs. auf mehrere Quartale ausgedehnt.",{"$f":"VLOOKUP($A202,'[1]komplett mit Formeln'!$A:$AJ,19,0)","v":"in Bauvorbereitung"},"2",{"$f":"SUM(SUMPRODUCT((ISNUMBER(SEARCH(\"x\",T202)))*4),(SUMPRODUCT((ISNUMBER(SEARCH(\"x\",U202:Z202)))*3)),(SUMPRODUCT((ISNUMBER(SEARCH(\"x\",AA202:AC202)))*2)),(SUMPRODUCT((ISNUMBER(SEARCH(\"x\",AD202:AG202)))*1)))","v":10},null,"x","x",null,null,null,null,"x",null,"x",null,null,null,null,".",".",".","x","."]
[1294,"nein","Alter Hellweg - Deckensanierung von Borussiastraße bis Overhoffstraße","Lütgendortmund","Straße ","6 Straßenoffensive","V","V","B","B","B","S","E","38453-25","Deckensanierung im Rahmen der Straßenoffensive 2026/2027.","Umsetzung abhängig u.a. von Witterung und Kapazitäten des Auftragnehmers. Genauer Zeitpunkt kann aktuell nicht dargestellt werden. Aus diesem Grund Bauphase im Arbeitsprogramm ggfs. auf mehrere Quartale ausgedehnt.",{"$f":"VLOOKUP($A203,'[1]komplett mit Formeln'!$A:$AJ,19,0)","v":"in Bauvorbereitung"},"2",{"$f":"SUM(SUMPRODUCT((ISNUMBER(SEARCH(\"x\",T203)))*4),(SUMPRODUCT((ISNUMBER(SEARCH(\"x\",U203:Z203)))*3)),(SUMPRODUCT((ISNUMBER(SEARCH(\"x\",AA203:AC203)))*2)),(SUMPRODUCT((ISNUMBER(SEARCH(\"x\",AD203:AG203)))*1)))","v":10},null,"x","x",null,null,null,null,"x",null,"x",null,null,null,null,".",".",".","x","."]
[1295,"nein","Haardtstraße - Quartier 1 Lütgendortmund - Deckensanierung","Lütgendortmund","Straße ","6 Straßenoffensive","V","V","B","B","B","S","E","38453-25","Deckensanierung im Rahmen der Straßenoffensive 2026/2027.","Umsetzung abhängig u.a. von Witterung und Kapazitäten des Auftragnehmers. Genauer Zeitpunkt kann aktuell nicht dargestellt werden. Aus diesem Grund Bauphase im Arbeitsprogramm ggfs. auf mehrere Quartale ausgedehnt.",{"$f":"VLOOKUP($A204,'[1]komplett mit Formeln'!$A:$AJ,19,0)","v":"in Bauvorbereitung"},"2",{"$f":"SUM(SUMPRODUCT((ISNUMBER(SEARCH(\"x\",T204)))*4),(SUMPRODUCT((ISNUMBER(SEARCH(\"x\",U204:Z204)))*3)),(SUMPRODUCT((ISNUMBER(SEARCH(\"x\",AA204:AC204)))*2)),(SUMPRODUCT((ISNUMBER(SEARCH(\"x\",AD204:AG204)))*1)))","v":10},null,"x","x",null,null,null,null,"x",null,"x",null,null,null,null,".",".",".","x","."]
[1296,"nein","Büllestraße - Quartier 1 Lütgendortmund - Deckensanierung","Lütgendortmund","Straße ","6 Straßenoffensive","V","V","B","B","B","S","E","38453-25","Deckensanierung im Rahmen der Straßenoffensive 2026/2027.","Umsetzung abhängig u.a. von Witterung und Kapazitäten des Auftragnehmers. Genauer Zeitpunkt kann aktuell nicht dargestellt werden. Aus diesem Grund Bauphase im Arbeitsprogramm ggfs. auf mehrere Quartale ausgedehnt.",{"$f":"VLOOKUP($A205,'[1]komplett mit Formeln'!$A:$AJ,19,0)","v":"in Bauvorbereitung"},"2",{"$f":"SUM(SUMPRODUCT((ISNUMBER(SEARCH(\"x\",T205)))*4),(SUMPRODUCT((ISNUMBER(SEARCH(\"x\",U205:Z205)))*3)),(SUMPRODUCT((ISNUMBER(SEARCH(\"x\",AA205:AC205)))*2)),(SUMPRODUCT((ISNUMBER(SEARCH(\"x\",AD205:AG205)))*1)))","v":10},null,"x","x",null,null,null,null,"x",null,"x",null,null,null,null,".",".",".","x","."]
[1297,"nein","Lina-Schäfer-Straße - Quartier 1 Lütgendortmund - Deckensanierung","Lütgendortmund","Straße ","6 Straßenoffensive","V","V","B","B","B","S","E","38453-25","Deckensanierung im Rahmen der Straßenoffensive 2026/2027.","Umsetzung abhängig u.a. von Witterung und Kapazitäten des Auftragnehmers. Genauer Zeitpunkt kann aktuell nicht dargestellt werden. Aus diesem Grund Bauphase im Arbeitsprogramm ggfs. auf mehrere Quartale ausgedehnt.",{"$f":"VLOOKUP($A206,'[1]komplett mit Formeln'!$A:$AJ,19,0)","v":"in Bauvorbereitung"},"2",{"$f":"SUM(SUMPRODUCT((ISNUMBER(SEARCH(\"x\",T206)))*4),(SUMPRODUCT((ISNUMBER(SEARCH(\"x\",U206:Z206)))*3)),(SUMPRODUCT((ISNUMBER(SEARCH(\"x\",AA206:AC206)))*2)),(SUMPRODUCT((ISNUMBER(SEARCH(\"x\",AD206:AG206)))*1)))","v":10},null,"x","x",null,null,null,null,"x",null,"x",null,null,null,null,".",".",".","x","."]
[1298,"nein","Gundlachstraße - Quartier 1 Lütgendortmund - Deckensanierung","Lütgendortmund","Straße ","6 Straßenoffensive","V","V","B","B","B","S","E","38453-25","Deckensanierung im Rahmen der Straßenoffensive 2026/2027.","Umsetzung abhängig u.a. von Witterung und Kapazitäten des Auftragnehmers. Genauer Zeitpunkt kann aktuell nicht dargestellt werden. Aus diesem Grund Bauphase im Arbeitsprogramm ggfs. auf mehrere Quartale ausgedehnt.",{"$f":"VLOOKUP($A207,'[1]komplett mit Formeln'!$A:$AJ,19,0)","v":"in Bauvorbereitung"},"2",{"$f":"SUM(SUMPRODUCT((ISNUMBER(SEARCH(\"x\",T207)))*4),(SUMPRODUCT((ISNUMBER(SEARCH(\"x\",U207:Z207)))*3)),(SUMPRODUCT((ISNUMBER(SEARCH(\"x\",AA207:AC207)))*2)),(SUMPRODUCT((ISNUMBER(SEARCH(\"x\",AD207:AG207)))*1)))","v":10},null,"x","x",null,null,null,null,"x",null,"x",null,null,null,null,".",".",".","x","."]
[1299,"nein","Strünkedestraße - Deckensanierung von Hausnr. 201 bis 287","Mengede","Straße ","6 Straßenoffensive","V","V","B","B","B","S","E","38453-25","Deckensanierung im Rahmen der Straßenoffensive 2026/2027.","Umsetzung abhängig u.a. von Witterung und Kapazitäten des Auftragnehmers. Genauer Zeitpunkt kann aktuell nicht dargestellt werden. Aus diesem Grund Bauphase im Arbeitsprogramm ggfs. auf mehrere Quartale ausgedehnt.",{"$f":"VLOOKUP($A208,'[1]komplett mit Formeln'!$A:$AJ,19,0)","v":"in Bauvorbereitung"},{"$f":"IF(S208=0,\"keine\",IF(AND(S208>0,S208<6),\"3\",IF(AND(S208>5,S208<11),\"2\",\"1\")))","v":"2"},{"$f":"SUM(SUMPRODUCT((ISNUMBER(SEARCH(\"x\",T208)))*4),(SUMPRODUCT((ISNUMBER(SEARCH(\"x\",U208:Z208)))*3)),(SUMPRODUCT((ISNUMBER(SEARCH(\"x\",AA208:AC208)))*2)),(SUMPRODUCT((ISNUMBER(SEARCH(\"x\",AD208:AG208)))*1)))","v":10},null,"x","x",null,null,null,null,"x",null,"x",null,null,null,null,".",".",".","x","."]
[1300,"nein","Eugen-Richter-Straße - Deckensanierung von Hausnr. 201 bis 287","Mengede","Straße ","6 Straßenoffensive","V","V","B","B","B","S","E","38453-25","Deckensanierung im Rahmen der Straßenoffensive 2026/2027.","Umsetzung abhängig u.a. von Witterung und Kapazitäten des Auftragnehmers. Genauer Zeitpunkt kann aktuell nicht dargestellt werden. Aus diesem Grund Bauphase im Arbeitsprogramm ggfs. auf mehrere Quartale ausgedehnt.",{"$f":"VLOOKUP($A209,'[1]komplett mit Formeln'!$A:$AJ,19,0)","v":"in Bauvorbereitung"},"2",{"$f":"SUM(SUMPRODUCT((ISNUMBER(SEARCH(\"x\",T209)))*4),(SUMPRODUCT((ISNUMBER(SEARCH(\"x\",U209:Z209)))*3)),(SUMPRODUCT((ISNUMBER(SEARCH(\"x\",AA209:AC209)))*2)),(SUMPRODUCT((ISNUMBER(SEARCH(\"x\",AD209:AG209)))*1)))","v":10},null,"x","x",null,null,null,null,"x",null,"x",null,null,null,null,".",".",".","x","."]
[1301,"nein","Elberskamp - Quartier 2 Mengede - Deckensanierung","Mengede","Straße ","6 Straßenoffensive","V","V","B","B","B","S","E","38453-25","Deckensanierung im Rahmen der Straßenoffensive 2026/2027.","Umsetzung abhängig u.a. von Witterung und Kapazitäten des Auftragnehmers. Genauer Zeitpunkt kann aktuell nicht dargestellt werden. Aus diesem Grund Bauphase im Arbeitsprogramm ggfs. auf mehrere Quartale ausgedehnt.",{"$f":"VLOOKUP($A210,'[1]komplett mit Formeln'!$A:$AJ,19,0)","v":"in Bauvorbereitung"},"2",{"$f":"SUM(SUMPRODUCT((ISNUMBER(SEARCH(\"x\",T210)))*4),(SUMPRODUCT((ISNUMBER(SEARCH(\"x\",U210:Z210)))*3)),(SUMPRODUCT((ISNUMBER(SEARCH(\"x\",AA210:AC210)))*2)),(SUMPRODUCT((ISNUMBER(SEARCH(\"x\",AD210:AG210)))*1)))","v":10},null,"x","x",null,null,null,null,"x",null,"x",null,null,null,null,".",".",".","x","."]
[1302,"nein","Göllenkamp - Quartier 2 Mengede - Deckensanierung von Hausnr. 1 bis 33","Mengede","Straße ","6 Straßenoffensive","V","V","B","B","B","S","E","38453-25","Deckensanierung im Rahmen der Straßenoffensive 2026/2027.","Umsetzung abhängig u.a. von Witterung und Kapazitäten des Auftragnehmers. Genauer Zeitpunkt kann aktuell nicht dargestellt werden. Aus diesem Grund Bauphase im Arbeitsprogramm ggfs. auf mehrere Quartale ausgedehnt.",{"$f":"VLOOKUP($A211,'[1]komplett mit Formeln'!$A:$AJ,19,0)","v":"in Bauvorbereitung"},"2",{"$f":"SUM(SUMPRODUCT((ISNUMBER(SEARCH(\"x\",T211)))*4),(SUMPRODUCT((ISNUMBER(SEARCH(\"x\",U211:Z211)))*3)),(SUMPRODUCT((ISNUMBER(SEARCH(\"x\",AA211:AC211)))*2)),(SUMPRODUCT((ISNUMBER(SEARCH(\"x\",AD211:AG211)))*1)))","v":10},null,"x","x",null,null,null,null,"x",null,"x",null,null,null,null,".",".",".","x","."]
[1303,"nein","Richterstraße - Quartier 2 Mengede - Deckensanierung von Hausnr. 18 bis 24.","Mengede","Straße ","6 Straßenoffensive","V","V","B","B","B","S","E","38453-25","Deckensanierung im Rahmen der Straßenoffensive 2026/2027.","Umsetzung abhängig u.a. von Witterung und Kapazitäten des Auftragnehmers. Genauer Zeitpunkt kann aktuell nicht dargestellt werden. Aus diesem Grund Bauphase im Arbeitsprogramm ggfs. auf mehrere Quartale ausgedehnt.",{"$f":"VLOOKUP($A212,'[1]komplett mit Formeln'!$A:$AJ,19,0)","v":"in Bauvorbereitung"},"2",{"$f":"SUM(SUMPRODUCT((ISNUMBER(SEARCH(\"x\",T212)))*4),(SUMPRODUCT((ISNUMBER(SEARCH(\"x\",U212:Z212)))*3)),(SUMPRODUCT((ISNUMBER(SEARCH(\"x\",AA212:AC212)))*2)),(SUMPRODUCT((ISNUMBER(SEARCH(\"x\",AD212:AG212)))*1)))","v":10},null,"x","x",null,null,null,null,"x",null,"x",null,null,null,null,".",".",".","x","."]
[1304,"nein","Raulfskamp - Quartier 2 Mengede - Deckensanierung","Mengede","Straße ","6 Straßenoffensive","V","V","B","B","B","S","E","38453-25","Deckensanierung im Rahmen der Straßenoffensive 2026/2027.","Umsetzung abhängig u.a. von Witterung und Kapazitäten des Auftragnehmers. Genauer Zeitpunkt kann aktuell nicht dargestellt werden. Aus diesem Grund Bauphase im Arbeitsprogramm ggfs. auf mehrere Quartale ausgedehnt.",{"$f":"VLOOKUP($A213,'[1]komplett mit Formeln'!$A:$AJ,19,0)","v":"in Bauvorbereitung"},"2",{"$f":"SUM(SUMPRODUCT((ISNUMBER(SEARCH(\"x\",T213)))*4),(SUMPRODUCT((ISNUMBER(SEARCH(\"x\",U213:Z213)))*3)),(SUMPRODUCT((ISNUMBER(SEARCH(\"x\",AA213:AC213)))*2)),(SUMPRODUCT((ISNUMBER(SEARCH(\"x\",AD213:AG213)))*1)))","v":10},null,"x","x",null,null,null,null,"x",null,"x",null,null,null,null,".",".",".","x","."]
[1305,"nein","Deininghauser Straße - Quartier 2 Mengede - Deckensanierung von Wendeschleife bis Richterstraße","Mengede","Straße ","6 Straßenoffensive","V","V","B","B","B","S","E","38453-25","Deckensanierung im Rahmen der Straßenoffensive 2026/2027.","Umsetzung abhängig u.a. von Witterung und Kapazitäten des Auftragnehmers. Genauer Zeitpunkt kann aktuell nicht dargestellt werden. Aus diesem Grund Bauphase im Arbeitsprogramm ggfs. auf mehrere Quartale ausgedehnt.",{"$f":"VLOOKUP($A214,'[1]komplett mit Formeln'!$A:$AJ,19,0)","v":"in Bauvorbereitung"},"2",{"$f":"SUM(SUMPRODUCT((ISNUMBER(SEARCH(\"x\",T214)))*4),(SUMPRODUCT((ISNUMBER(SEARCH(\"x\",U214:Z214)))*3)),(SUMPRODUCT((ISNUMBER(SEARCH(\"x\",AA214:AC214)))*2)),(SUMPRODUCT((ISNUMBER(SEARCH(\"x\",AD214:AG214)))*1)))","v":10},null,"x","x",null,null,null,null,"x",null,"x",null,null,null,null,".",".",".","x","."]
[1306,"nein","Stilkingweg - Quartier 2 Mengede - Deckensanierung","Mengede","Straße ","6 Straßenoffensive","V","V","B","B","B","S","E","38453-25","Deckensanierung im Rahmen der Straßenoffensive 2026/2027.","Umsetzung abhängig u.a. von Witterung und Kapazitäten des Auftragnehmers. Genauer Zeitpunkt kann aktuell nicht dargestellt werden. Aus diesem Grund Bauphase im Arbeitsprogramm ggfs. auf mehrere Quartale ausgedehnt.",{"$f":"VLOOKUP($A215,'[1]komplett mit Formeln'!$A:$AJ,19,0)","v":"in Bauvorbereitung"},"2",{"$f":"SUM(SUMPRODUCT((ISNUMBER(SEARCH(\"x\",T215)))*4),(SUMPRODUCT((ISNUMBER(SEARCH(\"x\",U215:Z215)))*3)),(SUMPRODUCT((ISNUMBER(SEARCH(\"x\",AA215:AC215)))*2)),(SUMPRODUCT((ISNUMBER(SEARCH(\"x\",AD215:AG215)))*1)))","v":10},null,"x","x",null,null,null,null,"x",null,"x",null,null,null,null,".",".",".","x","."]
[1307,"nein","Merkurstraße - Deckensanierung von Kippstraße bis Lanstroper Straße","Scharnhorst","Straße ","6 Straßenoffensive","V","V","B","B","B","S","E","38453-25","Deckensanierung im Rahmen der Straßenoffensive 2026/2027.","Umsetzung abhängig u.a. von Witterung und Kapazitäten des Auftragnehmers. Genauer Zeitpunkt kann aktuell nicht dargestellt werden. Aus diesem Grund Bauphase im Arbeitsprogramm ggfs. auf mehrere Quartale ausgedehnt.",{"$f":"VLOOKUP($A216,'[1]komplett mit Formeln'!$A:$AJ,19,0)","v":"in Bauvorbereitung"},"2",{"$f":"SUM(SUMPRODUCT((ISNUMBER(SEARCH(\"x\",T216)))*4),(SUMPRODUCT((ISNUMBER(SEARCH(\"x\",U216:Z216)))*3)),(SUMPRODUCT((ISNUMBER(SEARCH(\"x\",AA216:AC216)))*2)),(SUMPRODUCT((ISNUMBER(SEARCH(\"x\",AD216:AG216)))*1)))","v":10},null,"x","x",null,null,null,null,"x",null,"x",null,null,null,null,".",".",".","x","."]
[1308,"nein","Bremsstraße - Quartier 1 Scharnhorst - Deckensanierung von Hausnr. 1 bis 50.","Scharnhorst","Straße ","6 Straßenoffensive","V","V","B","B","B","S","E","38453-25","Deckensanierung im Rahmen der Straßenoffensive 2026/2027.","Umsetzung abhängig u.a. von Witterung und Kapazitäten des Auftragnehmers. Genauer Zeitpunkt kann aktuell nicht dargestellt werden. Aus diesem Grund Bauphase im Arbeitsprogramm ggfs. auf mehrere Quartale ausgedehnt.",{"$f":"VLOOKUP($A217,'[1]komplett mit Formeln'!$A:$AJ,19,0)","v":"in Bauvorbereitung"},"2",{"$f":"SUM(SUMPRODUCT((ISNUMBER(SEARCH(\"x\",T217)))*4),(SUMPRODUCT((ISNUMBER(SEARCH(\"x\",U217:Z217)))*3)),(SUMPRODUCT((ISNUMBER(SEARCH(\"x\",AA217:AC217)))*2)),(SUMPRODUCT((ISNUMBER(SEARCH(\"x\",AD217:AG217)))*1)))","v":10},null,"x","x",null,null,null,null,"x",null,"x",null,null,null,null,".",".",".","x","."]
[1309,"nein","Büttnerstraße - Quartier 1 Scharnhorst - Deckensanierung von Hausnr. 43 bis 46.","Scharnhorst","Straße ","6 Straßenoffensive","V","V","B","B","B","S","E","38453-25","Deckensanierung im Rahmen der Straßenoffensive 2026/2027.","Umsetzung abhängig u.a. von Witterung und Kapazitäten des Auftragnehmers. Genauer Zeitpunkt kann aktuell nicht dargestellt werden. Aus diesem Grund Bauphase im Arbeitsprogramm ggfs. auf mehrere Quartale ausgedehnt.",{"$f":"VLOOKUP($A218,'[1]komplett mit Formeln'!$A:$AJ,19,0)","v":"in Bauvorbereitung"},"2",{"$f":"SUM(SUMPRODUCT((ISNUMBER(SEARCH(\"x\",T218)))*4),(SUMPRODUCT((ISNUMBER(SEARCH(\"x\",U218:Z218)))*3)),(SUMPRODUCT((ISNUMBER(SEARCH(\"x\",AA218:AC218)))*2)),(SUMPRODUCT((ISNUMBER(SEARCH(\"x\",AD218:AG218)))*1)))","v":10},null,"x","x",null,null,null,null,"x",null,"x",null,null,null,null,".",".",".","x","."]
[1310,"nein","Gürtlerstraße - Quartier 1 Scharnhorst - Deckensanierung von Hausnr. 1 bis 24.","Scharnhorst","Straße ","6 Straßenoffensive","V","V","B","B","B","S","E","38453-25","Deckensanierung im Rahmen der Straßenoffensive 2026/2027.","Umsetzung abhängig u.a. von Witterung und Kapazitäten des Auftragnehmers. Genauer Zeitpunkt kann aktuell nicht dargestellt werden. Aus diesem Grund Bauphase im Arbeitsprogramm ggfs. auf mehrere Quartale ausgedehnt.",{"$f":"VLOOKUP($A219,'[1]komplett mit Formeln'!$A:$AJ,19,0)","v":"in Bauvorbereitung"},"2",{"$f":"SUM(SUMPRODUCT((ISNUMBER(SEARCH(\"x\",T219)))*4),(SUMPRODUCT((ISNUMBER(SEARCH(\"x\",U219:Z219)))*3)),(SUMPRODUCT((ISNUMBER(SEARCH(\"x\",AA219:AC219)))*2)),(SUMPRODUCT((ISNUMBER(SEARCH(\"x\",AD219:AG219)))*1)))","v":10},null,"x","x",null,null,null,null,"x",null,"x",null,null,null,null,".",".",".","x","."]
[1311,"nein","Hafnerstraße - Quartier 1 Scharnhorst - Deckensanierung von Hausnr. 1 bis 17.","Scharnhorst","Straße ","6 Straßenoffensive","V","V","B","B","B","S","E","38453-25","Deckensanierung im Rahmen der Straßenoffensive 2026/2027.","Umsetzung abhängig u.a. von Witterung und Kapazitäten des Auftragnehmers. Genauer Zeitpunkt kann aktuell nicht dargestellt werden. Aus diesem Grund Bauphase im Arbeitsprogramm ggfs. auf mehrere Quartale ausgedehnt.",{"$f":"VLOOKUP($A220,'[1]komplett mit Formeln'!$A:$AJ,19,0)","v":"in Bauvorbereitung"},"2",{"$f":"SUM(SUMPRODUCT((ISNUMBER(SEARCH(\"x\",T220)))*4),(SUMPRODUCT((ISNUMBER(SEARCH(\"x\",U220:Z220)))*3)),(SUMPRODUCT((ISNUMBER(SEARCH(\"x\",AA220:AC220)))*2)),(SUMPRODUCT((ISNUMBER(SEARCH(\"x\",AD220:AG220)))*1)))","v":10},null,"x","x",null,null,null,null,"x",null,"x",null,null,null,null,".",".",".","x","."]
[1312,"nein","Spornerweg - Quartier 1 Scharnhorst - Deckensanierung von Hausnr. 1 bis 8.","Scharnhorst","Straße ","6 Straßenoffensive","V","V","B","B","B","S","E","38453-25","Deckensanierung im Rahmen der Straßenoffensive 2026/2027.","Umsetzung abhängig u.a. von Witterung und Kapazitäten des Auftragnehmers. Genauer Zeitpunkt kann aktuell nicht dargestellt werden. Aus diesem Grund Bauphase im Arbeitsprogramm ggfs. auf mehrere Quartale ausgedehnt.",{"$f":"VLOOKUP($A221,'[1]komplett mit Formeln'!$A:$AJ,19,0)","v":"in Bauvorbereitung"},"2",{"$f":"SUM(SUMPRODUCT((ISNUMBER(SEARCH(\"x\",T221)))*4),(SUMPRODUCT((ISNUMBER(SEARCH(\"x\",U221:Z221)))*3)),(SUMPRODUCT((ISNUMBER(SEARCH(\"x\",AA221:AC221)))*2)),(SUMPRODUCT((ISNUMBER(SEARCH(\"x\",AD221:AG221)))*1)))","v":10},null,"x","x",null,null,null,null,"x",null,"x",null,null,null,null,".",".",".","x","."]
[1313,"nein","Wasserfuhr - Quartier 1 Scharnhorst - Deckensanierung von Hausnr. 1 bis 74.","Scharnhorst","Straße ","6 Straßenoffensive","V","V","B","B","B","S","E","38453-25","Deckensanierung im Rahmen der Straßenoffensive 2026/2027.","Umsetzung abhängig u.a. von Witterung und Kapazitäten des Auftragnehmers. Genauer Zeitpunkt kann aktuell nicht dargestellt werden. Aus diesem Grund Bauphase im Arbeitsprogramm ggfs. auf mehrere Quartale ausgedehnt.",{"$f":"VLOOKUP($A222,'[1]komplett mit Formeln'!$A:$AJ,19,0)","v":"in Bauvorbereitung"},"2",{"$f":"SUM(SUMPRODUCT((ISNUMBER(SEARCH(\"x\",T222)))*4),(SUMPRODUCT((ISNUMBER(SEARCH(\"x\",U222:Z222)))*3)),(SUMPRODUCT((ISNUMBER(SEARCH(\"x\",AA222:AC222)))*2)),(SUMPRODUCT((ISNUMBER(SEARCH(\"x\",AD222:AG222)))*1)))","v":10},null,"x","x",null,null,null,null,"x",null,"x",null,null,null,null,".",".",".","x","."]
[940,"nein","LSA 0189 Wittbräucker Straße / Schüruferstraße / Aplerbecker Marktplatz / Strickerstraße","Aplerbeck","LSA","1a Einzelmaßnahme Verkehrstechnik investiv","V","V","B","S","S","S","E","33860-24","Erneuerung der LSA 0189 Wittbräucker Straße / Schüruferstraße / Aplerbecker Marktplatz / Strickerstraße und Einbau aktueller sehbehindertengerechter Ausstattung (Blindensignale / Blindentaster).",null,"in Bauvorbereitung","2",{"$f":"SUM(SUMPRODUCT((ISNUMBER(SEARCH(\"x\",T223)))*4),(SUMPRODUCT((ISNUMBER(SEARCH(\"x\",U223:Z223)))*3)),(SUMPRODUCT((ISNUMBER(SEARCH(\"x\",AA223:AC223)))*2)),(SUMPRODUCT((ISNUMBER(SEARCH(\"x\",AD223:AG223)))*1)))","v":10},null,"x",null,null,null,null,"x","x",null,"x",null,null,null,null,".",".","x",".","."]
[941,"nein","LSA 0401 Rodenbergstraße / Marsbruchstraße","Aplerbeck","LSA","1a Einzelmaßnahme Verkehrstechnik investiv","V","V","B","S","S","S","E","33860-24","Erneuerung der LSA 0401 Rodenbergstraße / Marsbruchstraße und Einbau aktueller sehbehindertengerechter Ausstattung (Blindensignale / Blindentaster).",null,"in Bauvorbereitung","2",{"$f":"SUM(SUMPRODUCT((ISNUMBER(SEARCH(\"x\",T224)))*4),(SUMPRODUCT((ISNUMBER(SEARCH(\"x\",U224:Z224)))*3)),(SUMPRODUCT((ISNUMBER(SEARCH(\"x\",AA224:AC224)))*2)),(SUMPRODUCT((ISNUMBER(SEARCH(\"x\",AD224:AG224)))*1)))","v":10},null,"x",null,null,null,null,"x","x",null,"x",null,null,null,null,".",".","x",".","."]
[943,"nein","LSA 0445 Schüruferstraße / Ringofenstraße","Aplerbeck","LSA","1a Einzelmaßnahme Verkehrstechnik investiv","V","V","B","S","S","S","E","33860-24","Erneuerung der LSA 0445 Schüruferstraße / Ringofenstraße und Einbau aktueller sehbehindertengerechter Ausstattung (Blindensignale / Blindentaster).\n",null,"in Bauvorbereitung","2",{"$f":"SUM(SUMPRODUCT((ISNUMBER(SEARCH(\"x\",T225)))*4),(SUMPRODUCT((ISNUMBER(SEARCH(\"x\",U225:Z225)))*3)),(SUMPRODUCT((ISNUMBER(SEARCH(\"x\",AA225:AC225)))*2)),(SUMPRODUCT((ISNUMBER(SEARCH(\"x\",AD225:AG225)))*1)))","v":10},null,"x",null,null,null,null,"x","x",null,"x",null,null,null,null,".",".","x",".","."]
[961,"nein","LSA 2045 Hacheneyer Straße / Hüttenbruchweg","Hörde","LSA","1a Einzelmaßnahme Verkehrstechnik investiv","V","V","B","S","S","S","E","34966-24","Erneuerung der LSA 2045 Hacheneyer Straße / Hüttenbruchweg und Einbau aktueller sehbehindertengerechter Ausstattung (Blindensignale / Blindentaster).",null,"in Bauvorbereitung","2",{"$f":"SUM(SUMPRODUCT((ISNUMBER(SEARCH(\"x\",T226)))*4),(SUMPRODUCT((ISNUMBER(SEARCH(\"x\",U226:Z226)))*3)),(SUMPRODUCT((ISNUMBER(SEARCH(\"x\",AA226:AC226)))*2)),(SUMPRODUCT((ISNUMBER(SEARCH(\"x\",AD226:AG226)))*1)))","v":10},null,"x",null,null,null,null,"x","x",null,"x",null,null,null,null,".",".","x",".","."]
[914,"nein","LSA 0035 Hohe Straße / Dudenstraße-Gutenbergstraße","Innenstadt-West","LSA","1a Einzelmaßnahme Verkehrstechnik investiv","P","V","B","S","S","S","E","33679-23","Erneuerung der Lichtsignalanlage (LSA 0035 Hohe Straße / Dudenstraße-Gutenbergstraße)",null,"in Bauvorbereitung","2",{"$f":"SUM(SUMPRODUCT((ISNUMBER(SEARCH(\"x\",T227)))*4),(SUMPRODUCT((ISNUMBER(SEARCH(\"x\",U227:Z227)))*3)),(SUMPRODUCT((ISNUMBER(SEARCH(\"x\",AA227:AC227)))*2)),(SUMPRODUCT((ISNUMBER(SEARCH(\"x\",AD227:AG227)))*1)))","v":10},null,"x",null,null,null,null,"x","x",null,"x",null,null,null,null,".",".","x",".","."]
[917,"nein","LSA 0482 Hohe Straße / Beurhausstraße","Innenstadt-West","LSA","1a Einzelmaßnahme Verkehrstechnik investiv","P","V","B","S","S","S","E","33679-23","Erneuerung der Lichtsignalanlage (LSA 0482 Hohe Straße / Beurhausstraße)",null,"in Bauvorbereitung","2",{"$f":"SUM(SUMPRODUCT((ISNUMBER(SEARCH(\"x\",T228)))*4),(SUMPRODUCT((ISNUMBER(SEARCH(\"x\",U228:Z228)))*3)),(SUMPRODUCT((ISNUMBER(SEARCH(\"x\",AA228:AC228)))*2)),(SUMPRODUCT((ISNUMBER(SEARCH(\"x\",AD228:AG228)))*1)))","v":10},null,"x",null,null,null,null,"x","x",null,"x",null,null,null,null,".",".","x",".","."]
[923,"nein","LSA 0446 Rodenbergstraße / Ringofenstraße","Aplerbeck","LSA","1a Einzelmaßnahme Verkehrstechnik investiv","V","V","B","S","S","S","E","33920-24","Erneuerung der Lichtsignalanlage (LSA 0446 Rodenbergstraße / Ringofenstraße)",null,"in Bauvorbereitung","2",{"$f":"SUM(SUMPRODUCT((ISNUMBER(SEARCH(\"x\",T229)))*4),(SUMPRODUCT((ISNUMBER(SEARCH(\"x\",U229:Z229)))*3)),(SUMPRODUCT((ISNUMBER(SEARCH(\"x\",AA229:AC229)))*2)),(SUMPRODUCT((ISNUMBER(SEARCH(\"x\",AD229:AG229)))*1)))","v":10},null,"x",null,null,null,null,"x","x",null,"x",null,null,null,null,".",".","x",".","."]
[924,"nein","LSA 0447 Rodenbergstraße / Rodenberg-Center","Aplerbeck","LSA","1a Einzelmaßnahme Verkehrstechnik investiv","V","V","B","S","S","S","E","33920-24","Erneuerung der Lichtsignalanlage (LSA 0447 Rodenbergstraße / Rodenberg-Center)",null,"in Bauvorbereitung","2",{"$f":"SUM(SUMPRODUCT((ISNUMBER(SEARCH(\"x\",T230)))*4),(SUMPRODUCT((ISNUMBER(SEARCH(\"x\",U230:Z230)))*3)),(SUMPRODUCT((ISNUMBER(SEARCH(\"x\",AA230:AC230)))*2)),(SUMPRODUCT((ISNUMBER(SEARCH(\"x\",AD230:AG230)))*1)))","v":10},null,"x",null,null,null,null,"x","x",null,"x",null,null,null,null,".",".","x",".","."]
[1155,"nein","LSA 2085  Werner Straße (Lutherschule) / Im II. Westfeld","Lütgendortmund","LSA","1a Einzelmaßnahme Verkehrstechnik investiv","V","V","B","B","S","S","E","38192-25","Erneuerung der Lichtsignalanlage",null,"in Bauvorbereitung","2",{"$f":"SUM(SUMPRODUCT((ISNUMBER(SEARCH(\"x\",T231)))*4),(SUMPRODUCT((ISNUMBER(SEARCH(\"x\",U231:Z231)))*3)),(SUMPRODUCT((ISNUMBER(SEARCH(\"x\",AA231:AC231)))*2)),(SUMPRODUCT((ISNUMBER(SEARCH(\"x\",AD231:AG231)))*1)))","v":10},null,"x",null,null,null,null,"x","x",null,"x",null,null,null,null,".",".","x",".","."]
[1156,"nein","LSA 2148 Bockenfelder Straße 110 / Zeisigweg ","Lütgendortmund","LSA","1a Einzelmaßnahme Verkehrstechnik investiv","V","V","B","B","S","S","E","38192-25","Erneuerung der Lichtsignalanlage",null,"in Bauvorbereitung","2",{"$f":"SUM(SUMPRODUCT((ISNUMBER(SEARCH(\"x\",T232)))*4),(SUMPRODUCT((ISNUMBER(SEARCH(\"x\",U232:Z232)))*3)),(SUMPRODUCT((ISNUMBER(SEARCH(\"x\",AA232:AC232)))*2)),(SUMPRODUCT((ISNUMBER(SEARCH(\"x\",AD232:AG232)))*1)))","v":10},null,"x",null,null,null,null,"x","x",null,"x",null,null,null,null,".",".","x",".","."]
[1157,"nein","LSA 2138 Lütgendortmunder Hellweg / Flaspoete","Lütgendortmund","LSA","1a Einzelmaßnahme Verkehrstechnik investiv","V","V","B","B","S","S","E","38192-25","Erneuerung einer Lichtsignalanlage",null,"in Bauvorbereitung","2",{"$f":"SUM(SUMPRODUCT((ISNUMBER(SEARCH(\"x\",T233)))*4),(SUMPRODUCT((ISNUMBER(SEARCH(\"x\",U233:Z233)))*3)),(SUMPRODUCT((ISNUMBER(SEARCH(\"x\",AA233:AC233)))*2)),(SUMPRODUCT((ISNUMBER(SEARCH(\"x\",AD233:AG233)))*1)))","v":10},null,"x",null,null,null,null,"x","x",null,"x",null,null,null,null,".",".","x",".","."]
[1159,"nein","LSA 2288 (Overgünne/Admiralstraße) ","Hörde","LSA","1a Einzelmaßnahme Verkehrstechnik investiv","V","V","B","B","S","S","E","38191-25","Erneuerung der Lichtsignalanlage ",null,"in Bauvorbereitung","2",{"$f":"SUM(SUMPRODUCT((ISNUMBER(SEARCH(\"x\",T234)))*4),(SUMPRODUCT((ISNUMBER(SEARCH(\"x\",U234:Z234)))*3)),(SUMPRODUCT((ISNUMBER(SEARCH(\"x\",AA234:AC234)))*2)),(SUMPRODUCT((ISNUMBER(SEARCH(\"x\",AD234:AG234)))*1)))","v":10},null,"x",null,null,null,null,"x","x",null,"x",null,null,null,null,".",".","x",".","."]
[349,"nein","Rampe Am Segen","Hombruch","Radverkehr","3a Einzelmaßnahme Radwege investiv","V","V","V","B","B","B","E","25528-22","Bau einer barrierefreien Rampe als Ergänzung zu der vorhandenen Treppenanlage.  Mit der Rampe soll eine barrierefreie Anbindung zwischen dem Bahntrassenweg zwischen \" Am Rombergpark\" über die B54 nach Phoenix-West und dem Geh-/Radweg zwischen dem Rombergpark und der Ardeystraße entstehen. ",null,"in Bauvorbereitung","2",{"$f":"SUM(SUMPRODUCT((ISNUMBER(SEARCH(\"x\",T235)))*4),(SUMPRODUCT((ISNUMBER(SEARCH(\"x\",U235:Z235)))*3)),(SUMPRODUCT((ISNUMBER(SEARCH(\"x\",AA235:AC235)))*2)),(SUMPRODUCT((ISNUMBER(SEARCH(\"x\",AD235:AG235)))*1)))","v":9},null,null,null,null,null,"x",null,"x",null,"x",null,"x","x",null,"x",".","x",".","."]
[592,"nein","U47- Vollständige Barrierefreiheit Stadtbahnhaltestellen, 2. BA- 3 Haltestellen \"Parsevalstraße, Buschstraße, Obernette\"(Huckarde) ","überörtlich","Stadtbahnbau","11 Einzelmaßnahme Stadtbahnbau","P","V","V","B","B","B","B","38972-25","Umsetzung der vollständigen Barrierefreiheit nach dem Personenbeförderungsgesetz.\n2. Bauabschnitt: Haltestellen der Linie V (Parsevalstraße, Buschstraße, Obernette) ",null,"in Bauvorbereitung","2",{"$f":"SUM(SUMPRODUCT((ISNUMBER(SEARCH(\"x\",T236)))*4),(SUMPRODUCT((ISNUMBER(SEARCH(\"x\",U236:Z236)))*3)),(SUMPRODUCT((ISNUMBER(SEARCH(\"x\",AA236:AC236)))*2)),(SUMPRODUCT((ISNUMBER(SEARCH(\"x\",AD236:AG236)))*1)))","v":9},null,null,null,null,null,"x",null,"x",null,"x",null,null,"x","x",".","x","x",".","."]
[99,"nein","OWIIIa/Westfaliastraße - Vollanschluss","überörtlich","Brücke","5a Einzelmaßnahme Brücke","V","V","B","B","B","B","B","36122-24","Bau einer Auf- und Abfahrt am \"halben Knoten\" der OWIIIa als Erdbauwerke.","Vorerst Bau von Brückenunterbauten im Bereich des geplanten ICE-Werkes.","in Bauvorbereitung","2",{"$f":"SUM(SUMPRODUCT((ISNUMBER(SEARCH(\"x\",T237)))*4),(SUMPRODUCT((ISNUMBER(SEARCH(\"x\",U237:Z237)))*3)),(SUMPRODUCT((ISNUMBER(SEARCH(\"x\",AA237:AC237)))*2)),(SUMPRODUCT((ISNUMBER(SEARCH(\"x\",AD237:AG237)))*1)))","v":9},null,null,null,null,null,null,"x","x",null,"x","x",null,"x",null,".","x","x",".","."]
[688,"nein","Veloroute 1 - Eving - Teilstück 1a Leuthardstraße/Krimstraße","Innenstadt-Nord","Radverkehr","10 Einzelmaßnahme Verkehrswendebüro","P","V","V","B","B","B","E","38023-25","Ausbau der Straßen zu Fahrradstraßen; Verbesserung der Querung Mallincrodtstraße und Nordmarkt.",null,"in Bauvorbereitung","2",{"$f":"SUM(SUMPRODUCT((ISNUMBER(SEARCH(\"x\",T238)))*4),(SUMPRODUCT((ISNUMBER(SEARCH(\"x\",U238:Z238)))*3)),(SUMPRODUCT((ISNUMBER(SEARCH(\"x\",AA238:AC238)))*2)),(SUMPRODUCT((ISNUMBER(SEARCH(\"x\",AD238:AG238)))*1)))","v":9},null,null,null,"x",null,null,null,"x",null,"x",null,"x","x",null,".",".",".",".","x"]
[828,"nein","Ewige Teufe (Hom 278 - Stichstraße nördlich Zillestraße) - 2. Ausbaustufe","Hombruch","Straße komplex","12 Sondervermögen","V","V","B","B","B","S","E","36091-24","Herstellung der 2. Ausbaustufe, sowie der Fuß- und Radwege",null,"in Bauvorbereitung","2",{"$f":"SUM(SUMPRODUCT((ISNUMBER(SEARCH(\"x\",T239)))*4),(SUMPRODUCT((ISNUMBER(SEARCH(\"x\",U239:Z239)))*3)),(SUMPRODUCT((ISNUMBER(SEARCH(\"x\",AA239:AC239)))*2)),(SUMPRODUCT((ISNUMBER(SEARCH(\"x\",AD239:AG239)))*1)))","v":9},null,null,null,null,null,null,"x","x",null,"x",null,null,"x","x","x",".",".",".","."]
[412,"nein","An der Palmweide - Fuß+Radweg","Hombruch","Radverkehr","3a Einzelmaßnahme Radwege investiv","P","V","B","B","S","E",null,"39177-25","Erstellung eines Fuß- und Radweges An der Palmweide von der westlichen Seite der S-Bahn Brücke An der Palmweide, parallel zur S-Bahnstrecke in nördliche Richtung bis hinter die Schrebergartenanlage. ","Herstellung durch EG über Kostenübernahmeerklärung.","in Bauvorbereitung","2",{"$f":"SUM(SUMPRODUCT((ISNUMBER(SEARCH(\"x\",T240)))*4),(SUMPRODUCT((ISNUMBER(SEARCH(\"x\",U240:Z240)))*3)),(SUMPRODUCT((ISNUMBER(SEARCH(\"x\",AA240:AC240)))*2)),(SUMPRODUCT((ISNUMBER(SEARCH(\"x\",AD240:AG240)))*1)))","v":9},null,null,null,null,null,null,null,"x","x","x",null,"x","x","x","x",".",".",".","."]
[12,"nein","Obermarkstraße","Aplerbeck","Straße komplex","9 Einzelmaßnahme Straße investiv","V","V","V","V","B","B","B","37141-24","Verkehrsgerechter Ausbau der Obermarkstraße von Höchstener Straße bis Schöner Pfad.",null,"in Bauvorbereitung","2",{"$f":"SUM(SUMPRODUCT((ISNUMBER(SEARCH(\"x\",T241)))*4),(SUMPRODUCT((ISNUMBER(SEARCH(\"x\",U241:Z241)))*3)),(SUMPRODUCT((ISNUMBER(SEARCH(\"x\",AA241:AC241)))*2)),(SUMPRODUCT((ISNUMBER(SEARCH(\"x\",AD241:AG241)))*1)))","v":8},null,"x",null,null,null,null,null,"x",null,"x",null,null,"x",null,"x",".","x",".","."]
[432,"nein","RS1  - Abschnitt 4b von Arneckestraße/Sonnenstraße bis Chemnitzer Straße","Innenstadt-West","Radverkehr","10 Einzelmaßnahme Verkehrswendebüro","V","V","V","B","B","B","B","35563-24","Bau des zweiten Abschnitts des Radschnellweges auf Dortmunder Stadtgebiet. Der Radschnellweg soll von der Sonnenstraße bis zur Ruhrallee fortgeführt werden.",null,"in Bauvorbereitung","2",{"$f":"SUM(SUMPRODUCT((ISNUMBER(SEARCH(\"x\",T242)))*4),(SUMPRODUCT((ISNUMBER(SEARCH(\"x\",U242:Z242)))*3)),(SUMPRODUCT((ISNUMBER(SEARCH(\"x\",AA242:AC242)))*2)),(SUMPRODUCT((ISNUMBER(SEARCH(\"x\",AD242:AG242)))*1)))","v":8},null,null,null,"x",null,null,null,null,null,"x",null,"x","x","x",".",".","x",".","x"]
[746,"nein","Brechtener Heide, Endausbau 3. Bauabschnitt, nur Theodor-Fontane-Straße und Bettina-von-Arnim-Weg, Selma-Lagerlöf-Straße und Teile von Theodor-Storm-Straße und Heinrich-Heine-Straße - Ev 138\r\n(Abschnitt a)","Eving","Straße komplex","12 Sondervermögen","V","V","V","B","B","S","E","31428-23","Endausbau der Straßen im 3. Bauabschnitt.\nAbschnitt 3: Theodor-Fontane-Straße, Bettina-von-Arnim-Weg.",null,"in Bauvorbereitung","2",{"$f":"SUM(SUMPRODUCT((ISNUMBER(SEARCH(\"x\",T243)))*4),(SUMPRODUCT((ISNUMBER(SEARCH(\"x\",U243:Z243)))*3)),(SUMPRODUCT((ISNUMBER(SEARCH(\"x\",AA243:AC243)))*2)),(SUMPRODUCT((ISNUMBER(SEARCH(\"x\",AD243:AG243)))*1)))","v":8},null,null,null,null,null,null,"x","x",null,"x",null,null,"x",null,"x",".",".",".","."]
[973,"nein","Niergartenstraße","Aplerbeck","Straße komplex","9 Einzelmaßnahme Straße investiv","V","V","B","B","B","S","E","36092-24","Erneuerung der Niergartenstraße (Fahrbahn und Gehwege) im Rahmen einer Kanalsanierung","Umsetzung durch EB 70","in Bauvorbereitung","2",{"$f":"SUM(SUMPRODUCT((ISNUMBER(SEARCH(\"x\",T244)))*4),(SUMPRODUCT((ISNUMBER(SEARCH(\"x\",U244:Z244)))*3)),(SUMPRODUCT((ISNUMBER(SEARCH(\"x\",AA244:AC244)))*2)),(SUMPRODUCT((ISNUMBER(SEARCH(\"x\",AD244:AG244)))*1)))","v":8},null,null,null,null,null,null,"x","x",null,"x",null,null,null,"x",".",".",".","x","."]
[643,"nein","Stadterneuerung Westerfilde /Bodelschwingh: Grün verbindet - coole Wege für Westerfilde und Bodelschwingh","Mengede","Besonderheiten","13 Einzelmaßnahme FB 61 - 67","V","V","V","V","B","E",null,"22804-21","Anlage von bis zu 50 Baumscheiben entlang der beiden Straßenzüge \"Mosselde\" und Rohdesdiek\" (Länge ca. 1 km).",null,"in Bauvorbereitung","2",{"$f":"SUM(SUMPRODUCT((ISNUMBER(SEARCH(\"x\",T245)))*4),(SUMPRODUCT((ISNUMBER(SEARCH(\"x\",U245:Z245)))*3)),(SUMPRODUCT((ISNUMBER(SEARCH(\"x\",AA245:AC245)))*2)),(SUMPRODUCT((ISNUMBER(SEARCH(\"x\",AD245:AG245)))*1)))","v":8},null,null,null,null,null,null,null,"x","x","x",null,null,"x","x","x",".",".",".","."]
[333,"nein","Stadterneuerung Westerfilde / Bodelschwingh: Vernetzung Wegeverbindungen und Grünbereiche (Blauer Platz)","Mengede","Straße ","13 Einzelmaßnahme FB 61 - 67","P","V","V","B","B","B","S","23620-22","Pflasterung der Fußwegeverbindungen, die durch den gesamten Stadtteil Westerfilde führen und die einzelnen Wohnbestände miteinander verbinden sollen. ",null,"in Bauvorbereitung","2",{"$f":"SUM(SUMPRODUCT((ISNUMBER(SEARCH(\"x\",T246)))*4),(SUMPRODUCT((ISNUMBER(SEARCH(\"x\",U246:Z246)))*3)),(SUMPRODUCT((ISNUMBER(SEARCH(\"x\",AA246:AC246)))*2)),(SUMPRODUCT((ISNUMBER(SEARCH(\"x\",AD246:AG246)))*1)))","v":8},null,null,null,null,null,null,null,"x","x","x",null,null,"x","x","x",".",".",".","."]
[357,"nein","Lanstroper Straße - Deckensanierung von Kornmühlenweg bis Stadtgrenze Kamen","Scharnhorst","Konsumtive Maßnahmen","9b Straßenunterhaltungsmaßnahmen (konsumtiv) 66/6","V","V","B","B","B","S","E","n. v.","Deckensanierung im Rahmen der Straßenoffensive",null,{"$f":"VLOOKUP($A247,'[1]komplett mit Formeln'!$A:$AJ,19,0)","v":"in Bauvorbereitung"},"2",{"$f":"SUM(SUMPRODUCT((ISNUMBER(SEARCH(\"x\",T247)))*4),(SUMPRODUCT((ISNUMBER(SEARCH(\"x\",U247:Z247)))*3)),(SUMPRODUCT((ISNUMBER(SEARCH(\"x\",AA247:AC247)))*2)),(SUMPRODUCT((ISNUMBER(SEARCH(\"x\",AD247:AG247)))*1)))","v":8},null,"x","x",null,null,null,null,null,null,"x",null,null,null,null,".",".",".","x","."]
[1219,"nein","Vogelpothsweg von Otto-Hahn-Str. bis Emil-Figge-Str.-Provisorium BHS","Hombruch","Straße ","9 Einzelmaßnahme Straße investiv","P","V","V","B","B","S","E","n. v.","Bau eines Provisoriums zur Erweiterung der Kapazitäten der Bushaltestelle bis zum Vollumbau (Projekt Nr. 125)",null,{"$f":"VLOOKUP($A248,'[1]komplett mit Formeln'!$A:$AJ,19,0)","v":"in Bauvorbereitung"},"2",{"$f":"SUM(SUMPRODUCT((ISNUMBER(SEARCH(\"x\",T248)))*4),(SUMPRODUCT((ISNUMBER(SEARCH(\"x\",U248:Z248)))*3)),(SUMPRODUCT((ISNUMBER(SEARCH(\"x\",AA248:AC248)))*2)),(SUMPRODUCT((ISNUMBER(SEARCH(\"x\",AD248:AG248)))*1)))","v":8},null,"x",null,null,null,"x",null,null,null,"x",null,null,null,null,"x",".",".",".","."]
[628,"nein","Weingartenstraße Bewohnerparkzone","Hörde","Besonderheiten","13 Einzelmaßnahme FB 61 - 67",null,"V","V","V","B","S","E","18751-20","Einichtung von Bewohnerparkzonen Phoenix-See und Weingartenstraße  (17 + 22 PSA).",null,"in Bauvorbereitung","2",{"$f":"SUM(SUMPRODUCT((ISNUMBER(SEARCH(\"x\",T249)))*4),(SUMPRODUCT((ISNUMBER(SEARCH(\"x\",U249:Z249)))*3)),(SUMPRODUCT((ISNUMBER(SEARCH(\"x\",AA249:AC249)))*2)),(SUMPRODUCT((ISNUMBER(SEARCH(\"x\",AD249:AG249)))*1)))","v":8},null,null,null,null,null,null,"x","x",null,"x",null,null,null,"x",".",".","x",".","."]
[939,"nein","LSA 0130 Köln-Berliner-Straße / Aplerbecker Straße / Sölder Kirchweg","Aplerbeck","LSA","1a Einzelmaßnahme Verkehrstechnik investiv","V","V","B","B","S","S","E","33860-24","Erneuerung der LSA 0130 Köln-Berliner-Straße / Aplerbecker Straße / Sölder Kirchweg und Einbau aktueller sehbehindertengerechter Ausstattung (Blindensignale / Blindentaster).\n",null,"in Bauvorbereitung","2",{"$f":"SUM(SUMPRODUCT((ISNUMBER(SEARCH(\"x\",T250)))*4),(SUMPRODUCT((ISNUMBER(SEARCH(\"x\",U250:Z250)))*3)),(SUMPRODUCT((ISNUMBER(SEARCH(\"x\",AA250:AC250)))*2)),(SUMPRODUCT((ISNUMBER(SEARCH(\"x\",AD250:AG250)))*1)))","v":7},null,"x",null,null,null,null,null,"x",null,"x",null,null,null,null,".",".","x",".","."]
[944,"nein","LSA 0448 Köln-Berliner-Straße / Rodenbergstraße / Märtmannstraße / Lübckerhofstraße","Aplerbeck","LSA","1a Einzelmaßnahme Verkehrstechnik investiv","V","V","B","S","S","S","E","33860-24","Erneuerung der LSA 0448 Köln-Berliner-Straße / Rodenbergstraße / Märtmannstraße / Lübckerhofstraße und Einbau aktueller sehbehindertengerechter Ausstattung (Blindensignale / Blindentaster).",null,"in Bauvorbereitung","2",{"$f":"SUM(SUMPRODUCT((ISNUMBER(SEARCH(\"x\",T251)))*4),(SUMPRODUCT((ISNUMBER(SEARCH(\"x\",U251:Z251)))*3)),(SUMPRODUCT((ISNUMBER(SEARCH(\"x\",AA251:AC251)))*2)),(SUMPRODUCT((ISNUMBER(SEARCH(\"x\",AD251:AG251)))*1)))","v":7},null,"x",null,null,null,null,null,"x",null,"x",null,null,null,null,".",".","x",".","."]
[657,"nein","Erschließung Westfalenhütte (Nordspange) - Hoeschallee - 1. BA hier: Brackeler Straße - Freibad Stockheide (Hoeschpark) und Anschluss Kaltbandstraße","Innenstadt-Nord","Straße komplex","9 Einzelmaßnahme Straße investiv","P","V","V","B","B","B","S","23251-21","Bau eines dreiarmigen signalisierten Knotenpunktes in der Brackeler Straße.",null,"in Bauvorbereitung","2",{"$f":"SUM(SUMPRODUCT((ISNUMBER(SEARCH(\"x\",T252)))*4),(SUMPRODUCT((ISNUMBER(SEARCH(\"x\",U252:Z252)))*3)),(SUMPRODUCT((ISNUMBER(SEARCH(\"x\",AA252:AC252)))*2)),(SUMPRODUCT((ISNUMBER(SEARCH(\"x\",AD252:AG252)))*1)))","v":7},null,null,null,null,null,null,null,"x",null,"x",null,"x","x","x","x","x","x",".","."]
[1176,"nein","Veloroute 1 - Eving - Teilstück 1b Nordstraße ","Eving","Radverkehr","10 Einzelmaßnahme Verkehrswendebüro","P","V","V","B","B","B","E","n. v.","Einrichtung einer Fahrradstraße ",null,"in Bauvorbereitung","2",{"$f":"SUM(SUMPRODUCT((ISNUMBER(SEARCH(\"x\",T253)))*4),(SUMPRODUCT((ISNUMBER(SEARCH(\"x\",U253:Z253)))*3)),(SUMPRODUCT((ISNUMBER(SEARCH(\"x\",AA253:AC253)))*2)),(SUMPRODUCT((ISNUMBER(SEARCH(\"x\",AD253:AG253)))*1)))","v":7},null,null,null,"x",null,null,null,null,null,"x",null,"x","x",null,".",".","x",".","x"]
[1162,"nein","Hörder-Bach-Allee, Herstellung barrierefreier Querungsstellen","Hörde","Straße ","9 Einzelmaßnahme Straße investiv","P","V","B","S","S","E",null,"38963-25","Herstellung von sechs barrierefreien Querungsstellen ",null,"in Bauvorbereitung","2",{"$f":"SUM(SUMPRODUCT((ISNUMBER(SEARCH(\"x\",T254)))*4),(SUMPRODUCT((ISNUMBER(SEARCH(\"x\",U254:Z254)))*3)),(SUMPRODUCT((ISNUMBER(SEARCH(\"x\",AA254:AC254)))*2)),(SUMPRODUCT((ISNUMBER(SEARCH(\"x\",AD254:AG254)))*1)))","v":7},null,null,null,null,null,"x",null,"x",null,"x",null,null,null,null,"x",".",".",".","."]
[1147,"nein","Osterfeldstr. ggü. 157, BHS Bayrische Straße u. a.","Eving","Bushaltestelle","8 Einzelmaßnahme Bushaltestellenprogramm",null,"V","V","B","B","S","E","n. v.","Barrierefreier Ausbau verschiedener Bauhaltestellen",null,"in Bauvorbereitung","2",{"$f":"SUM(SUMPRODUCT((ISNUMBER(SEARCH(\"x\",T255)))*4),(SUMPRODUCT((ISNUMBER(SEARCH(\"x\",U255:Z255)))*3)),(SUMPRODUCT((ISNUMBER(SEARCH(\"x\",AA255:AC255)))*2)),(SUMPRODUCT((ISNUMBER(SEARCH(\"x\",AD255:AG255)))*1)))","v":6},null,null,null,null,null,"x",null,null,null,"x",null,null,"x",null,"x",".",".",".","."]
[1149,"nein","Hacheneyer Straße/Höhe Hüttenbruchweg, BHS Hacheney U","Hörde","Bushaltestelle","8 Einzelmaßnahme Bushaltestellenprogramm",null,"V","V","B","B","S","E","n. v.","Barrierefreier Ausbau der Bushaltestelle Hacheney U",null,"in Bauvorbereitung","2",{"$f":"SUM(SUMPRODUCT((ISNUMBER(SEARCH(\"x\",T256)))*4),(SUMPRODUCT((ISNUMBER(SEARCH(\"x\",U256:Z256)))*3)),(SUMPRODUCT((ISNUMBER(SEARCH(\"x\",AA256:AC256)))*2)),(SUMPRODUCT((ISNUMBER(SEARCH(\"x\",AD256:AG256)))*1)))","v":6},null,null,null,null,null,"x",null,null,null,"x",null,null,"x",null,"x",".",".",".","."]
[1150,"nein","Gotthelfstraße 110, BHS Weiße Taube u. a. ","Hombruch","Bushaltestelle","8 Einzelmaßnahme Bushaltestellenprogramm",null,"V","V","B","B","S","E","n. v.","Barrierefreier Ausbau verschiedener Bauhaltestellen",null,"in Bauvorbereitung","2",{"$f":"SUM(SUMPRODUCT((ISNUMBER(SEARCH(\"x\",T257)))*4),(SUMPRODUCT((ISNUMBER(SEARCH(\"x\",U257:Z257)))*3)),(SUMPRODUCT((ISNUMBER(SEARCH(\"x\",AA257:AC257)))*2)),(SUMPRODUCT((ISNUMBER(SEARCH(\"x\",AD257:AG257)))*1)))","v":6},null,null,null,null,null,"x",null,null,null,"x",null,null,"x",null,"x",".",".",".","."]
[299,"nein","Hellerstraße Verlegung im Bereich der Erweiterungsbauten FB 37","Hombruch","Straße komplex","16 Einzelmaßnahme inv. Dienstleistungen für andere FB ","V","V","V","V","B","B","S","34788-24","Verschwenkung der Hellerstraße und Verlegung der vorhandenen Busschleife im Rahmen der Erweiterung einer Fahrzeughalle und der Bestandsanpassungen am Feuerwehrgerätehaus der Freiwilligen Feuerwehr (FF LZ 15) .",null,"in Bauvorbereitung","2",{"$f":"SUM(SUMPRODUCT((ISNUMBER(SEARCH(\"x\",T258)))*4),(SUMPRODUCT((ISNUMBER(SEARCH(\"x\",U258:Z258)))*3)),(SUMPRODUCT((ISNUMBER(SEARCH(\"x\",AA258:AC258)))*2)),(SUMPRODUCT((ISNUMBER(SEARCH(\"x\",AD258:AG258)))*1)))","v":6},null,null,null,null,null,null,null,"x",null,"x",null,null,"x","x","x",".","x",".","."]
[303,"nein","Gärtnerstraße - Überplanung und Umbau","Eving","Straße komplex","9 Einzelmaßnahme Straße investiv","V","V","V","V","B","B","S","24195-22","Verkehrssicherer Ausbau der Gärtnerstraße als Mischverkehrsfläche und Bau eines weiteren Fuß- und Radweges in einer Breite von 3,00 m von der Wendeanlage „Gärtnerstraße“ in Richtung Grubenwehrweg. ",null,"in Bauvorbereitung","2",{"$f":"SUM(SUMPRODUCT((ISNUMBER(SEARCH(\"x\",T259)))*4),(SUMPRODUCT((ISNUMBER(SEARCH(\"x\",U259:Z259)))*3)),(SUMPRODUCT((ISNUMBER(SEARCH(\"x\",AA259:AC259)))*2)),(SUMPRODUCT((ISNUMBER(SEARCH(\"x\",AD259:AG259)))*1)))","v":6},null,null,null,null,null,null,null,"x",null,"x",null,null,"x","x","x",".",".",".","."]
[296,"nein","Lütgendortmunder Hellweg - südlich Lü 178 (Linnenweg)","Lütgendortmund","Straße komplex","12 Sondervermögen","V","V","V","V","B","B","E","06506-16","Bau der Straße Linnenweg im Rahmen der 2. Ausbaustufe nach Abschluss der Hochbauten.",null,"in Bauvorbereitung","2",{"$f":"SUM(SUMPRODUCT((ISNUMBER(SEARCH(\"x\",T260)))*4),(SUMPRODUCT((ISNUMBER(SEARCH(\"x\",U260:Z260)))*3)),(SUMPRODUCT((ISNUMBER(SEARCH(\"x\",AA260:AC260)))*2)),(SUMPRODUCT((ISNUMBER(SEARCH(\"x\",AD260:AG260)))*1)))","v":6},null,null,null,null,null,null,null,"x",null,"x",null,null,"x","x","x",".",".",".","."]
[1206,"nein","Erdbeerfeld Mg 131 (7. Bauabschnitt) - 2. Ausbaustufe","Mengede","Straße komplex","12 Sondervermögen",null,"V","V","B","B","B","E","39045-25","Bebauungsplan Mg 131 - Erdbeerfeld, Endausbau der Straßen im 7. Bauabschnitt\r\n (Zum Erdbeerfeld, Grüner Bogen (von Nevelingweg bis Friedrich-Hausemann-Allee),\r\nIm Zuge der Bauarbeiten des 7. Bauabschnitts wird das Teilstück 13 der Veloroute 9 – Mengede realisiert. ",null,{"$f":"VLOOKUP($A261,'[1]komplett mit Formeln'!$A:$AJ,19,0)","v":"in Bauvorbereitung"},"2",{"$f":"SUM(SUMPRODUCT((ISNUMBER(SEARCH(\"x\",T261)))*4),(SUMPRODUCT((ISNUMBER(SEARCH(\"x\",U261:Z261)))*3)),(SUMPRODUCT((ISNUMBER(SEARCH(\"x\",AA261:AC261)))*2)),(SUMPRODUCT((ISNUMBER(SEARCH(\"x\",AD261:AG261)))*1)))","v":6},null,null,null,null,null,null,null,"x",null,"x",null,null,"x","x","x",".",".",".","."]
[406,"nein","Pleckenbrink - Br 213","Brackel","Straße komplex","12 Sondervermögen","V","V","V","V","B","B","E","36489-24","Umsetzung des Bebauungsplanes Br 213. Die Planung erfolgt durch ein externes Planungsbüro.",null,"in Bauvorbereitung","2",{"$f":"SUM(SUMPRODUCT((ISNUMBER(SEARCH(\"x\",T262)))*4),(SUMPRODUCT((ISNUMBER(SEARCH(\"x\",U262:Z262)))*3)),(SUMPRODUCT((ISNUMBER(SEARCH(\"x\",AA262:AC262)))*2)),(SUMPRODUCT((ISNUMBER(SEARCH(\"x\",AD262:AG262)))*1)))","v":6},null,null,null,null,null,null,null,"x",null,"x",null,null,"x","x","x",".",".",".","."]
[1322,"nein","Haltestellen Linie X13 am Bahnhof Mengede ","Mengede","Bushaltestelle","9 Einzelmaßnahme Straße investiv","P","V","V","V","B","E",null,"n. v.","Einrichtung einer zusätzlichen Warteposition für 2 Kleinbusse ",null,"in Bauvorbereitung","2",{"$f":"SUM(SUMPRODUCT((ISNUMBER(SEARCH(\"x\",T263)))*4),(SUMPRODUCT((ISNUMBER(SEARCH(\"x\",U263:Z263)))*3)),(SUMPRODUCT((ISNUMBER(SEARCH(\"x\",AA263:AC263)))*2)),(SUMPRODUCT((ISNUMBER(SEARCH(\"x\",AD263:AG263)))*1)))","v":6},null,null,null,null,null,"x",null,null,null,"x",null,null,null,"x","x",".",".",".","."]
[778,"nein","Aplerbecker-Mark-Straße von Schwerter Straße bis DB-Brücke","Aplerbeck","Konsumtive Maßnahmen","9b Straßenunterhaltungsmaßnahmen (konsumtiv) 66/6","V","V","V","B","B","S","E","38453-25","Sanierung/Erneuerung im Rahmen der Straßenoffensive 2024/2025",null,{"$f":"VLOOKUP($A264,'[1]komplett mit Formeln'!$A:$AJ,19,0)","v":"in Bauvorbereitung"},"3",{"$f":"SUM(SUMPRODUCT((ISNUMBER(SEARCH(\"x\",T264)))*4),(SUMPRODUCT((ISNUMBER(SEARCH(\"x\",U264:Z264)))*3)),(SUMPRODUCT((ISNUMBER(SEARCH(\"x\",AA264:AC264)))*2)),(SUMPRODUCT((ISNUMBER(SEARCH(\"x\",AD264:AG264)))*1)))","v":5},null,null,"x",null,null,null,null,null,null,"x",null,null,null,null,".",".",".","x","."]
[1198,"nein","Vogelpothsweg von Wittener Straße bis Haus Nr. 73 - Deckensanierung ","INN-West","Konsumtive Maßnahmen","9b Straßenunterhaltungsmaßnahmen (konsumtiv) 66/6",null,"V","V","B","B","S","E","n. v.","Deckensanierung, punktuelle Erneuerung der Binderschicht, Herstellung der Barrierefreiheit an drei Haltestellen (lediglich barrierefreies Pflaster einsetzen)",null,"in Bauvorbereitung","3",{"$f":"SUM(SUMPRODUCT((ISNUMBER(SEARCH(\"x\",T265)))*4),(SUMPRODUCT((ISNUMBER(SEARCH(\"x\",U265:Z265)))*3)),(SUMPRODUCT((ISNUMBER(SEARCH(\"x\",AA265:AC265)))*2)),(SUMPRODUCT((ISNUMBER(SEARCH(\"x\",AD265:AG265)))*1)))","v":5},null,"x",null,null,null,null,null,null,null,"x",null,null,null,null,".",".",".","x","."]
[661,"nein","Deckenerneuerung OW IIIa - Von AK A45 (AS Dortmund-Hafen)  bis zur Abfahrt Huckarder Str.","Huckarde","Straße ","9 Einzelmaßnahme Straße investiv",null,"V","V","V","B","E",null,"n. v.","Deckensanierung im Rahmen der Straßenunterhaltung.",null,"in Bauvorbereitung","3",{"$f":"SUM(SUMPRODUCT((ISNUMBER(SEARCH(\"x\",T266)))*4),(SUMPRODUCT((ISNUMBER(SEARCH(\"x\",U266:Z266)))*3)),(SUMPRODUCT((ISNUMBER(SEARCH(\"x\",AA266:AC266)))*2)),(SUMPRODUCT((ISNUMBER(SEARCH(\"x\",AD266:AG266)))*1)))","v":4},null,"x",null,null,null,null,null,null,null,null,"x",null,null,null,".",".",".","x","."]
[338,"nein","Bergfeld - Hom 242 hier 2. Ausbaustufe","Hombruch","Straße komplex","12 Sondervermögen",null,"V","V","B","B","B","S","23240-21","Umsetzung des Bebauungsplanes Hom 242; Endausbau.",null,"in Bauvorbereitung",{"$f":"IF(S267=0,\"keine\",IF(AND(S267>0,S267<6),\"3\",IF(AND(S267>5,S267<11),\"2\",\"1\")))","v":"3"},{"$f":"SUM(SUMPRODUCT((ISNUMBER(SEARCH(\"x\",T267)))*4),(SUMPRODUCT((ISNUMBER(SEARCH(\"x\",U267:Z267)))*3)),(SUMPRODUCT((ISNUMBER(SEARCH(\"x\",AA267:AC267)))*2)),(SUMPRODUCT((ISNUMBER(SEARCH(\"x\",AD267:AG267)))*1)))","v":4},null,null,null,null,null,null,null,null,null,"x",null,null,"x","x","x",".",".",".","."]
[863,"nein","Notweg 37 - Erneuerung Böschungsbefestigung (BW 7112)","Hombruch","Brücke","5a Einzelmaßnahme Brücke","P","V","V","B","S","S","E","39110-25","Erneuerung der Böschungsbefestigung ",null,"in Bauvorbereitung","3",{"$f":"SUM(SUMPRODUCT((ISNUMBER(SEARCH(\"x\",T268)))*4),(SUMPRODUCT((ISNUMBER(SEARCH(\"x\",U268:Z268)))*3)),(SUMPRODUCT((ISNUMBER(SEARCH(\"x\",AA268:AC268)))*2)),(SUMPRODUCT((ISNUMBER(SEARCH(\"x\",AD268:AG268)))*1)))","v":4},null,null,null,null,null,null,null,"x",null,"x",null,null,null,null,".","x",".",".","."]
[1141,"nein","LSA 2247 Burgring /Adalmundstraße ","Mengede","LSA","16 Einzelmaßnahme inv. Dienstleistungen für andere FB ",null,"V","V","B","B","S","E","n. v.","Abbruch, Einrichtung Provisoirum und Neubau Fußgängerampel im Rahmen einer Maßnahme des EB 70  für die Herstellung eines Kanalschachtes und eines Regenwasserkanals.",null,"in Bauvorbereitung","3",{"$f":"SUM(SUMPRODUCT((ISNUMBER(SEARCH(\"x\",T269)))*4),(SUMPRODUCT((ISNUMBER(SEARCH(\"x\",U269:Z269)))*3)),(SUMPRODUCT((ISNUMBER(SEARCH(\"x\",AA269:AC269)))*2)),(SUMPRODUCT((ISNUMBER(SEARCH(\"x\",AD269:AG269)))*1)))","v":3},null,null,null,null,null,null,null,null,null,"x",null,null,null,"x",".",".","x",".","."]
[1161,"nein","Friedensplatz - Polleranlage Südzufahrt ","INN-West","Besonderheiten","1a Einzelmaßnahme Verkehrstechnik investiv","P","V","V","B","B","S","E","n. v.","Errichtung einer Polleranlage ",null,"in Bauvorbereitung","3",{"$f":"SUM(SUMPRODUCT((ISNUMBER(SEARCH(\"x\",T270)))*4),(SUMPRODUCT((ISNUMBER(SEARCH(\"x\",U270:Z270)))*3)),(SUMPRODUCT((ISNUMBER(SEARCH(\"x\",AA270:AC270)))*2)),(SUMPRODUCT((ISNUMBER(SEARCH(\"x\",AD270:AG270)))*1)))","v":2},null,null,null,null,null,null,null,null,null,"x",null,null,null,null,".",".","x",".","."]
[900,"nein","Ausbau Emscherradweg - Brückenquerung westliche Franziusstraße (im Bereich der Anbindung Huckarder Straße)","Huckarde","Straße komplex","13 Einzelmaßnahme FB 61 - 67","P","P","V","V","B","S","E","39177-25","Schaffung eines Verbindungsweges zwischen Emscher und Franziusstraße.",null,"in Planung","2",{"$f":"SUM(SUMPRODUCT((ISNUMBER(SEARCH(\"x\",T271)))*4),(SUMPRODUCT((ISNUMBER(SEARCH(\"x\",U271:Z271)))*3)),(SUMPRODUCT((ISNUMBER(SEARCH(\"x\",AA271:AC271)))*2)),(SUMPRODUCT((ISNUMBER(SEARCH(\"x\",AD271:AG271)))*1)))","v":7},null,null,null,null,null,null,null,"x",null,"x",null,"x","x","x","x",".","x",".","."]
[1177,"nein","Veloroute 5 - Hörde - Teilstück 12b \"Am Bruchheck von Goystraße bis Burgunderstraße\"","Hörde","Radverkehr","10 Einzelmaßnahme Verkehrswendebüro","P","P","V","B","B","B","E","n. v.","Einrichtung einer Fahrradstraße (Beschilderung, Markierung und Rotbeschichtung) ",null,"in Planung","3",{"$f":"SUM(SUMPRODUCT((ISNUMBER(SEARCH(\"x\",T272)))*4),(SUMPRODUCT((ISNUMBER(SEARCH(\"x\",U272:Z272)))*3)),(SUMPRODUCT((ISNUMBER(SEARCH(\"x\",AA272:AC272)))*2)),(SUMPRODUCT((ISNUMBER(SEARCH(\"x\",AD272:AG272)))*1)))","v":5},null,null,null,"x",null,null,null,null,null,null,null,"x","x",null,".",".","x",".","x"]
[615,"nein","Nierstefeldstraße - Stichstraße nördlich - Am Quellweg","Scharnhorst","Straße komplex","12 Sondervermögen","P","P","V","V","B","S","E","n. v.","Endausbau.",null,"in Planung","3",{"$f":"SUM(SUMPRODUCT((ISNUMBER(SEARCH(\"x\",T273)))*4),(SUMPRODUCT((ISNUMBER(SEARCH(\"x\",U273:Z273)))*3)),(SUMPRODUCT((ISNUMBER(SEARCH(\"x\",AA273:AC273)))*2)),(SUMPRODUCT((ISNUMBER(SEARCH(\"x\",AD273:AG273)))*1)))","v":4},null,null,null,null,null,null,null,null,null,"x",null,null,"x","x","x",".",".",".","."]
[1199,"nein","Westbrink ","Brackel","Straße ","9 Einzelmaßnahme Straße investiv","P","P","V","V","B","B","S","n. v.","Wiederherstellung der Straße im Rahmen einer Kanalerneuerung inkl. neuer Sinkkästen - ab Haus Nr. 16 bis Ende, Kostenübernahme durch FB 66",null,"in Planung","3",{"$f":"SUM(SUMPRODUCT((ISNUMBER(SEARCH(\"x\",T274)))*4),(SUMPRODUCT((ISNUMBER(SEARCH(\"x\",U274:Z274)))*3)),(SUMPRODUCT((ISNUMBER(SEARCH(\"x\",AA274:AC274)))*2)),(SUMPRODUCT((ISNUMBER(SEARCH(\"x\",AD274:AG274)))*1)))","v":4},null,null,null,null,null,null,null,null,null,"x",null,null,"x","x","x",".",".",".","."]
[902,"nein","Osterlandwehr- Enscheder Str.-Lütgenholz-Heroldstr.-Priorstr.-Westerbleichstr.Feldherrnstr.-Fichtestr. - FE/ Fahrradstraße","Innenstadt-Nord","Radverkehr","3b Radwege konsumtiv","P","V","B","B","S","E",null,"n. v.","Optimierung und Ausbau von Nebenstrecken (Ost-West-Fahrradachsen südlich der Mallickrodtstraße) zu Fahrradstraßen mit Radwegweisung als Alternative zu stark befahrenen Straßen. \n","Lediglich Heroldstraße","in Planung","3",{"$f":"SUM(SUMPRODUCT((ISNUMBER(SEARCH(\"x\",T275)))*4),(SUMPRODUCT((ISNUMBER(SEARCH(\"x\",U275:Z275)))*3)),(SUMPRODUCT((ISNUMBER(SEARCH(\"x\",AA275:AC275)))*2)),(SUMPRODUCT((ISNUMBER(SEARCH(\"x\",AD275:AG275)))*1)))","v":2},null,null,null,null,null,null,null,null,null,null,null,"x","x",null,".",".","x",".","."]
[1021,"nein","Am Hagedorn / Grüningsweg - Einrichtung einer Fahrradzone und Plateauaufpflasterungen ","Brackel","Straße ","4 Einzelmaßnahme Verkehrsberuhigung",null,"P","V","B","B","V","B","n.v.","Markierungen und Beschilderung erfolgen voraussichtlich im 3/4. Quartal 2026, Aufpflasterungen im Jahr 2028.",null,"in Planung",{"$f":"IF(S276=0,\"keine\",IF(AND(S276>0,S276<6),\"3\",IF(AND(S276>5,S276<11),\"2\",\"1\")))","v":"3"},{"$f":"SUM(SUMPRODUCT((ISNUMBER(SEARCH(\"x\",T276)))*4),(SUMPRODUCT((ISNUMBER(SEARCH(\"x\",U276:Z276)))*3)),(SUMPRODUCT((ISNUMBER(SEARCH(\"x\",AA276:AC276)))*2)),(SUMPRODUCT((ISNUMBER(SEARCH(\"x\",AD276:AG276)))*1)))","v":1},null,null,null,null,null,null,null,null,null,null,null,"x"]
[1314,"nein","Erneuerung von Leuchten im gesamten Stadtgebiet im Rahmen des SBV - Jahresprogramm 2026","überörtlich","Beleuchtung","7 Einzelmaßnahme Beleuchtung","P","P","B","B","B","S","E","00121-25"," Jahresprogramm der Erneuerung von Leuchten im gesamten Stadtgebiet für das Jahr 2026 im Rahmen des Straßenbeleuchtungsvertrages (SBV). Beschuss aller BVen hierzu liegt vor (00121-25). ",null,{"$f":"VLOOKUP($A277,'[1]komplett mit Formeln'!$A:$AJ,19,0)","v":"in Planung"},"keine",{"$f":"SUM(SUMPRODUCT((ISNUMBER(SEARCH(\"x\",T277)))*4),(SUMPRODUCT((ISNUMBER(SEARCH(\"x\",U277:Z277)))*3)),(SUMPRODUCT((ISNUMBER(SEARCH(\"x\",AA277:AC277)))*2)),(SUMPRODUCT((ISNUMBER(SEARCH(\"x\",AD277:AG277)))*1)))","v":0},null,null,null,null,null,null,null,null,null,null,null,null,null,null,".",".","x",".","."]
[1316,"nein","Neuerrichtung von öffentlichen Ladeeinrichtungen (Laternenlader) im gesamten Stadtgebiet im Rahmen des SBV - Jahresprogramm 2026","überörtlich","Beleuchtung","7 Einzelmaßnahme Beleuchtung",null,"P","V","B","B","S","E","n. v.","Jahresprogramm 2026 zur Neuerrichtung von öffentlichen Ladeeinrichtungen im gesamten Stadtgebiet im Rahmen des Straßenbeleuchtungsvertrages (SBV). ",null,{"$f":"VLOOKUP($A278,'[1]komplett mit Formeln'!$A:$AJ,19,0)","v":"in Planung"},"keine",{"$f":"SUM(SUMPRODUCT((ISNUMBER(SEARCH(\"x\",T278)))*4),(SUMPRODUCT((ISNUMBER(SEARCH(\"x\",U278:Z278)))*3)),(SUMPRODUCT((ISNUMBER(SEARCH(\"x\",AA278:AC278)))*2)),(SUMPRODUCT((ISNUMBER(SEARCH(\"x\",AD278:AG278)))*1)))","v":0},null,null,null,null,null,null,null,null,null,null,null,null,null,null,".",".","x",".","."]
[1319,"nein","Neuerrichtung von digitalen Geschwindigkeitsanzeigern (Infodisplays) im gesamten Stadtgebiet im Rahmen des SBV - Jahresprogramm 2026","überörtlich","Beleuchtung","7 Einzelmaßnahme Beleuchtung",null,"P","V","B","B","S","E","n. v.","Jahresprogramm 2026 zur Neuerrichtung von Infodisplays im gesamten Stadtgebiet im Rahmen des Straßenbeleuchtungsvertrages (SBV). ",null,{"$f":"VLOOKUP($A279,'[1]komplett mit Formeln'!$A:$AJ,19,0)","v":"in Planung"},"keine",{"$f":"SUM(SUMPRODUCT((ISNUMBER(SEARCH(\"x\",T279)))*4),(SUMPRODUCT((ISNUMBER(SEARCH(\"x\",U279:Z279)))*3)),(SUMPRODUCT((ISNUMBER(SEARCH(\"x\",AA279:AC279)))*2)),(SUMPRODUCT((ISNUMBER(SEARCH(\"x\",AD279:AG279)))*1)))","v":0},null,null,null,null,null,null,null,null,null,null,null,null,null,null,".",".","x",".","."]
[347,"nein","Bundesstraße 1, von Am Kaiserhain bis Voßkuhle","Innenstadt-Ost","Konsumtive Maßnahmen","9b Straßenunterhaltungsmaßnahmen (konsumtiv) 66/6",null,null,"V","V","B","S","E","n. v.","Deckensanierung im Rahmen der Straßenunterhaltung von Am Kaiserhain bis Semerteichstraße in Fahrtrichtung Unna.",null,"ruhend",{"$f":"IF(S280=0,\"keine\",IF(AND(S280>0,S280<6),\"3\",IF(AND(S280>5,S280<11),\"2\",\"1\")))","v":"3"},{"$f":"SUM(SUMPRODUCT((ISNUMBER(SEARCH(\"x\",T280)))*4),(SUMPRODUCT((ISNUMBER(SEARCH(\"x\",U280:Z280)))*3)),(SUMPRODUCT((ISNUMBER(SEARCH(\"x\",AA280:AC280)))*2)),(SUMPRODUCT((ISNUMBER(SEARCH(\"x\",AD280:AG280)))*1)))","v":1},null,null,null,null,null,null,null,null,null,null,"x",null,null,null,".",".",".","x","."]

{"sheet":"Straße komplex","index":1,"n_rows":36,"n_cols":37,"rows_kept":36,"cut":false,"hidden":false,"merged":[[1,32,3,36],[4,27,16,27],[4,28,16,28],[4,29,16,29],[4,30,16,30],[4,31,16,31],[4,33,16,33],[4,34,16,34],[4,35,16,35],[4,36,16,36],[4,32,16,32],[1,12,16,12],[2,8,2,9],[4,26,16,26],[4,8,16,8],[4,9,16,9],[4,18,16,18],[4,19,16,19],[4,20,16,20],[4,21,16,21],[4,22,16,22],[4,23,16,23],[4,24,16,24],[4,25,16,25],[2,10,2,11],[1,13,16,13],[1,14,16,14],[1,15,16,15],[2,18,3,18],[2,19,3,24],[2,25,3,27],[2,28,3,31],[1,16,16,16],[1,17,16,17],[1,18,1,31],[1,0,16,0],[1,1,16,1],[1,2,16,2],[1,3,16,3],[1,4,16,4],[3,5,16,5],[3,6,3,9],[3,10,16,10],[3,11,16,11],[4,6,16,6],[4,7,16,7]]}
[]
["Projektnr.:","Projekt-blatt","Bezeichnung","Stadtbezirk","Art","P","V","B","S",null,"E",null,"Drucksachen-nummer mit Link zum Online-Dokument","Beschreibung","Bemerkungen","Maßnahmenstatus","Prioritätenklasse","Summe Gewichtungspunkte","Bewertungstatbestände mit Gewichtung",null,null,null,null,null,null,null,null,null,null,null,null,null,"Beteiligter Bereich"]
[null,null,null,null,null,"= Planung","= Vorbereitung","= Bau","= Schlussrechnung",null,"= Ende der Baumaßnahme",null,null,null,null,null,null,null,4,3,null,null,null,null,null,2,null,null,1]
[null,null,null,null,null,2025,2026,null,null,null,2027,2028]
[null,null,null,null,null,null,"I","II","III","IV",null,null,null,null,null,null,null,null,"Maßnahme in Ausführung / Auftrag erteilt","Herstellung der Verkehrssicherheit / hoher Unterhaltungsaufwand / kritischer Zustand","Straßenoffensive","Velorouten / Radschnellwege","Maßnahme ist Bestandteil \neines sonstigen Bauprogramms","ÖPNV / Barrierefreiheit","Vergabeverfahren läuft","Baubeschluss liegt vor","Förderantrag bewilligt","Planung weit fortgeschritten","Verkehrliche Bedeutung (Hauptstraßen)","Radverkehr","Refinanzierung möglich / Förderantrag gestellt / Anliegerbeiträge / BV-Mittel","gemeinsame Maßnahme mit Dritten"," Verkehrswege","Verkehrsbauwerke","Verkehrstechnik","Betrieb","Verkehrswendebüro"]
[]
[]
[]
[]
[]
[]
[]
[]
[]
[]
[]
[]
[8,"ja","Märkische Straße, Ophoff, Brückenplatte 1","Innenstadt-Ost","9 Einzelmaßnahme Straße investiv","B","B","B","B","S","S","E","17138-20","Grundsanierung der Brückenplatten mit Querschnittsanpassungen. Veränderungen im Bereich der Kreuzung sowie Aufzugsnachrüstung der Stadtbahnhaltestelle Ophoff (separates Projekt Stadtbahnbau). ",null,"im Bau",{"$f":"IF(R18=0,\"keine\",IF(AND(R18>0,R18<6),\"3\",IF(AND(R18>5,R18<11),\"2\",\"1\")))","v":"1"},{"$f":"SUM(SUMPRODUCT((ISNUMBER(SEARCH(\"x\",S18)))*4),(SUMPRODUCT((ISNUMBER(SEARCH(\"x\",T18:Y18)))*3)),(SUMPRODUCT((ISNUMBER(SEARCH(\"x\",Z18:AB18)))*2)),(SUMPRODUCT((ISNUMBER(SEARCH(\"x\",AC18:AF18)))*1)))","v":23},"x","x",null,null,null,"x","x","x","x","x","x","x","x","x","x","x","x",".","."]
[171,"ja","Hörde, Südspange","Hörde","9 Einzelmaßnahme Straße investiv","B","B","B","S","S","S","E","31920-23","Straßenverbindung der Robert-Schumann-Str. mit dem Kreisverkehr Gildenstraße inkl. Brücke für Radwegeüberführung.",null,"im Bau","1",{"$f":"SUM(SUMPRODUCT((ISNUMBER(SEARCH(\"x\",S19)))*4),(SUMPRODUCT((ISNUMBER(SEARCH(\"x\",T19:Y19)))*3)),(SUMPRODUCT((ISNUMBER(SEARCH(\"x\",Z19:AB19)))*2)),(SUMPRODUCT((ISNUMBER(SEARCH(\"x\",AC19:AF19)))*1)))","v":16},"x",null,null,null,null,null,"x","x","x","x",null,"x","x","x","x","x","x",".","."]
[135,"ja","Sandkopf u. a. Erschließung AP 130","Aplerbeck","9 Einzelmaßnahme Straße investiv","B","B","S","S","S","E",null,"26343-22","Endgültige Herstellung der Straße Sandkopf.",null,"im Bau","1",{"$f":"SUM(SUMPRODUCT((ISNUMBER(SEARCH(\"x\",S20)))*4),(SUMPRODUCT((ISNUMBER(SEARCH(\"x\",T20:Y20)))*3)),(SUMPRODUCT((ISNUMBER(SEARCH(\"x\",Z20:AB20)))*2)),(SUMPRODUCT((ISNUMBER(SEARCH(\"x\",AC20:AF20)))*1)))","v":14},"x",null,null,null,null,null,"x","x","x","x",null,null,"x",null,"x",".",".",".","."]
[767,"ja","Langenacker - BPlan Mg 116 \"Kraftwerk Knepper\" ","Mengede","9 Einzelmaßnahme Straße investiv","B","B","B","B","S","S","E","25141-22","Ausbau der Straße Langenacker von der südlichen Grenze des Bebauungsplans MG 116 in Richtung Knotenpunkt Langenacker/Königshalt (ca. 160 m nordwestlich Königshalt).","Begleitung","im Bau","1",{"$f":"SUM(SUMPRODUCT((ISNUMBER(SEARCH(\"x\",S21)))*4),(SUMPRODUCT((ISNUMBER(SEARCH(\"x\",T21:Y21)))*3)),(SUMPRODUCT((ISNUMBER(SEARCH(\"x\",Z21:AB21)))*2)),(SUMPRODUCT((ISNUMBER(SEARCH(\"x\",AC21:AF21)))*1)))","v":13},"x",null,null,null,null,null,"x","x",null,"x",null,null,"x","x","x","x","x",".","."]
[183,"ja","Lührmannstraße v. Wittbräucker Straße bis Hs 2a, Ausbau ","Hörde","9 Einzelmaßnahme Straße investiv","V","B","B","S","S","E",null,"30561-23","Umgestaltung der Einmündung mit der Wittbräucker Straße, Ausbau des fehlenden Teilstücks von Haus Nr. 2 in Richtung Einmündung, barrierefreier Ausbau der beiden Haltestellen und des Fußgängerüberweges. Gleichzeitige Erneuerung des südlichen Gehweges der Wittbräucker Straße von der Haltestelle bis zum Ende der neuen Einmündung in die Lührmannstraße. ","Bauzeit voraussichtlich 3 Monate, abhängig von Witterung.","nach Auftragserteilung ruhend","1",{"$f":"SUM(SUMPRODUCT((ISNUMBER(SEARCH(\"x\",S22)))*4),(SUMPRODUCT((ISNUMBER(SEARCH(\"x\",T22:Y22)))*3)),(SUMPRODUCT((ISNUMBER(SEARCH(\"x\",Z22:AB22)))*2)),(SUMPRODUCT((ISNUMBER(SEARCH(\"x\",AC22:AF22)))*1)))","v":15},"x",null,null,null,null,"x","x","x",null,"x",null,null,null,"x","x",".","x",".","."]
[551,"ja","In der Liethe - Projekt 2.1 - nördliche Dorfergänzung Grevel - Stichstraße nordöstlich In der Liethe (Teil A), Stichstraße nordwestlich In der Liethe (Teil B)","Scharnhorst","12 Sondervermögen","V","B","B","B","S","S","E","37909-25","Herstellung der 1. Ausbaustufe der Erschließungsanlagen:\nProjekt 2: Stichstraße nordöstlich, Stichstraße nordwestlich und die Straße In der Liethe von der Greveler Straße bis zur nordwestlichen Stichstraße.",null,"nach Auftragserteilung ruhend","1",{"$f":"SUM(SUMPRODUCT((ISNUMBER(SEARCH(\"x\",S23)))*4),(SUMPRODUCT((ISNUMBER(SEARCH(\"x\",T23:Y23)))*3)),(SUMPRODUCT((ISNUMBER(SEARCH(\"x\",Z23:AB23)))*2)),(SUMPRODUCT((ISNUMBER(SEARCH(\"x\",AC23:AF23)))*1)))","v":13},"x",null,null,null,null,null,"x","x",null,"x",null,null,"x","x","x",".",".",".","."]
[828,"nein","Ewige Teufe (Hom 278 - Stichstraße nördlich Zillestraße) - 2. Ausbaustufe","Hombruch","12 Sondervermögen","V","V","B","B","B","S","E","36091-24","Herstellung der 2. Ausbaustufe, sowie der Fuß- und Radwege",null,"in Bauvorbereitung","2",{"$f":"SUM(SUMPRODUCT((ISNUMBER(SEARCH(\"x\",S24)))*4),(SUMPRODUCT((ISNUMBER(SEARCH(\"x\",T24:Y24)))*3)),(SUMPRODUCT((ISNUMBER(SEARCH(\"x\",Z24:AB24)))*2)),(SUMPRODUCT((ISNUMBER(SEARCH(\"x\",AC24:AF24)))*1)))","v":9},null,null,null,null,null,null,"x","x",null,"x",null,null,"x","x","x",".",".",".","."]
[12,"nein","Obermarkstraße","Aplerbeck","9 Einzelmaßnahme Straße investiv","V","V","V","V","B","B","B","37141-24","Verkehrsgerechter Ausbau der Obermarkstraße von Höchstener Straße bis Schöner Pfad.",null,"in Bauvorbereitung","2",{"$f":"SUM(SUMPRODUCT((ISNUMBER(SEARCH(\"x\",S25)))*4),(SUMPRODUCT((ISNUMBER(SEARCH(\"x\",T25:Y25)))*3)),(SUMPRODUCT((ISNUMBER(SEARCH(\"x\",Z25:AB25)))*2)),(SUMPRODUCT((ISNUMBER(SEARCH(\"x\",AC25:AF25)))*1)))","v":8},null,"x",null,null,null,null,null,"x",null,"x",null,null,"x",null,"x",".","x",".","."]
[746,"nein","Brechtener Heide, Endausbau 3. Bauabschnitt, nur Theodor-Fontane-Straße und Bettina-von-Arnim-Weg, Selma-Lagerlöf-Straße und Teile von Theodor-Storm-Straße und Heinrich-Heine-Straße - Ev 138\r\n(Abschnitt a)","Eving","12 Sondervermögen","V","V","V","B","B","S","E","31428-23","Endausbau der Straßen im 3. Bauabschnitt.\nAbschnitt 3: Theodor-Fontane-Straße, Bettina-von-Arnim-Weg.",null,"in Bauvorbereitung","2",{"$f":"SUM(SUMPRODUCT((ISNUMBER(SEARCH(\"x\",S26)))*4),(SUMPRODUCT((ISNUMBER(SEARCH(\"x\",T26:Y26)))*3)),(SUMPRODUCT((ISNUMBER(SEARCH(\"x\",Z26:AB26)))*2)),(SUMPRODUCT((ISNUMBER(SEARCH(\"x\",AC26:AF26)))*1)))","v":8},null,null,null,null,null,null,"x","x",null,"x",null,null,"x",null,"x",".",".",".","."]
[973,"nein","Niergartenstraße","Aplerbeck","9 Einzelmaßnahme Straße investiv","V","V","B","B","B","S","E","36092-24","Erneuerung der Niergartenstraße (Fahrbahn und Gehwege) im Rahmen einer Kanalsanierung","Umsetzung durch EB 70","in Bauvorbereitung","2",{"$f":"SUM(SUMPRODUCT((ISNUMBER(SEARCH(\"x\",S27)))*4),(SUMPRODUCT((ISNUMBER(SEARCH(\"x\",T27:Y27)))*3)),(SUMPRODUCT((ISNUMBER(SEARCH(\"x\",Z27:AB27)))*2)),(SUMPRODUCT((ISNUMBER(SEARCH(\"x\",AC27:AF27)))*1)))","v":8},null,null,null,null,null,null,"x","x",null,"x",null,null,null,"x",".",".",".","x","."]
[657,"nein","Erschließung Westfalenhütte (Nordspange) - Hoeschallee - 1. BA hier: Brackeler Straße - Freibad Stockheide (Hoeschpark) und Anschluss Kaltbandstraße","Innenstadt-Nord","9 Einzelmaßnahme Straße investiv","P","V","V","B","B","B","S","23251-21","Bau eines dreiarmigen signalisierten Knotenpunktes in der Brackeler Straße.",null,"in Bauvorbereitung","2",{"$f":"SUM(SUMPRODUCT((ISNUMBER(SEARCH(\"x\",S28)))*4),(SUMPRODUCT((ISNUMBER(SEARCH(\"x\",T28:Y28)))*3)),(SUMPRODUCT((ISNUMBER(SEARCH(\"x\",Z28:AB28)))*2)),(SUMPRODUCT((ISNUMBER(SEARCH(\"x\",AC28:AF28)))*1)))","v":7},null,null,null,null,null,null,null,"x",null,"x",null,"x","x","x","x","x","x",".","."]
[299,"nein","Hellerstraße Verlegung im Bereich der Erweiterungsbauten FB 37","Hombruch","16 Einzelmaßnahme inv. Dienstleistungen für andere FB ","V","V","V","V","B","B","S","34788-24","Verschwenkung der Hellerstraße und Verlegung der vorhandenen Busschleife im Rahmen der Erweiterung einer Fahrzeughalle und der Bestandsanpassungen am Feuerwehrgerätehaus der Freiwilligen Feuerwehr (FF LZ 15) .",null,"in Bauvorbereitung","2",{"$f":"SUM(SUMPRODUCT((ISNUMBER(SEARCH(\"x\",S29)))*4),(SUMPRODUCT((ISNUMBER(SEARCH(\"x\",T29:Y29)))*3)),(SUMPRODUCT((ISNUMBER(SEARCH(\"x\",Z29:AB29)))*2)),(SUMPRODUCT((ISNUMBER(SEARCH(\"x\",AC29:AF29)))*1)))","v":6},null,null,null,null,null,null,null,"x",null,"x",null,null,"x","x","x",".","x",".","."]
[303,"nein","Gärtnerstraße - Überplanung und Umbau","Eving","9 Einzelmaßnahme Straße investiv","V","V","V","V","B","B","S","24195-22","Verkehrssicherer Ausbau der Gärtnerstraße als Mischverkehrsfläche und Bau eines weiteren Fuß- und Radweges in einer Breite von 3,00 m von der Wendeanlage „Gärtnerstraße“ in Richtung Grubenwehrweg. ",null,"in Bauvorbereitung","2",{"$f":"SUM(SUMPRODUCT((ISNUMBER(SEARCH(\"x\",S30)))*4),(SUMPRODUCT((ISNUMBER(SEARCH(\"x\",T30:Y30)))*3)),(SUMPRODUCT((ISNUMBER(SEARCH(\"x\",Z30:AB30)))*2)),(SUMPRODUCT((ISNUMBER(SEARCH(\"x\",AC30:AF30)))*1)))","v":6},null,null,null,null,null,null,null,"x",null,"x",null,null,"x","x","x",".",".",".","."]
[296,"nein","Lütgendortmunder Hellweg - südlich Lü 178 (Linnenweg)","Lütgendortmund","12 Sondervermögen","V","V","V","V","B","B","E","06506-16","Bau der Straße Linnenweg im Rahmen der 2. Ausbaustufe nach Abschluss der Hochbauten.",null,"in Bauvorbereitung","2",{"$f":"SUM(SUMPRODUCT((ISNUMBER(SEARCH(\"x\",S31)))*4),(SUMPRODUCT((ISNUMBER(SEARCH(\"x\",T31:Y31)))*3)),(SUMPRODUCT((ISNUMBER(SEARCH(\"x\",Z31:AB31)))*2)),(SUMPRODUCT((ISNUMBER(SEARCH(\"x\",AC31:AF31)))*1)))","v":6},null,null,null,null,null,null,null,"x",null,"x",null,null,"x","x","x",".",".",".","."]
[1206,"nein","Erdbeerfeld Mg 131 (7. Bauabschnitt) - 2. Ausbaustufe","Mengede","12 Sondervermögen",null,"V","V","B","B","B","E","39045-25","Bebauungsplan Mg 131 - Erdbeerfeld, Endausbau der Straßen im 7. Bauabschnitt\r\n (Zum Erdbeerfeld, Grüner Bogen (von Nevelingweg bis Friedrich-Hausemann-Allee),\r\nIm Zuge der Bauarbeiten des 7. Bauabschnitts wird das Teilstück 13 der Veloroute 9 – Mengede realisiert. ",null,"in Bauvorbereitung","2",{"$f":"SUM(SUMPRODUCT((ISNUMBER(SEARCH(\"x\",S32)))*4),(SUMPRODUCT((ISNUMBER(SEARCH(\"x\",T32:Y32)))*3)),(SUMPRODUCT((ISNUMBER(SEARCH(\"x\",Z32:AB32)))*2)),(SUMPRODUCT((ISNUMBER(SEARCH(\"x\",AC32:AF32)))*1)))","v":6},null,null,null,null,null,null,null,"x",null,"x",null,null,"x","x","x",".",".",".","."]
[406,"nein","Pleckenbrink - Br 213","Brackel","12 Sondervermögen","V","V","V","V","B","B","E","36489-24","Umsetzung des Bebauungsplanes Br 213. Die Planung erfolgt durch ein externes Planungsbüro.",null,"in Bauvorbereitung","2",{"$f":"SUM(SUMPRODUCT((ISNUMBER(SEARCH(\"x\",S33)))*4),(SUMPRODUCT((ISNUMBER(SEARCH(\"x\",T33:Y33)))*3)),(SUMPRODUCT((ISNUMBER(SEARCH(\"x\",Z33:AB33)))*2)),(SUMPRODUCT((ISNUMBER(SEARCH(\"x\",AC33:AF33)))*1)))","v":6},null,null,null,null,null,null,null,"x",null,"x",null,null,"x","x","x",".",".",".","."]
[338,"nein","Bergfeld - Hom 242 hier 2. Ausbaustufe","Hombruch","12 Sondervermögen",null,"V","V","B","B","B","S","23240-21","Umsetzung des Bebauungsplanes Hom 242; Endausbau.",null,"in Bauvorbereitung","3",{"$f":"SUM(SUMPRODUCT((ISNUMBER(SEARCH(\"x\",S34)))*4),(SUMPRODUCT((ISNUMBER(SEARCH(\"x\",T34:Y34)))*3)),(SUMPRODUCT((ISNUMBER(SEARCH(\"x\",Z34:AB34)))*2)),(SUMPRODUCT((ISNUMBER(SEARCH(\"x\",AC34:AF34)))*1)))","v":4},null,null,null,null,null,null,null,null,null,"x",null,null,"x","x","x",".",".",".","."]
[900,"nein","Ausbau Emscherradweg - Brückenquerung westliche Franziusstraße (im Bereich der Anbindung Huckarder Straße)","Huckarde","13 Einzelmaßnahme FB 61 - 67","P","P","V","V","B","S","E","39177-25","Schaffung eines Verbindungsweges zwischen Emscher und Franziusstraße.",null,"in Planung","2",{"$f":"SUM(SUMPRODUCT((ISNUMBER(SEARCH(\"x\",S35)))*4),(SUMPRODUCT((ISNUMBER(SEARCH(\"x\",T35:Y35)))*3)),(SUMPRODUCT((ISNUMBER(SEARCH(\"x\",Z35:AB35)))*2)),(SUMPRODUCT((ISNUMBER(SEARCH(\"x\",AC35:AF35)))*1)))","v":7},null,null,null,null,null,null,null,"x",null,"x",null,"x","x","x","x",".","x",".","."]
[615,"nein","Nierstefeldstraße - Stichstraße nördlich - Am Quellweg","Scharnhorst","12 Sondervermögen","P","P","V","V","B","S","E","n. v.","Endausbau.",null,"in Planung","3",{"$f":"SUM(SUMPRODUCT((ISNUMBER(SEARCH(\"x\",S36)))*4),(SUMPRODUCT((ISNUMBER(SEARCH(\"x\",T36:Y36)))*3)),(SUMPRODUCT((ISNUMBER(SEARCH(\"x\",Z36:AB36)))*2)),(SUMPRODUCT((ISNUMBER(SEARCH(\"x\",AC36:AF36)))*1)))","v":4},null,null,null,null,null,null,null,null,null,"x",null,null,"x","x","x",".",".",".","."]

{"sheet":"Straße","index":2,"n_rows":34,"n_cols":37,"rows_kept":34,"cut":false,"hidden":false,"merged":[[1,32,3,16383],[4,27,16,27],[4,28,16,28],[4,29,16,29],[4,30,16,30],[4,31,16,31],[4,33,16,33],[4,34,16,34],[4,35,16,35],[4,36,16,36],[4,32,16,32],[1,12,16,12],[2,8,2,9],[4,26,16,26],[4,8,16,8],[4,9,16,9],[4,18,16,18],[4,19,16,19],[4,20,16,20],[4,21,16,21],[4,22,16,22],[4,23,16,23],[4,24,16,24],[4,25,16,25],[2,10,2,11],[1,13,16,13],[1,14,16,14],[1,15,16,15],[2,18,3,18],[2,19,3,24],[2,25,3,27],[2,28,3,31],[1,16,16,16],[1,17,16,17],[1,18,1,31],[1,0,16,0],[1,1,16,1],[1,2,16,2],[1,3,16,3],[1,4,16,4],[3,5,16,5],[3,6,3,9],[3,10,16,10],[3,11,16,11],[4,6,16,6],[4,7,16,7]]}
[]
["Projektnr.:","Projekt-blatt","Bezeichnung","Stadtbezirk","Art","P","V","B","S",null,"E",null,"Drucksachen-nummer mit Link zum Online-Dokument","Beschreibung","Bemerkungen","Maßnahmenstatus","Prioritätenklasse","Summe Gewichtungspunkte","Bewertungstatbestände mit Gewichtung",null,null,null,null,null,null,null,null,null,null,null,null,null,"Beteiligter Bereich"]
[null,null,null,null,null,"= Planung","= Vorbereitung","= Bau","= Schlussrechnung",null,"= Ende der Baumaßnahme",null,null,null,null,null,null,null,4,3,null,null,null,null,null,2,null,null,1]
[null,null,null,null,null,2025,2026,null,null,null,2027,2028]
[null,null,null,null,null,null,"I","II","III","IV",null,null,null,null,null,null,null,null,"Maßnahme in Ausführung / Auftrag erteilt","Herstellung der Verkehrssicherheit / hoher Unterhaltungsaufwand / kritischer Zustand","Straßenoffensive","Velorouten / Radschnellwege","Maßnahme ist Bestandteil \neines sonstigen Bauprogramms","ÖPNV / Barrierefreiheit","Vergabeverfahren läuft","Baubeschluss liegt vor","Förderantrag bewilligt","Planung weit fortgeschritten","Verkehrliche Bedeutung (Hauptstraßen)","Radverkehr","Refinanzierung möglich / Förderantrag gestellt / Anliegerbeiträge / BV-Mittel","gemeinsame Maßnahme mit Dritten"," Verkehrswege","Verkehrsbauwerke","Verkehrstechnik","Betrieb","Verkehrswendebüro"]
[]
[]
[]
[]
[]
[]
[]
[]
[]
[]
[]
[]
[23,"ja","Wickeder Str. Husener Eichwaldstr. bis Lohheide","Scharnhorst","9 Einzelmaßnahme Straße investiv","B","B","S","S","S","E",null,"31958-23","Grundhafte Erneuerung der Fahrbahn der Wickeder Straße von Husener Eichwaldstraße bis Lohheide.",null,"im Bau",{"$f":"IF(R18=0,\"keine\",IF(AND(R18>0,R18<6),\"3\",IF(AND(R18>5,R18<11),\"2\",\"1\")))","v":"1"},{"$f":"SUM(SUMPRODUCT((ISNUMBER(SEARCH(\"x\",S18)))*4),(SUMPRODUCT((ISNUMBER(SEARCH(\"x\",T18:Y18)))*3)),(SUMPRODUCT((ISNUMBER(SEARCH(\"x\",Z18:AB18)))*2)),(SUMPRODUCT((ISNUMBER(SEARCH(\"x\",AC18:AF18)))*1)))","v":19},"x","x",null,null,null,null,"x","x","x","x","x","x","x",null,"x",".","x",".","."]
[22,"ja","Märkische Straße 2.BA -  B1 bis  Semerteichstraße (Treppenanlage Karl-Harr-Straße, beide Fahrtrichtungen)","überörtlich","9 Einzelmaßnahme Straße investiv","B","B","S","S","S","E",null,"33760-24","Erneuerung des bituminösen Oberbaus beide Fahrttrichtungen.",null,"im Bau","1",{"$f":"SUM(SUMPRODUCT((ISNUMBER(SEARCH(\"x\",S19)))*4),(SUMPRODUCT((ISNUMBER(SEARCH(\"x\",T19:Y19)))*3)),(SUMPRODUCT((ISNUMBER(SEARCH(\"x\",Z19:AB19)))*2)),(SUMPRODUCT((ISNUMBER(SEARCH(\"x\",AC19:AF19)))*1)))","v":19},"x","x",null,null,null,null,"x","x","x","x","x",null,"x","x","x",".","x",".","."]
[238,"ja","Umbau Siegenstraße von Burgring bis Mengeder Straße","Mengede","9a Einzelmaßnahme Straße investiv (Sonderprojekt)","V","B","B","B","S","S","E","24110-22","Umbau der Straße aufgrund von notwendigen Veränderungen (Verlegung des heute im Gehweg liegenden Kanals in die Fahrbahn).",null,"nach Auftragserteilung ruhend","1",{"$f":"SUM(SUMPRODUCT((ISNUMBER(SEARCH(\"x\",S20)))*4),(SUMPRODUCT((ISNUMBER(SEARCH(\"x\",T20:Y20)))*3)),(SUMPRODUCT((ISNUMBER(SEARCH(\"x\",Z20:AB20)))*2)),(SUMPRODUCT((ISNUMBER(SEARCH(\"x\",AC20:AF20)))*1)))","v":18},"x",null,null,null,null,"x","x","x","x","x","x",null,"x",null,"x",".","x",".","."]
[995,"ja","Linie 400 - Abschnitt 10 bis 15; Heiliger Weg bis  Im Spähenfelde; Abschnitt Funkenburg - Stadthaus; Abschnitt Funkenburg - Hörde Bf.","INN-Ost","9 Einzelmaßnahme Straße investiv","V","B","B","B","S","S","E","35774-24","Einführung der Buslinie 400 mit erforderlichen Anpassungen an BHS, Parkregelungen, Signalsteuerungen (Busbeschleunigung)",null,"nach Auftragserteilung ruhend","1",{"$f":"SUM(SUMPRODUCT((ISNUMBER(SEARCH(\"x\",S21)))*4),(SUMPRODUCT((ISNUMBER(SEARCH(\"x\",T21:Y21)))*3)),(SUMPRODUCT((ISNUMBER(SEARCH(\"x\",Z21:AB21)))*2)),(SUMPRODUCT((ISNUMBER(SEARCH(\"x\",AC21:AF21)))*1)))","v":16},"x",null,null,null,null,"x","x","x",null,"x",null,null,"x","x","x",".",".",".","."]
[996,"ja","Linie 400 - Abschnitt 16 bis 19; Brackeler Straße über Borsigplatz, Borsigstraße,  Mallinckrodtstraße bis Leopoldstraße","INN-Nord","9 Einzelmaßnahme Straße investiv","V","B","B","B","S","S","E","35120-24","Einführung der Buslinie 400 mit erforderlichen Anpassungen an BHS, Parkregelungen, Signalsteuerungen (Busbeschleunigung)",null,"nach Auftragserteilung ruhend","1",{"$f":"SUM(SUMPRODUCT((ISNUMBER(SEARCH(\"x\",S22)))*4),(SUMPRODUCT((ISNUMBER(SEARCH(\"x\",T22:Y22)))*3)),(SUMPRODUCT((ISNUMBER(SEARCH(\"x\",Z22:AB22)))*2)),(SUMPRODUCT((ISNUMBER(SEARCH(\"x\",AC22:AF22)))*1)))","v":16},"x",null,null,null,null,"x","x","x",null,"x",null,null,"x","x","x",".",".",".","."]
[666,"ja","Huckarde-Nord, Stadterneuerung  “Vernetzung von Freiflächen”","Huckarde","13 Einzelmaßnahme FB 61 - 67","V","V","B","S","S","E",null,"34599-24","Qualifizierung von Wegeverbindungen in Huckarde-Nord.",null,"nach Auftragserteilung ruhend","1",{"$f":"SUM(SUMPRODUCT((ISNUMBER(SEARCH(\"x\",S23)))*4),(SUMPRODUCT((ISNUMBER(SEARCH(\"x\",T23:Y23)))*3)),(SUMPRODUCT((ISNUMBER(SEARCH(\"x\",Z23:AB23)))*2)),(SUMPRODUCT((ISNUMBER(SEARCH(\"x\",AC23:AF23)))*1)))","v":13},"x",null,null,null,null,null,"x","x",null,"x",null,null,"x","x","x",".",".",".","."]
[1203,"nein","Untere Pekingstraße - Fahrbahnerneuerung von Meinbergstraße bis B236  ","Aplerbeck","9 Einzelmaßnahme Straße investiv","V","V","V","B","B","S","E","39638-25","Erneuerung des Asphaltoberbaus inkl. Regulierung von Bordsteinen und Erneuerung der Entwässerungseinrichtungen ","Vor Vollausbau zunächst Sanierung der Straße. Vollausbau nach 2030.","in Bauvorbereitung","1",{"$f":"SUM(SUMPRODUCT((ISNUMBER(SEARCH(\"x\",S24)))*4),(SUMPRODUCT((ISNUMBER(SEARCH(\"x\",T24:Y24)))*3)),(SUMPRODUCT((ISNUMBER(SEARCH(\"x\",Z24:AB24)))*2)),(SUMPRODUCT((ISNUMBER(SEARCH(\"x\",AC24:AF24)))*1)))","v":11},null,"x",null,"x",null,null,null,"x",null,"x",null,"x",null,null,".",".",".","x","x"]
[333,"nein","Stadterneuerung Westerfilde / Bodelschwingh: Vernetzung Wegeverbindungen und Grünbereiche (Blauer Platz)","Mengede","13 Einzelmaßnahme FB 61 - 67","P","V","V","B","B","B","S","23620-22","Pflasterung der Fußwegeverbindungen, die durch den gesamten Stadtteil Westerfilde führen und die einzelnen Wohnbestände miteinander verbinden sollen. ",null,"in Bauvorbereitung","2",{"$f":"SUM(SUMPRODUCT((ISNUMBER(SEARCH(\"x\",S25)))*4),(SUMPRODUCT((ISNUMBER(SEARCH(\"x\",T25:Y25)))*3)),(SUMPRODUCT((ISNUMBER(SEARCH(\"x\",Z25:AB25)))*2)),(SUMPRODUCT((ISNUMBER(SEARCH(\"x\",AC25:AF25)))*1)))","v":8},null,null,null,null,null,null,null,"x","x","x",null,null,"x","x","x",".",".",".","."]
[357,"nein","Lanstroper Straße - Deckensanierung von Kornmühlenweg bis Stadtgrenze Kamen","Scharnhorst","9b Straßenunterhaltungsmaßnahmen (konsumtiv) 66/6","V","V","B","B","B","S","E","n. v.","Deckensanierung im Rahmen der Straßenoffensive",null,"in Bauvorbereitung","2",{"$f":"SUM(SUMPRODUCT((ISNUMBER(SEARCH(\"x\",S26)))*4),(SUMPRODUCT((ISNUMBER(SEARCH(\"x\",T26:Y26)))*3)),(SUMPRODUCT((ISNUMBER(SEARCH(\"x\",Z26:AB26)))*2)),(SUMPRODUCT((ISNUMBER(SEARCH(\"x\",AC26:AF26)))*1)))","v":8},null,"x","x",null,null,null,null,null,null,"x",null,null,null,null,".",".",".","x","."]
[1219,"nein","Vogelpothsweg von Otto-Hahn-Str. bis Emil-Figge-Str.-Provisorium BHS","Hombruch","9 Einzelmaßnahme Straße investiv","P","V","V","B","B","S","E","n. v.","Bau eines Provisoriums zur Erweiterung der Kapazitäten der Bushaltestelle bis zum Vollumbau (Projekt Nr. 125)",null,"in Bauvorbereitung","2",{"$f":"SUM(SUMPRODUCT((ISNUMBER(SEARCH(\"x\",S27)))*4),(SUMPRODUCT((ISNUMBER(SEARCH(\"x\",T27:Y27)))*3)),(SUMPRODUCT((ISNUMBER(SEARCH(\"x\",Z27:AB27)))*2)),(SUMPRODUCT((ISNUMBER(SEARCH(\"x\",AC27:AF27)))*1)))","v":8},null,"x",null,null,null,"x",null,null,null,"x",null,null,null,null,"x",".",".",".","."]
[1162,"nein","Hörder-Bach-Allee, Herstellung barrierefreier Querungsstellen","Hörde","9 Einzelmaßnahme Straße investiv","P","V","B","S","S","E",null,"38963-25","Herstellung von sechs barrierefreien Querungsstellen ",null,"in Bauvorbereitung","2",{"$f":"SUM(SUMPRODUCT((ISNUMBER(SEARCH(\"x\",S28)))*4),(SUMPRODUCT((ISNUMBER(SEARCH(\"x\",T28:Y28)))*3)),(SUMPRODUCT((ISNUMBER(SEARCH(\"x\",Z28:AB28)))*2)),(SUMPRODUCT((ISNUMBER(SEARCH(\"x\",AC28:AF28)))*1)))","v":7},null,null,null,null,null,"x",null,"x",null,"x",null,null,null,null,"x",".",".",".","."]
[778,"nein","Aplerbecker-Mark-Straße von Schwerter Straße bis DB-Brücke","Aplerbeck","9b Straßenunterhaltungsmaßnahmen (konsumtiv) 66/6","V","V","V","B","B","S","E","38453-25","Sanierung/Erneuerung im Rahmen der Straßenoffensive 2024/2025",null,"in Bauvorbereitung","3",{"$f":"SUM(SUMPRODUCT((ISNUMBER(SEARCH(\"x\",S29)))*4),(SUMPRODUCT((ISNUMBER(SEARCH(\"x\",T29:Y29)))*3)),(SUMPRODUCT((ISNUMBER(SEARCH(\"x\",Z29:AB29)))*2)),(SUMPRODUCT((ISNUMBER(SEARCH(\"x\",AC29:AF29)))*1)))","v":5},null,null,"x",null,null,null,null,null,null,"x",null,null,null,null,".",".",".","x","."]
[1198,"nein","Vogelpothsweg von Wittener Straße bis Haus Nr. 73 - Deckensanierung ","INN-West","9b Straßenunterhaltungsmaßnahmen (konsumtiv) 66/6",null,"V","V","B","B","S","E","n. v.","Deckensanierung, punktuelle Erneuerung der Binderschicht, Herstellung der Barrierefreiheit an drei Haltestellen (lediglich barrierefreies Pflaster einsetzen)",null,"in Bauvorbereitung","3",{"$f":"SUM(SUMPRODUCT((ISNUMBER(SEARCH(\"x\",S30)))*4),(SUMPRODUCT((ISNUMBER(SEARCH(\"x\",T30:Y30)))*3)),(SUMPRODUCT((ISNUMBER(SEARCH(\"x\",Z30:AB30)))*2)),(SUMPRODUCT((ISNUMBER(SEARCH(\"x\",AC30:AF30)))*1)))","v":5},null,"x",null,null,null,null,null,null,null,"x",null,null,null,null,".",".",".","x","."]
[661,"nein","Deckenerneuerung OW IIIa - Von AK A45 (AS Dortmund-Hafen)  bis zur Abfahrt Huckarder Str.","Huckarde","9 Einzelmaßnahme Straße investiv",null,"V","V","V","B","E",null,"n. v.","Deckensanierung im Rahmen der Straßenunterhaltung.",null,"in Bauvorbereitung","3",{"$f":"SUM(SUMPRODUCT((ISNUMBER(SEARCH(\"x\",S31)))*4),(SUMPRODUCT((ISNUMBER(SEARCH(\"x\",T31:Y31)))*3)),(SUMPRODUCT((ISNUMBER(SEARCH(\"x\",Z31:AB31)))*2)),(SUMPRODUCT((ISNUMBER(SEARCH(\"x\",AC31:AF31)))*1)))","v":4},null,"x",null,null,null,null,null,null,null,null,"x",null,null,null,".",".",".","x","."]
[1199,"nein","Westbrink ","Brackel","9 Einzelmaßnahme Straße investiv","P","P","V","V","B","B","S","n. v.","Wiederherstellung der Straße im Rahmen einer Kanalerneuerung inkl. neuer Sinkkästen - ab Haus Nr. 16 bis Ende, Kostenübernahme durch FB 66",null,"in Planung","3",{"$f":"SUM(SUMPRODUCT((ISNUMBER(SEARCH(\"x\",S32)))*4),(SUMPRODUCT((ISNUMBER(SEARCH(\"x\",T32:Y32)))*3)),(SUMPRODUCT((ISNUMBER(SEARCH(\"x\",Z32:AB32)))*2)),(SUMPRODUCT((ISNUMBER(SEARCH(\"x\",AC32:AF32)))*1)))","v":4},null,null,null,null,null,null,null,null,null,"x",null,null,"x","x","x",".",".",".","."]
[1021,"nein","Am Hagedorn / Grüningsweg - Einrichtung einer Fahrradzone und Plateauaufpflasterungen ","Brackel","4 Einzelmaßnahme Verkehrsberuhigung",null,"P","V","B","B","V","B","n.v.","Markierungen und Beschilderung erfolgen voraussichtlich im 3/4. Quartal 2026, Aufpflasterungen im Jahr 2028.",null,"in Planung","3",{"$f":"SUM(SUMPRODUCT((ISNUMBER(SEARCH(\"x\",S33)))*4),(SUMPRODUCT((ISNUMBER(SEARCH(\"x\",T33:Y33)))*3)),(SUMPRODUCT((ISNUMBER(SEARCH(\"x\",Z33:AB33)))*2)),(SUMPRODUCT((ISNUMBER(SEARCH(\"x\",AC33:AF33)))*1)))","v":1},null,null,null,null,null,null,null,null,null,null,null,"x"]
[347,"nein","Bundesstraße 1, von Am Kaiserhain bis Voßkuhle","Innenstadt-Ost","9b Straßenunterhaltungsmaßnahmen (konsumtiv) 66/6",null,null,"V","V","B","S","E","n. v.","Deckensanierung im Rahmen der Straßenunterhaltung von Am Kaiserhain bis Semerteichstraße in Fahrtrichtung Unna.",null,"ruhend",{"$f":"IF(R34=0,\"keine\",IF(AND(R34>0,R34<6),\"3\",IF(AND(R34>5,R34<11),\"2\",\"1\")))","v":"3"},{"$f":"SUM(SUMPRODUCT((ISNUMBER(SEARCH(\"x\",S34)))*4),(SUMPRODUCT((ISNUMBER(SEARCH(\"x\",T34:Y34)))*3)),(SUMPRODUCT((ISNUMBER(SEARCH(\"x\",Z34:AB34)))*2)),(SUMPRODUCT((ISNUMBER(SEARCH(\"x\",AC34:AF34)))*1)))","v":1},null,null,null,null,null,null,null,null,null,null,"x",null,null,null,".",".",".","x","."]

{"sheet":"Straßenoffensive","index":3,"n_rows":144,"n_cols":37,"rows_kept":144,"cut":false,"hidden":false,"merged":[[1,32,3,36],[4,27,16,27],[4,28,16,28],[4,29,16,29],[4,30,16,30],[4,31,16,31],[4,33,16,33],[4,34,16,34],[4,35,16,35],[4,36,16,36],[4,32,16,32],[1,12,16,12],[4,26,16,26],[4,7,16,7],[2,8,2,9],[4,8,16,8],[4,9,16,9],[4,18,16,18],[4,19,16,19],[4,20,16,20],[4,21,16,21],[4,22,16,22],[4,23,16,23],[4,24,16,24],[4,25,16,25],[1,13,16,13],[1,14,16,14],[1,15,16,15],[2,18,3,18],[2,19,3,24],[2,25,3,27],[2,28,3,31],[1,16,16,16],[1,17,16,17],[1,18,1,31],[2,10,2,11],[1,0,16,0],[1,1,16,1],[1,2,16,2],[1,3,16,3],[1,4,16,4],[3,5,16,5],[3,6,3,9],[3,10,16,10],[3,11,16,11],[4,6,16,6]]}
[]
["Projektnr.:","Projekt-blatt","Bezeichnung","Stadtbezirk","Art","P","V","B","S",null,"E",null,"Drucksachen-nummer mit Link zum Online-Dokument","Beschreibung","Bemerkungen","Maßnahmenstatus","Prioritätenklasse","Summe Gewichtungspunkte","Bewertungstatbestände mit Gewichtung",null,null,null,null,null,null,null,null,null,null,null,null,null,"Beteiligter Bereich"]
[null,null,null,null,null,"= Planung","= Vorbereitung","= Bau","= Schlussrechnung",null,"= Ende der Baumaßnahme",null,null,null,null,null,null,null,4,3,null,null,null,null,null,2,null,null,1]
[null,null,null,null,null,2025,2026,null,null,null,2027,2028]
[null,null,null,null,null,null,"I","II","III","IV",null,null,null,null,null,null,null,null,"Maßnahme in Ausführung / Auftrag erteilt","Herstellung der Verkehrssicherheit / hoher Unterhaltungsaufwand / kritischer Zustand","Straßenoffensive","Velorouten / Radschnellwege","Maßnahme ist Bestandteil \neines sonstigen Bauprogramms","ÖPNV / Barrierefreiheit","Vergabeverfahren läuft","Baubeschluss liegt vor","Förderantrag bewilligt","Planung weit fortgeschritten","Verkehrliche Bedeutung (Hauptstraßen)","Radverkehr","Refinanzierung möglich / Förderantrag gestellt / Anliegerbeiträge / BV-Mittel","gemeinsame Maßnahme mit Dritten"," Verkehrswege","Verkehrsbauwerke","Verkehrstechnik","Betrieb","Verkehrswendebüro"]
[]
[]
[]
[]
[]
[]
[]
[]
[]
[]
[]
[]
[1124,"ja","Falterweg","Aplerbeck","6 Straßenoffensive","B","B","B","S","S","E",null,"32994-23","Erneuerung des bit. Oberbaus, ggf. inkl. ungebundener Tragschicht. Austausch von Straßen­entwässerungs­leitungen. Ggf. lokal Baugruben für punktuelle Kanalsanierung EB70","Umsetzung abhängig u.a. von Witterung und Kapazitäten des Auftragnehmers. Genauer Zeitpunkt kann aktuell nicht dargestellt werden. Aus diesem Grund Bauphase im Arbeitsprogramm  auf mehrere Quartale ausgedehnt.","im Bau",{"$f":"IF(R18=0,\"keine\",IF(AND(R18>0,R18<6),\"3\",IF(AND(R18>5,R18<11),\"2\",\"1\")))","v":"1"},{"$f":"SUM(SUMPRODUCT((ISNUMBER(SEARCH(\"x\",S18)))*4),(SUMPRODUCT((ISNUMBER(SEARCH(\"x\",T18:Y18)))*3)),(SUMPRODUCT((ISNUMBER(SEARCH(\"x\",Z18:AB18)))*2)),(SUMPRODUCT((ISNUMBER(SEARCH(\"x\",AC18:AF18)))*1)))","v":17},"x","x","x",null,null,null,"x","x",null,"x",null,null,null,null,".",".",".","x","."]
[987,"ja","Hacheneyer Kirchweg, von Zillestraße bis Auffahrt B54 FE","Hörde","6 Straßenoffensive",null,null,"B","B","S","E",null,"32994-23","Sanierung/Erneuerung im Rahmen der Straßenoffensive 2024/2025",null,"nach Auftragserteilung ruhend","1",{"$f":"SUM(SUMPRODUCT((ISNUMBER(SEARCH(\"x\",S19)))*4),(SUMPRODUCT((ISNUMBER(SEARCH(\"x\",T19:Y19)))*3)),(SUMPRODUCT((ISNUMBER(SEARCH(\"x\",Z19:AB19)))*2)),(SUMPRODUCT((ISNUMBER(SEARCH(\"x\",AC19:AF19)))*1)))","v":20},"x","x","x",null,null,null,"x","x","x","x",null,null,"x",null,".",".",".","x","."]
[1035,"ja","Froschlake","Lütgendortmund","6 Straßenoffensive","V","B","B","B","B","S","E","32994-23","Sanierung/Erneuerung im Rahmen der Straßenoffensive 2024/2025","Anschlussarbeiten an Kanalerneuerung des EB 70. ","nach Auftragserteilung ruhend","1",{"$f":"SUM(SUMPRODUCT((ISNUMBER(SEARCH(\"x\",S20)))*4),(SUMPRODUCT((ISNUMBER(SEARCH(\"x\",T20:Y20)))*3)),(SUMPRODUCT((ISNUMBER(SEARCH(\"x\",Z20:AB20)))*2)),(SUMPRODUCT((ISNUMBER(SEARCH(\"x\",AC20:AF20)))*1)))","v":18},"x","x","x",null,null,null,"x","x",null,"x",null,null,null,"x",".",".",".","x","."]
[1109,"ja","Brache - Quartier Lütgendortmund -","Lütgendortmund","6 Straßenoffensive","V","B","B","B","S","S","E","32994-23","Sanierung/Erneuerung im Rahmen der Straßenoffensive 2024/2025","Umsetzung abhängig u.a. von Witterung und Kapazitäten des Auftragnehmers. Genauer Zeitpunkt kann aktuell nicht dargestellt werden. Aus diesem Grund Bauphase im Arbeitsprogramm  auf mehrere Quartale ausgedehnt.","nach Auftragserteilung ruhend","1",{"$f":"SUM(SUMPRODUCT((ISNUMBER(SEARCH(\"x\",S21)))*4),(SUMPRODUCT((ISNUMBER(SEARCH(\"x\",T21:Y21)))*3)),(SUMPRODUCT((ISNUMBER(SEARCH(\"x\",Z21:AB21)))*2)),(SUMPRODUCT((ISNUMBER(SEARCH(\"x\",AC21:AF21)))*1)))","v":17},"x","x","x",null,null,null,"x","x",null,"x",null,null,null,null,".",".",".","x","."]
[1110,"ja","Junoweg - Quartier Lütgendortmund -","Lütgendortmund","6 Straßenoffensive","V","B","B","B","S","S","E","32994-23","Sanierung/Erneuerung im Rahmen der Straßenoffensive 2024/2025","Umsetzung abhängig u.a. von Witterung und Kapazitäten des Auftragnehmers. Genauer Zeitpunkt kann aktuell nicht dargestellt werden. Aus diesem Grund Bauphase im Arbeitsprogramm  auf mehrere Quartale ausgedehnt.","nach Auftragserteilung ruhend","1",{"$f":"SUM(SUMPRODUCT((ISNUMBER(SEARCH(\"x\",S22)))*4),(SUMPRODUCT((ISNUMBER(SEARCH(\"x\",T22:Y22)))*3)),(SUMPRODUCT((ISNUMBER(SEARCH(\"x\",Z22:AB22)))*2)),(SUMPRODUCT((ISNUMBER(SEARCH(\"x\",AC22:AF22)))*1)))","v":17},"x","x","x",null,null,null,"x","x",null,"x",null,null,null,null,".",".",".","x","."]
[1111,"ja","Neptunstraße - Quartier Lütgendortmund - von Brache bis Unterdelle\r\n","Lütgendortmund","6 Straßenoffensive","V","B","B","B","S","S","E","32994-23","Sanierung/Erneuerung im Rahmen der Straßenoffensive 2024/2025","Umsetzung abhängig u.a. von Witterung und Kapazitäten des Auftragnehmers. Genauer Zeitpunkt kann aktuell nicht dargestellt werden. Aus diesem Grund Bauphase im Arbeitsprogramm  auf mehrere Quartale ausgedehnt.","nach Auftragserteilung ruhend","1",{"$f":"SUM(SUMPRODUCT((ISNUMBER(SEARCH(\"x\",S23)))*4),(SUMPRODUCT((ISNUMBER(SEARCH(\"x\",T23:Y23)))*3)),(SUMPRODUCT((ISNUMBER(SEARCH(\"x\",Z23:AB23)))*2)),(SUMPRODUCT((ISNUMBER(SEARCH(\"x\",AC23:AF23)))*1)))","v":17},"x","x","x",null,null,null,"x","x",null,"x",null,null,null,null,".",".",".","x","."]
[1112,"ja","Oberdelle - Quartier Lütgendortmund -","Lütgendortmund","6 Straßenoffensive","V","B","B","B","S","S","E","32994-23","Sanierung/Erneuerung im Rahmen der Straßenoffensive 2024/2025","Umsetzung abhängig u.a. von Witterung und Kapazitäten des Auftragnehmers. Genauer Zeitpunkt kann aktuell nicht dargestellt werden. Aus diesem Grund Bauphase im Arbeitsprogramm  auf mehrere Quartale ausgedehnt.","nach Auftragserteilung ruhend","1",{"$f":"SUM(SUMPRODUCT((ISNUMBER(SEARCH(\"x\",S24)))*4),(SUMPRODUCT((ISNUMBER(SEARCH(\"x\",T24:Y24)))*3)),(SUMPRODUCT((ISNUMBER(SEARCH(\"x\",Z24:AB24)))*2)),(SUMPRODUCT((ISNUMBER(SEARCH(\"x\",AC24:AF24)))*1)))","v":17},"x","x","x",null,null,null,"x","x",null,"x",null,null,null,null,".",".",".","x","."]
[1113,"ja","Stemmkeweg - Quartier Lütgendortmund -","Lütgendortmund","6 Straßenoffensive","V","B","B","B","S","S","E","32994-23","Sanierung/Erneuerung im Rahmen der Straßenoffensive 2024/2025","Umsetzung abhängig u.a. von Witterung und Kapazitäten des Auftragnehmers. Genauer Zeitpunkt kann aktuell nicht dargestellt werden. Aus diesem Grund Bauphase im Arbeitsprogramm  auf mehrere Quartale ausgedehnt.","nach Auftragserteilung ruhend","1",{"$f":"SUM(SUMPRODUCT((ISNUMBER(SEARCH(\"x\",S25)))*4),(SUMPRODUCT((ISNUMBER(SEARCH(\"x\",T25:Y25)))*3)),(SUMPRODUCT((ISNUMBER(SEARCH(\"x\",Z25:AB25)))*2)),(SUMPRODUCT((ISNUMBER(SEARCH(\"x\",AC25:AF25)))*1)))","v":17},"x","x","x",null,null,null,"x","x",null,"x",null,null,null,null,".",".",".","x","."]
[1114,"ja","Uranusstraße - Quartier Lütgendortmund - von Neptunstraße bis Brache \r\n","Lütgendortmund","6 Straßenoffensive","V","B","B","B","S","S","E","32994-23","Sanierung/Erneuerung im Rahmen der Straßenoffensive 2024/2025","Umsetzung abhängig u.a. von Witterung und Kapazitäten des Auftragnehmers. Genauer Zeitpunkt kann aktuell nicht dargestellt werden. Aus diesem Grund Bauphase im Arbeitsprogramm  auf mehrere Quartale ausgedehnt.","nach Auftragserteilung ruhend","1",{"$f":"SUM(SUMPRODUCT((ISNUMBER(SEARCH(\"x\",S26)))*4),(SUMPRODUCT((ISNUMBER(SEARCH(\"x\",T26:Y26)))*3)),(SUMPRODUCT((ISNUMBER(SEARCH(\"x\",Z26:AB26)))*2)),(SUMPRODUCT((ISNUMBER(SEARCH(\"x\",AC26:AF26)))*1)))","v":17},"x","x","x",null,null,null,"x","x",null,"x",null,null,null,null,".",".",".","x","."]
[1022,"ja","Paul-Fleming-Straße FE - Quartier -","Mengede","6 Straßenoffensive","V","B","S","S","S","E",null,"32994-23","Sanierung/Erneuerung im Rahmen der Straßenoffensive 2024/2025",null,"nach Auftragserteilung ruhend","1",{"$f":"SUM(SUMPRODUCT((ISNUMBER(SEARCH(\"x\",S27)))*4),(SUMPRODUCT((ISNUMBER(SEARCH(\"x\",T27:Y27)))*3)),(SUMPRODUCT((ISNUMBER(SEARCH(\"x\",Z27:AB27)))*2)),(SUMPRODUCT((ISNUMBER(SEARCH(\"x\",AC27:AF27)))*1)))","v":17},"x","x","x",null,null,null,"x","x",null,"x",null,null,null,null,".",".",".","x","."]
[1023,"ja","Ristweg, FE - Quartier -","Mengede","6 Straßenoffensive","V","B","S","S","S","E",null,"32994-23","Sanierung/Erneuerung im Rahmen der Straßenoffensive 2024/2025",null,"nach Auftragserteilung ruhend","1",{"$f":"SUM(SUMPRODUCT((ISNUMBER(SEARCH(\"x\",S28)))*4),(SUMPRODUCT((ISNUMBER(SEARCH(\"x\",T28:Y28)))*3)),(SUMPRODUCT((ISNUMBER(SEARCH(\"x\",Z28:AB28)))*2)),(SUMPRODUCT((ISNUMBER(SEARCH(\"x\",AC28:AF28)))*1)))","v":17},"x","x","x",null,null,null,"x","x",null,"x",null,null,null,null,".",".",".","x","."]
[1024,"ja","Weckherlinweg von Haus-Nr. 13 bis 28, Deckensanierung - Quartier -","Mengede","6 Straßenoffensive","V","B","S","S","S","E",null,"32994-23","Sanierung/Erneuerung im Rahmen der Straßenoffensive 2024/2025",null,"nach Auftragserteilung ruhend","1",{"$f":"SUM(SUMPRODUCT((ISNUMBER(SEARCH(\"x\",S29)))*4),(SUMPRODUCT((ISNUMBER(SEARCH(\"x\",T29:Y29)))*3)),(SUMPRODUCT((ISNUMBER(SEARCH(\"x\",Z29:AB29)))*2)),(SUMPRODUCT((ISNUMBER(SEARCH(\"x\",AC29:AF29)))*1)))","v":17},"x","x","x",null,null,null,"x","x",null,"x",null,null,null,null,".",".",".","x","."]
[1025,"ja","Waterloostr. von Paul-Gerhardt-Str. bis Ende, FE - Quartier -","Mengede","6 Straßenoffensive","V","B","B","S","S","E",null,"32994-23","Sanierung/Erneuerung im Rahmen der Straßenoffensive 2024/2025",null,"nach Auftragserteilung ruhend","1",{"$f":"SUM(SUMPRODUCT((ISNUMBER(SEARCH(\"x\",S30)))*4),(SUMPRODUCT((ISNUMBER(SEARCH(\"x\",T30:Y30)))*3)),(SUMPRODUCT((ISNUMBER(SEARCH(\"x\",Z30:AB30)))*2)),(SUMPRODUCT((ISNUMBER(SEARCH(\"x\",AC30:AF30)))*1)))","v":17},"x","x","x",null,null,null,"x","x",null,"x",null,null,null,null,".",".",".","x","."]
[1033,"ja","Limbecker Straße (Haus Nr. 1 bis 13)","Lütgendortmund","6 Straßenoffensive","V",null,"B","B","B","S","E","32994-23","Sanierung/Erneuerung im Rahmen der Straßenoffensive 2024/2025",null,"nach Auftragserteilung ruhend","1",{"$f":"SUM(SUMPRODUCT((ISNUMBER(SEARCH(\"x\",S31)))*4),(SUMPRODUCT((ISNUMBER(SEARCH(\"x\",T31:Y31)))*3)),(SUMPRODUCT((ISNUMBER(SEARCH(\"x\",Z31:AB31)))*2)),(SUMPRODUCT((ISNUMBER(SEARCH(\"x\",AC31:AF31)))*1)))","v":17},"x","x","x",null,null,null,"x","x",null,"x",null,null,null,null,".",".",".","x","."]
[1043,"ja","Albroweg - Quartier Brackel - Wiscelusweg bis g Am Ostbrink","Brackel","6 Straßenoffensive","V","V","B","B","S","S","E","32994-23","Sanierung/Erneuerung im Rahmen der Straßenoffensive 2024/2025","Umsetzung abhängig u.a. von Witterung und Kapazitäten des Auftragnehmers. Genauer Zeitpunkt kann aktuell nicht dargestellt werden. Aus diesem Grund Bauphase im Arbeitsprogramm ggfs. auf mehrere Quartale ausgedehnt.","nach Auftragserteilung ruhend","1",{"$f":"SUM(SUMPRODUCT((ISNUMBER(SEARCH(\"x\",S32)))*4),(SUMPRODUCT((ISNUMBER(SEARCH(\"x\",T32:Y32)))*3)),(SUMPRODUCT((ISNUMBER(SEARCH(\"x\",Z32:AB32)))*2)),(SUMPRODUCT((ISNUMBER(SEARCH(\"x\",AC32:AF32)))*1)))","v":17},"x","x","x",null,null,null,"x","x",null,"x",null,null,null,null,".",".",".","x","."]
[1044,"ja","Randolfweg - Quartier Brackel - Wiscelhusweg bis Sackgasse","Brackel","6 Straßenoffensive","V","V","B","B","S","S","E","32994-23","Sanierung/Erneuerung im Rahmen der Straßenoffensive 2024/2025","Umsetzung abhängig u.a. von Witterung und Kapazitäten des Auftragnehmers. Genauer Zeitpunkt kann aktuell nicht dargestellt werden. Aus diesem Grund Bauphase im Arbeitsprogramm ggfs. auf mehrere Quartale ausgedehnt.","nach Auftragserteilung ruhend","1",{"$f":"SUM(SUMPRODUCT((ISNUMBER(SEARCH(\"x\",S33)))*4),(SUMPRODUCT((ISNUMBER(SEARCH(\"x\",T33:Y33)))*3)),(SUMPRODUCT((ISNUMBER(SEARCH(\"x\",Z33:AB33)))*2)),(SUMPRODUCT((ISNUMBER(SEARCH(\"x\",AC33:AF33)))*1)))","v":17},"x","x","x",null,null,null,"x","x",null,"x",null,null,null,null,".",".",".","x","."]
[1045,"ja","Adickestraße FE - Quartier -","INN-Ost","6 Straßenoffensive","V","B","S","S","S","E",null,"32994-23","Sanierung/Erneuerung im Rahmen der Straßenoffensive 2024/2025","Umsetzung abhängig u.a. von Witterung und Kapazitäten des Auftragnehmers. Genauer Zeitpunkt kann aktuell nicht dargestellt werden. Aus diesem Grund Bauphase im Arbeitsprogramm ggfs. auf mehrere Quartale ausgedehnt.","nach Auftragserteilung ruhend","1",{"$f":"SUM(SUMPRODUCT((ISNUMBER(SEARCH(\"x\",S34)))*4),(SUMPRODUCT((ISNUMBER(SEARCH(\"x\",T34:Y34)))*3)),(SUMPRODUCT((ISNUMBER(SEARCH(\"x\",Z34:AB34)))*2)),(SUMPRODUCT((ISNUMBER(SEARCH(\"x\",AC34:AF34)))*1)))","v":17},"x","x","x",null,null,null,"x","x",null,"x",null,null,null,null,".",".",".","x","."]
[1046,"ja","Donnerstraße - Quartier Brackel - Am Ostbrink bis Am Ostbrink","Brackel","6 Straßenoffensive","V","V","B","B","S","S","E","32994-23","Sanierung/Erneuerung im Rahmen der Straßenoffensive 2024/2025","Umsetzung abhängig u.a. von Witterung und Kapazitäten des Auftragnehmers. Genauer Zeitpunkt kann aktuell nicht dargestellt werden. Aus diesem Grund Bauphase im Arbeitsprogramm ggfs. auf mehrere Quartale ausgedehnt.","nach Auftragserteilung ruhend","1",{"$f":"SUM(SUMPRODUCT((ISNUMBER(SEARCH(\"x\",S35)))*4),(SUMPRODUCT((ISNUMBER(SEARCH(\"x\",T35:Y35)))*3)),(SUMPRODUCT((ISNUMBER(SEARCH(\"x\",Z35:AB35)))*2)),(SUMPRODUCT((ISNUMBER(SEARCH(\"x\",AC35:AF35)))*1)))","v":17},"x","x","x",null,null,null,"x","x",null,"x",null,null,null,null,".",".",".","x","."]
[1047,"ja","Gerhart-Hauptmann-Straße, Deckensanierung - Quartier -","INN-Ost","6 Straßenoffensive","V","B","S","S","S","E",null,"32994-23","Sanierung/Erneuerung im Rahmen der Straßenoffensive 2024/2025","Umsetzung abhängig u.a. von Witterung und Kapazitäten des Auftragnehmers. Genauer Zeitpunkt kann aktuell nicht dargestellt werden. Aus diesem Grund Bauphase im Arbeitsprogramm ggfs. auf mehrere Quartale ausgedehnt.","nach Auftragserteilung ruhend","1",{"$f":"SUM(SUMPRODUCT((ISNUMBER(SEARCH(\"x\",S36)))*4),(SUMPRODUCT((ISNUMBER(SEARCH(\"x\",T36:Y36)))*3)),(SUMPRODUCT((ISNUMBER(SEARCH(\"x\",Z36:AB36)))*2)),(SUMPRODUCT((ISNUMBER(SEARCH(\"x\",AC36:AF36)))*1)))","v":17},"x","x","x",null,null,null,"x","x",null,"x",null,null,null,null,".",".",".","x","."]
[1049,"ja","Schönaichstraße, FE - Quartier -","INN-Ost","6 Straßenoffensive","V","B","S","S","S","E",null,"32994-23","Sanierung/Erneuerung im Rahmen der Straßenoffensive 2024/2025","Umsetzung abhängig u.a. von Witterung und Kapazitäten des Auftragnehmers. Genauer Zeitpunkt kann aktuell nicht dargestellt werden. Aus diesem Grund Bauphase im Arbeitsprogramm ggfs. auf mehrere Quartale ausgedehnt.","nach Auftragserteilung ruhend","1",{"$f":"SUM(SUMPRODUCT((ISNUMBER(SEARCH(\"x\",S37)))*4),(SUMPRODUCT((ISNUMBER(SEARCH(\"x\",T37:Y37)))*3)),(SUMPRODUCT((ISNUMBER(SEARCH(\"x\",Z37:AB37)))*2)),(SUMPRODUCT((ISNUMBER(SEARCH(\"x\",AC37:AF37)))*1)))","v":17},"x","x","x",null,null,null,"x","x",null,"x",null,null,null,null,".",".",".","x","."]
[1050,"ja","Ertmarweg - Quartier Brackel - Briefsweg bis Sackgasse mit Abzweig","Brackel","6 Straßenoffensive","V","V","B","B","S","S","E","32994-23","Sanierung/Erneuerung im Rahmen der Straßenoffensive 2024/2025","Umsetzung abhängig u.a. von Witterung und Kapazitäten des Auftragnehmers. Genauer Zeitpunkt kann aktuell nicht dargestellt werden. Aus diesem Grund Bauphase im Arbeitsprogramm ggfs. auf mehrere Quartale ausgedehnt.","nach Auftragserteilung ruhend","1",{"$f":"SUM(SUMPRODUCT((ISNUMBER(SEARCH(\"x\",S38)))*4),(SUMPRODUCT((ISNUMBER(SEARCH(\"x\",T38:Y38)))*3)),(SUMPRODUCT((ISNUMBER(SEARCH(\"x\",Z38:AB38)))*2)),(SUMPRODUCT((ISNUMBER(SEARCH(\"x\",AC38:AF38)))*1)))","v":17},"x","x","x",null,null,null,"x","x",null,"x",null,null,null,null,".",".",".","x","."]
[1051,"ja","Thomas-Mann-Straße, FE - Quartier -","INN-Ost","6 Straßenoffensive","V","B","S","S","S","E",null,"32994-23","Sanierung/Erneuerung im Rahmen der Straßenoffensive 2024/2025","Umsetzung abhängig u.a. von Witterung und Kapazitäten des Auftragnehmers. Genauer Zeitpunkt kann aktuell nicht dargestellt werden. Aus diesem Grund Bauphase im Arbeitsprogramm ggfs. auf mehrere Quartale ausgedehnt.","nach Auftragserteilung ruhend","1",{"$f":"SUM(SUMPRODUCT((ISNUMBER(SEARCH(\"x\",S39)))*4),(SUMPRODUCT((ISNUMBER(SEARCH(\"x\",T39:Y39)))*3)),(SUMPRODUCT((ISNUMBER(SEARCH(\"x\",Z39:AB39)))*2)),(SUMPRODUCT((ISNUMBER(SEARCH(\"x\",AC39:AF39)))*1)))","v":17},"x","x","x",null,null,null,"x","x",null,"x",null,null,null,null,".",".",".","x","."]
[1061,"ja","Asternstraße","Aplerbeck","6 Straßenoffensive","V","B","B","B","B","S","E","32994-23","Sanierung/Erneuerung im Rahmen der Straßenoffensive 2024/2025","Umsetzung abhängig u.a. von Witterung und Kapazitäten des Auftragnehmers. Genauer Zeitpunkt kann aktuell nicht dargestellt werden. Aus diesem Grund Bauphase im Arbeitsprogramm ggfs. auf mehrere Quartale ausgedehnt.","nach Auftragserteilung ruhend","1",{"$f":"SUM(SUMPRODUCT((ISNUMBER(SEARCH(\"x\",S40)))*4),(SUMPRODUCT((ISNUMBER(SEARCH(\"x\",T40:Y40)))*3)),(SUMPRODUCT((ISNUMBER(SEARCH(\"x\",Z40:AB40)))*2)),(SUMPRODUCT((ISNUMBER(SEARCH(\"x\",AC40:AF40)))*1)))","v":17},"x","x","x",null,null,null,"x","x",null,"x",null,null,null,null,".",".",".","x","."]
[1117,"ja","Westricher Straße- von Westermannstraße bis Hausnr. 57\r\n","Lütgendortmund","6 Straßenoffensive","V","V","B","S","S","S","E","32994-23","Sanierung/Erneuerung im Rahmen der Straßenoffensive 2024/2025","Umsetzung abhängig u.a. von Witterung und Kapazitäten des Auftragnehmers. Genauer Zeitpunkt kann aktuell nicht dargestellt werden. Aus diesem Grund Bauphase im Arbeitsprogramm ggfs. auf mehrere Quartale ausgedehnt.","nach Auftragserteilung ruhend","1",{"$f":"SUM(SUMPRODUCT((ISNUMBER(SEARCH(\"x\",S41)))*4),(SUMPRODUCT((ISNUMBER(SEARCH(\"x\",T41:Y41)))*3)),(SUMPRODUCT((ISNUMBER(SEARCH(\"x\",Z41:AB41)))*2)),(SUMPRODUCT((ISNUMBER(SEARCH(\"x\",AC41:AF41)))*1)))","v":17},"x","x","x",null,null,null,"x","x",null,"x",null,null,null,null,".",".",".","x","."]
[932,"nein","Kruckeler Straße von von Autobahnbrücke (BAB 45) bis Löttringhauser Straße","Hombruch","6 Straßenoffensive","V","V","B","B","S","E",null,"32994-23","Sanierung/Erneuerung im Rahmen der Straßenoffensive 2024/2025",null,"in Bauvorbereitung","1",{"$f":"SUM(SUMPRODUCT((ISNUMBER(SEARCH(\"x\",S42)))*4),(SUMPRODUCT((ISNUMBER(SEARCH(\"x\",T42:Y42)))*3)),(SUMPRODUCT((ISNUMBER(SEARCH(\"x\",Z42:AB42)))*2)),(SUMPRODUCT((ISNUMBER(SEARCH(\"x\",AC42:AF42)))*1)))","v":16},null,"x","x",null,null,null,"x","x","x","x",null,null,"x",null,".",".",".","x","."]
[937,"nein","Holthauser Straße, von Haus-Nr. 72 bis Schiffhorst - FE","Eving","6 Straßenoffensive","V","V","V","B","B","S","E","32994-23","Sanierung/Erneuerung im Rahmen der Straßenoffensive 2024/2025",null,"in Bauvorbereitung","1",{"$f":"SUM(SUMPRODUCT((ISNUMBER(SEARCH(\"x\",S43)))*4),(SUMPRODUCT((ISNUMBER(SEARCH(\"x\",T43:Y43)))*3)),(SUMPRODUCT((ISNUMBER(SEARCH(\"x\",Z43:AB43)))*2)),(SUMPRODUCT((ISNUMBER(SEARCH(\"x\",AC43:AF43)))*1)))","v":13},null,"x","x",null,null,null,null,"x","x","x",null,null,"x",null,".",".",".","x","."]
[1053,"nein","Mondstraße - Deckensanierung","Aplerbeck","6 Straßenoffensive","V","V","B","B","B","S","E","38453-25","Sanierung/Erneuerung im Rahmen der Straßenoffensive 2024/2025","Umsetzung abhängig u.a. von Witterung und Kapazitäten des Auftragnehmers. Genauer Zeitpunkt kann aktuell nicht dargestellt werden. Aus diesem Grund Bauphase im Arbeitsprogramm ggfs. auf mehrere Quartale ausgedehnt.",{"$f":"VLOOKUP($A44,'[1]komplett mit Formeln'!$A:$AJ,19,0)","v":"in Bauvorbereitung"},"2",{"$f":"SUM(SUMPRODUCT((ISNUMBER(SEARCH(\"x\",S44)))*4),(SUMPRODUCT((ISNUMBER(SEARCH(\"x\",T44:Y44)))*3)),(SUMPRODUCT((ISNUMBER(SEARCH(\"x\",Z44:AB44)))*2)),(SUMPRODUCT((ISNUMBER(SEARCH(\"x\",AC44:AF44)))*1)))","v":10},null,"x","x",null,null,null,null,"x",null,"x",null,null,null,null,".",".",".","x","."]
[1060,"nein","Eiderstraße - Deckensanierung","Aplerbeck","6 Straßenoffensive","V","V","B","B","B","S","E","38453-25","Sanierung/Erneuerung im Rahmen der Straßenoffensive 2024/2025","Umsetzung abhängig u.a. von Witterung und Kapazitäten des Auftragnehmers. Genauer Zeitpunkt kann aktuell nicht dargestellt werden. Aus diesem Grund Bauphase im Arbeitsprogramm ggfs. auf mehrere Quartale ausgedehnt.",{"$f":"VLOOKUP($A45,'[1]komplett mit Formeln'!$A:$AJ,19,0)","v":"in Bauvorbereitung"},"2",{"$f":"SUM(SUMPRODUCT((ISNUMBER(SEARCH(\"x\",S45)))*4),(SUMPRODUCT((ISNUMBER(SEARCH(\"x\",T45:Y45)))*3)),(SUMPRODUCT((ISNUMBER(SEARCH(\"x\",Z45:AB45)))*2)),(SUMPRODUCT((ISNUMBER(SEARCH(\"x\",AC45:AF45)))*1)))","v":10},null,"x","x",null,null,null,null,"x",null,"x",null,null,null,null,".",".",".","x","."]
[1076,"nein","Kiebitzweg - Quartier Hombruch","Hombruch","6 Straßenoffensive","V","V","V","B","B","S","E","32994-23","Sanierung/Erneuerung im Rahmen der Straßenoffensive 2024/2025","Umsetzung abhängig u.a. von Witterung und Kapazitäten des Auftragnehmers. Genauer Zeitpunkt kann aktuell nicht dargestellt werden. Aus diesem Grund Bauphase im Arbeitsprogramm ggfs. auf mehrere Quartale ausgedehnt.","in Bauvorbereitung","2",{"$f":"SUM(SUMPRODUCT((ISNUMBER(SEARCH(\"x\",S46)))*4),(SUMPRODUCT((ISNUMBER(SEARCH(\"x\",T46:Y46)))*3)),(SUMPRODUCT((ISNUMBER(SEARCH(\"x\",Z46:AB46)))*2)),(SUMPRODUCT((ISNUMBER(SEARCH(\"x\",AC46:AF46)))*1)))","v":10},null,"x","x",null,null,null,null,"x",null,"x",null,null,null,null,".",".",".","x","."]
[1079,"nein","Kolibriweg- Quartier Hombruch","Hombruch","6 Straßenoffensive","V","V","V","B","B","S","E","32994-23","Sanierung/Erneuerung im Rahmen der Straßenoffensive 2024/2025","Umsetzung abhängig u.a. von Witterung und Kapazitäten des Auftragnehmers. Genauer Zeitpunkt kann aktuell nicht dargestellt werden. Aus diesem Grund Bauphase im Arbeitsprogramm ggfs. auf mehrere Quartale ausgedehnt.","in Bauvorbereitung","2",{"$f":"SUM(SUMPRODUCT((ISNUMBER(SEARCH(\"x\",S47)))*4),(SUMPRODUCT((ISNUMBER(SEARCH(\"x\",T47:Y47)))*3)),(SUMPRODUCT((ISNUMBER(SEARCH(\"x\",Z47:AB47)))*2)),(SUMPRODUCT((ISNUMBER(SEARCH(\"x\",AC47:AF47)))*1)))","v":10},null,"x","x",null,null,null,null,"x",null,"x",null,null,null,null,".",".",".","x","."]
[1080,"nein","Kuckucksweg- Quartier Hombruch","Hombruch","6 Straßenoffensive","V","V","V","B","B","S","E","32994-23","Sanierung/Erneuerung im Rahmen der Straßenoffensive 2024/2025","Umsetzung abhängig u.a. von Witterung und Kapazitäten des Auftragnehmers. Genauer Zeitpunkt kann aktuell nicht dargestellt werden. Aus diesem Grund Bauphase im Arbeitsprogramm ggfs. auf mehrere Quartale ausgedehnt.","in Bauvorbereitung","2",{"$f":"SUM(SUMPRODUCT((ISNUMBER(SEARCH(\"x\",S48)))*4),(SUMPRODUCT((ISNUMBER(SEARCH(\"x\",T48:Y48)))*3)),(SUMPRODUCT((ISNUMBER(SEARCH(\"x\",Z48:AB48)))*2)),(SUMPRODUCT((ISNUMBER(SEARCH(\"x\",AC48:AF48)))*1)))","v":10},null,"x","x",null,null,null,null,"x",null,"x",null,null,null,null,".",".",".","x","."]
[1082,"nein","Nachtigallenweg- Quartier Hombruch","Hombruch","6 Straßenoffensive","V","V","V","B","B","S","E","32994-23","Sanierung/Erneuerung im Rahmen der Straßenoffensive 2024/2025","Umsetzung abhängig u.a. von Witterung und Kapazitäten des Auftragnehmers. Genauer Zeitpunkt kann aktuell nicht dargestellt werden. Aus diesem Grund Bauphase im Arbeitsprogramm ggfs. auf mehrere Quartale ausgedehnt.","in Bauvorbereitung","2",{"$f":"SUM(SUMPRODUCT((ISNUMBER(SEARCH(\"x\",S49)))*4),(SUMPRODUCT((ISNUMBER(SEARCH(\"x\",T49:Y49)))*3)),(SUMPRODUCT((ISNUMBER(SEARCH(\"x\",Z49:AB49)))*2)),(SUMPRODUCT((ISNUMBER(SEARCH(\"x\",AC49:AF49)))*1)))","v":10},null,"x","x",null,null,null,null,"x",null,"x",null,null,null,null,".",".",".","x","."]
[1083,"nein","Rebhuhnweg Quartier Hombruch","Hombruch","6 Straßenoffensive","V","V","V","B","B","S","E","32994-23","Sanierung/Erneuerung im Rahmen der Straßenoffensive 2024/2025","Umsetzung abhängig u.a. von Witterung und Kapazitäten des Auftragnehmers. Genauer Zeitpunkt kann aktuell nicht dargestellt werden. Aus diesem Grund Bauphase im Arbeitsprogramm ggfs. auf mehrere Quartale ausgedehnt.","in Bauvorbereitung",{"$f":"IF(R50=0,\"keine\",IF(AND(R50>0,R50<6),\"3\",IF(AND(R50>5,R50<11),\"2\",\"1\")))","v":"2"},{"$f":"SUM(SUMPRODUCT((ISNUMBER(SEARCH(\"x\",S50)))*4),(SUMPRODUCT((ISNUMBER(SEARCH(\"x\",T50:Y50)))*3)),(SUMPRODUCT((ISNUMBER(SEARCH(\"x\",Z50:AB50)))*2)),(SUMPRODUCT((ISNUMBER(SEARCH(\"x\",AC50:AF50)))*1)))","v":10},null,"x","x",null,null,null,null,"x",null,"x",null,null,null,null,".",".",".","x","."]
[1084,"nein","Regenpfeifferweg- Quartier Hombruch","Hombruch","6 Straßenoffensive","V","V","V","B","B","S","E","32994-23","Sanierung/Erneuerung im Rahmen der Straßenoffensive 2024/2025","Umsetzung abhängig u.a. von Witterung und Kapazitäten des Auftragnehmers. Genauer Zeitpunkt kann aktuell nicht dargestellt werden. Aus diesem Grund Bauphase im Arbeitsprogramm ggfs. auf mehrere Quartale ausgedehnt.","in Bauvorbereitung","2",{"$f":"SUM(SUMPRODUCT((ISNUMBER(SEARCH(\"x\",S51)))*4),(SUMPRODUCT((ISNUMBER(SEARCH(\"x\",T51:Y51)))*3)),(SUMPRODUCT((ISNUMBER(SEARCH(\"x\",Z51:AB51)))*2)),(SUMPRODUCT((ISNUMBER(SEARCH(\"x\",AC51:AF51)))*1)))","v":10},null,"x","x",null,null,null,null,"x",null,"x",null,null,null,null,".",".",".","x","."]
[1085,"nein","Rotkehlchenweg- Quartier Hombruch","Hombruch","6 Straßenoffensive","V","V","V","B","B","S","E","32994-23","Sanierung/Erneuerung im Rahmen der Straßenoffensive 2024/2025","Umsetzung abhängig u.a. von Witterung und Kapazitäten des Auftragnehmers. Genauer Zeitpunkt kann aktuell nicht dargestellt werden. Aus diesem Grund Bauphase im Arbeitsprogramm ggfs. auf mehrere Quartale ausgedehnt.","in Bauvorbereitung","2",{"$f":"SUM(SUMPRODUCT((ISNUMBER(SEARCH(\"x\",S52)))*4),(SUMPRODUCT((ISNUMBER(SEARCH(\"x\",T52:Y52)))*3)),(SUMPRODUCT((ISNUMBER(SEARCH(\"x\",Z52:AB52)))*2)),(SUMPRODUCT((ISNUMBER(SEARCH(\"x\",AC52:AF52)))*1)))","v":10},null,"x","x",null,null,null,null,"x",null,"x",null,null,null,null,".",".",".","x","."]
[1086,"nein","Schwarzdrosselweg- Quartier Hombruch","Hombruch","6 Straßenoffensive","V","V","V","B","B","S","E","32994-23","Sanierung/Erneuerung im Rahmen der Straßenoffensive 2024/2025","Umsetzung abhängig u.a. von Witterung und Kapazitäten des Auftragnehmers. Genauer Zeitpunkt kann aktuell nicht dargestellt werden. Aus diesem Grund Bauphase im Arbeitsprogramm ggfs. auf mehrere Quartale ausgedehnt.","in Bauvorbereitung","2",{"$f":"SUM(SUMPRODUCT((ISNUMBER(SEARCH(\"x\",S53)))*4),(SUMPRODUCT((ISNUMBER(SEARCH(\"x\",T53:Y53)))*3)),(SUMPRODUCT((ISNUMBER(SEARCH(\"x\",Z53:AB53)))*2)),(SUMPRODUCT((ISNUMBER(SEARCH(\"x\",AC53:AF53)))*1)))","v":10},null,"x","x",null,null,null,null,"x",null,"x",null,null,null,null,".",".",".","x","."]
[1087,"nein","Zaunkönigweg- Quartier Hombruch","Hombruch","6 Straßenoffensive","V","V","V","B","B","S","E","32994-23","Sanierung/Erneuerung im Rahmen der Straßenoffensive 2024/2025","Umsetzung abhängig u.a. von Witterung und Kapazitäten des Auftragnehmers. Genauer Zeitpunkt kann aktuell nicht dargestellt werden. Aus diesem Grund Bauphase im Arbeitsprogramm ggfs. auf mehrere Quartale ausgedehnt.","in Bauvorbereitung","2",{"$f":"SUM(SUMPRODUCT((ISNUMBER(SEARCH(\"x\",S54)))*4),(SUMPRODUCT((ISNUMBER(SEARCH(\"x\",T54:Y54)))*3)),(SUMPRODUCT((ISNUMBER(SEARCH(\"x\",Z54:AB54)))*2)),(SUMPRODUCT((ISNUMBER(SEARCH(\"x\",AC54:AF54)))*1)))","v":10},null,"x","x",null,null,null,null,"x",null,"x",null,null,null,null,".",".",".","x","."]
[1224,"nein","Gevelsbergstraße - Deckensanierung von Bergmeisterstraße bis Marsbruchstraße","Aplerbeck","6 Straßenoffensive","V","V","B","B","B","S","E","38453-25","Deckensanierung im Rahmen der Straßenoffensive 2026/2027.","Umsetzung abhängig u.a. von Witterung und Kapazitäten des Auftragnehmers. Genauer Zeitpunkt kann aktuell nicht dargestellt werden. Aus diesem Grund Bauphase im Arbeitsprogramm ggfs. auf mehrere Quartale ausgedehnt.",{"$f":"VLOOKUP($A55,'[1]komplett mit Formeln'!$A:$AJ,19,0)","v":"in Bauvorbereitung"},"2",{"$f":"SUM(SUMPRODUCT((ISNUMBER(SEARCH(\"x\",S55)))*4),(SUMPRODUCT((ISNUMBER(SEARCH(\"x\",T55:Y55)))*3)),(SUMPRODUCT((ISNUMBER(SEARCH(\"x\",Z55:AB55)))*2)),(SUMPRODUCT((ISNUMBER(SEARCH(\"x\",AC55:AF55)))*1)))","v":10},null,"x","x",null,null,null,null,"x",null,"x",null,null,null,null,".",".",".","x","."]
[1225,"nein","Am Funkturm - Deckensanierung","Brackel","6 Straßenoffensive","V","V","B","B","B","S","E","38453-25","Deckensanierung im Rahmen der Straßenoffensive 2026/2027.","Umsetzung abhängig u.a. von Witterung und Kapazitäten des Auftragnehmers. Genauer Zeitpunkt kann aktuell nicht dargestellt werden. Aus diesem Grund Bauphase im Arbeitsprogramm ggfs. auf mehrere Quartale ausgedehnt.",{"$f":"VLOOKUP($A56,'[1]komplett mit Formeln'!$A:$AJ,19,0)","v":"in Bauvorbereitung"},"2",{"$f":"SUM(SUMPRODUCT((ISNUMBER(SEARCH(\"x\",S56)))*4),(SUMPRODUCT((ISNUMBER(SEARCH(\"x\",T56:Y56)))*3)),(SUMPRODUCT((ISNUMBER(SEARCH(\"x\",Z56:AB56)))*2)),(SUMPRODUCT((ISNUMBER(SEARCH(\"x\",AC56:AF56)))*1)))","v":10},null,"x","x",null,null,null,null,"x",null,"x",null,null,null,null,".",".",".","x","."]
[1226,"nein","Ebbinghausstraße - Deckensanierung von Hausnr. 45 bis 53","Brackel","6 Straßenoffensive","V","V","B","B","B","S","E","38453-25","Deckensanierung im Rahmen der Straßenoffensive 2026/2027.","Umsetzung abhängig u.a. von Witterung und Kapazitäten des Auftragnehmers. Genauer Zeitpunkt kann aktuell nicht dargestellt werden. Aus diesem Grund Bauphase im Arbeitsprogramm ggfs. auf mehrere Quartale ausgedehnt.",{"$f":"VLOOKUP($A57,'[1]komplett mit Formeln'!$A:$AJ,19,0)","v":"in Bauvorbereitung"},"2",{"$f":"SUM(SUMPRODUCT((ISNUMBER(SEARCH(\"x\",S57)))*4),(SUMPRODUCT((ISNUMBER(SEARCH(\"x\",T57:Y57)))*3)),(SUMPRODUCT((ISNUMBER(SEARCH(\"x\",Z57:AB57)))*2)),(SUMPRODUCT((ISNUMBER(SEARCH(\"x\",AC57:AF57)))*1)))","v":10},null,"x","x",null,null,null,null,"x",null,"x",null,null,null,null,".",".",".","x","."]
[1227,"nein","Küßnachtstraße - Quartier 2 Brackel - Deckensanierung von Rütlistraße bis Auf dem Hohwart vor Rütlistraße","Brackel","6 Straßenoffensive","V","V","B","B","B","S","E","38453-25","Deckensanierung im Rahmen der Straßenoffensive 2026/2027.","Umsetzung abhängig u.a. von Witterung und Kapazitäten des Auftragnehmers. Genauer Zeitpunkt kann aktuell nicht dargestellt werden. Aus diesem Grund Bauphase im Arbeitsprogramm ggfs. auf mehrere Quartale ausgedehnt.",{"$f":"VLOOKUP($A58,'[1]komplett mit Formeln'!$A:$AJ,19,0)","v":"in Bauvorbereitung"},"2",{"$f":"SUM(SUMPRODUCT((ISNUMBER(SEARCH(\"x\",S58)))*4),(SUMPRODUCT((ISNUMBER(SEARCH(\"x\",T58:Y58)))*3)),(SUMPRODUCT((ISNUMBER(SEARCH(\"x\",Z58:AB58)))*2)),(SUMPRODUCT((ISNUMBER(SEARCH(\"x\",AC58:AF58)))*1)))","v":10},null,"x","x",null,null,null,null,"x",null,"x",null,null,null,null,".",".",".","x","."]
[1228,"nein","Melchtalstraße - Quartier 2 Brackel - Deckensanierung von Auf dem Hohwart bis Rütlistraße","Brackel","6 Straßenoffensive","V","V","B","B","B","S","E","38453-25","Deckensanierung im Rahmen der Straßenoffensive 2026/2027.","Umsetzung abhängig u.a. von Witterung und Kapazitäten des Auftragnehmers. Genauer Zeitpunkt kann aktuell nicht dargestellt werden. Aus diesem Grund Bauphase im Arbeitsprogramm ggfs. auf mehrere Quartale ausgedehnt.",{"$f":"VLOOKUP($A59,'[1]komplett mit Formeln'!$A:$AJ,19,0)","v":"in Bauvorbereitung"},"2",{"$f":"SUM(SUMPRODUCT((ISNUMBER(SEARCH(\"x\",S59)))*4),(SUMPRODUCT((ISNUMBER(SEARCH(\"x\",T59:Y59)))*3)),(SUMPRODUCT((ISNUMBER(SEARCH(\"x\",Z59:AB59)))*2)),(SUMPRODUCT((ISNUMBER(SEARCH(\"x\",AC59:AF59)))*1)))","v":10},null,"x","x",null,null,null,null,"x",null,"x",null,null,null,null,".",".",".","x","."]
[1229,"nein","Rütlistraße - Quartier 2 Brackel - Deckensanierung","Brackel","6 Straßenoffensive","V","V","B","B","B","S","E","38453-25","Deckensanierung im Rahmen der Straßenoffensive 2026/2027.","Umsetzung abhängig u.a. von Witterung und Kapazitäten des Auftragnehmers. Genauer Zeitpunkt kann aktuell nicht dargestellt werden. Aus diesem Grund Bauphase im Arbeitsprogramm ggfs. auf mehrere Quartale ausgedehnt.",{"$f":"VLOOKUP($A60,'[1]komplett mit Formeln'!$A:$AJ,19,0)","v":"in Bauvorbereitung"},"2",{"$f":"SUM(SUMPRODUCT((ISNUMBER(SEARCH(\"x\",S60)))*4),(SUMPRODUCT((ISNUMBER(SEARCH(\"x\",T60:Y60)))*3)),(SUMPRODUCT((ISNUMBER(SEARCH(\"x\",Z60:AB60)))*2)),(SUMPRODUCT((ISNUMBER(SEARCH(\"x\",AC60:AF60)))*1)))","v":10},null,"x","x",null,null,null,null,"x",null,"x",null,null,null,null,".",".",".","x","."]
[1230,"nein","Stauffacherstraße - Quartier 2 Brackel - Deckensanierung von Rütlistraße bis Auf dem Hohwart vor Rütlistraße","Brackel","6 Straßenoffensive","V","V","B","B","B","S","E","38453-25","Deckensanierung im Rahmen der Straßenoffensive 2026/2027.","Umsetzung abhängig u.a. von Witterung und Kapazitäten des Auftragnehmers. Genauer Zeitpunkt kann aktuell nicht dargestellt werden. Aus diesem Grund Bauphase im Arbeitsprogramm ggfs. auf mehrere Quartale ausgedehnt.",{"$f":"VLOOKUP($A61,'[1]komplett mit Formeln'!$A:$AJ,19,0)","v":"in Bauvorbereitung"},"2",{"$f":"SUM(SUMPRODUCT((ISNUMBER(SEARCH(\"x\",S61)))*4),(SUMPRODUCT((ISNUMBER(SEARCH(\"x\",T61:Y61)))*3)),(SUMPRODUCT((ISNUMBER(SEARCH(\"x\",Z61:AB61)))*2)),(SUMPRODUCT((ISNUMBER(SEARCH(\"x\",AC61:AF61)))*1)))","v":10},null,"x","x",null,null,null,null,"x",null,"x",null,null,null,null,".",".",".","x","."]
[1231,"nein","Tellstraße - Quartier 2 Brackel - Deckensanierung von Auf dem Hohwart bis Rütlistraße","Brackel","6 Straßenoffensive","V","V","B","B","B","S","E","38453-25","Deckensanierung im Rahmen der Straßenoffensive 2026/2027.","Umsetzung abhängig u.a. von Witterung und Kapazitäten des Auftragnehmers. Genauer Zeitpunkt kann aktuell nicht dargestellt werden. Aus diesem Grund Bauphase im Arbeitsprogramm ggfs. auf mehrere Quartale ausgedehnt.",{"$f":"VLOOKUP($A62,'[1]komplett mit Formeln'!$A:$AJ,19,0)","v":"in Bauvorbereitung"},"2",{"$f":"SUM(SUMPRODUCT((ISNUMBER(SEARCH(\"x\",S62)))*4),(SUMPRODUCT((ISNUMBER(SEARCH(\"x\",T62:Y62)))*3)),(SUMPRODUCT((ISNUMBER(SEARCH(\"x\",Z62:AB62)))*2)),(SUMPRODUCT((ISNUMBER(SEARCH(\"x\",AC62:AF62)))*1)))","v":10},null,"x","x",null,null,null,null,"x",null,"x",null,null,null,null,".",".",".","x","."]
[1232,"nein","Attinghausenstraße - Quartier 2 Brackel - Deckensanierung von Auf dem Hohwart bis Rütlistraße","Brackel","6 Straßenoffensive","V","V","B","B","B","S","E","38453-25","Deckensanierung im Rahmen der Straßenoffensive 2026/2027.","Umsetzung abhängig u.a. von Witterung und Kapazitäten des Auftragnehmers. Genauer Zeitpunkt kann aktuell nicht dargestellt werden. Aus diesem Grund Bauphase im Arbeitsprogramm ggfs. auf mehrere Quartale ausgedehnt.",{"$f":"VLOOKUP($A63,'[1]komplett mit Formeln'!$A:$AJ,19,0)","v":"in Bauvorbereitung"},"2",{"$f":"SUM(SUMPRODUCT((ISNUMBER(SEARCH(\"x\",S63)))*4),(SUMPRODUCT((ISNUMBER(SEARCH(\"x\",T63:Y63)))*3)),(SUMPRODUCT((ISNUMBER(SEARCH(\"x\",Z63:AB63)))*2)),(SUMPRODUCT((ISNUMBER(SEARCH(\"x\",AC63:AF63)))*1)))","v":10},null,"x","x",null,null,null,null,"x",null,"x",null,null,null,null,".",".",".","x","."]
[1233,"nein","Rösselmannstraße - Quartier 2 Brackel - Deckensanierung","Brackel","6 Straßenoffensive","V","V","B","B","B","S","E","38453-25","Deckensanierung im Rahmen der Straßenoffensive 2026/2027.","Umsetzung abhängig u.a. von Witterung und Kapazitäten des Auftragnehmers. Genauer Zeitpunkt kann aktuell nicht dargestellt werden. Aus diesem Grund Bauphase im Arbeitsprogramm ggfs. auf mehrere Quartale ausgedehnt.",{"$f":"VLOOKUP($A64,'[1]komplett mit Formeln'!$A:$AJ,19,0)","v":"in Bauvorbereitung"},"2",{"$f":"SUM(SUMPRODUCT((ISNUMBER(SEARCH(\"x\",S64)))*4),(SUMPRODUCT((ISNUMBER(SEARCH(\"x\",T64:Y64)))*3)),(SUMPRODUCT((ISNUMBER(SEARCH(\"x\",Z64:AB64)))*2)),(SUMPRODUCT((ISNUMBER(SEARCH(\"x\",AC64:AF64)))*1)))","v":10},null,"x","x",null,null,null,null,"x",null,"x",null,null,null,null,".",".",".","x","."]
[1234,"nein","Bayrische Straße - Deckensanierung von Württemberger Straße bis Deutsche Straße","Eving","6 Straßenoffensive","V","V","B","B","B","S","E","38453-25","Deckensanierung im Rahmen der Straßenoffensive 2026/2027.","Umsetzung abhängig u.a. von Witterung und Kapazitäten des Auftragnehmers. Genauer Zeitpunkt kann aktuell nicht dargestellt werden. Aus diesem Grund Bauphase im Arbeitsprogramm ggfs. auf mehrere Quartale ausgedehnt.",{"$f":"VLOOKUP($A65,'[1]komplett mit Formeln'!$A:$AJ,19,0)","v":"in Bauvorbereitung"},"2",{"$f":"SUM(SUMPRODUCT((ISNUMBER(SEARCH(\"x\",S65)))*4),(SUMPRODUCT((ISNUMBER(SEARCH(\"x\",T65:Y65)))*3)),(SUMPRODUCT((ISNUMBER(SEARCH(\"x\",Z65:AB65)))*2)),(SUMPRODUCT((ISNUMBER(SEARCH(\"x\",AC65:AF65)))*1)))","v":10},null,"x","x",null,null,null,null,"x",null,"x",null,null,null,null,".",".",".","x","."]
[1235,"nein","Deutsche Straße - Deckensanierung von Hausnr. 70 bis Hausnr. 84","Eving","6 Straßenoffensive","V","V","B","B","B","S","E","38453-25","Deckensanierung im Rahmen der Straßenoffensive 2026/2027.","Umsetzung abhängig u.a. von Witterung und Kapazitäten des Auftragnehmers. Genauer Zeitpunkt kann aktuell nicht dargestellt werden. Aus diesem Grund Bauphase im Arbeitsprogramm ggfs. auf mehrere Quartale ausgedehnt.",{"$f":"VLOOKUP($A66,'[1]komplett mit Formeln'!$A:$AJ,19,0)","v":"in Bauvorbereitung"},"2",{"$f":"SUM(SUMPRODUCT((ISNUMBER(SEARCH(\"x\",S66)))*4),(SUMPRODUCT((ISNUMBER(SEARCH(\"x\",T66:Y66)))*3)),(SUMPRODUCT((ISNUMBER(SEARCH(\"x\",Z66:AB66)))*2)),(SUMPRODUCT((ISNUMBER(SEARCH(\"x\",AC66:AF66)))*1)))","v":10},null,"x","x",null,null,null,null,"x",null,"x",null,null,null,null,".",".",".","x","."]
[1236,"nein","An der Palmweide - Deckensanierung von Krückenweg bis Emil-Figge-Straße","Hombruch","6 Straßenoffensive","V","V","B","B","B","S","E","38453-25","Deckensanierung im Rahmen der Straßenoffensive 2026/2027.","Umsetzung abhängig u.a. von Witterung und Kapazitäten des Auftragnehmers. Genauer Zeitpunkt kann aktuell nicht dargestellt werden. Aus diesem Grund Bauphase im Arbeitsprogramm ggfs. auf mehrere Quartale ausgedehnt.",{"$f":"VLOOKUP($A67,'[1]komplett mit Formeln'!$A:$AJ,19,0)","v":"in Bauvorbereitung"},"2",{"$f":"SUM(SUMPRODUCT((ISNUMBER(SEARCH(\"x\",S67)))*4),(SUMPRODUCT((ISNUMBER(SEARCH(\"x\",T67:Y67)))*3)),(SUMPRODUCT((ISNUMBER(SEARCH(\"x\",Z67:AB67)))*2)),(SUMPRODUCT((ISNUMBER(SEARCH(\"x\",AC67:AF67)))*1)))","v":10},null,"x","x",null,null,null,null,"x",null,"x",null,null,null,null,".",".",".","x","."]
[1237,"nein","Hagener Straße - Deckensanierung von Fritz-Kahl-Straße bis Mergelteichstraße","Hombruch","6 Straßenoffensive","V","V","B","B","B","S","E","38453-25","Deckensanierung im Rahmen der Straßenoffensive 2026/2027.","Umsetzung abhängig u.a. von Witterung und Kapazitäten des Auftragnehmers. Genauer Zeitpunkt kann aktuell nicht dargestellt werden. Aus diesem Grund Bauphase im Arbeitsprogramm ggfs. auf mehrere Quartale ausgedehnt.",{"$f":"VLOOKUP($A68,'[1]komplett mit Formeln'!$A:$AJ,19,0)","v":"in Bauvorbereitung"},"2",{"$f":"SUM(SUMPRODUCT((ISNUMBER(SEARCH(\"x\",S68)))*4),(SUMPRODUCT((ISNUMBER(SEARCH(\"x\",T68:Y68)))*3)),(SUMPRODUCT((ISNUMBER(SEARCH(\"x\",Z68:AB68)))*2)),(SUMPRODUCT((ISNUMBER(SEARCH(\"x\",AC68:AF68)))*1)))","v":10},null,"x","x",null,null,null,null,"x",null,"x",null,null,null,null,".",".",".","x","."]
[1238,"nein","Eschenstraße - Quartier 2 Hombruch - Deckensanierung von Hausnr. 10 bis zum Ende","Hombruch","6 Straßenoffensive","V","V","B","B","B","S","E","38453-25","Deckensanierung im Rahmen der Straßenoffensive 2026/2027.","Umsetzung abhängig u.a. von Witterung und Kapazitäten des Auftragnehmers. Genauer Zeitpunkt kann aktuell nicht dargestellt werden. Aus diesem Grund Bauphase im Arbeitsprogramm ggfs. auf mehrere Quartale ausgedehnt.",{"$f":"VLOOKUP($A69,'[1]komplett mit Formeln'!$A:$AJ,19,0)","v":"in Bauvorbereitung"},"2",{"$f":"SUM(SUMPRODUCT((ISNUMBER(SEARCH(\"x\",S69)))*4),(SUMPRODUCT((ISNUMBER(SEARCH(\"x\",T69:Y69)))*3)),(SUMPRODUCT((ISNUMBER(SEARCH(\"x\",Z69:AB69)))*2)),(SUMPRODUCT((ISNUMBER(SEARCH(\"x\",AC69:AF69)))*1)))","v":10},null,"x","x",null,null,null,null,"x",null,"x",null,null,null,null,".",".",".","x","."]
[1239,"nein","Kieferstraße - Quartier 2 Hombruch - Deckensanierung von Hausnr. 13 bis zum Ende","Hombruch","6 Straßenoffensive","V","V","B","B","B","S","E","38453-25","Deckensanierung im Rahmen der Straßenoffensive 2026/2027.","Umsetzung abhängig u.a. von Witterung und Kapazitäten des Auftragnehmers. Genauer Zeitpunkt kann aktuell nicht dargestellt werden. Aus diesem Grund Bauphase im Arbeitsprogramm ggfs. auf mehrere Quartale ausgedehnt.",{"$f":"VLOOKUP($A70,'[1]komplett mit Formeln'!$A:$AJ,19,0)","v":"in Bauvorbereitung"},"2",{"$f":"SUM(SUMPRODUCT((ISNUMBER(SEARCH(\"x\",S70)))*4),(SUMPRODUCT((ISNUMBER(SEARCH(\"x\",T70:Y70)))*3)),(SUMPRODUCT((ISNUMBER(SEARCH(\"x\",Z70:AB70)))*2)),(SUMPRODUCT((ISNUMBER(SEARCH(\"x\",AC70:AF70)))*1)))","v":10},null,"x","x",null,null,null,null,"x",null,"x",null,null,null,null,".",".",".","x","."]
[1240,"nein","Kuntzestraße - Quartier 2 Hombruch - Deckensanierung von Eschenstraße bis Deutsch-Luxemburger-Straße","Hombruch","6 Straßenoffensive","V","V","B","B","B","S","E","38453-25","Deckensanierung im Rahmen der Straßenoffensive 2026/2027.","Umsetzung abhängig u.a. von Witterung und Kapazitäten des Auftragnehmers. Genauer Zeitpunkt kann aktuell nicht dargestellt werden. Aus diesem Grund Bauphase im Arbeitsprogramm ggfs. auf mehrere Quartale ausgedehnt.",{"$f":"VLOOKUP($A71,'[1]komplett mit Formeln'!$A:$AJ,19,0)","v":"in Bauvorbereitung"},"2",{"$f":"SUM(SUMPRODUCT((ISNUMBER(SEARCH(\"x\",S71)))*4),(SUMPRODUCT((ISNUMBER(SEARCH(\"x\",T71:Y71)))*3)),(SUMPRODUCT((ISNUMBER(SEARCH(\"x\",Z71:AB71)))*2)),(SUMPRODUCT((ISNUMBER(SEARCH(\"x\",AC71:AF71)))*1)))","v":10},null,"x","x",null,null,null,null,"x",null,"x",null,null,null,null,".",".",".","x","."]
[1241,"nein","Oehlmühlenweg - Quartier 2 Hombruch - Deckensanierung","Hombruch","6 Straßenoffensive","V","V","B","B","B","S","E","38453-25","Deckensanierung im Rahmen der Straßenoffensive 2026/2027.","Umsetzung abhängig u.a. von Witterung und Kapazitäten des Auftragnehmers. Genauer Zeitpunkt kann aktuell nicht dargestellt werden. Aus diesem Grund Bauphase im Arbeitsprogramm ggfs. auf mehrere Quartale ausgedehnt.",{"$f":"VLOOKUP($A72,'[1]komplett mit Formeln'!$A:$AJ,19,0)","v":"in Bauvorbereitung"},"2",{"$f":"SUM(SUMPRODUCT((ISNUMBER(SEARCH(\"x\",S72)))*4),(SUMPRODUCT((ISNUMBER(SEARCH(\"x\",T72:Y72)))*3)),(SUMPRODUCT((ISNUMBER(SEARCH(\"x\",Z72:AB72)))*2)),(SUMPRODUCT((ISNUMBER(SEARCH(\"x\",AC72:AF72)))*1)))","v":10},null,"x","x",null,null,null,null,"x",null,"x",null,null,null,null,".",".",".","x","."]
[1242,"nein","Leostraße - Quartier 2 Hombruch - Deckensanierung von Oehlmühlenweg bis Vulkanstraße.","Hombruch","6 Straßenoffensive","V","V","B","B","B","S","E","38453-25","Deckensanierung im Rahmen der Straßenoffensive 2026/2027.","Umsetzung abhängig u.a. von Witterung und Kapazitäten des Auftragnehmers. Genauer Zeitpunkt kann aktuell nicht dargestellt werden. Aus diesem Grund Bauphase im Arbeitsprogramm ggfs. auf mehrere Quartale ausgedehnt.",{"$f":"VLOOKUP($A73,'[1]komplett mit Formeln'!$A:$AJ,19,0)","v":"in Bauvorbereitung"},"2",{"$f":"SUM(SUMPRODUCT((ISNUMBER(SEARCH(\"x\",S73)))*4),(SUMPRODUCT((ISNUMBER(SEARCH(\"x\",T73:Y73)))*3)),(SUMPRODUCT((ISNUMBER(SEARCH(\"x\",Z73:AB73)))*2)),(SUMPRODUCT((ISNUMBER(SEARCH(\"x\",AC73:AF73)))*1)))","v":10},null,"x","x",null,null,null,null,"x",null,"x",null,null,null,null,".",".",".","x","."]
[1243,"nein","Singerhoffstraße - Quartier 2 Hombruch - Deckensanierung","Hombruch","6 Straßenoffensive","V","V","B","B","B","S","E","38453-25","Deckensanierung im Rahmen der Straßenoffensive 2026/2027.","Umsetzung abhängig u.a. von Witterung und Kapazitäten des Auftragnehmers. Genauer Zeitpunkt kann aktuell nicht dargestellt werden. Aus diesem Grund Bauphase im Arbeitsprogramm ggfs. auf mehrere Quartale ausgedehnt.",{"$f":"VLOOKUP($A74,'[1]komplett mit Formeln'!$A:$AJ,19,0)","v":"in Bauvorbereitung"},"2",{"$f":"SUM(SUMPRODUCT((ISNUMBER(SEARCH(\"x\",S74)))*4),(SUMPRODUCT((ISNUMBER(SEARCH(\"x\",T74:Y74)))*3)),(SUMPRODUCT((ISNUMBER(SEARCH(\"x\",Z74:AB74)))*2)),(SUMPRODUCT((ISNUMBER(SEARCH(\"x\",AC74:AF74)))*1)))","v":10},null,"x","x",null,null,null,null,"x",null,"x",null,null,null,null,".",".",".","x","."]
[1244,"nein","Preinstraße - Deckensanierung","Hörde","6 Straßenoffensive","V","V","B","B","B","S","E","38453-25","Deckensanierung im Rahmen der Straßenoffensive 2026/2027.","Umsetzung abhängig u.a. von Witterung und Kapazitäten des Auftragnehmers. Genauer Zeitpunkt kann aktuell nicht dargestellt werden. Aus diesem Grund Bauphase im Arbeitsprogramm ggfs. auf mehrere Quartale ausgedehnt.",{"$f":"VLOOKUP($A75,'[1]komplett mit Formeln'!$A:$AJ,19,0)","v":"in Bauvorbereitung"},"2",{"$f":"SUM(SUMPRODUCT((ISNUMBER(SEARCH(\"x\",S75)))*4),(SUMPRODUCT((ISNUMBER(SEARCH(\"x\",T75:Y75)))*3)),(SUMPRODUCT((ISNUMBER(SEARCH(\"x\",Z75:AB75)))*2)),(SUMPRODUCT((ISNUMBER(SEARCH(\"x\",AC75:AF75)))*1)))","v":10},null,"x","x",null,null,null,null,"x",null,"x",null,null,null,null,".",".",".","x","."]
[1245,"nein","An der Hundeweise - Deckensanierung von Hausnr. 27 bis Ende","Hörde","6 Straßenoffensive","V","V","B","B","B","S","E","38453-25","Deckensanierung im Rahmen der Straßenoffensive 2026/2027.","Umsetzung abhängig u.a. von Witterung und Kapazitäten des Auftragnehmers. Genauer Zeitpunkt kann aktuell nicht dargestellt werden. Aus diesem Grund Bauphase im Arbeitsprogramm ggfs. auf mehrere Quartale ausgedehnt.",{"$f":"VLOOKUP($A76,'[1]komplett mit Formeln'!$A:$AJ,19,0)","v":"in Bauvorbereitung"},"2",{"$f":"SUM(SUMPRODUCT((ISNUMBER(SEARCH(\"x\",S76)))*4),(SUMPRODUCT((ISNUMBER(SEARCH(\"x\",T76:Y76)))*3)),(SUMPRODUCT((ISNUMBER(SEARCH(\"x\",Z76:AB76)))*2)),(SUMPRODUCT((ISNUMBER(SEARCH(\"x\",AC76:AF76)))*1)))","v":10},null,"x","x",null,null,null,null,"x",null,"x",null,null,null,null,".",".",".","x","."]
[1246,"nein","Brandisstraße - Deckensanierung","Hörde","6 Straßenoffensive","V","V","B","B","B","S","E","38453-25","Deckensanierung im Rahmen der Straßenoffensive 2026/2027.","Umsetzung abhängig u.a. von Witterung und Kapazitäten des Auftragnehmers. Genauer Zeitpunkt kann aktuell nicht dargestellt werden. Aus diesem Grund Bauphase im Arbeitsprogramm ggfs. auf mehrere Quartale ausgedehnt.",{"$f":"VLOOKUP($A77,'[1]komplett mit Formeln'!$A:$AJ,19,0)","v":"in Bauvorbereitung"},"2",{"$f":"SUM(SUMPRODUCT((ISNUMBER(SEARCH(\"x\",S77)))*4),(SUMPRODUCT((ISNUMBER(SEARCH(\"x\",T77:Y77)))*3)),(SUMPRODUCT((ISNUMBER(SEARCH(\"x\",Z77:AB77)))*2)),(SUMPRODUCT((ISNUMBER(SEARCH(\"x\",AC77:AF77)))*1)))","v":10},null,"x","x",null,null,null,null,"x",null,"x",null,null,null,null,".",".",".","x","."]
[1247,"nein","Heyerstraße - Quartier 1 Hörde - Deckensanierung","Hörde","6 Straßenoffensive","V","V","B","B","B","S","E","38453-25","Deckensanierung im Rahmen der Straßenoffensive 2026/2027.","Umsetzung abhängig u.a. von Witterung und Kapazitäten des Auftragnehmers. Genauer Zeitpunkt kann aktuell nicht dargestellt werden. Aus diesem Grund Bauphase im Arbeitsprogramm ggfs. auf mehrere Quartale ausgedehnt.",{"$f":"VLOOKUP($A78,'[1]komplett mit Formeln'!$A:$AJ,19,0)","v":"in Bauvorbereitung"},"2",{"$f":"SUM(SUMPRODUCT((ISNUMBER(SEARCH(\"x\",S78)))*4),(SUMPRODUCT((ISNUMBER(SEARCH(\"x\",T78:Y78)))*3)),(SUMPRODUCT((ISNUMBER(SEARCH(\"x\",Z78:AB78)))*2)),(SUMPRODUCT((ISNUMBER(SEARCH(\"x\",AC78:AF78)))*1)))","v":10},null,"x","x",null,null,null,null,"x",null,"x",null,null,null,null,".",".",".","x","."]
[1248,"nein","Brandbruchstraße - Quartier 1 Hörde - Deckensanierung","Hörde","6 Straßenoffensive","V","V","B","B","B","S","E","38453-25","Deckensanierung im Rahmen der Straßenoffensive 2026/2027.","Umsetzung abhängig u.a. von Witterung und Kapazitäten des Auftragnehmers. Genauer Zeitpunkt kann aktuell nicht dargestellt werden. Aus diesem Grund Bauphase im Arbeitsprogramm ggfs. auf mehrere Quartale ausgedehnt.",{"$f":"VLOOKUP($A79,'[1]komplett mit Formeln'!$A:$AJ,19,0)","v":"in Bauvorbereitung"},"2",{"$f":"SUM(SUMPRODUCT((ISNUMBER(SEARCH(\"x\",S79)))*4),(SUMPRODUCT((ISNUMBER(SEARCH(\"x\",T79:Y79)))*3)),(SUMPRODUCT((ISNUMBER(SEARCH(\"x\",Z79:AB79)))*2)),(SUMPRODUCT((ISNUMBER(SEARCH(\"x\",AC79:AF79)))*1)))","v":10},null,"x","x",null,null,null,null,"x",null,"x",null,null,null,null,".",".",".","x","."]
[1249,"nein","Vinklöther Mark - Quartier 1 Hörde - Deckensanierung","Hörde","6 Straßenoffensive","V","V","B","B","B","S","E","38453-25","Deckensanierung im Rahmen der Straßenoffensive 2026/2027.","Umsetzung abhängig u.a. von Witterung und Kapazitäten des Auftragnehmers. Genauer Zeitpunkt kann aktuell nicht dargestellt werden. Aus diesem Grund Bauphase im Arbeitsprogramm ggfs. auf mehrere Quartale ausgedehnt.",{"$f":"VLOOKUP($A80,'[1]komplett mit Formeln'!$A:$AJ,19,0)","v":"in Bauvorbereitung"},"2",{"$f":"SUM(SUMPRODUCT((ISNUMBER(SEARCH(\"x\",S80)))*4),(SUMPRODUCT((ISNUMBER(SEARCH(\"x\",T80:Y80)))*3)),(SUMPRODUCT((ISNUMBER(SEARCH(\"x\",Z80:AB80)))*2)),(SUMPRODUCT((ISNUMBER(SEARCH(\"x\",AC80:AF80)))*1)))","v":10},null,"x","x",null,null,null,null,"x",null,"x",null,null,null,null,".",".",".","x","."]
[1250,"nein","Cottastraße - Quartier 1 Hörde - Deckensanierung","Hörde","6 Straßenoffensive","V","V","B","B","B","S","E","38453-25","Deckensanierung im Rahmen der Straßenoffensive 2026/2027.","Umsetzung abhängig u.a. von Witterung und Kapazitäten des Auftragnehmers. Genauer Zeitpunkt kann aktuell nicht dargestellt werden. Aus diesem Grund Bauphase im Arbeitsprogramm ggfs. auf mehrere Quartale ausgedehnt.",{"$f":"VLOOKUP($A81,'[1]komplett mit Formeln'!$A:$AJ,19,0)","v":"in Bauvorbereitung"},"2",{"$f":"SUM(SUMPRODUCT((ISNUMBER(SEARCH(\"x\",S81)))*4),(SUMPRODUCT((ISNUMBER(SEARCH(\"x\",T81:Y81)))*3)),(SUMPRODUCT((ISNUMBER(SEARCH(\"x\",Z81:AB81)))*2)),(SUMPRODUCT((ISNUMBER(SEARCH(\"x\",AC81:AF81)))*1)))","v":10},null,"x","x",null,null,null,null,"x",null,"x",null,null,null,null,".",".",".","x","."]
[1251,"nein","Bannenberg - Deckensanierung von Rahmer Straße bis Hausnr. 23","Huckarde","6 Straßenoffensive","V","V","B","B","B","S","E","38453-25","Deckensanierung im Rahmen der Straßenoffensive 2026/2027.","Umsetzung abhängig u.a. von Witterung und Kapazitäten des Auftragnehmers. Genauer Zeitpunkt kann aktuell nicht dargestellt werden. Aus diesem Grund Bauphase im Arbeitsprogramm ggfs. auf mehrere Quartale ausgedehnt.",{"$f":"VLOOKUP($A82,'[1]komplett mit Formeln'!$A:$AJ,19,0)","v":"in Bauvorbereitung"},{"$f":"IF(R82=0,\"keine\",IF(AND(R82>0,R82<6),\"3\",IF(AND(R82>5,R82<11),\"2\",\"1\")))","v":"2"},{"$f":"SUM(SUMPRODUCT((ISNUMBER(SEARCH(\"x\",S82)))*4),(SUMPRODUCT((ISNUMBER(SEARCH(\"x\",T82:Y82)))*3)),(SUMPRODUCT((ISNUMBER(SEARCH(\"x\",Z82:AB82)))*2)),(SUMPRODUCT((ISNUMBER(SEARCH(\"x\",AC82:AF82)))*1)))","v":10},null,"x","x",null,null,null,null,"x",null,"x",null,null,null,null,".",".",".","x","."]
[1252,"nein","Urbanusstraße - Deckensanierung von Hausnr. 6 bis Varziner Straße","Huckarde","6 Straßenoffensive","V","V","B","B","B","S","E","38453-25","Deckensanierung im Rahmen der Straßenoffensive 2026/2027.","Umsetzung abhängig u.a. von Witterung und Kapazitäten des Auftragnehmers. Genauer Zeitpunkt kann aktuell nicht dargestellt werden. Aus diesem Grund Bauphase im Arbeitsprogramm ggfs. auf mehrere Quartale ausgedehnt.",{"$f":"VLOOKUP($A83,'[1]komplett mit Formeln'!$A:$AJ,19,0)","v":"in Bauvorbereitung"},"2",{"$f":"SUM(SUMPRODUCT((ISNUMBER(SEARCH(\"x\",S83)))*4),(SUMPRODUCT((ISNUMBER(SEARCH(\"x\",T83:Y83)))*3)),(SUMPRODUCT((ISNUMBER(SEARCH(\"x\",Z83:AB83)))*2)),(SUMPRODUCT((ISNUMBER(SEARCH(\"x\",AC83:AF83)))*1)))","v":10},null,"x","x",null,null,null,null,"x",null,"x",null,null,null,null,".",".",".","x","."]
[1253,"nein","Wischlinger Weg - Deckensanierung zwischen Rahmer Straße und Parkplatz Friedhof","Huckarde","6 Straßenoffensive","V","V","B","B","B","S","E","38453-25","Deckensanierung im Rahmen der Straßenoffensive 2026/2027.","Umsetzung abhängig u.a. von Witterung und Kapazitäten des Auftragnehmers. Genauer Zeitpunkt kann aktuell nicht dargestellt werden. Aus diesem Grund Bauphase im Arbeitsprogramm ggfs. auf mehrere Quartale ausgedehnt.",{"$f":"VLOOKUP($A84,'[1]komplett mit Formeln'!$A:$AJ,19,0)","v":"in Bauvorbereitung"},"2",{"$f":"SUM(SUMPRODUCT((ISNUMBER(SEARCH(\"x\",S84)))*4),(SUMPRODUCT((ISNUMBER(SEARCH(\"x\",T84:Y84)))*3)),(SUMPRODUCT((ISNUMBER(SEARCH(\"x\",Z84:AB84)))*2)),(SUMPRODUCT((ISNUMBER(SEARCH(\"x\",AC84:AF84)))*1)))","v":10},null,"x","x",null,null,null,null,"x",null,"x",null,null,null,null,".",".",".","x","."]
[1254,"nein","Ehrlichstraße - Quartier 1 Huckarde - Deckensanierung von Hausnr. 11 bis Ende","Huckarde","6 Straßenoffensive","V","V","B","B","B","S","E","38453-25","Deckensanierung im Rahmen der Straßenoffensive 2026/2027.","Umsetzung abhängig u.a. von Witterung und Kapazitäten des Auftragnehmers. Genauer Zeitpunkt kann aktuell nicht dargestellt werden. Aus diesem Grund Bauphase im Arbeitsprogramm ggfs. auf mehrere Quartale ausgedehnt.",{"$f":"VLOOKUP($A85,'[1]komplett mit Formeln'!$A:$AJ,19,0)","v":"in Bauvorbereitung"},"2",{"$f":"SUM(SUMPRODUCT((ISNUMBER(SEARCH(\"x\",S85)))*4),(SUMPRODUCT((ISNUMBER(SEARCH(\"x\",T85:Y85)))*3)),(SUMPRODUCT((ISNUMBER(SEARCH(\"x\",Z85:AB85)))*2)),(SUMPRODUCT((ISNUMBER(SEARCH(\"x\",AC85:AF85)))*1)))","v":10},null,"x","x",null,null,null,null,"x",null,"x",null,null,null,null,".",".",".","x","."]
[1255,"nein","Jungferntalstraße - Quartier 1 Huckarde - Deckensanierung von Hausnr. 70 bis Ende","Huckarde","6 Straßenoffensive","V","V","B","B","B","S","E","38453-25","Deckensanierung im Rahmen der Straßenoffensive 2026/2027.","Umsetzung abhängig u.a. von Witterung und Kapazitäten des Auftragnehmers. Genauer Zeitpunkt kann aktuell nicht dargestellt werden. Aus diesem Grund Bauphase im Arbeitsprogramm ggfs. auf mehrere Quartale ausgedehnt.",{"$f":"VLOOKUP($A86,'[1]komplett mit Formeln'!$A:$AJ,19,0)","v":"in Bauvorbereitung"},"2",{"$f":"SUM(SUMPRODUCT((ISNUMBER(SEARCH(\"x\",S86)))*4),(SUMPRODUCT((ISNUMBER(SEARCH(\"x\",T86:Y86)))*3)),(SUMPRODUCT((ISNUMBER(SEARCH(\"x\",Z86:AB86)))*2)),(SUMPRODUCT((ISNUMBER(SEARCH(\"x\",AC86:AF86)))*1)))","v":10},null,"x","x",null,null,null,null,"x",null,"x",null,null,null,null,".",".",".","x","."]
[1256,"nein","Wienstraße - Quartier 1 Huckarde - Deckensanierung","Huckarde","6 Straßenoffensive","V","V","B","B","B","S","E","38453-25","Deckensanierung im Rahmen der Straßenoffensive 2026/2027.","Umsetzung abhängig u.a. von Witterung und Kapazitäten des Auftragnehmers. Genauer Zeitpunkt kann aktuell nicht dargestellt werden. Aus diesem Grund Bauphase im Arbeitsprogramm ggfs. auf mehrere Quartale ausgedehnt.",{"$f":"VLOOKUP($A87,'[1]komplett mit Formeln'!$A:$AJ,19,0)","v":"in Bauvorbereitung"},"2",{"$f":"SUM(SUMPRODUCT((ISNUMBER(SEARCH(\"x\",S87)))*4),(SUMPRODUCT((ISNUMBER(SEARCH(\"x\",T87:Y87)))*3)),(SUMPRODUCT((ISNUMBER(SEARCH(\"x\",Z87:AB87)))*2)),(SUMPRODUCT((ISNUMBER(SEARCH(\"x\",AC87:AF87)))*1)))","v":10},null,"x","x",null,null,null,null,"x",null,"x",null,null,null,null,".",".",".","x","."]
[1257,"nein","Lauestraße - Quartier 1 Huckarde - Deckensanierung","Huckarde","6 Straßenoffensive","V","V","B","B","B","S","E","38453-25","Deckensanierung im Rahmen der Straßenoffensive 2026/2027.","Umsetzung abhängig u.a. von Witterung und Kapazitäten des Auftragnehmers. Genauer Zeitpunkt kann aktuell nicht dargestellt werden. Aus diesem Grund Bauphase im Arbeitsprogramm ggfs. auf mehrere Quartale ausgedehnt.",{"$f":"VLOOKUP($A88,'[1]komplett mit Formeln'!$A:$AJ,19,0)","v":"in Bauvorbereitung"},"2",{"$f":"SUM(SUMPRODUCT((ISNUMBER(SEARCH(\"x\",S88)))*4),(SUMPRODUCT((ISNUMBER(SEARCH(\"x\",T88:Y88)))*3)),(SUMPRODUCT((ISNUMBER(SEARCH(\"x\",Z88:AB88)))*2)),(SUMPRODUCT((ISNUMBER(SEARCH(\"x\",AC88:AF88)))*1)))","v":10},null,"x","x",null,null,null,null,"x",null,"x",null,null,null,null,".",".",".","x","."]
[1258,"nein","Wallachstraße - Quartier 1 Huckarde - Deckensanierung","Huckarde","6 Straßenoffensive","V","V","B","B","B","S","E","38453-25","Deckensanierung im Rahmen der Straßenoffensive 2026/2027.","Umsetzung abhängig u.a. von Witterung und Kapazitäten des Auftragnehmers. Genauer Zeitpunkt kann aktuell nicht dargestellt werden. Aus diesem Grund Bauphase im Arbeitsprogramm ggfs. auf mehrere Quartale ausgedehnt.",{"$f":"VLOOKUP($A89,'[1]komplett mit Formeln'!$A:$AJ,19,0)","v":"in Bauvorbereitung"},"2",{"$f":"SUM(SUMPRODUCT((ISNUMBER(SEARCH(\"x\",S89)))*4),(SUMPRODUCT((ISNUMBER(SEARCH(\"x\",T89:Y89)))*3)),(SUMPRODUCT((ISNUMBER(SEARCH(\"x\",Z89:AB89)))*2)),(SUMPRODUCT((ISNUMBER(SEARCH(\"x\",AC89:AF89)))*1)))","v":10},null,"x","x",null,null,null,null,"x",null,"x",null,null,null,null,".",".",".","x","."]
[1259,"nein","Willstätterstraße - Quartier 1 Huckarde - Deckensanierung","Huckarde","6 Straßenoffensive","V","V","B","B","B","S","E","38453-25","Deckensanierung im Rahmen der Straßenoffensive 2026/2027.","Umsetzung abhängig u.a. von Witterung und Kapazitäten des Auftragnehmers. Genauer Zeitpunkt kann aktuell nicht dargestellt werden. Aus diesem Grund Bauphase im Arbeitsprogramm ggfs. auf mehrere Quartale ausgedehnt.",{"$f":"VLOOKUP($A90,'[1]komplett mit Formeln'!$A:$AJ,19,0)","v":"in Bauvorbereitung"},"2",{"$f":"SUM(SUMPRODUCT((ISNUMBER(SEARCH(\"x\",S90)))*4),(SUMPRODUCT((ISNUMBER(SEARCH(\"x\",T90:Y90)))*3)),(SUMPRODUCT((ISNUMBER(SEARCH(\"x\",Z90:AB90)))*2)),(SUMPRODUCT((ISNUMBER(SEARCH(\"x\",AC90:AF90)))*1)))","v":10},null,"x","x",null,null,null,null,"x",null,"x",null,null,null,null,".",".",".","x","."]
[1260,"nein","Windhausstraße - Quartier 1 Huckarde - Deckensanierung","Huckarde","6 Straßenoffensive","V","V","B","B","B","S","E","38453-25","Deckensanierung im Rahmen der Straßenoffensive 2026/2027.","Umsetzung abhängig u.a. von Witterung und Kapazitäten des Auftragnehmers. Genauer Zeitpunkt kann aktuell nicht dargestellt werden. Aus diesem Grund Bauphase im Arbeitsprogramm ggfs. auf mehrere Quartale ausgedehnt.",{"$f":"VLOOKUP($A91,'[1]komplett mit Formeln'!$A:$AJ,19,0)","v":"in Bauvorbereitung"},"2",{"$f":"SUM(SUMPRODUCT((ISNUMBER(SEARCH(\"x\",S91)))*4),(SUMPRODUCT((ISNUMBER(SEARCH(\"x\",T91:Y91)))*3)),(SUMPRODUCT((ISNUMBER(SEARCH(\"x\",Z91:AB91)))*2)),(SUMPRODUCT((ISNUMBER(SEARCH(\"x\",AC91:AF91)))*1)))","v":10},null,"x","x",null,null,null,null,"x",null,"x",null,null,null,null,".",".",".","x","."]
[1261,"nein","Braunstraße - Quartier 1 Huckarde - Deckensanierung","INN-Nord","6 Straßenoffensive","V","V","B","B","B","S","E","38453-25","Deckensanierung im Rahmen der Straßenoffensive 2026/2027.","Umsetzung abhängig u.a. von Witterung und Kapazitäten des Auftragnehmers. Genauer Zeitpunkt kann aktuell nicht dargestellt werden. Aus diesem Grund Bauphase im Arbeitsprogramm ggfs. auf mehrere Quartale ausgedehnt.",{"$f":"VLOOKUP($A92,'[1]komplett mit Formeln'!$A:$AJ,19,0)","v":"in Bauvorbereitung"},"2",{"$f":"SUM(SUMPRODUCT((ISNUMBER(SEARCH(\"x\",S92)))*4),(SUMPRODUCT((ISNUMBER(SEARCH(\"x\",T92:Y92)))*3)),(SUMPRODUCT((ISNUMBER(SEARCH(\"x\",Z92:AB92)))*2)),(SUMPRODUCT((ISNUMBER(SEARCH(\"x\",AC92:AF92)))*1)))","v":10},null,"x","x",null,null,null,null,"x",null,"x",null,null,null,null,".",".",".","x","."]
[1262,"nein","Kosselstraße - Quartier 1 Huckarde - Deckensanierung","Huckarde","6 Straßenoffensive","V","V","B","B","B","S","E","38453-25","Deckensanierung im Rahmen der Straßenoffensive 2026/2027.","Umsetzung abhängig u.a. von Witterung und Kapazitäten des Auftragnehmers. Genauer Zeitpunkt kann aktuell nicht dargestellt werden. Aus diesem Grund Bauphase im Arbeitsprogramm ggfs. auf mehrere Quartale ausgedehnt.",{"$f":"VLOOKUP($A93,'[1]komplett mit Formeln'!$A:$AJ,19,0)","v":"in Bauvorbereitung"},"2",{"$f":"SUM(SUMPRODUCT((ISNUMBER(SEARCH(\"x\",S93)))*4),(SUMPRODUCT((ISNUMBER(SEARCH(\"x\",T93:Y93)))*3)),(SUMPRODUCT((ISNUMBER(SEARCH(\"x\",Z93:AB93)))*2)),(SUMPRODUCT((ISNUMBER(SEARCH(\"x\",AC93:AF93)))*1)))","v":10},null,"x","x",null,null,null,null,"x",null,"x",null,null,null,null,".",".",".","x","."]
[1263,"nein","Lortzingstraße - Deckensanierung von Burgholzstraße bis Haydnstraße","INN-Nord","6 Straßenoffensive","V","V","B","B","B","S","E","38453-25","Deckensanierung im Rahmen der Straßenoffensive 2026/2027.","Umsetzung abhängig u.a. von Witterung und Kapazitäten des Auftragnehmers. Genauer Zeitpunkt kann aktuell nicht dargestellt werden. Aus diesem Grund Bauphase im Arbeitsprogramm ggfs. auf mehrere Quartale ausgedehnt.",{"$f":"VLOOKUP($A94,'[1]komplett mit Formeln'!$A:$AJ,19,0)","v":"in Bauvorbereitung"},"2",{"$f":"SUM(SUMPRODUCT((ISNUMBER(SEARCH(\"x\",S94)))*4),(SUMPRODUCT((ISNUMBER(SEARCH(\"x\",T94:Y94)))*3)),(SUMPRODUCT((ISNUMBER(SEARCH(\"x\",Z94:AB94)))*2)),(SUMPRODUCT((ISNUMBER(SEARCH(\"x\",AC94:AF94)))*1)))","v":10},null,"x","x",null,null,null,null,"x",null,"x",null,null,null,null,".",".",".","x","."]
[1264,"nein","Bornstraße - Deckensanierung von Mallinckrodtstraße bis Stollenstraße","INN-Nord","6 Straßenoffensive","V","V","B","B","B","S","E","38453-25","Deckensanierung im Rahmen der Straßenoffensive 2026/2027.","Umsetzung abhängig u.a. von Witterung und Kapazitäten des Auftragnehmers. Genauer Zeitpunkt kann aktuell nicht dargestellt werden. Aus diesem Grund Bauphase im Arbeitsprogramm ggfs. auf mehrere Quartale ausgedehnt.",{"$f":"VLOOKUP($A95,'[1]komplett mit Formeln'!$A:$AJ,19,0)","v":"in Bauvorbereitung"},"2",{"$f":"SUM(SUMPRODUCT((ISNUMBER(SEARCH(\"x\",S95)))*4),(SUMPRODUCT((ISNUMBER(SEARCH(\"x\",T95:Y95)))*3)),(SUMPRODUCT((ISNUMBER(SEARCH(\"x\",Z95:AB95)))*2)),(SUMPRODUCT((ISNUMBER(SEARCH(\"x\",AC95:AF95)))*1)))","v":10},null,"x","x",null,null,null,null,"x",null,"x",null,null,null,null,".",".",".","x","."]
[1265,"nein","Bornstraße - Deckensanierung von Hausnr. 266 bis 329 (stadtauswärts)","INN-Nord","6 Straßenoffensive","V","V","B","B","B","S","E","38453-25","Deckensanierung im Rahmen der Straßenoffensive 2026/2027.","Umsetzung abhängig u.a. von Witterung und Kapazitäten des Auftragnehmers. Genauer Zeitpunkt kann aktuell nicht dargestellt werden. Aus diesem Grund Bauphase im Arbeitsprogramm ggfs. auf mehrere Quartale ausgedehnt.",{"$f":"VLOOKUP($A96,'[1]komplett mit Formeln'!$A:$AJ,19,0)","v":"in Bauvorbereitung"},"2",{"$f":"SUM(SUMPRODUCT((ISNUMBER(SEARCH(\"x\",S96)))*4),(SUMPRODUCT((ISNUMBER(SEARCH(\"x\",T96:Y96)))*3)),(SUMPRODUCT((ISNUMBER(SEARCH(\"x\",Z96:AB96)))*2)),(SUMPRODUCT((ISNUMBER(SEARCH(\"x\",AC96:AF96)))*1)))","v":10},null,"x","x",null,null,null,null,"x",null,"x",null,null,null,null,".",".",".","x","."]
[1266,"nein","Blücherstraße - Quartier 1 Innenstadt-Nord - Deckensanierung von Hausnr. 2 bis 20","INN-Nord","6 Straßenoffensive","V","V","B","B","B","S","E","38453-25","Deckensanierung im Rahmen der Straßenoffensive 2026/2027.","Umsetzung abhängig u.a. von Witterung und Kapazitäten des Auftragnehmers. Genauer Zeitpunkt kann aktuell nicht dargestellt werden. Aus diesem Grund Bauphase im Arbeitsprogramm ggfs. auf mehrere Quartale ausgedehnt.",{"$f":"VLOOKUP($A97,'[1]komplett mit Formeln'!$A:$AJ,19,0)","v":"in Bauvorbereitung"},"2",{"$f":"SUM(SUMPRODUCT((ISNUMBER(SEARCH(\"x\",S97)))*4),(SUMPRODUCT((ISNUMBER(SEARCH(\"x\",T97:Y97)))*3)),(SUMPRODUCT((ISNUMBER(SEARCH(\"x\",Z97:AB97)))*2)),(SUMPRODUCT((ISNUMBER(SEARCH(\"x\",AC97:AF97)))*1)))","v":10},null,"x","x",null,null,null,null,"x",null,"x",null,null,null,null,".",".",".","x","."]
[1267,"nein","Feldherrnstraße - Quartier 1 Innenstadt-Nord - Deckensanierung von Hausnr. 1 bis 26","INN-Nord","6 Straßenoffensive","V","V","B","B","B","S","E","38453-25","Deckensanierung im Rahmen der Straßenoffensive 2026/2027.","Umsetzung abhängig u.a. von Witterung und Kapazitäten des Auftragnehmers. Genauer Zeitpunkt kann aktuell nicht dargestellt werden. Aus diesem Grund Bauphase im Arbeitsprogramm ggfs. auf mehrere Quartale ausgedehnt.",{"$f":"VLOOKUP($A98,'[1]komplett mit Formeln'!$A:$AJ,19,0)","v":"in Bauvorbereitung"},"2",{"$f":"SUM(SUMPRODUCT((ISNUMBER(SEARCH(\"x\",S98)))*4),(SUMPRODUCT((ISNUMBER(SEARCH(\"x\",T98:Y98)))*3)),(SUMPRODUCT((ISNUMBER(SEARCH(\"x\",Z98:AB98)))*2)),(SUMPRODUCT((ISNUMBER(SEARCH(\"x\",AC98:AF98)))*1)))","v":10},null,"x","x",null,null,null,null,"x",null,"x",null,null,null,null,".",".",".","x","."]
[1268,"nein","Gneisenaustraße - Quartier 1 Innenstadt-Nord - Deckensanierung von Kesselstraße bis Feldherrnstraße","INN-Nord","6 Straßenoffensive","V","V","B","B","B","S","E","38453-25","Deckensanierung im Rahmen der Straßenoffensive 2026/2027.","Umsetzung abhängig u.a. von Witterung und Kapazitäten des Auftragnehmers. Genauer Zeitpunkt kann aktuell nicht dargestellt werden. Aus diesem Grund Bauphase im Arbeitsprogramm ggfs. auf mehrere Quartale ausgedehnt.",{"$f":"VLOOKUP($A99,'[1]komplett mit Formeln'!$A:$AJ,19,0)","v":"in Bauvorbereitung"},"2",{"$f":"SUM(SUMPRODUCT((ISNUMBER(SEARCH(\"x\",S99)))*4),(SUMPRODUCT((ISNUMBER(SEARCH(\"x\",T99:Y99)))*3)),(SUMPRODUCT((ISNUMBER(SEARCH(\"x\",Z99:AB99)))*2)),(SUMPRODUCT((ISNUMBER(SEARCH(\"x\",AC99:AF99)))*1)))","v":10},null,"x","x",null,null,null,null,"x",null,"x",null,null,null,null,".",".",".","x","."]
[1269,"nein","Martha-Gillessen-Straße - Quartier 1 Innenstadt-Nord - Deckensanierung","INN-Nord","6 Straßenoffensive","V","V","B","B","B","S","E","38453-25","Deckensanierung im Rahmen der Straßenoffensive 2026/2027.","Umsetzung abhängig u.a. von Witterung und Kapazitäten des Auftragnehmers. Genauer Zeitpunkt kann aktuell nicht dargestellt werden. Aus diesem Grund Bauphase im Arbeitsprogramm ggfs. auf mehrere Quartale ausgedehnt.",{"$f":"VLOOKUP($A100,'[1]komplett mit Formeln'!$A:$AJ,19,0)","v":"in Bauvorbereitung"},"2",{"$f":"SUM(SUMPRODUCT((ISNUMBER(SEARCH(\"x\",S100)))*4),(SUMPRODUCT((ISNUMBER(SEARCH(\"x\",T100:Y100)))*3)),(SUMPRODUCT((ISNUMBER(SEARCH(\"x\",Z100:AB100)))*2)),(SUMPRODUCT((ISNUMBER(SEARCH(\"x\",AC100:AF100)))*1)))","v":10},null,"x","x",null,null,null,null,"x",null,"x",null,null,null,null,".",".",".","x","."]
[1270,"nein","Treibstraße - Quartier 1 Innenstadt-Nord - Deckensanierung von Hausnr. 37 bis 63","INN-Nord","6 Straßenoffensive","V","V","B","B","B","S","E","38453-25","Deckensanierung im Rahmen der Straßenoffensive 2026/2027.","Umsetzung abhängig u.a. von Witterung und Kapazitäten des Auftragnehmers. Genauer Zeitpunkt kann aktuell nicht dargestellt werden. Aus diesem Grund Bauphase im Arbeitsprogramm ggfs. auf mehrere Quartale ausgedehnt.",{"$f":"VLOOKUP($A101,'[1]komplett mit Formeln'!$A:$AJ,19,0)","v":"in Bauvorbereitung"},"2",{"$f":"SUM(SUMPRODUCT((ISNUMBER(SEARCH(\"x\",S101)))*4),(SUMPRODUCT((ISNUMBER(SEARCH(\"x\",T101:Y101)))*3)),(SUMPRODUCT((ISNUMBER(SEARCH(\"x\",Z101:AB101)))*2)),(SUMPRODUCT((ISNUMBER(SEARCH(\"x\",AC101:AF101)))*1)))","v":10},null,"x","x",null,null,null,null,"x",null,"x",null,null,null,null,".",".",".","x","."]
[1271,"nein","Scharnhorststraße - Quartier 1 Innenstadt-Nord - Deckensanierung","INN-Nord","6 Straßenoffensive","V","V","B","B","B","S","E","38453-25","Deckensanierung im Rahmen der Straßenoffensive 2026/2027.","Umsetzung abhängig u.a. von Witterung und Kapazitäten des Auftragnehmers. Genauer Zeitpunkt kann aktuell nicht dargestellt werden. Aus diesem Grund Bauphase im Arbeitsprogramm ggfs. auf mehrere Quartale ausgedehnt.",{"$f":"VLOOKUP($A102,'[1]komplett mit Formeln'!$A:$AJ,19,0)","v":"in Bauvorbereitung"},"2",{"$f":"SUM(SUMPRODUCT((ISNUMBER(SEARCH(\"x\",S102)))*4),(SUMPRODUCT((ISNUMBER(SEARCH(\"x\",T102:Y102)))*3)),(SUMPRODUCT((ISNUMBER(SEARCH(\"x\",Z102:AB102)))*2)),(SUMPRODUCT((ISNUMBER(SEARCH(\"x\",AC102:AF102)))*1)))","v":10},null,"x","x",null,null,null,null,"x",null,"x",null,null,null,null,".",".",".","x","."]
[1272,"nein","Clemens-Veltum-Straße - Quartier 1 Innenstadt-Nord - Deckensanierung von Hausnr. 73 bis 92","INN-Nord","6 Straßenoffensive","V","V","B","B","B","S","E","38453-25","Deckensanierung im Rahmen der Straßenoffensive 2026/2027.","Umsetzung abhängig u.a. von Witterung und Kapazitäten des Auftragnehmers. Genauer Zeitpunkt kann aktuell nicht dargestellt werden. Aus diesem Grund Bauphase im Arbeitsprogramm ggfs. auf mehrere Quartale ausgedehnt.",{"$f":"VLOOKUP($A103,'[1]komplett mit Formeln'!$A:$AJ,19,0)","v":"in Bauvorbereitung"},"2",{"$f":"SUM(SUMPRODUCT((ISNUMBER(SEARCH(\"x\",S103)))*4),(SUMPRODUCT((ISNUMBER(SEARCH(\"x\",T103:Y103)))*3)),(SUMPRODUCT((ISNUMBER(SEARCH(\"x\",Z103:AB103)))*2)),(SUMPRODUCT((ISNUMBER(SEARCH(\"x\",AC103:AF103)))*1)))","v":10},null,"x","x",null,null,null,null,"x",null,"x",null,null,null,null,".",".",".","x","."]
[1273,"nein","Kesselstraße - Quartier 1 Innenstadt-Nord - Deckensanierung von Scharnhorststraße bis Gneisenaustraße","INN-Nord","6 Straßenoffensive","V","V","B","B","B","S","E","38453-25","Deckensanierung im Rahmen der Straßenoffensive 2026/2027.","Umsetzung abhängig u.a. von Witterung und Kapazitäten des Auftragnehmers. Genauer Zeitpunkt kann aktuell nicht dargestellt werden. Aus diesem Grund Bauphase im Arbeitsprogramm ggfs. auf mehrere Quartale ausgedehnt.",{"$f":"VLOOKUP($A104,'[1]komplett mit Formeln'!$A:$AJ,19,0)","v":"in Bauvorbereitung"},"2",{"$f":"SUM(SUMPRODUCT((ISNUMBER(SEARCH(\"x\",S104)))*4),(SUMPRODUCT((ISNUMBER(SEARCH(\"x\",T104:Y104)))*3)),(SUMPRODUCT((ISNUMBER(SEARCH(\"x\",Z104:AB104)))*2)),(SUMPRODUCT((ISNUMBER(SEARCH(\"x\",AC104:AF104)))*1)))","v":10},null,"x","x",null,null,null,null,"x",null,"x",null,null,null,null,".",".",".","x","."]
[1274,"nein","Blumenstraße - Quartier 1 Innenstadt-Nord - Deckensanierung von Scharnhorststraße bis Gneisenaustraße","INN-Nord","6 Straßenoffensive","V","V","B","B","B","S","E","38453-25","Deckensanierung im Rahmen der Straßenoffensive 2026/2027.","Umsetzung abhängig u.a. von Witterung und Kapazitäten des Auftragnehmers. Genauer Zeitpunkt kann aktuell nicht dargestellt werden. Aus diesem Grund Bauphase im Arbeitsprogramm ggfs. auf mehrere Quartale ausgedehnt.",{"$f":"VLOOKUP($A105,'[1]komplett mit Formeln'!$A:$AJ,19,0)","v":"in Bauvorbereitung"},"2",{"$f":"SUM(SUMPRODUCT((ISNUMBER(SEARCH(\"x\",S105)))*4),(SUMPRODUCT((ISNUMBER(SEARCH(\"x\",T105:Y105)))*3)),(SUMPRODUCT((ISNUMBER(SEARCH(\"x\",Z105:AB105)))*2)),(SUMPRODUCT((ISNUMBER(SEARCH(\"x\",AC105:AF105)))*1)))","v":10},null,"x","x",null,null,null,null,"x",null,"x",null,null,null,null,".",".",".","x","."]
[1275,"nein","Max-Eyth-Straße - Deckensanierung","INN-Ost","6 Straßenoffensive","V","V","B","B","B","S","E","38453-25","Deckensanierung im Rahmen der Straßenoffensive 2026/2027.","Umsetzung abhängig u.a. von Witterung und Kapazitäten des Auftragnehmers. Genauer Zeitpunkt kann aktuell nicht dargestellt werden. Aus diesem Grund Bauphase im Arbeitsprogramm ggfs. auf mehrere Quartale ausgedehnt.",{"$f":"VLOOKUP($A106,'[1]komplett mit Formeln'!$A:$AJ,19,0)","v":"in Bauvorbereitung"},"2",{"$f":"SUM(SUMPRODUCT((ISNUMBER(SEARCH(\"x\",S106)))*4),(SUMPRODUCT((ISNUMBER(SEARCH(\"x\",T106:Y106)))*3)),(SUMPRODUCT((ISNUMBER(SEARCH(\"x\",Z106:AB106)))*2)),(SUMPRODUCT((ISNUMBER(SEARCH(\"x\",AC106:AF106)))*1)))","v":10},null,"x","x",null,null,null,null,"x",null,"x",null,null,null,null,".",".",".","x","."]
[1276,"nein","Tucholskystraße - Deckensanierung","INN-Ost","6 Straßenoffensive","V","V","B","B","B","S","E","38453-25","Deckensanierung im Rahmen der Straßenoffensive 2026/2027.","Umsetzung abhängig u.a. von Witterung und Kapazitäten des Auftragnehmers. Genauer Zeitpunkt kann aktuell nicht dargestellt werden. Aus diesem Grund Bauphase im Arbeitsprogramm ggfs. auf mehrere Quartale ausgedehnt.",{"$f":"VLOOKUP($A107,'[1]komplett mit Formeln'!$A:$AJ,19,0)","v":"in Bauvorbereitung"},"2",{"$f":"SUM(SUMPRODUCT((ISNUMBER(SEARCH(\"x\",S107)))*4),(SUMPRODUCT((ISNUMBER(SEARCH(\"x\",T107:Y107)))*3)),(SUMPRODUCT((ISNUMBER(SEARCH(\"x\",Z107:AB107)))*2)),(SUMPRODUCT((ISNUMBER(SEARCH(\"x\",AC107:AF107)))*1)))","v":10},null,"x","x",null,null,null,null,"x",null,"x",null,null,null,null,".",".",".","x","."]
[1277,"nein","Baeumerstraße - Quartier 2 Innenstadt-Ost - Deckensanierung von Hausnr. 10 bis 26","INN-Ost","6 Straßenoffensive","V","V","B","B","B","S","E","38453-25","Deckensanierung im Rahmen der Straßenoffensive 2026/2027.","Umsetzung abhängig u.a. von Witterung und Kapazitäten des Auftragnehmers. Genauer Zeitpunkt kann aktuell nicht dargestellt werden. Aus diesem Grund Bauphase im Arbeitsprogramm ggfs. auf mehrere Quartale ausgedehnt.",{"$f":"VLOOKUP($A108,'[1]komplett mit Formeln'!$A:$AJ,19,0)","v":"in Bauvorbereitung"},"2",{"$f":"SUM(SUMPRODUCT((ISNUMBER(SEARCH(\"x\",S108)))*4),(SUMPRODUCT((ISNUMBER(SEARCH(\"x\",T108:Y108)))*3)),(SUMPRODUCT((ISNUMBER(SEARCH(\"x\",Z108:AB108)))*2)),(SUMPRODUCT((ISNUMBER(SEARCH(\"x\",AC108:AF108)))*1)))","v":10},null,"x","x",null,null,null,null,"x",null,"x",null,null,null,null,".",".",".","x","."]
[1278,"nein","Baurat-Marx-Allee - Quartier 2 Innenstadt-Ost - Deckensanierung zwischen B1 und Sckellstraße","INN-Ost","6 Straßenoffensive","V","V","B","B","B","S","E","38453-25","Deckensanierung im Rahmen der Straßenoffensive 2026/2027.","Umsetzung abhängig u.a. von Witterung und Kapazitäten des Auftragnehmers. Genauer Zeitpunkt kann aktuell nicht dargestellt werden. Aus diesem Grund Bauphase im Arbeitsprogramm ggfs. auf mehrere Quartale ausgedehnt.",{"$f":"VLOOKUP($A109,'[1]komplett mit Formeln'!$A:$AJ,19,0)","v":"in Bauvorbereitung"},"2",{"$f":"SUM(SUMPRODUCT((ISNUMBER(SEARCH(\"x\",S109)))*4),(SUMPRODUCT((ISNUMBER(SEARCH(\"x\",T109:Y109)))*3)),(SUMPRODUCT((ISNUMBER(SEARCH(\"x\",Z109:AB109)))*2)),(SUMPRODUCT((ISNUMBER(SEARCH(\"x\",AC109:AF109)))*1)))","v":10},null,"x","x",null,null,null,null,"x",null,"x",null,null,null,null,".",".",".","x","."]
[1279,"nein","Hohenfriedberger Straße - Quartier 2 Innenstadt-Ost - Deckensanierung von Hausnr. 1 bis 27","INN-Ost","6 Straßenoffensive","V","V","B","B","B","S","E","38453-25","Deckensanierung im Rahmen der Straßenoffensive 2026/2027.","Umsetzung abhängig u.a. von Witterung und Kapazitäten des Auftragnehmers. Genauer Zeitpunkt kann aktuell nicht dargestellt werden. Aus diesem Grund Bauphase im Arbeitsprogramm ggfs. auf mehrere Quartale ausgedehnt.",{"$f":"VLOOKUP($A110,'[1]komplett mit Formeln'!$A:$AJ,19,0)","v":"in Bauvorbereitung"},"2",{"$f":"SUM(SUMPRODUCT((ISNUMBER(SEARCH(\"x\",S110)))*4),(SUMPRODUCT((ISNUMBER(SEARCH(\"x\",T110:Y110)))*3)),(SUMPRODUCT((ISNUMBER(SEARCH(\"x\",Z110:AB110)))*2)),(SUMPRODUCT((ISNUMBER(SEARCH(\"x\",AC110:AF110)))*1)))","v":10},null,"x","x",null,null,null,null,"x",null,"x",null,null,null,null,".",".",".","x","."]
[1280,"nein","Karl-Liebknecht-Straße - Quartier 2 Innenstadt-Ost - Deckensanierung von Hausnr. 6 bis 33","INN-Ost","6 Straßenoffensive","V","V","B","B","B","S","E","38453-25","Deckensanierung im Rahmen der Straßenoffensive 2026/2027.","Umsetzung abhängig u.a. von Witterung und Kapazitäten des Auftragnehmers. Genauer Zeitpunkt kann aktuell nicht dargestellt werden. Aus diesem Grund Bauphase im Arbeitsprogramm ggfs. auf mehrere Quartale ausgedehnt.",{"$f":"VLOOKUP($A111,'[1]komplett mit Formeln'!$A:$AJ,19,0)","v":"in Bauvorbereitung"},"2",{"$f":"SUM(SUMPRODUCT((ISNUMBER(SEARCH(\"x\",S111)))*4),(SUMPRODUCT((ISNUMBER(SEARCH(\"x\",T111:Y111)))*3)),(SUMPRODUCT((ISNUMBER(SEARCH(\"x\",Z111:AB111)))*2)),(SUMPRODUCT((ISNUMBER(SEARCH(\"x\",AC111:AF111)))*1)))","v":10},null,"x","x",null,null,null,null,"x",null,"x",null,null,null,null,".",".",".","x","."]
[1281,"nein","Ziethenstraße - Quartier 2 Innenstadt-Ost - Deckensanierung von Winterfeldstraße bis Oberschlesierstraße","INN-Ost","6 Straßenoffensive","V","V","B","B","B","S","E","38453-25","Deckensanierung im Rahmen der Straßenoffensive 2026/2027.","Umsetzung abhängig u.a. von Witterung und Kapazitäten des Auftragnehmers. Genauer Zeitpunkt kann aktuell nicht dargestellt werden. Aus diesem Grund Bauphase im Arbeitsprogramm ggfs. auf mehrere Quartale ausgedehnt.",{"$f":"VLOOKUP($A112,'[1]komplett mit Formeln'!$A:$AJ,19,0)","v":"in Bauvorbereitung"},"2",{"$f":"SUM(SUMPRODUCT((ISNUMBER(SEARCH(\"x\",S112)))*4),(SUMPRODUCT((ISNUMBER(SEARCH(\"x\",T112:Y112)))*3)),(SUMPRODUCT((ISNUMBER(SEARCH(\"x\",Z112:AB112)))*2)),(SUMPRODUCT((ISNUMBER(SEARCH(\"x\",AC112:AF112)))*1)))","v":10},null,"x","x",null,null,null,null,"x",null,"x",null,null,null,null,".",".",".","x","."]
[1282,"nein","Bünnerhelfstraße - Deckensanierung","INN-West","6 Straßenoffensive","V","V","B","B","B","S","E","38453-25","Deckensanierung im Rahmen der Straßenoffensive 2026/2027.","Umsetzung abhängig u.a. von Witterung und Kapazitäten des Auftragnehmers. Genauer Zeitpunkt kann aktuell nicht dargestellt werden. Aus diesem Grund Bauphase im Arbeitsprogramm ggfs. auf mehrere Quartale ausgedehnt.",{"$f":"VLOOKUP($A113,'[1]komplett mit Formeln'!$A:$AJ,19,0)","v":"in Bauvorbereitung"},"2",{"$f":"SUM(SUMPRODUCT((ISNUMBER(SEARCH(\"x\",S113)))*4),(SUMPRODUCT((ISNUMBER(SEARCH(\"x\",T113:Y113)))*3)),(SUMPRODUCT((ISNUMBER(SEARCH(\"x\",Z113:AB113)))*2)),(SUMPRODUCT((ISNUMBER(SEARCH(\"x\",AC113:AF113)))*1)))","v":10},null,"x","x",null,null,null,null,"x",null,"x",null,null,null,null,".",".",".","x","."]
[1283,"nein","Iggelhorst - Deckensanierung von Kortental bis Bünnerhelfstraße","INN-West","6 Straßenoffensive","V","V","B","B","B","S","E","38453-25","Deckensanierung im Rahmen der Straßenoffensive 2026/2027.","Umsetzung abhängig u.a. von Witterung und Kapazitäten des Auftragnehmers. Genauer Zeitpunkt kann aktuell nicht dargestellt werden. Aus diesem Grund Bauphase im Arbeitsprogramm ggfs. auf mehrere Quartale ausgedehnt.",{"$f":"VLOOKUP($A114,'[1]komplett mit Formeln'!$A:$AJ,19,0)","v":"in Bauvorbereitung"},{"$f":"IF(R114=0,\"keine\",IF(AND(R114>0,R114<6),\"3\",IF(AND(R114>5,R114<11),\"2\",\"1\")))","v":"2"},{"$f":"SUM(SUMPRODUCT((ISNUMBER(SEARCH(\"x\",S114)))*4),(SUMPRODUCT((ISNUMBER(SEARCH(\"x\",T114:Y114)))*3)),(SUMPRODUCT((ISNUMBER(SEARCH(\"x\",Z114:AB114)))*2)),(SUMPRODUCT((ISNUMBER(SEARCH(\"x\",AC114:AF114)))*1)))","v":10},null,"x","x",null,null,null,null,"x",null,"x",null,null,null,null,".",".",".","x","."]
[1284,"nein","Amalienstraße - Quartier 1 Innenstadt-West - Deckensanierung","INN-West","6 Straßenoffensive","V","V","B","B","B","S","E","38453-25","Deckensanierung im Rahmen der Straßenoffensive 2026/2027.","Umsetzung abhängig u.a. von Witterung und Kapazitäten des Auftragnehmers. Genauer Zeitpunkt kann aktuell nicht dargestellt werden. Aus diesem Grund Bauphase im Arbeitsprogramm ggfs. auf mehrere Quartale ausgedehnt.",{"$f":"VLOOKUP($A115,'[1]komplett mit Formeln'!$A:$AJ,19,0)","v":"in Bauvorbereitung"},"2",{"$f":"SUM(SUMPRODUCT((ISNUMBER(SEARCH(\"x\",S115)))*4),(SUMPRODUCT((ISNUMBER(SEARCH(\"x\",T115:Y115)))*3)),(SUMPRODUCT((ISNUMBER(SEARCH(\"x\",Z115:AB115)))*2)),(SUMPRODUCT((ISNUMBER(SEARCH(\"x\",AC115:AF115)))*1)))","v":10},null,"x","x",null,null,null,null,"x",null,"x",null,null,null,null,".",".",".","x","."]
[1285,"nein","Frankenstraße - Quartier 1 Innenstadt-West - Deckensanierung","INN-West","6 Straßenoffensive","V","V","B","B","B","S","E","38453-25","Deckensanierung im Rahmen der Straßenoffensive 2026/2027.","Umsetzung abhängig u.a. von Witterung und Kapazitäten des Auftragnehmers. Genauer Zeitpunkt kann aktuell nicht dargestellt werden. Aus diesem Grund Bauphase im Arbeitsprogramm ggfs. auf mehrere Quartale ausgedehnt.",{"$f":"VLOOKUP($A116,'[1]komplett mit Formeln'!$A:$AJ,19,0)","v":"in Bauvorbereitung"},"2",{"$f":"SUM(SUMPRODUCT((ISNUMBER(SEARCH(\"x\",S116)))*4),(SUMPRODUCT((ISNUMBER(SEARCH(\"x\",T116:Y116)))*3)),(SUMPRODUCT((ISNUMBER(SEARCH(\"x\",Z116:AB116)))*2)),(SUMPRODUCT((ISNUMBER(SEARCH(\"x\",AC116:AF116)))*1)))","v":10},null,"x","x",null,null,null,null,"x",null,"x",null,null,null,null,".",".",".","x","."]
[1286,"nein","Gustavstraße - Quartier 1 Innenstadt-West - Deckensanierung","INN-West","6 Straßenoffensive","V","V","B","B","B","S","E","38453-25","Deckensanierung im Rahmen der Straßenoffensive 2026/2027.","Umsetzung abhängig u.a. von Witterung und Kapazitäten des Auftragnehmers. Genauer Zeitpunkt kann aktuell nicht dargestellt werden. Aus diesem Grund Bauphase im Arbeitsprogramm ggfs. auf mehrere Quartale ausgedehnt.",{"$f":"VLOOKUP($A117,'[1]komplett mit Formeln'!$A:$AJ,19,0)","v":"in Bauvorbereitung"},"2",{"$f":"SUM(SUMPRODUCT((ISNUMBER(SEARCH(\"x\",S117)))*4),(SUMPRODUCT((ISNUMBER(SEARCH(\"x\",T117:Y117)))*3)),(SUMPRODUCT((ISNUMBER(SEARCH(\"x\",Z117:AB117)))*2)),(SUMPRODUCT((ISNUMBER(SEARCH(\"x\",AC117:AF117)))*1)))","v":10},null,"x","x",null,null,null,null,"x",null,"x",null,null,null,null,".",".",".","x","."]
[1287,"nein","Humboldtstraße - Quartier 1 Innenstadt-West - Deckensanierung von Hausnr. 45 bis Ende","INN-West","6 Straßenoffensive","V","V","B","B","B","S","E","38453-25","Deckensanierung im Rahmen der Straßenoffensive 2026/2027.","Umsetzung abhängig u.a. von Witterung und Kapazitäten des Auftragnehmers. Genauer Zeitpunkt kann aktuell nicht dargestellt werden. Aus diesem Grund Bauphase im Arbeitsprogramm ggfs. auf mehrere Quartale ausgedehnt.",{"$f":"VLOOKUP($A118,'[1]komplett mit Formeln'!$A:$AJ,19,0)","v":"in Bauvorbereitung"},"2",{"$f":"SUM(SUMPRODUCT((ISNUMBER(SEARCH(\"x\",S118)))*4),(SUMPRODUCT((ISNUMBER(SEARCH(\"x\",T118:Y118)))*3)),(SUMPRODUCT((ISNUMBER(SEARCH(\"x\",Z118:AB118)))*2)),(SUMPRODUCT((ISNUMBER(SEARCH(\"x\",AC118:AF118)))*1)))","v":10},null,"x","x",null,null,null,null,"x",null,"x",null,null,null,null,".",".",".","x","."]
[1288,"nein","Hüttemannstraße - Quartier 1 Innenstadt-West - Deckensanierung von Hausnr. 1 bis 53.","INN-West","6 Straßenoffensive","V","V","B","B","B","S","E","38453-25","Deckensanierung im Rahmen der Straßenoffensive 2026/2027.","Umsetzung abhängig u.a. von Witterung und Kapazitäten des Auftragnehmers. Genauer Zeitpunkt kann aktuell nicht dargestellt werden. Aus diesem Grund Bauphase im Arbeitsprogramm ggfs. auf mehrere Quartale ausgedehnt.",{"$f":"VLOOKUP($A119,'[1]komplett mit Formeln'!$A:$AJ,19,0)","v":"in Bauvorbereitung"},"2",{"$f":"SUM(SUMPRODUCT((ISNUMBER(SEARCH(\"x\",S119)))*4),(SUMPRODUCT((ISNUMBER(SEARCH(\"x\",T119:Y119)))*3)),(SUMPRODUCT((ISNUMBER(SEARCH(\"x\",Z119:AB119)))*2)),(SUMPRODUCT((ISNUMBER(SEARCH(\"x\",AC119:AF119)))*1)))","v":10},null,"x","x",null,null,null,null,"x",null,"x",null,null,null,null,".",".",".","x","."]
[1289,"nein","Johannesstraße - Quartier 1 Innenstadt-West - Deckensanierung von Hausnr. 6 bis Ende","INN-West","6 Straßenoffensive","V","V","B","B","B","S","E","38453-25","Deckensanierung im Rahmen der Straßenoffensive 2026/2027.","Umsetzung abhängig u.a. von Witterung und Kapazitäten des Auftragnehmers. Genauer Zeitpunkt kann aktuell nicht dargestellt werden. Aus diesem Grund Bauphase im Arbeitsprogramm ggfs. auf mehrere Quartale ausgedehnt.",{"$f":"VLOOKUP($A120,'[1]komplett mit Formeln'!$A:$AJ,19,0)","v":"in Bauvorbereitung"},"2",{"$f":"SUM(SUMPRODUCT((ISNUMBER(SEARCH(\"x\",S120)))*4),(SUMPRODUCT((ISNUMBER(SEARCH(\"x\",T120:Y120)))*3)),(SUMPRODUCT((ISNUMBER(SEARCH(\"x\",Z120:AB120)))*2)),(SUMPRODUCT((ISNUMBER(SEARCH(\"x\",AC120:AF120)))*1)))","v":10},null,"x","x",null,null,null,null,"x",null,"x",null,null,null,null,".",".",".","x","."]
[1290,"nein","Josephstraße - Quartier 1 Innenstadt-West - Deckensanierung","INN-West","6 Straßenoffensive","V","V","B","B","B","S","E","38453-25","Deckensanierung im Rahmen der Straßenoffensive 2026/2027.","Umsetzung abhängig u.a. von Witterung und Kapazitäten des Auftragnehmers. Genauer Zeitpunkt kann aktuell nicht dargestellt werden. Aus diesem Grund Bauphase im Arbeitsprogramm ggfs. auf mehrere Quartale ausgedehnt.",{"$f":"VLOOKUP($A121,'[1]komplett mit Formeln'!$A:$AJ,19,0)","v":"in Bauvorbereitung"},"2",{"$f":"SUM(SUMPRODUCT((ISNUMBER(SEARCH(\"x\",S121)))*4),(SUMPRODUCT((ISNUMBER(SEARCH(\"x\",T121:Y121)))*3)),(SUMPRODUCT((ISNUMBER(SEARCH(\"x\",Z121:AB121)))*2)),(SUMPRODUCT((ISNUMBER(SEARCH(\"x\",AC121:AF121)))*1)))","v":10},null,"x","x",null,null,null,null,"x",null,"x",null,null,null,null,".",".",".","x","."]
[1291,"nein","Poststraße - Quartier 1 Innenstadt-West - Deckensanierung von Hohe Straße bis Luisenstraße","INN-West","6 Straßenoffensive","V","V","B","B","B","S","E","38453-25","Deckensanierung im Rahmen der Straßenoffensive 2026/2027.","Umsetzung abhängig u.a. von Witterung und Kapazitäten des Auftragnehmers. Genauer Zeitpunkt kann aktuell nicht dargestellt werden. Aus diesem Grund Bauphase im Arbeitsprogramm ggfs. auf mehrere Quartale ausgedehnt.",{"$f":"VLOOKUP($A122,'[1]komplett mit Formeln'!$A:$AJ,19,0)","v":"in Bauvorbereitung"},"2",{"$f":"SUM(SUMPRODUCT((ISNUMBER(SEARCH(\"x\",S122)))*4),(SUMPRODUCT((ISNUMBER(SEARCH(\"x\",T122:Y122)))*3)),(SUMPRODUCT((ISNUMBER(SEARCH(\"x\",Z122:AB122)))*2)),(SUMPRODUCT((ISNUMBER(SEARCH(\"x\",AC122:AF122)))*1)))","v":10},null,"x","x",null,null,null,null,"x",null,"x",null,null,null,null,".",".",".","x","."]
[1292,"nein","Wilhelmstraße - Quartier 1 Innenstadt-West - Deckensanierung","INN-West","6 Straßenoffensive","V","V","B","B","B","S","E","38453-25","Deckensanierung im Rahmen der Straßenoffensive 2026/2027.","Umsetzung abhängig u.a. von Witterung und Kapazitäten des Auftragnehmers. Genauer Zeitpunkt kann aktuell nicht dargestellt werden. Aus diesem Grund Bauphase im Arbeitsprogramm ggfs. auf mehrere Quartale ausgedehnt.",{"$f":"VLOOKUP($A123,'[1]komplett mit Formeln'!$A:$AJ,19,0)","v":"in Bauvorbereitung"},"2",{"$f":"SUM(SUMPRODUCT((ISNUMBER(SEARCH(\"x\",S123)))*4),(SUMPRODUCT((ISNUMBER(SEARCH(\"x\",T123:Y123)))*3)),(SUMPRODUCT((ISNUMBER(SEARCH(\"x\",Z123:AB123)))*2)),(SUMPRODUCT((ISNUMBER(SEARCH(\"x\",AC123:AF123)))*1)))","v":10},null,"x","x",null,null,null,null,"x",null,"x",null,null,null,null,".",".",".","x","."]
[1293,"nein","Werner Straße - Deckensanierung von Provinzialstraße bis Lütgendortmunder Straße","Lütgendortmund","6 Straßenoffensive","V","V","B","B","B","S","E","38453-25","Deckensanierung im Rahmen der Straßenoffensive 2026/2027.","Umsetzung abhängig u.a. von Witterung und Kapazitäten des Auftragnehmers. Genauer Zeitpunkt kann aktuell nicht dargestellt werden. Aus diesem Grund Bauphase im Arbeitsprogramm ggfs. auf mehrere Quartale ausgedehnt.",{"$f":"VLOOKUP($A124,'[1]komplett mit Formeln'!$A:$AJ,19,0)","v":"in Bauvorbereitung"},"2",{"$f":"SUM(SUMPRODUCT((ISNUMBER(SEARCH(\"x\",S124)))*4),(SUMPRODUCT((ISNUMBER(SEARCH(\"x\",T124:Y124)))*3)),(SUMPRODUCT((ISNUMBER(SEARCH(\"x\",Z124:AB124)))*2)),(SUMPRODUCT((ISNUMBER(SEARCH(\"x\",AC124:AF124)))*1)))","v":10},null,"x","x",null,null,null,null,"x",null,"x",null,null,null,null,".",".",".","x","."]
[1294,"nein","Alter Hellweg - Deckensanierung von Borussiastraße bis Overhoffstraße","Lütgendortmund","6 Straßenoffensive","V","V","B","B","B","S","E","38453-25","Deckensanierung im Rahmen der Straßenoffensive 2026/2027.","Umsetzung abhängig u.a. von Witterung und Kapazitäten des Auftragnehmers. Genauer Zeitpunkt kann aktuell nicht dargestellt werden. Aus diesem Grund Bauphase im Arbeitsprogramm ggfs. auf mehrere Quartale ausgedehnt.",{"$f":"VLOOKUP($A125,'[1]komplett mit Formeln'!$A:$AJ,19,0)","v":"in Bauvorbereitung"},"2",{"$f":"SUM(SUMPRODUCT((ISNUMBER(SEARCH(\"x\",S125)))*4),(SUMPRODUCT((ISNUMBER(SEARCH(\"x\",T125:Y125)))*3)),(SUMPRODUCT((ISNUMBER(SEARCH(\"x\",Z125:AB125)))*2)),(SUMPRODUCT((ISNUMBER(SEARCH(\"x\",AC125:AF125)))*1)))","v":10},null,"x","x",null,null,null,null,"x",null,"x",null,null,null,null,".",".",".","x","."]
[1295,"nein","Haardtstraße - Quartier 1 Lütgendortmund - Deckensanierung","Lütgendortmund","6 Straßenoffensive","V","V","B","B","B","S","E","38453-25","Deckensanierung im Rahmen der Straßenoffensive 2026/2027.","Umsetzung abhängig u.a. von Witterung und Kapazitäten des Auftragnehmers. Genauer Zeitpunkt kann aktuell nicht dargestellt werden. Aus diesem Grund Bauphase im Arbeitsprogramm ggfs. auf mehrere Quartale ausgedehnt.",{"$f":"VLOOKUP($A126,'[1]komplett mit Formeln'!$A:$AJ,19,0)","v":"in Bauvorbereitung"},"2",{"$f":"SUM(SUMPRODUCT((ISNUMBER(SEARCH(\"x\",S126)))*4),(SUMPRODUCT((ISNUMBER(SEARCH(\"x\",T126:Y126)))*3)),(SUMPRODUCT((ISNUMBER(SEARCH(\"x\",Z126:AB126)))*2)),(SUMPRODUCT((ISNUMBER(SEARCH(\"x\",AC126:AF126)))*1)))","v":10},null,"x","x",null,null,null,null,"x",null,"x",null,null,null,null,".",".",".","x","."]
[1296,"nein","Büllestraße - Quartier 1 Lütgendortmund - Deckensanierung","Lütgendortmund","6 Straßenoffensive","V","V","B","B","B","S","E","38453-25","Deckensanierung im Rahmen der Straßenoffensive 2026/2027.","Umsetzung abhängig u.a. von Witterung und Kapazitäten des Auftragnehmers. Genauer Zeitpunkt kann aktuell nicht dargestellt werden. Aus diesem Grund Bauphase im Arbeitsprogramm ggfs. auf mehrere Quartale ausgedehnt.",{"$f":"VLOOKUP($A127,'[1]komplett mit Formeln'!$A:$AJ,19,0)","v":"in Bauvorbereitung"},"2",{"$f":"SUM(SUMPRODUCT((ISNUMBER(SEARCH(\"x\",S127)))*4),(SUMPRODUCT((ISNUMBER(SEARCH(\"x\",T127:Y127)))*3)),(SUMPRODUCT((ISNUMBER(SEARCH(\"x\",Z127:AB127)))*2)),(SUMPRODUCT((ISNUMBER(SEARCH(\"x\",AC127:AF127)))*1)))","v":10},null,"x","x",null,null,null,null,"x",null,"x",null,null,null,null,".",".",".","x","."]
[1297,"nein","Lina-Schäfer-Straße - Quartier 1 Lütgendortmund - Deckensanierung","Lütgendortmund","6 Straßenoffensive","V","V","B","B","B","S","E","38453-25","Deckensanierung im Rahmen der Straßenoffensive 2026/2027.","Umsetzung abhängig u.a. von Witterung und Kapazitäten des Auftragnehmers. Genauer Zeitpunkt kann aktuell nicht dargestellt werden. Aus diesem Grund Bauphase im Arbeitsprogramm ggfs. auf mehrere Quartale ausgedehnt.",{"$f":"VLOOKUP($A128,'[1]komplett mit Formeln'!$A:$AJ,19,0)","v":"in Bauvorbereitung"},"2",{"$f":"SUM(SUMPRODUCT((ISNUMBER(SEARCH(\"x\",S128)))*4),(SUMPRODUCT((ISNUMBER(SEARCH(\"x\",T128:Y128)))*3)),(SUMPRODUCT((ISNUMBER(SEARCH(\"x\",Z128:AB128)))*2)),(SUMPRODUCT((ISNUMBER(SEARCH(\"x\",AC128:AF128)))*1)))","v":10},null,"x","x",null,null,null,null,"x",null,"x",null,null,null,null,".",".",".","x","."]
[1298,"nein","Gundlachstraße - Quartier 1 Lütgendortmund - Deckensanierung","Lütgendortmund","6 Straßenoffensive","V","V","B","B","B","S","E","38453-25","Deckensanierung im Rahmen der Straßenoffensive 2026/2027.","Umsetzung abhängig u.a. von Witterung und Kapazitäten des Auftragnehmers. Genauer Zeitpunkt kann aktuell nicht dargestellt werden. Aus diesem Grund Bauphase im Arbeitsprogramm ggfs. auf mehrere Quartale ausgedehnt.",{"$f":"VLOOKUP($A129,'[1]komplett mit Formeln'!$A:$AJ,19,0)","v":"in Bauvorbereitung"},"2",{"$f":"SUM(SUMPRODUCT((ISNUMBER(SEARCH(\"x\",S129)))*4),(SUMPRODUCT((ISNUMBER(SEARCH(\"x\",T129:Y129)))*3)),(SUMPRODUCT((ISNUMBER(SEARCH(\"x\",Z129:AB129)))*2)),(SUMPRODUCT((ISNUMBER(SEARCH(\"x\",AC129:AF129)))*1)))","v":10},null,"x","x",null,null,null,null,"x",null,"x",null,null,null,null,".",".",".","x","."]
[1299,"nein","Strünkedestraße - Deckensanierung von Hausnr. 201 bis 287","Mengede","6 Straßenoffensive","V","V","B","B","B","S","E","38453-25","Deckensanierung im Rahmen der Straßenoffensive 2026/2027.","Umsetzung abhängig u.a. von Witterung und Kapazitäten des Auftragnehmers. Genauer Zeitpunkt kann aktuell nicht dargestellt werden. Aus diesem Grund Bauphase im Arbeitsprogramm ggfs. auf mehrere Quartale ausgedehnt.",{"$f":"VLOOKUP($A130,'[1]komplett mit Formeln'!$A:$AJ,19,0)","v":"in Bauvorbereitung"},"2",{"$f":"SUM(SUMPRODUCT((ISNUMBER(SEARCH(\"x\",S130)))*4),(SUMPRODUCT((ISNUMBER(SEARCH(\"x\",T130:Y130)))*3)),(SUMPRODUCT((ISNUMBER(SEARCH(\"x\",Z130:AB130)))*2)),(SUMPRODUCT((ISNUMBER(SEARCH(\"x\",AC130:AF130)))*1)))","v":10},null,"x","x",null,null,null,null,"x",null,"x",null,null,null,null,".",".",".","x","."]
[1300,"nein","Eugen-Richter-Straße - Deckensanierung von Hausnr. 201 bis 287","Mengede","6 Straßenoffensive","V","V","B","B","B","S","E","38453-25","Deckensanierung im Rahmen der Straßenoffensive 2026/2027.","Umsetzung abhängig u.a. von Witterung und Kapazitäten des Auftragnehmers. Genauer Zeitpunkt kann aktuell nicht dargestellt werden. Aus diesem Grund Bauphase im Arbeitsprogramm ggfs. auf mehrere Quartale ausgedehnt.",{"$f":"VLOOKUP($A131,'[1]komplett mit Formeln'!$A:$AJ,19,0)","v":"in Bauvorbereitung"},"2",{"$f":"SUM(SUMPRODUCT((ISNUMBER(SEARCH(\"x\",S131)))*4),(SUMPRODUCT((ISNUMBER(SEARCH(\"x\",T131:Y131)))*3)),(SUMPRODUCT((ISNUMBER(SEARCH(\"x\",Z131:AB131)))*2)),(SUMPRODUCT((ISNUMBER(SEARCH(\"x\",AC131:AF131)))*1)))","v":10},null,"x","x",null,null,null,null,"x",null,"x",null,null,null,null,".",".",".","x","."]
[1301,"nein","Elberskamp - Quartier 2 Mengede - Deckensanierung","Mengede","6 Straßenoffensive","V","V","B","B","B","S","E","38453-25","Deckensanierung im Rahmen der Straßenoffensive 2026/2027.","Umsetzung abhängig u.a. von Witterung und Kapazitäten des Auftragnehmers. Genauer Zeitpunkt kann aktuell nicht dargestellt werden. Aus diesem Grund Bauphase im Arbeitsprogramm ggfs. auf mehrere Quartale ausgedehnt.",{"$f":"VLOOKUP($A132,'[1]komplett mit Formeln'!$A:$AJ,19,0)","v":"in Bauvorbereitung"},"2",{"$f":"SUM(SUMPRODUCT((ISNUMBER(SEARCH(\"x\",S132)))*4),(SUMPRODUCT((ISNUMBER(SEARCH(\"x\",T132:Y132)))*3)),(SUMPRODUCT((ISNUMBER(SEARCH(\"x\",Z132:AB132)))*2)),(SUMPRODUCT((ISNUMBER(SEARCH(\"x\",AC132:AF132)))*1)))","v":10},null,"x","x",null,null,null,null,"x",null,"x",null,null,null,null,".",".",".","x","."]
[1302,"nein","Göllenkamp - Quartier 2 Mengede - Deckensanierung von Hausnr. 1 bis 33","Mengede","6 Straßenoffensive","V","V","B","B","B","S","E","38453-25","Deckensanierung im Rahmen der Straßenoffensive 2026/2027.","Umsetzung abhängig u.a. von Witterung und Kapazitäten des Auftragnehmers. Genauer Zeitpunkt kann aktuell nicht dargestellt werden. Aus diesem Grund Bauphase im Arbeitsprogramm ggfs. auf mehrere Quartale ausgedehnt.",{"$f":"VLOOKUP($A133,'[1]komplett mit Formeln'!$A:$AJ,19,0)","v":"in Bauvorbereitung"},"2",{"$f":"SUM(SUMPRODUCT((ISNUMBER(SEARCH(\"x\",S133)))*4),(SUMPRODUCT((ISNUMBER(SEARCH(\"x\",T133:Y133)))*3)),(SUMPRODUCT((ISNUMBER(SEARCH(\"x\",Z133:AB133)))*2)),(SUMPRODUCT((ISNUMBER(SEARCH(\"x\",AC133:AF133)))*1)))","v":10},null,"x","x",null,null,null,null,"x",null,"x",null,null,null,null,".",".",".","x","."]
[1303,"nein","Richterstraße - Quartier 2 Mengede - Deckensanierung von Hausnr. 18 bis 24.","Mengede","6 Straßenoffensive","V","V","B","B","B","S","E","38453-25","Deckensanierung im Rahmen der Straßenoffensive 2026/2027.","Umsetzung abhängig u.a. von Witterung und Kapazitäten des Auftragnehmers. Genauer Zeitpunkt kann aktuell nicht dargestellt werden. Aus diesem Grund Bauphase im Arbeitsprogramm ggfs. auf mehrere Quartale ausgedehnt.",{"$f":"VLOOKUP($A134,'[1]komplett mit Formeln'!$A:$AJ,19,0)","v":"in Bauvorbereitung"},"2",{"$f":"SUM(SUMPRODUCT((ISNUMBER(SEARCH(\"x\",S134)))*4),(SUMPRODUCT((ISNUMBER(SEARCH(\"x\",T134:Y134)))*3)),(SUMPRODUCT((ISNUMBER(SEARCH(\"x\",Z134:AB134)))*2)),(SUMPRODUCT((ISNUMBER(SEARCH(\"x\",AC134:AF134)))*1)))","v":10},null,"x","x",null,null,null,null,"x",null,"x",null,null,null,null,".",".",".","x","."]
[1304,"nein","Raulfskamp - Quartier 2 Mengede - Deckensanierung","Mengede","6 Straßenoffensive","V","V","B","B","B","S","E","38453-25","Deckensanierung im Rahmen der Straßenoffensive 2026/2027.","Umsetzung abhängig u.a. von Witterung und Kapazitäten des Auftragnehmers. Genauer Zeitpunkt kann aktuell nicht dargestellt werden. Aus diesem Grund Bauphase im Arbeitsprogramm ggfs. auf mehrere Quartale ausgedehnt.",{"$f":"VLOOKUP($A135,'[1]komplett mit Formeln'!$A:$AJ,19,0)","v":"in Bauvorbereitung"},"2",{"$f":"SUM(SUMPRODUCT((ISNUMBER(SEARCH(\"x\",S135)))*4),(SUMPRODUCT((ISNUMBER(SEARCH(\"x\",T135:Y135)))*3)),(SUMPRODUCT((ISNUMBER(SEARCH(\"x\",Z135:AB135)))*2)),(SUMPRODUCT((ISNUMBER(SEARCH(\"x\",AC135:AF135)))*1)))","v":10},null,"x","x",null,null,null,null,"x",null,"x",null,null,null,null,".",".",".","x","."]
[1305,"nein","Deininghauser Straße - Quartier 2 Mengede - Deckensanierung von Wendeschleife bis Richterstraße","Mengede","6 Straßenoffensive","V","V","B","B","B","S","E","38453-25","Deckensanierung im Rahmen der Straßenoffensive 2026/2027.","Umsetzung abhängig u.a. von Witterung und Kapazitäten des Auftragnehmers. Genauer Zeitpunkt kann aktuell nicht dargestellt werden. Aus diesem Grund Bauphase im Arbeitsprogramm ggfs. auf mehrere Quartale ausgedehnt.",{"$f":"VLOOKUP($A136,'[1]komplett mit Formeln'!$A:$AJ,19,0)","v":"in Bauvorbereitung"},"2",{"$f":"SUM(SUMPRODUCT((ISNUMBER(SEARCH(\"x\",S136)))*4),(SUMPRODUCT((ISNUMBER(SEARCH(\"x\",T136:Y136)))*3)),(SUMPRODUCT((ISNUMBER(SEARCH(\"x\",Z136:AB136)))*2)),(SUMPRODUCT((ISNUMBER(SEARCH(\"x\",AC136:AF136)))*1)))","v":10},null,"x","x",null,null,null,null,"x",null,"x",null,null,null,null,".",".",".","x","."]
[1306,"nein","Stilkingweg - Quartier 2 Mengede - Deckensanierung","Mengede","6 Straßenoffensive","V","V","B","B","B","S","E","38453-25","Deckensanierung im Rahmen der Straßenoffensive 2026/2027.","Umsetzung abhängig u.a. von Witterung und Kapazitäten des Auftragnehmers. Genauer Zeitpunkt kann aktuell nicht dargestellt werden. Aus diesem Grund Bauphase im Arbeitsprogramm ggfs. auf mehrere Quartale ausgedehnt.",{"$f":"VLOOKUP($A137,'[1]komplett mit Formeln'!$A:$AJ,19,0)","v":"in Bauvorbereitung"},"2",{"$f":"SUM(SUMPRODUCT((ISNUMBER(SEARCH(\"x\",S137)))*4),(SUMPRODUCT((ISNUMBER(SEARCH(\"x\",T137:Y137)))*3)),(SUMPRODUCT((ISNUMBER(SEARCH(\"x\",Z137:AB137)))*2)),(SUMPRODUCT((ISNUMBER(SEARCH(\"x\",AC137:AF137)))*1)))","v":10},null,"x","x",null,null,null,null,"x",null,"x",null,null,null,null,".",".",".","x","."]
[1307,"nein","Merkurstraße - Deckensanierung von Kippstraße bis Lanstroper Straße","Scharnhorst","6 Straßenoffensive","V","V","B","B","B","S","E","38453-25","Deckensanierung im Rahmen der Straßenoffensive 2026/2027.","Umsetzung abhängig u.a. von Witterung und Kapazitäten des Auftragnehmers. Genauer Zeitpunkt kann aktuell nicht dargestellt werden. Aus diesem Grund Bauphase im Arbeitsprogramm ggfs. auf mehrere Quartale ausgedehnt.",{"$f":"VLOOKUP($A138,'[1]komplett mit Formeln'!$A:$AJ,19,0)","v":"in Bauvorbereitung"},"2",{"$f":"SUM(SUMPRODUCT((ISNUMBER(SEARCH(\"x\",S138)))*4),(SUMPRODUCT((ISNUMBER(SEARCH(\"x\",T138:Y138)))*3)),(SUMPRODUCT((ISNUMBER(SEARCH(\"x\",Z138:AB138)))*2)),(SUMPRODUCT((ISNUMBER(SEARCH(\"x\",AC138:AF138)))*1)))","v":10},null,"x","x",null,null,null,null,"x",null,"x",null,null,null,null,".",".",".","x","."]
[1308,"nein","Bremsstraße - Quartier 1 Scharnhorst - Deckensanierung von Hausnr. 1 bis 50.","Scharnhorst","6 Straßenoffensive","V","V","B","B","B","S","E","38453-25","Deckensanierung im Rahmen der Straßenoffensive 2026/2027.","Umsetzung abhängig u.a. von Witterung und Kapazitäten des Auftragnehmers. Genauer Zeitpunkt kann aktuell nicht dargestellt werden. Aus diesem Grund Bauphase im Arbeitsprogramm ggfs. auf mehrere Quartale ausgedehnt.",{"$f":"VLOOKUP($A139,'[1]komplett mit Formeln'!$A:$AJ,19,0)","v":"in Bauvorbereitung"},"2",{"$f":"SUM(SUMPRODUCT((ISNUMBER(SEARCH(\"x\",S139)))*4),(SUMPRODUCT((ISNUMBER(SEARCH(\"x\",T139:Y139)))*3)),(SUMPRODUCT((ISNUMBER(SEARCH(\"x\",Z139:AB139)))*2)),(SUMPRODUCT((ISNUMBER(SEARCH(\"x\",AC139:AF139)))*1)))","v":10},null,"x","x",null,null,null,null,"x",null,"x",null,null,null,null,".",".",".","x","."]
[1309,"nein","Büttnerstraße - Quartier 1 Scharnhorst - Deckensanierung von Hausnr. 43 bis 46.","Scharnhorst","6 Straßenoffensive","V","V","B","B","B","S","E","38453-25","Deckensanierung im Rahmen der Straßenoffensive 2026/2027.","Umsetzung abhängig u.a. von Witterung und Kapazitäten des Auftragnehmers. Genauer Zeitpunkt kann aktuell nicht dargestellt werden. Aus diesem Grund Bauphase im Arbeitsprogramm ggfs. auf mehrere Quartale ausgedehnt.",{"$f":"VLOOKUP($A140,'[1]komplett mit Formeln'!$A:$AJ,19,0)","v":"in Bauvorbereitung"},"2",{"$f":"SUM(SUMPRODUCT((ISNUMBER(SEARCH(\"x\",S140)))*4),(SUMPRODUCT((ISNUMBER(SEARCH(\"x\",T140:Y140)))*3)),(SUMPRODUCT((ISNUMBER(SEARCH(\"x\",Z140:AB140)))*2)),(SUMPRODUCT((ISNUMBER(SEARCH(\"x\",AC140:AF140)))*1)))","v":10},null,"x","x",null,null,null,null,"x",null,"x",null,null,null,null,".",".",".","x","."]
[1310,"nein","Gürtlerstraße - Quartier 1 Scharnhorst - Deckensanierung von Hausnr. 1 bis 24.","Scharnhorst","6 Straßenoffensive","V","V","B","B","B","S","E","38453-25","Deckensanierung im Rahmen der Straßenoffensive 2026/2027.","Umsetzung abhängig u.a. von Witterung und Kapazitäten des Auftragnehmers. Genauer Zeitpunkt kann aktuell nicht dargestellt werden. Aus diesem Grund Bauphase im Arbeitsprogramm ggfs. auf mehrere Quartale ausgedehnt.",{"$f":"VLOOKUP($A141,'[1]komplett mit Formeln'!$A:$AJ,19,0)","v":"in Bauvorbereitung"},"2",{"$f":"SUM(SUMPRODUCT((ISNUMBER(SEARCH(\"x\",S141)))*4),(SUMPRODUCT((ISNUMBER(SEARCH(\"x\",T141:Y141)))*3)),(SUMPRODUCT((ISNUMBER(SEARCH(\"x\",Z141:AB141)))*2)),(SUMPRODUCT((ISNUMBER(SEARCH(\"x\",AC141:AF141)))*1)))","v":10},null,"x","x",null,null,null,null,"x",null,"x",null,null,null,null,".",".",".","x","."]
[1311,"nein","Hafnerstraße - Quartier 1 Scharnhorst - Deckensanierung von Hausnr. 1 bis 17.","Scharnhorst","6 Straßenoffensive","V","V","B","B","B","S","E","38453-25","Deckensanierung im Rahmen der Straßenoffensive 2026/2027.","Umsetzung abhängig u.a. von Witterung und Kapazitäten des Auftragnehmers. Genauer Zeitpunkt kann aktuell nicht dargestellt werden. Aus diesem Grund Bauphase im Arbeitsprogramm ggfs. auf mehrere Quartale ausgedehnt.",{"$f":"VLOOKUP($A142,'[1]komplett mit Formeln'!$A:$AJ,19,0)","v":"in Bauvorbereitung"},"2",{"$f":"SUM(SUMPRODUCT((ISNUMBER(SEARCH(\"x\",S142)))*4),(SUMPRODUCT((ISNUMBER(SEARCH(\"x\",T142:Y142)))*3)),(SUMPRODUCT((ISNUMBER(SEARCH(\"x\",Z142:AB142)))*2)),(SUMPRODUCT((ISNUMBER(SEARCH(\"x\",AC142:AF142)))*1)))","v":10},null,"x","x",null,null,null,null,"x",null,"x",null,null,null,null,".",".",".","x","."]
[1312,"nein","Spornerweg - Quartier 1 Scharnhorst - Deckensanierung von Hausnr. 1 bis 8.","Scharnhorst","6 Straßenoffensive","V","V","B","B","B","S","E","38453-25","Deckensanierung im Rahmen der Straßenoffensive 2026/2027.","Umsetzung abhängig u.a. von Witterung und Kapazitäten des Auftragnehmers. Genauer Zeitpunkt kann aktuell nicht dargestellt werden. Aus diesem Grund Bauphase im Arbeitsprogramm ggfs. auf mehrere Quartale ausgedehnt.",{"$f":"VLOOKUP($A143,'[1]komplett mit Formeln'!$A:$AJ,19,0)","v":"in Bauvorbereitung"},"2",{"$f":"SUM(SUMPRODUCT((ISNUMBER(SEARCH(\"x\",S143)))*4),(SUMPRODUCT((ISNUMBER(SEARCH(\"x\",T143:Y143)))*3)),(SUMPRODUCT((ISNUMBER(SEARCH(\"x\",Z143:AB143)))*2)),(SUMPRODUCT((ISNUMBER(SEARCH(\"x\",AC143:AF143)))*1)))","v":10},null,"x","x",null,null,null,null,"x",null,"x",null,null,null,null,".",".",".","x","."]
[1313,"nein","Wasserfuhr - Quartier 1 Scharnhorst - Deckensanierung von Hausnr. 1 bis 74.","Scharnhorst","6 Straßenoffensive","V","V","B","B","B","S","E","38453-25","Deckensanierung im Rahmen der Straßenoffensive 2026/2027.","Umsetzung abhängig u.a. von Witterung und Kapazitäten des Auftragnehmers. Genauer Zeitpunkt kann aktuell nicht dargestellt werden. Aus diesem Grund Bauphase im Arbeitsprogramm ggfs. auf mehrere Quartale ausgedehnt.",{"$f":"VLOOKUP($A144,'[1]komplett mit Formeln'!$A:$AJ,19,0)","v":"in Bauvorbereitung"},"2",{"$f":"SUM(SUMPRODUCT((ISNUMBER(SEARCH(\"x\",S144)))*4),(SUMPRODUCT((ISNUMBER(SEARCH(\"x\",T144:Y144)))*3)),(SUMPRODUCT((ISNUMBER(SEARCH(\"x\",Z144:AB144)))*2)),(SUMPRODUCT((ISNUMBER(SEARCH(\"x\",AC144:AF144)))*1)))","v":10},null,"x","x",null,null,null,null,"x",null,"x",null,null,null,null,".",".",".","x","."]

{"sheet":"Lichtsignalanlagen (LSA)","index":4,"n_rows":70,"n_cols":49,"rows_kept":70,"cut":false,"hidden":false,"merged":[[1,32,3,16383],[1,18,1,31],[4,27,16,27],[4,28,16,28],[4,29,16,29],[4,30,16,30],[4,31,16,31],[4,33,16,33],[4,34,16,34],[4,35,16,35],[4,36,16,36],[4,32,16,32],[1,12,16,12],[4,26,16,26],[4,7,16,7],[2,8,2,9],[4,8,16,8],[4,9,16,9],[4,18,16,18],[4,19,16,19],[4,20,16,20],[4,21,16,21],[4,22,16,22],[4,23,16,23],[4,24,16,24],[4,25,16,25],[1,13,16,13],[1,14,16,14],[1,15,16,15],[2,18,3,18],[2,19,3,24],[2,25,3,27],[2,28,3,31],[1,16,16,16],[1,17,16,17],[2,10,2,11],[1,0,16,0],[1,1,16,1],[1,2,16,2],[1,3,16,3],[1,4,16,4],[3,5,16,5],[3,6,3,9],[3,10,16,10],[3,11,16,11],[4,6,16,6]]}
[]
["Projektnr.:","Projekt-blatt","Bezeichnung","Stadtbezirk","Art","P","V","B","S",null,"E",null,"Drucksachen-nummer mit Link zum Online-Dokument","Beschreibung","Bemerkungen","Maßnahmenstatus","Prioritätenklasse","Summe Gewichtungspunkte","Bewertungstatbestände mit Gewichtung",null,null,null,null,null,null,null,null,null,null,null,null,null,"Beteiligter Bereich"]
[null,null,null,null,null,"= Planung","= Vorbereitung","= Bau","= Schlussrechnung",null,"= Ende der Baumaßnahme",null,null,null,null,null,null,null,4,3,null,null,null,null,null,2,null,null,1]
[null,null,null,null,null,2025,2026,null,null,null,2027,2028]
[null,null,null,null,null,null,"I","II","III","IV",null,null,null,null,null,null,null,null,"Maßnahme in Ausführung / Auftrag erteilt","Herstellung der Verkehrssicherheit / hoher Unterhaltungsaufwand / kritischer Zustand","Straßenoffensive","Velorouten / Radschnellwege","Maßnahme ist Bestandteil \neines sonstigen Bauprogramms","ÖPNV / Barrierefreiheit","Vergabeverfahren läuft","Baubeschluss liegt vor","Förderantrag bewilligt","Planung weit fortgeschritten","Verkehrliche Bedeutung (Hauptstraßen)","Radverkehr","Refinanzierung möglich / Förderantrag gestellt / Anliegerbeiträge / BV-Mittel","gemeinsame Maßnahme mit Dritten"," Verkehrswege","Verkehrsbauwerke","Verkehrstechnik","Betrieb","Verkehrswendebüro"]
[]
[]
[]
[]
[]
[]
[]
[]
[]
[]
[]
[]
[854,"ja","LSA 0104 Stockumer Straße / Am Beilstück-Steinäckerstraße  ","Hombruch","3a Einzelmaßnahme Radwege investiv","B","B","S","S","S","E",null,"35799-24","Erneuerung der LSA 0104 Stockumer Straße / Am Beilstück-Steinäckerstraße  ",null,"im Bau",{"$f":"IF(R18=0,\"keine\",IF(AND(R18>0,R18<6),\"3\",IF(AND(R18>5,R18<11),\"2\",\"1\")))","v":"1"},{"$f":"SUM(SUMPRODUCT((ISNUMBER(SEARCH(\"x\",S18)))*4),(SUMPRODUCT((ISNUMBER(SEARCH(\"x\",T18:Y18)))*3)),(SUMPRODUCT((ISNUMBER(SEARCH(\"x\",Z18:AB18)))*2)),(SUMPRODUCT((ISNUMBER(SEARCH(\"x\",AC18:AF18)))*1)))","v":18},"x","x",null,null,null,null,"x","x","x","x",null,"x","x",null,".",".","x",".","."]
[866,"ja","Lärmminderungsmaßnahmen: Geschwindigkeitsbegrenzungen auf Tempo 30  - konsumtive Maßnahmen-","überörtlich","1b Verkehrstechnik konsumtiv","B","B","B","B","B","S","E","22817-21","19 Maßnahmen über gesamtes Stadtgebiet verteilt",null,"im Bau","1",{"$f":"SUM(SUMPRODUCT((ISNUMBER(SEARCH(\"x\",S19)))*4),(SUMPRODUCT((ISNUMBER(SEARCH(\"x\",T19:Y19)))*3)),(SUMPRODUCT((ISNUMBER(SEARCH(\"x\",Z19:AB19)))*2)),(SUMPRODUCT((ISNUMBER(SEARCH(\"x\",AC19:AF19)))*1)))","v":15},"x","x",null,null,"x",null,"x",null,null,"x",null,null,null,null,".",".","x",".",".",null,null,null,null,null,null,null,null,null,null,null,0]
[783,"ja","LSA 0078 - Bornstraße/Glückaufstraße/Juliusstraße","Innenstadt-Nord","1a Einzelmaßnahme Verkehrstechnik investiv","B","B","S","S","S","E",null,"35549-24","Erneuerung der LSA 0078 - Bornstraße / Glückaufstraße / Juliusstraße.",null,"im Bau","1",{"$f":"SUM(SUMPRODUCT((ISNUMBER(SEARCH(\"x\",S20)))*4),(SUMPRODUCT((ISNUMBER(SEARCH(\"x\",T20:Y20)))*3)),(SUMPRODUCT((ISNUMBER(SEARCH(\"x\",Z20:AB20)))*2)),(SUMPRODUCT((ISNUMBER(SEARCH(\"x\",AC20:AF20)))*1)))","v":14},"x","x",null,null,null,null,"x","x",null,"x",null,null,null,null,".",".","x",".","."]
[806,"ja","Hellwegschiene - Erneuerung LSA","überörtlich","1a Einzelmaßnahme Verkehrstechnik investiv","B","B","B","S","S","S","E","26048-22","Erneuerung von 11 Lichtsignalanlagen (LSA) auf der sogenannten \"Hellwegschiene\"",null,"im Bau","1",{"$f":"SUM(SUMPRODUCT((ISNUMBER(SEARCH(\"x\",S21)))*4),(SUMPRODUCT((ISNUMBER(SEARCH(\"x\",T21:Y21)))*3)),(SUMPRODUCT((ISNUMBER(SEARCH(\"x\",Z21:AB21)))*2)),(SUMPRODUCT((ISNUMBER(SEARCH(\"x\",AC21:AF21)))*1)))","v":14},"x","x",null,null,null,null,"x","x",null,"x",null,null,null,null,".",".","x",".","."]
[583,"ja","Beschleunigung via Road-Side-Units","überörtlich","1a Einzelmaßnahme Verkehrstechnik investiv","B","B","B","B","B","S","E","33773-24","Beschleunigung von Bussen und Einsatzfahrzeugen der Feuerwehr durch Funktelegramme an LSA (Lichtsignalanlagen) innerhalb der Bezirke Huckarde und Lütgendortmund.","Pilotprojekt","im Bau","1",{"$f":"SUM(SUMPRODUCT((ISNUMBER(SEARCH(\"x\",S22)))*4),(SUMPRODUCT((ISNUMBER(SEARCH(\"x\",T22:Y22)))*3)),(SUMPRODUCT((ISNUMBER(SEARCH(\"x\",Z22:AB22)))*2)),(SUMPRODUCT((ISNUMBER(SEARCH(\"x\",AC22:AF22)))*1)))","v":12},"x",null,null,null,null,null,"x","x",null,"x",null,null,null,"x",".",".","x",".","."]
[845,"ja","Nachrüstung und Austausch investiver Komponenten bei Lichtsignalanlage (Einzelmaßnahmen)","überörtlich","1a Einzelmaßnahme Verkehrstechnik investiv","B","B","B","B","B","S","E","25698-22","Austausch von Lichtsignalanlagentechnik Im Falle von Störungen oder Gerätedefekten; „erstmalige Herstellung“ der Barrierefreiheit von Lichtsignalanlagen durch spezielle akustische Signalgeber (Blindensignalanforderungsgeräte); Installation zusätzlicher Signalgeber an unfallträchtigen Knotenpunkten; erstmaliger Einbau von Verkehrsdetektoren, insbesondere Video- und Wärmebildkameras, statt der herkömmlichen Induktionsschleifen. ",null,"im Bau","1",{"$f":"SUM(SUMPRODUCT((ISNUMBER(SEARCH(\"x\",S23)))*4),(SUMPRODUCT((ISNUMBER(SEARCH(\"x\",T23:Y23)))*3)),(SUMPRODUCT((ISNUMBER(SEARCH(\"x\",Z23:AB23)))*2)),(SUMPRODUCT((ISNUMBER(SEARCH(\"x\",AC23:AF23)))*1)))","v":11},"x",null,null,null,null,null,"x","x",null,"x",null,null,null,null,".",".","x",".","."]
[610,"ja","LSA 2051 Sölder Straße (Hs.Nr.70) / Nathmerichstraße -  Aufrüstung Radverkehrsbeschleunigung und Baumscheibenerstellung/Bordsteinabsenkung","Aplerbeck","3a Einzelmaßnahme Radwege investiv","V","B","S","S","S","E",null,"35799-24","Nachrüstung der LSA mit 2 Wärmebilddetektoren und Herstellung einer Baumscheibe.",null,"nach Auftragserteilung ruhend","1",{"$f":"SUM(SUMPRODUCT((ISNUMBER(SEARCH(\"x\",S24)))*4),(SUMPRODUCT((ISNUMBER(SEARCH(\"x\",T24:Y24)))*3)),(SUMPRODUCT((ISNUMBER(SEARCH(\"x\",Z24:AB24)))*2)),(SUMPRODUCT((ISNUMBER(SEARCH(\"x\",AC24:AF24)))*1)))","v":15},"x",null,null,null,null,null,"x","x","x","x",null,"x","x",null,".",".","x",".","."]
[949,"ja","LSA 0044 Grüne Straße / Schützenstraße / Blücherstraße","INN-Nord","1a Einzelmaßnahme Verkehrstechnik investiv","V","B","S","S","S","E",null,"34935-24","Erneuerung der LSA 0044 Grüne Straße / Schützenstraße / Blücherstraße und Einbau aktueller sehbehindertengerechter Ausstattung (Blindensignale / Blindentaster).",null,"nach Auftragserteilung ruhend","1",{"$f":"SUM(SUMPRODUCT((ISNUMBER(SEARCH(\"x\",S25)))*4),(SUMPRODUCT((ISNUMBER(SEARCH(\"x\",T25:Y25)))*3)),(SUMPRODUCT((ISNUMBER(SEARCH(\"x\",Z25:AB25)))*2)),(SUMPRODUCT((ISNUMBER(SEARCH(\"x\",AC25:AF25)))*1)))","v":14},"x","x",null,null,null,null,"x","x",null,"x",null,null,null,null,".",".","x",".","."]
[956,"ja","LSA 2320 Roßbachstraße / Kirchplatz","Huckarde","1a Einzelmaßnahme Verkehrstechnik investiv","V","B","S","S","S","E",null,"34958-24","Erneuerung der LSA 2320 Roßbachstraße / Kirchplatz und Einbau aktueller sehbehindertengerechter Ausstattung (Blindensignale / Blindentaster).",null,"nach Auftragserteilung ruhend","1",{"$f":"SUM(SUMPRODUCT((ISNUMBER(SEARCH(\"x\",S26)))*4),(SUMPRODUCT((ISNUMBER(SEARCH(\"x\",T26:Y26)))*3)),(SUMPRODUCT((ISNUMBER(SEARCH(\"x\",Z26:AB26)))*2)),(SUMPRODUCT((ISNUMBER(SEARCH(\"x\",AC26:AF26)))*1)))","v":14},"x","x",null,null,null,null,"x","x",null,"x",null,null,null,null,".",".","x",".","."]
[966,"ja","LSA 2344 Friedrich-Hölscher-Straße/Mödershof","Scharnhorst","1a Einzelmaßnahme Verkehrstechnik investiv","V","B","S","S","S","E",null,"34951-24","Erneuerung der LSA 2344 Friedrich-Hölscher-Straße/Mödershof und Einbau aktueller sehbehindertengerechter Ausstattung (Blindensignale / Blindentaster).",null,"nach Auftragserteilung ruhend","1",{"$f":"SUM(SUMPRODUCT((ISNUMBER(SEARCH(\"x\",S27)))*4),(SUMPRODUCT((ISNUMBER(SEARCH(\"x\",T27:Y27)))*3)),(SUMPRODUCT((ISNUMBER(SEARCH(\"x\",Z27:AB27)))*2)),(SUMPRODUCT((ISNUMBER(SEARCH(\"x\",AC27:AF27)))*1)))","v":14},"x","x",null,null,null,null,"x","x",null,"x",null,null,null,null,".",".","x",".","."]
[967,"ja","LSA 0414 Brambauerstraße  /Heitkampstraße","Eving","1a Einzelmaßnahme Verkehrstechnik investiv","V","B","S","S","S","E",null,"34965-24","Erneuerung der LSA 0414 Brambauerstraße  /Heitkampstraße und Einbau aktueller sehbehindertengerechter Ausstattung (Blindensignale / Blindentaster).",null,"nach Auftragserteilung ruhend","1",{"$f":"SUM(SUMPRODUCT((ISNUMBER(SEARCH(\"x\",S28)))*4),(SUMPRODUCT((ISNUMBER(SEARCH(\"x\",T28:Y28)))*3)),(SUMPRODUCT((ISNUMBER(SEARCH(\"x\",Z28:AB28)))*2)),(SUMPRODUCT((ISNUMBER(SEARCH(\"x\",AC28:AF28)))*1)))","v":14},"x","x",null,null,null,null,"x","x",null,"x",null,null,null,null,".",".","x",".","."]
[704,"ja","LSA 0535 - Kesselborn/Martener Straße","Lütgendortmund","1a Einzelmaßnahme Verkehrstechnik investiv","V","B","S","S","S","E",null,"22299-21","Neubau der Lichtsignalanlage Kesselborn/Martener Straße (LSA 0535).",null,"nach Auftragserteilung ruhend","1",{"$f":"SUM(SUMPRODUCT((ISNUMBER(SEARCH(\"x\",S29)))*4),(SUMPRODUCT((ISNUMBER(SEARCH(\"x\",T29:Y29)))*3)),(SUMPRODUCT((ISNUMBER(SEARCH(\"x\",Z29:AB29)))*2)),(SUMPRODUCT((ISNUMBER(SEARCH(\"x\",AC29:AF29)))*1)))","v":14},"x","x",null,null,null,null,"x","x",null,"x",null,null,null,null,".",".","x",".","."]
[781,"ja","LSA 0276 - Derner Straße/An den Teichen","Eving","1a Einzelmaßnahme Verkehrstechnik investiv","V","B","S","S","S","E",null,"35548-24","Erneuerung der LSA 0276 - Derner Straße / An den Teichen.",null,"nach Auftragserteilung ruhend","1",{"$f":"SUM(SUMPRODUCT((ISNUMBER(SEARCH(\"x\",S30)))*4),(SUMPRODUCT((ISNUMBER(SEARCH(\"x\",T30:Y30)))*3)),(SUMPRODUCT((ISNUMBER(SEARCH(\"x\",Z30:AB30)))*2)),(SUMPRODUCT((ISNUMBER(SEARCH(\"x\",AC30:AF30)))*1)))","v":14},"x","x",null,null,null,null,"x","x",null,"x",null,null,null,null,".",".","x",".","."]
[785,"ja","LSA 0357 - Bornstraße/Bergmannstraße/Brunnenstraße","Innenstadt-Nord","1a Einzelmaßnahme Verkehrstechnik investiv","V","B","S","S","S","E",null,"35549-24","Erneuerung der LSA 0357 - Bornstraße / Bergmannstraße / Brunnenstraße.",null,"nach Auftragserteilung ruhend","1",{"$f":"SUM(SUMPRODUCT((ISNUMBER(SEARCH(\"x\",S31)))*4),(SUMPRODUCT((ISNUMBER(SEARCH(\"x\",T31:Y31)))*3)),(SUMPRODUCT((ISNUMBER(SEARCH(\"x\",Z31:AB31)))*2)),(SUMPRODUCT((ISNUMBER(SEARCH(\"x\",AC31:AF31)))*1)))","v":14},"x","x",null,null,null,null,"x","x",null,"x",null,null,null,null,".",".","x",".","."]
[791,"ja","LSA 0417 Deutsche Straße/Gewerbestraße","Eving","1a Einzelmaßnahme Verkehrstechnik investiv","V","B","S","S","S","E",null,"34965-24","Erneuerung der Lichtsignalanlage (LSA 0417) Deutsche Straße/Gewerbestraße .",null,"nach Auftragserteilung ruhend","1",{"$f":"SUM(SUMPRODUCT((ISNUMBER(SEARCH(\"x\",S32)))*4),(SUMPRODUCT((ISNUMBER(SEARCH(\"x\",T32:Y32)))*3)),(SUMPRODUCT((ISNUMBER(SEARCH(\"x\",Z32:AB32)))*2)),(SUMPRODUCT((ISNUMBER(SEARCH(\"x\",AC32:AF32)))*1)))","v":14},"x","x",null,null,null,null,"x","x",null,"x",null,null,null,null,".",".","x",".","."]
[911,"ja","LSA 0143 Waltroper Straße / Schaphusstraße","Mengede","1a Einzelmaßnahme Verkehrstechnik investiv","V","B","S","S","S","E",null,"34954-24","Erneuerung der Lichtsignalanlage (LSA 0143 Waltroper Straße/Schaphusstraße)",null,"nach Auftragserteilung ruhend","1",{"$f":"SUM(SUMPRODUCT((ISNUMBER(SEARCH(\"x\",S33)))*4),(SUMPRODUCT((ISNUMBER(SEARCH(\"x\",T33:Y33)))*3)),(SUMPRODUCT((ISNUMBER(SEARCH(\"x\",Z33:AB33)))*2)),(SUMPRODUCT((ISNUMBER(SEARCH(\"x\",AC33:AF33)))*1)))","v":14},"x","x",null,null,null,null,"x","x",null,"x",null,null,null,null,".",".","x",".","."]
[915,"ja","LSA 0333 Heyden-Rynsch-Straße Hausnummer 12","Innenstadt-West","1a Einzelmaßnahme Verkehrstechnik investiv","V","B","S","S","S","E",null,"33679-23","Erneuerung der Lichtsignalanlage (LSA 0333 Heyden-Rynsch-Straße Hausnummer 12)",null,"nach Auftragserteilung ruhend","1",{"$f":"SUM(SUMPRODUCT((ISNUMBER(SEARCH(\"x\",S34)))*4),(SUMPRODUCT((ISNUMBER(SEARCH(\"x\",T34:Y34)))*3)),(SUMPRODUCT((ISNUMBER(SEARCH(\"x\",Z34:AB34)))*2)),(SUMPRODUCT((ISNUMBER(SEARCH(\"x\",AC34:AF34)))*1)))","v":14},"x","x",null,null,null,null,"x","x",null,"x",null,null,null,null,".",".","x",".","."]
[916,"ja","LSA 0466 Heyden-Rynsch-Straße / Auf dem Brümmer","Innenstadt-West","1a Einzelmaßnahme Verkehrstechnik investiv","V","B","S","S","S","E",null,"33679-23","Erneuerung der Lichtsignalanlage (LSA 0466 Heyden-Rynsch-Straße / Auf dem Brümmer)",null,"nach Auftragserteilung ruhend","1",{"$f":"SUM(SUMPRODUCT((ISNUMBER(SEARCH(\"x\",S35)))*4),(SUMPRODUCT((ISNUMBER(SEARCH(\"x\",T35:Y35)))*3)),(SUMPRODUCT((ISNUMBER(SEARCH(\"x\",Z35:AB35)))*2)),(SUMPRODUCT((ISNUMBER(SEARCH(\"x\",AC35:AF35)))*1)))","v":14},"x","x",null,null,null,null,"x","x",null,"x",null,null,null,null,".",".","x",".","."]
[922,"ja","LSA 0444 Aplerbecker-Mark-Straße / Tunnelweg","Aplerbeck","1a Einzelmaßnahme Verkehrstechnik investiv","V","B","S","S","S","E",null,"33920-24","Erneuerung der Lichtsignalanlage (LSA 0444 Aplerbecker-Mark-Straße / Tunnelweg)",null,"nach Auftragserteilung ruhend","1",{"$f":"SUM(SUMPRODUCT((ISNUMBER(SEARCH(\"x\",S36)))*4),(SUMPRODUCT((ISNUMBER(SEARCH(\"x\",T36:Y36)))*3)),(SUMPRODUCT((ISNUMBER(SEARCH(\"x\",Z36:AB36)))*2)),(SUMPRODUCT((ISNUMBER(SEARCH(\"x\",AC36:AF36)))*1)))","v":14},"x","x",null,null,null,null,"x","x",null,"x",null,null,null,null,".",".","x",".","."]
[945,"ja","LSA 0473 Freie-Vogel-Straße / Stockholmer Allee","Aplerbeck","1a Einzelmaßnahme Verkehrstechnik investiv","V","B","S","S","S","E",null,"33860-24","Erneuerung der LSA 0473 Freie-Vogel-Straße / Stockholmer Allee und Einbau aktueller sehbehindertengerechter Ausstattung (Blindensignale / Blindentaster).",null,"nach Auftragserteilung ruhend","1",{"$f":"SUM(SUMPRODUCT((ISNUMBER(SEARCH(\"x\",S37)))*4),(SUMPRODUCT((ISNUMBER(SEARCH(\"x\",T37:Y37)))*3)),(SUMPRODUCT((ISNUMBER(SEARCH(\"x\",Z37:AB37)))*2)),(SUMPRODUCT((ISNUMBER(SEARCH(\"x\",AC37:AF37)))*1)))","v":14},"x","x",null,null,null,null,"x","x",null,"x",null,null,null,null,".",".","x",".","."]
[946,"ja","LSA 2316 Marsbruchstraße / Schürbankstraße","Aplerbeck","1a Einzelmaßnahme Verkehrstechnik investiv","V","B","S","S","S","E",null,"33860-24","Erneuerung der LSA 2316 Marsbruchstraße / Schürbankstraße und Einbau aktueller sehbehindertengerechter Ausstattung (Blindensignale / Blindentaster).",null,"nach Auftragserteilung ruhend","1",{"$f":"SUM(SUMPRODUCT((ISNUMBER(SEARCH(\"x\",S38)))*4),(SUMPRODUCT((ISNUMBER(SEARCH(\"x\",T38:Y38)))*3)),(SUMPRODUCT((ISNUMBER(SEARCH(\"x\",Z38:AB38)))*2)),(SUMPRODUCT((ISNUMBER(SEARCH(\"x\",AC38:AF38)))*1)))","v":14},"x","x",null,null,null,null,"x","x",null,"x",null,null,null,null,".",".","x",".","."]
[947,"ja","LSA 2317 Marsbruchstraße (Hausnummer 132) / Westendorfstraße)","Aplerbeck","1a Einzelmaßnahme Verkehrstechnik investiv","V","V","B","S","S","S","E","33860-24","Erneuerung der LSA 2317 Marsbruchstraße (Hausnummer 132) / Westendorfstraße) und Einbau aktueller sehbehindertengerechter Ausstattung (Blindensignale / Blindentaster).",null,"nach Auftragserteilung ruhend","1",{"$f":"SUM(SUMPRODUCT((ISNUMBER(SEARCH(\"x\",S39)))*4),(SUMPRODUCT((ISNUMBER(SEARCH(\"x\",T39:Y39)))*3)),(SUMPRODUCT((ISNUMBER(SEARCH(\"x\",Z39:AB39)))*2)),(SUMPRODUCT((ISNUMBER(SEARCH(\"x\",AC39:AF39)))*1)))","v":14},"x","x",null,null,null,null,"x","x",null,"x",null,null,null,null,".",".","x",".","."]
[948,"ja","LSA 0002 Mallinckrodtstraße / Borsigstraße / Brunnenstraße","INN-Nord","1a Einzelmaßnahme Verkehrstechnik investiv","V","B","S","S","S","E",null,"34935-24","Erneuerung der LSA 0002 Mallinckrodtstraße / Borsigstraße / Brunnenstraße  und Einbau aktueller sehbehindertengerechter Ausstattung (Blindensignale / Blindentaster).",null,"nach Auftragserteilung ruhend","1",{"$f":"SUM(SUMPRODUCT((ISNUMBER(SEARCH(\"x\",S40)))*4),(SUMPRODUCT((ISNUMBER(SEARCH(\"x\",T40:Y40)))*3)),(SUMPRODUCT((ISNUMBER(SEARCH(\"x\",Z40:AB40)))*2)),(SUMPRODUCT((ISNUMBER(SEARCH(\"x\",AC40:AF40)))*1)))","v":14},"x","x",null,null,null,null,"x","x",null,"x",null,null,null,null,".",".","x",".","."]
[953,"ja","LSA 0426 Hülshof (L609n) / Oberfeldstraße","Huckarde","1a Einzelmaßnahme Verkehrstechnik investiv","V","B","S","S","S","E",null,"34957-24","Erneuerung der LSA 0426 Hülshof (L609n) / Oberfeldstraße und Einbau aktueller sehbehindertengerechter Ausstattung (Blindensignale / Blindentaster).\n",null,"nach Auftragserteilung ruhend","1",{"$f":"SUM(SUMPRODUCT((ISNUMBER(SEARCH(\"x\",S41)))*4),(SUMPRODUCT((ISNUMBER(SEARCH(\"x\",T41:Y41)))*3)),(SUMPRODUCT((ISNUMBER(SEARCH(\"x\",Z41:AB41)))*2)),(SUMPRODUCT((ISNUMBER(SEARCH(\"x\",AC41:AF41)))*1)))","v":14},"x","x",null,null,null,null,"x","x",null,"x",null,null,null,null,".",".","x",".","."]
[957,"ja","LSA 0280 Brennaborstraße / Wulfshofstraße / Wendenweg","Lütgendortmund","1a Einzelmaßnahme Verkehrstechnik investiv","V","B","B","S","S","E",null,"34946-24","Erneuerung der LSA 0280 Brennaborstraße / Wulfshofstraße / Wendenweg und Einbau aktueller sehbehindertengerechter Ausstattung (Blindensignale / Blindentaster).",null,"nach Auftragserteilung ruhend","1",{"$f":"SUM(SUMPRODUCT((ISNUMBER(SEARCH(\"x\",S42)))*4),(SUMPRODUCT((ISNUMBER(SEARCH(\"x\",T42:Y42)))*3)),(SUMPRODUCT((ISNUMBER(SEARCH(\"x\",Z42:AB42)))*2)),(SUMPRODUCT((ISNUMBER(SEARCH(\"x\",AC42:AF42)))*1)))","v":14},"x","x",null,null,null,null,"x","x",null,"x",null,null,null,null,".",".","x",".","."]
[958,"ja","LSA 0290 Alter Hellweg / Martener Hellweg / Overhoffstraße","Lütgendortmund","1a Einzelmaßnahme Verkehrstechnik investiv","V","B","B","S","S","S","E","34946-24","Erneuerung der LSA 0290 Alter Hellweg / Martener Hellweg / Overhoffstraße und Einbau aktueller sehbehindertengerechter Ausstattung (Blindensignale / Blindentaster).",null,"nach Auftragserteilung ruhend","1",{"$f":"SUM(SUMPRODUCT((ISNUMBER(SEARCH(\"x\",S43)))*4),(SUMPRODUCT((ISNUMBER(SEARCH(\"x\",T43:Y43)))*3)),(SUMPRODUCT((ISNUMBER(SEARCH(\"x\",Z43:AB43)))*2)),(SUMPRODUCT((ISNUMBER(SEARCH(\"x\",AC43:AF43)))*1)))","v":14},"x","x",null,null,null,null,"x","x",null,"x",null,null,null,null,".",".","x",".","."]
[959,"ja","LSA 2337 Bockenfelder Straße / Hangeneystraße ","Lütgendortmund","1a Einzelmaßnahme Verkehrstechnik investiv","V","B","S","S","S","E",null,"34946-24","Erneuerung der LSA 2337 Bockenfelder Straße / Hangeneystraße und Einbau aktueller sehbehindertengerechter Ausstattung (Blindensignale / Blindentaster).",null,"nach Auftragserteilung ruhend","1",{"$f":"SUM(SUMPRODUCT((ISNUMBER(SEARCH(\"x\",S44)))*4),(SUMPRODUCT((ISNUMBER(SEARCH(\"x\",T44:Y44)))*3)),(SUMPRODUCT((ISNUMBER(SEARCH(\"x\",Z44:AB44)))*2)),(SUMPRODUCT((ISNUMBER(SEARCH(\"x\",AC44:AF44)))*1)))","v":14},"x","x",null,null,null,null,"x","x",null,"x",null,null,null,null,".",".","x",".","."]
[965,"ja","LSA 2327 Westholz (Hs.Nr.53) / Gleiwitzstraße","Scharnhorst","1a Einzelmaßnahme Verkehrstechnik investiv","V","V","V","B","S","S","E","34951-24","Erneuerung derLSA 2327 Westholz (Hs.Nr.53) / Gleiwitzstraße und Einbau aktueller sehbehindertengerechter Ausstattung (Blindensignale / Blindentaster).",null,"nach Auftragserteilung ruhend","1",{"$f":"SUM(SUMPRODUCT((ISNUMBER(SEARCH(\"x\",S45)))*4),(SUMPRODUCT((ISNUMBER(SEARCH(\"x\",T45:Y45)))*3)),(SUMPRODUCT((ISNUMBER(SEARCH(\"x\",Z45:AB45)))*2)),(SUMPRODUCT((ISNUMBER(SEARCH(\"x\",AC45:AF45)))*1)))","v":14},"x","x",null,null,null,null,"x","x",null,"x",null,null,null,null,".",".","x",".","."]
[950,"ja","LSA 0418 Bärenbruch / Revierstraße","Huckarde","1a Einzelmaßnahme Verkehrstechnik investiv","V","B","S","S","S","E",null,"34957-24","Erneuerung der Lichtsignalanlage LSA 0418 Bärenbruch / Revierstraße und Einbau aktueller sehbehindertengerechter Ausstattung (Blindensignale / Blindentaster).",null,"nach Auftragserteilung ruhend","1",{"$f":"SUM(SUMPRODUCT((ISNUMBER(SEARCH(\"x\",S46)))*4),(SUMPRODUCT((ISNUMBER(SEARCH(\"x\",T46:Y46)))*3)),(SUMPRODUCT((ISNUMBER(SEARCH(\"x\",Z46:AB46)))*2)),(SUMPRODUCT((ISNUMBER(SEARCH(\"x\",AC46:AF46)))*1)))","v":14},"x","x",null,null,null,null,"x","x",null,"x",null,null,null,null,".",".","x",".","."]
[846,"ja","Neubau Rettungswache 12 - Neubau LSA  Parsevalstraße, Anpassung LSA  Lindberghstraße","Hörde","16 Einzelmaßnahme inv. Dienstleistungen für andere FB ",null,null,"B","S","S","S","E","34342-24","Neubau der LSA Parsevalstraße und Anpassungen an der  LSA Lindberghstraße aufgrund des Neubaus der RW 12 in Huckarde, sowie Veränderungen im Straßenbereich der Ausfahrt der RW 12. ",null,"nach Auftragserteilung ruhend","1",{"$f":"SUM(SUMPRODUCT((ISNUMBER(SEARCH(\"x\",S47)))*4),(SUMPRODUCT((ISNUMBER(SEARCH(\"x\",T47:Y47)))*3)),(SUMPRODUCT((ISNUMBER(SEARCH(\"x\",Z47:AB47)))*2)),(SUMPRODUCT((ISNUMBER(SEARCH(\"x\",AC47:AF47)))*1)))","v":13},"x",null,null,null,null,null,"x","x",null,"x",null,null,"x","x",".",".","x",".","."]
[46,"ja","LSA 0077 - Burgholzstraße/Eberstraße-Eisenstraße ","Innenstadt-Nord","1a Einzelmaßnahme Verkehrstechnik investiv","V","B","S","S","S","E",null,"05926-16","Erneuerung der Lichtsignalanlage Burgholz/Eberstraße-Eisenstraße (LSA 0077)",null,"nach Auftragserteilung ruhend","1",{"$f":"SUM(SUMPRODUCT((ISNUMBER(SEARCH(\"x\",S48)))*4),(SUMPRODUCT((ISNUMBER(SEARCH(\"x\",T48:Y48)))*3)),(SUMPRODUCT((ISNUMBER(SEARCH(\"x\",Z48:AB48)))*2)),(SUMPRODUCT((ISNUMBER(SEARCH(\"x\",AC48:AF48)))*1)))","v":11},"x",null,null,null,null,null,"x","x",null,"x",null,null,null,null,".",".","x",".","."]
[782,"ja","LSA 0320 - Derner Straße/Osterfeldstraße","Eving","1a Einzelmaßnahme Verkehrstechnik investiv","V","B","S","S","S","E",null,"35548-24","Erneuerung der LSA LSA 0320 - Derner Straße / Osterfeldstraße.",null,"nach Auftragserteilung ruhend","1",{"$f":"SUM(SUMPRODUCT((ISNUMBER(SEARCH(\"x\",S49)))*4),(SUMPRODUCT((ISNUMBER(SEARCH(\"x\",T49:Y49)))*3)),(SUMPRODUCT((ISNUMBER(SEARCH(\"x\",Z49:AB49)))*2)),(SUMPRODUCT((ISNUMBER(SEARCH(\"x\",AC49:AF49)))*1)))","v":11},"x",null,null,null,null,null,"x","x",null,"x",null,null,null,null,".",".","x",".","."]
[784,"ja","LSA 0150 - Bornstraße/Eisenstraße","Innenstadt-Nord","1a Einzelmaßnahme Verkehrstechnik investiv","V","B","S","S","S","E",null,"35549-24","Erneuerung der LSA LSA 0150 - Bornstraße / Eisenstraße.",null,"nach Auftragserteilung ruhend",{"$f":"IF(R50=0,\"keine\",IF(AND(R50>0,R50<6),\"3\",IF(AND(R50>5,R50<11),\"2\",\"1\")))","v":"1"},{"$f":"SUM(SUMPRODUCT((ISNUMBER(SEARCH(\"x\",S50)))*4),(SUMPRODUCT((ISNUMBER(SEARCH(\"x\",T50:Y50)))*3)),(SUMPRODUCT((ISNUMBER(SEARCH(\"x\",Z50:AB50)))*2)),(SUMPRODUCT((ISNUMBER(SEARCH(\"x\",AC50:AF50)))*1)))","v":11},"x",null,null,null,null,null,"x","x",null,"x",null,null,null,null,".",".","x",".","."]
[802,"ja","LSA 2369 - Klönnestraße/Lüneburgerstraße","Innenstadt-Ost","1a Einzelmaßnahme Verkehrstechnik investiv","V",null,"B","B","S","S","E","33838-24","Erneuerung der Lichtsignalanlage (LSA 2369) Klönnestraße/Lüneburgerstraße",null,"nach Auftragserteilung ruhend","1",{"$f":"SUM(SUMPRODUCT((ISNUMBER(SEARCH(\"x\",S51)))*4),(SUMPRODUCT((ISNUMBER(SEARCH(\"x\",T51:Y51)))*3)),(SUMPRODUCT((ISNUMBER(SEARCH(\"x\",Z51:AB51)))*2)),(SUMPRODUCT((ISNUMBER(SEARCH(\"x\",AC51:AF51)))*1)))","v":11},"x",null,null,null,null,null,"x","x",null,"x",null,null,null,null,".",".","x",".","."]
[918,"ja","LSA 0020 Lindemannstraße / Kreuzstraße","Innenstadt-West","1a Einzelmaßnahme Verkehrstechnik investiv","V","B","S","S","S","E",null,"33679-23","Erneuerung der Lichtsignalanlage (LSA 0020 Lindemannstraße / Kreuzstraße)",null,"nach Auftragserteilung ruhend","1",{"$f":"SUM(SUMPRODUCT((ISNUMBER(SEARCH(\"x\",S52)))*4),(SUMPRODUCT((ISNUMBER(SEARCH(\"x\",T52:Y52)))*3)),(SUMPRODUCT((ISNUMBER(SEARCH(\"x\",Z52:AB52)))*2)),(SUMPRODUCT((ISNUMBER(SEARCH(\"x\",AC52:AF52)))*1)))","v":11},"x",null,null,null,null,null,"x","x",null,"x",null,null,null,null,".",".","x",".","."]
[963,"ja","LSA 0037 Hohe Straße / Gerstenstraße / Markgrafenstraße","INN-Ost","1a Einzelmaßnahme Verkehrstechnik investiv","V","V","V","B","S","S","E","35395-24","Erneuerung der LSA 0037 Hohe Straße / Gerstenstraße / Markgrafenstraße und Einbau aktueller sehbehindertengerechter Ausstattung (Blindensignale / Blindentaster).",null,"nach Auftragserteilung ruhend","1",{"$f":"SUM(SUMPRODUCT((ISNUMBER(SEARCH(\"x\",S53)))*4),(SUMPRODUCT((ISNUMBER(SEARCH(\"x\",T53:Y53)))*3)),(SUMPRODUCT((ISNUMBER(SEARCH(\"x\",Z53:AB53)))*2)),(SUMPRODUCT((ISNUMBER(SEARCH(\"x\",AC53:AF53)))*1)))","v":11},"x",null,null,null,null,null,"x","x",null,"x",null,null,null,null,".",".","x",".","."]
[1163,"ja","LSA 0342 Rheinische Straße - Emscherbrücke","INN-West","1a Einzelmaßnahme Verkehrstechnik investiv","V","B","S","S","S","E",null,"35511-25","Erneuerung der Lichtsignalanlage (LSA 0342) Rheinische Straße / Emscherbrücke",null,"nach Auftragserteilung ruhend","1",{"$f":"SUM(SUMPRODUCT((ISNUMBER(SEARCH(\"x\",S54)))*4),(SUMPRODUCT((ISNUMBER(SEARCH(\"x\",T54:Y54)))*3)),(SUMPRODUCT((ISNUMBER(SEARCH(\"x\",Z54:AB54)))*2)),(SUMPRODUCT((ISNUMBER(SEARCH(\"x\",AC54:AF54)))*1)))","v":11},"x",null,null,null,null,null,"x","x",null,"x",null,null,null,null,".",".","x",".","."]
[805,"ja","LSA 2265 - Bornstraße/Missundestraße","INN-Nord","1a Einzelmaßnahme Verkehrstechnik investiv",null,"V","V","B","S","E",null,"37851-25","Erneuerung der Lichtsignalanlage LSA 2265 - Bornstraße/Missundestraße.",null,"nach Auftragserteilung ruhend","1",{"$f":"SUM(SUMPRODUCT((ISNUMBER(SEARCH(\"x\",S55)))*4),(SUMPRODUCT((ISNUMBER(SEARCH(\"x\",T55:Y55)))*3)),(SUMPRODUCT((ISNUMBER(SEARCH(\"x\",Z55:AB55)))*2)),(SUMPRODUCT((ISNUMBER(SEARCH(\"x\",AC55:AF55)))*1)))","v":11},"x",null,null,null,null,null,"x","x",null,"x",null,null,null,null,".",".","x",".","."]
[940,"nein","LSA 0189 Wittbräucker Straße / Schüruferstraße / Aplerbecker Marktplatz / Strickerstraße","Aplerbeck","1a Einzelmaßnahme Verkehrstechnik investiv","V","V","B","S","S","S","E","33860-24","Erneuerung der LSA 0189 Wittbräucker Straße / Schüruferstraße / Aplerbecker Marktplatz / Strickerstraße und Einbau aktueller sehbehindertengerechter Ausstattung (Blindensignale / Blindentaster).",null,"in Bauvorbereitung","2",{"$f":"SUM(SUMPRODUCT((ISNUMBER(SEARCH(\"x\",S56)))*4),(SUMPRODUCT((ISNUMBER(SEARCH(\"x\",T56:Y56)))*3)),(SUMPRODUCT((ISNUMBER(SEARCH(\"x\",Z56:AB56)))*2)),(SUMPRODUCT((ISNUMBER(SEARCH(\"x\",AC56:AF56)))*1)))","v":10},null,"x",null,null,null,null,"x","x",null,"x",null,null,null,null,".",".","x",".","."]
[941,"nein","LSA 0401 Rodenbergstraße / Marsbruchstraße","Aplerbeck","1a Einzelmaßnahme Verkehrstechnik investiv","V","V","B","S","S","S","E","33860-24","Erneuerung der LSA 0401 Rodenbergstraße / Marsbruchstraße und Einbau aktueller sehbehindertengerechter Ausstattung (Blindensignale / Blindentaster).",null,"in Bauvorbereitung","2",{"$f":"SUM(SUMPRODUCT((ISNUMBER(SEARCH(\"x\",S57)))*4),(SUMPRODUCT((ISNUMBER(SEARCH(\"x\",T57:Y57)))*3)),(SUMPRODUCT((ISNUMBER(SEARCH(\"x\",Z57:AB57)))*2)),(SUMPRODUCT((ISNUMBER(SEARCH(\"x\",AC57:AF57)))*1)))","v":10},null,"x",null,null,null,null,"x","x",null,"x",null,null,null,null,".",".","x",".","."]
[943,"nein","LSA 0445 Schüruferstraße / Ringofenstraße","Aplerbeck","1a Einzelmaßnahme Verkehrstechnik investiv","V","V","B","S","S","S","E","33860-24","Erneuerung der LSA 0445 Schüruferstraße / Ringofenstraße und Einbau aktueller sehbehindertengerechter Ausstattung (Blindensignale / Blindentaster).\n",null,"in Bauvorbereitung","2",{"$f":"SUM(SUMPRODUCT((ISNUMBER(SEARCH(\"x\",S58)))*4),(SUMPRODUCT((ISNUMBER(SEARCH(\"x\",T58:Y58)))*3)),(SUMPRODUCT((ISNUMBER(SEARCH(\"x\",Z58:AB58)))*2)),(SUMPRODUCT((ISNUMBER(SEARCH(\"x\",AC58:AF58)))*1)))","v":10},null,"x",null,null,null,null,"x","x",null,"x",null,null,null,null,".",".","x",".","."]
[961,"nein","LSA 2045 Hacheneyer Straße / Hüttenbruchweg","Hörde","1a Einzelmaßnahme Verkehrstechnik investiv","V","V","B","S","S","S","E","34966-24","Erneuerung der LSA 2045 Hacheneyer Straße / Hüttenbruchweg und Einbau aktueller sehbehindertengerechter Ausstattung (Blindensignale / Blindentaster).",null,"in Bauvorbereitung","2",{"$f":"SUM(SUMPRODUCT((ISNUMBER(SEARCH(\"x\",S59)))*4),(SUMPRODUCT((ISNUMBER(SEARCH(\"x\",T59:Y59)))*3)),(SUMPRODUCT((ISNUMBER(SEARCH(\"x\",Z59:AB59)))*2)),(SUMPRODUCT((ISNUMBER(SEARCH(\"x\",AC59:AF59)))*1)))","v":10},null,"x",null,null,null,null,"x","x",null,"x",null,null,null,null,".",".","x",".","."]
[914,"nein","LSA 0035 Hohe Straße / Dudenstraße-Gutenbergstraße","Innenstadt-West","1a Einzelmaßnahme Verkehrstechnik investiv","P","V","B","S","S","S","E","33679-23","Erneuerung der Lichtsignalanlage (LSA 0035 Hohe Straße / Dudenstraße-Gutenbergstraße)",null,"in Bauvorbereitung","2",{"$f":"SUM(SUMPRODUCT((ISNUMBER(SEARCH(\"x\",S60)))*4),(SUMPRODUCT((ISNUMBER(SEARCH(\"x\",T60:Y60)))*3)),(SUMPRODUCT((ISNUMBER(SEARCH(\"x\",Z60:AB60)))*2)),(SUMPRODUCT((ISNUMBER(SEARCH(\"x\",AC60:AF60)))*1)))","v":10},null,"x",null,null,null,null,"x","x",null,"x",null,null,null,null,".",".","x",".","."]
[917,"nein","LSA 0482 Hohe Straße / Beurhausstraße","Innenstadt-West","1a Einzelmaßnahme Verkehrstechnik investiv","P","V","B","S","S","S","E","33679-23","Erneuerung der Lichtsignalanlage (LSA 0482 Hohe Straße / Beurhausstraße)",null,"in Bauvorbereitung","2",{"$f":"SUM(SUMPRODUCT((ISNUMBER(SEARCH(\"x\",S61)))*4),(SUMPRODUCT((ISNUMBER(SEARCH(\"x\",T61:Y61)))*3)),(SUMPRODUCT((ISNUMBER(SEARCH(\"x\",Z61:AB61)))*2)),(SUMPRODUCT((ISNUMBER(SEARCH(\"x\",AC61:AF61)))*1)))","v":10},null,"x",null,null,null,null,"x","x",null,"x",null,null,null,null,".",".","x",".","."]
[923,"nein","LSA 0446 Rodenbergstraße / Ringofenstraße","Aplerbeck","1a Einzelmaßnahme Verkehrstechnik investiv","V","V","B","S","S","S","E","33920-24","Erneuerung der Lichtsignalanlage (LSA 0446 Rodenbergstraße / Ringofenstraße)",null,"in Bauvorbereitung","2",{"$f":"SUM(SUMPRODUCT((ISNUMBER(SEARCH(\"x\",S62)))*4),(SUMPRODUCT((ISNUMBER(SEARCH(\"x\",T62:Y62)))*3)),(SUMPRODUCT((ISNUMBER(SEARCH(\"x\",Z62:AB62)))*2)),(SUMPRODUCT((ISNUMBER(SEARCH(\"x\",AC62:AF62)))*1)))","v":10},null,"x",null,null,null,null,"x","x",null,"x",null,null,null,null,".",".","x",".","."]
[924,"nein","LSA 0447 Rodenbergstraße / Rodenberg-Center","Aplerbeck","1a Einzelmaßnahme Verkehrstechnik investiv","V","V","B","S","S","S","E","33920-24","Erneuerung der Lichtsignalanlage (LSA 0447 Rodenbergstraße / Rodenberg-Center)",null,"in Bauvorbereitung","2",{"$f":"SUM(SUMPRODUCT((ISNUMBER(SEARCH(\"x\",S63)))*4),(SUMPRODUCT((ISNUMBER(SEARCH(\"x\",T63:Y63)))*3)),(SUMPRODUCT((ISNUMBER(SEARCH(\"x\",Z63:AB63)))*2)),(SUMPRODUCT((ISNUMBER(SEARCH(\"x\",AC63:AF63)))*1)))","v":10},null,"x",null,null,null,null,"x","x",null,"x",null,null,null,null,".",".","x",".","."]
[1155,"nein","LSA 2085  Werner Straße (Lutherschule) / Im II. Westfeld","Lütgendortmund","1a Einzelmaßnahme Verkehrstechnik investiv","V","V","B","B","S","S","E","38192-25","Erneuerung der Lichtsignalanlage",null,"in Bauvorbereitung","2",{"$f":"SUM(SUMPRODUCT((ISNUMBER(SEARCH(\"x\",S64)))*4),(SUMPRODUCT((ISNUMBER(SEARCH(\"x\",T64:Y64)))*3)),(SUMPRODUCT((ISNUMBER(SEARCH(\"x\",Z64:AB64)))*2)),(SUMPRODUCT((ISNUMBER(SEARCH(\"x\",AC64:AF64)))*1)))","v":10},null,"x",null,null,null,null,"x","x",null,"x",null,null,null,null,".",".","x",".","."]
[1156,"nein","LSA 2148 Bockenfelder Straße 110 / Zeisigweg ","Lütgendortmund","1a Einzelmaßnahme Verkehrstechnik investiv","V","V","B","B","S","S","E","38192-25","Erneuerung der Lichtsignalanlage",null,"in Bauvorbereitung","2",{"$f":"SUM(SUMPRODUCT((ISNUMBER(SEARCH(\"x\",S65)))*4),(SUMPRODUCT((ISNUMBER(SEARCH(\"x\",T65:Y65)))*3)),(SUMPRODUCT((ISNUMBER(SEARCH(\"x\",Z65:AB65)))*2)),(SUMPRODUCT((ISNUMBER(SEARCH(\"x\",AC65:AF65)))*1)))","v":10},null,"x",null,null,null,null,"x","x",null,"x",null,null,null,null,".",".","x",".","."]
[1157,"nein","LSA 2138 Lütgendortmunder Hellweg / Flaspoete","Lütgendortmund","1a Einzelmaßnahme Verkehrstechnik investiv","V","V","B","B","S","S","E","38192-25","Erneuerung einer Lichtsignalanlage",null,"in Bauvorbereitung","2",{"$f":"SUM(SUMPRODUCT((ISNUMBER(SEARCH(\"x\",S66)))*4),(SUMPRODUCT((ISNUMBER(SEARCH(\"x\",T66:Y66)))*3)),(SUMPRODUCT((ISNUMBER(SEARCH(\"x\",Z66:AB66)))*2)),(SUMPRODUCT((ISNUMBER(SEARCH(\"x\",AC66:AF66)))*1)))","v":10},null,"x",null,null,null,null,"x","x",null,"x",null,null,null,null,".",".","x",".","."]
[1159,"nein","LSA 2288 (Overgünne/Admiralstraße) ","Hörde","1a Einzelmaßnahme Verkehrstechnik investiv","V","V","B","B","S","S","E","38191-25","Erneuerung der Lichtsignalanlage ",null,"in Bauvorbereitung","2",{"$f":"SUM(SUMPRODUCT((ISNUMBER(SEARCH(\"x\",S67)))*4),(SUMPRODUCT((ISNUMBER(SEARCH(\"x\",T67:Y67)))*3)),(SUMPRODUCT((ISNUMBER(SEARCH(\"x\",Z67:AB67)))*2)),(SUMPRODUCT((ISNUMBER(SEARCH(\"x\",AC67:AF67)))*1)))","v":10},null,"x",null,null,null,null,"x","x",null,"x",null,null,null,null,".",".","x",".","."]
[939,"nein","LSA 0130 Köln-Berliner-Straße / Aplerbecker Straße / Sölder Kirchweg","Aplerbeck","1a Einzelmaßnahme Verkehrstechnik investiv","V","V","B","B","S","S","E","33860-24","Erneuerung der LSA 0130 Köln-Berliner-Straße / Aplerbecker Straße / Sölder Kirchweg und Einbau aktueller sehbehindertengerechter Ausstattung (Blindensignale / Blindentaster).\n",null,"in Bauvorbereitung","2",{"$f":"SUM(SUMPRODUCT((ISNUMBER(SEARCH(\"x\",S68)))*4),(SUMPRODUCT((ISNUMBER(SEARCH(\"x\",T68:Y68)))*3)),(SUMPRODUCT((ISNUMBER(SEARCH(\"x\",Z68:AB68)))*2)),(SUMPRODUCT((ISNUMBER(SEARCH(\"x\",AC68:AF68)))*1)))","v":7},null,"x",null,null,null,null,null,"x",null,"x",null,null,null,null,".",".","x",".","."]
[944,"nein","LSA 0448 Köln-Berliner-Straße / Rodenbergstraße / Märtmannstraße / Lübckerhofstraße","Aplerbeck","1a Einzelmaßnahme Verkehrstechnik investiv","V","V","B","S","S","S","E","33860-24","Erneuerung der LSA 0448 Köln-Berliner-Straße / Rodenbergstraße / Märtmannstraße / Lübckerhofstraße und Einbau aktueller sehbehindertengerechter Ausstattung (Blindensignale / Blindentaster).",null,"in Bauvorbereitung","2",{"$f":"SUM(SUMPRODUCT((ISNUMBER(SEARCH(\"x\",S69)))*4),(SUMPRODUCT((ISNUMBER(SEARCH(\"x\",T69:Y69)))*3)),(SUMPRODUCT((ISNUMBER(SEARCH(\"x\",Z69:AB69)))*2)),(SUMPRODUCT((ISNUMBER(SEARCH(\"x\",AC69:AF69)))*1)))","v":7},null,"x",null,null,null,null,null,"x",null,"x",null,null,null,null,".",".","x",".","."]
[1141,"nein","LSA 2247 Burgring /Adalmundstraße ","Mengede","16 Einzelmaßnahme inv. Dienstleistungen für andere FB ",null,"V","V","B","B","S","E","n. v.","Abbruch, Einrichtung Provisoirum und Neubau Fußgängerampel im Rahmen einer Maßnahme des EB 70  für die Herstellung eines Kanalschachtes und eines Regenwasserkanals.",null,"in Bauvorbereitung","3",{"$f":"SUM(SUMPRODUCT((ISNUMBER(SEARCH(\"x\",S70)))*4),(SUMPRODUCT((ISNUMBER(SEARCH(\"x\",T70:Y70)))*3)),(SUMPRODUCT((ISNUMBER(SEARCH(\"x\",Z70:AB70)))*2)),(SUMPRODUCT((ISNUMBER(SEARCH(\"x\",AC70:AF70)))*1)))","v":3},null,null,null,null,null,null,null,null,null,"x",null,null,null,"x",".",".","x",".","."]

{"sheet":"Beleuchtung","index":5,"n_rows":21,"n_cols":37,"rows_kept":21,"cut":false,"hidden":false,"merged":[[1,32,3,36],[4,27,16,27],[4,28,16,28],[4,29,16,29],[4,30,16,30],[4,31,16,31],[4,33,16,33],[4,34,16,34],[4,35,16,35],[4,36,16,36],[4,32,16,32],[1,12,16,12],[2,8,2,9],[4,26,16,26],[4,8,16,8],[4,9,16,9],[4,18,16,18],[4,19,16,19],[4,20,16,20],[4,21,16,21],[4,22,16,22],[4,23,16,23],[4,24,16,24],[4,25,16,25],[2,10,2,11],[1,13,16,13],[1,14,16,14],[1,15,16,15],[2,18,3,18],[2,19,3,24],[2,25,3,27],[2,28,3,31],[1,16,16,16],[1,17,16,17],[1,18,1,31],[1,0,16,0],[1,1,16,1],[1,2,16,2],[1,3,16,3],[1,4,16,4],[3,5,16,5],[3,6,3,9],[3,10,16,10],[3,11,16,11],[4,6,16,6],[4,7,16,7]]}
[]
["Projektnr.:","Projekt-blatt","Bezeichnung","Stadtbezirk","Art","P","V","B","S",null,"E",null,"Drucksachen-nummer mit Link zum Online-Dokument","Beschreibung","Bemerkungen","Maßnahmenstatus","Prioritätenklasse","Summe Gewichtungspunkte","Bewertungstatbestände mit Gewichtung",null,null,null,null,null,null,null,null,null,null,null,null,null,"Beteiligter Bereich"]
[null,null,null,null,null,"= Planung","= Vorbereitung","= Bau","= Schlussrechnung",null,"= Ende der Baumaßnahme",null,null,null,null,null,null,null,4,3,null,null,null,null,null,2,null,null,1]
[null,null,null,null,null,2025,2026,null,null,null,2027,2028]
[null,null,null,null,null,null,"I","II","III","IV",null,null,null,null,null,null,null,null,"Maßnahme in Ausführung / Auftrag erteilt","Herstellung der Verkehrssicherheit / hoher Unterhaltungsaufwand / kritischer Zustand","Straßenoffensive","Velorouten / Radschnellwege","Maßnahme ist Bestandteil \neines sonstigen Bauprogramms","ÖPNV / Barrierefreiheit","Vergabeverfahren läuft","Baubeschluss liegt vor","Förderantrag bewilligt","Planung weit fortgeschritten","Verkehrliche Bedeutung (Hauptstraßen)","Radverkehr","Refinanzierung möglich / Förderantrag gestellt / Anliegerbeiträge / BV-Mittel","gemeinsame Maßnahme mit Dritten"," Verkehrswege","Verkehrsbauwerke","Verkehrstechnik","Betrieb","Verkehrswendebüro"]
[]
[]
[]
[]
[]
[]
[]
[]
[]
[]
[]
[]
[516,"ja","Erweiterung/Verbesserung Straßenbeleuchtung - Deggingstr. bis Märkische Str. - Rad-/Hundeweg (Neubau) P663332217","Innenstadt-Ost","15a BV investiv (Einzelmaßnahme Beleuchtung) ","B","B","B","B","B","S","E","26337-22","Neubau einer Beleuchtungsanlage entlang des Rad- / Hundeweges zwischen der Degginstr. und Märkische Str. Bau von 50 Mastleuchten sowie die Installation einer verkehrsabhängigen Beleuchtungssteuerung (Bewegungsmelder / Stromzähler).",null,"im Bau",{"$f":"IF(R18=0,\"keine\",IF(AND(R18>0,R18<6),\"3\",IF(AND(R18>5,R18<11),\"2\",\"1\")))","v":"1"},{"$f":"SUM(SUMPRODUCT((ISNUMBER(SEARCH(\"x\",S18)))*4),(SUMPRODUCT((ISNUMBER(SEARCH(\"x\",T18:Y18)))*3)),(SUMPRODUCT((ISNUMBER(SEARCH(\"x\",Z18:AB18)))*2)),(SUMPRODUCT((ISNUMBER(SEARCH(\"x\",AC18:AF18)))*1)))","v":12},"x",null,null,null,null,null,"x","x",null,"x",null,"x",null,null,".",".","x",".","."]
[1314,"nein","Erneuerung von Leuchten im gesamten Stadtgebiet im Rahmen des SBV - Jahresprogramm 2026","überörtlich","7 Einzelmaßnahme Beleuchtung","P","P","B","B","B","S","E","00121-25"," Jahresprogramm der Erneuerung von Leuchten im gesamten Stadtgebiet für das Jahr 2026 im Rahmen des Straßenbeleuchtungsvertrages (SBV). Beschuss aller BVen hierzu liegt vor (00121-25). ",null,"in Planung","keine",{"$f":"SUM(SUMPRODUCT((ISNUMBER(SEARCH(\"x\",S19)))*4),(SUMPRODUCT((ISNUMBER(SEARCH(\"x\",T19:Y19)))*3)),(SUMPRODUCT((ISNUMBER(SEARCH(\"x\",Z19:AB19)))*2)),(SUMPRODUCT((ISNUMBER(SEARCH(\"x\",AC19:AF19)))*1)))","v":0},null,null,null,null,null,null,null,null,null,null,null,null,null,null,".",".","x",".","."]
[1316,"nein","Neuerrichtung von öffentlichen Ladeeinrichtungen (Laternenlader) im gesamten Stadtgebiet im Rahmen des SBV - Jahresprogramm 2026","überörtlich","7 Einzelmaßnahme Beleuchtung",null,"P","V","B","B","S","E","n. v.","Jahresprogramm 2026 zur Neuerrichtung von öffentlichen Ladeeinrichtungen im gesamten Stadtgebiet im Rahmen des Straßenbeleuchtungsvertrages (SBV). ",null,"in Planung","keine",{"$f":"SUM(SUMPRODUCT((ISNUMBER(SEARCH(\"x\",S20)))*4),(SUMPRODUCT((ISNUMBER(SEARCH(\"x\",T20:Y20)))*3)),(SUMPRODUCT((ISNUMBER(SEARCH(\"x\",Z20:AB20)))*2)),(SUMPRODUCT((ISNUMBER(SEARCH(\"x\",AC20:AF20)))*1)))","v":0},null,null,null,null,null,null,null,null,null,null,null,null,null,null,".",".","x",".","."]
[1319,"nein","Neuerrichtung von digitalen Geschwindigkeitsanzeigern (Infodisplays) im gesamten Stadtgebiet im Rahmen des SBV - Jahresprogramm 2026","überörtlich","7 Einzelmaßnahme Beleuchtung",null,"P","V","B","B","S","E","n. v.","Jahresprogramm 2026 zur Neuerrichtung von Infodisplays im gesamten Stadtgebiet im Rahmen des Straßenbeleuchtungsvertrages (SBV). ",null,"in Planung","keine",{"$f":"SUM(SUMPRODUCT((ISNUMBER(SEARCH(\"x\",S21)))*4),(SUMPRODUCT((ISNUMBER(SEARCH(\"x\",T21:Y21)))*3)),(SUMPRODUCT((ISNUMBER(SEARCH(\"x\",Z21:AB21)))*2)),(SUMPRODUCT((ISNUMBER(SEARCH(\"x\",AC21:AF21)))*1)))","v":0},null,null,null,null,null,null,null,null,null,null,null,null,null,null,".",".","x",".","."]

{"sheet":"Bushaltestellen","index":6,"n_rows":33,"n_cols":37,"rows_kept":33,"cut":false,"hidden":false,"merged":[[3,5,16,5],[2,8,2,9],[2,10,2,11],[1,13,16,13],[1,14,16,14],[4,8,16,8],[3,6,3,9],[3,10,16,10],[3,11,16,11],[1,0,16,0],[1,1,16,1],[1,2,16,2],[1,3,16,3],[1,4,16,4],[1,16,16,16],[1,17,16,17],[1,12,16,12],[4,9,16,9],[4,6,16,6],[4,7,16,7],[1,15,16,15],[4,23,16,23],[4,24,16,24],[4,25,16,25],[1,18,1,31],[4,33,16,33],[2,18,3,18],[2,19,3,24],[2,25,3,27],[2,28,3,31],[4,26,16,26],[4,18,16,18],[4,19,16,19],[4,20,16,20],[4,21,16,21],[4,22,16,22],[1,32,3,16383],[4,34,16,34],[4,35,16,35],[4,36,16,36],[4,27,16,27],[4,28,16,28],[4,29,16,29],[4,30,16,30],[4,31,16,31],[4,32,16,32]]}
[]
["Projektnr.:","Projekt-blatt","Bezeichnung","Stadtbezirk","Art","P","V","B","S",null,"E",null,"Drucksachen-nummer mit Link zum Online-Dokument","Beschreibung","Bemerkungen","Maßnahmenstatus","Prioritätenklasse","Summe Gewichtungspunkte","Bewertungstatbestände mit Gewichtung",null,null,null,null,null,null,null,null,null,null,null,null,null,"Beteiligter Bereich"]
[null,null,null,null,null,"= Planung","= Vorbereitung","= Bau","= Schlussrechnung",null,"= Ende der Baumaßnahme",null,null,null,null,null,null,null,4,3,null,null,null,null,null,2,null,null,1]
[null,null,null,null,null,2025,2026,null,null,null,2027,2028]
[null,null,null,null,null,null,"I","II","III","IV",null,null,null,null,null,null,null,null,"Maßnahme in Ausführung / Auftrag erteilt","Herstellung der Verkehrssicherheit / hoher Unterhaltungsaufwand / kritischer Zustand","Straßenoffensive","Velorouten / Radschnellwege","Maßnahme ist Bestandteil \neines sonstigen Bauprogramms","ÖPNV / Barrierefreiheit","Vergabeverfahren läuft","Baubeschluss liegt vor","Förderantrag bewilligt","Planung weit fortgeschritten","Verkehrliche Bedeutung (Hauptstraßen)","Radverkehr","Refinanzierung möglich / Förderantrag gestellt / Anliegerbeiträge / BV-Mittel","gemeinsame Maßnahme mit Dritten"," Verkehrswege","Verkehrsbauwerke","Verkehrstechnik","Betrieb","Verkehrswendebüro"]
[]
[]
[]
[]
[]
[]
[]
[]
[]
[]
[]
[]
[340,"ja","Deusener Straße BHS, Höhe Haus Nr. 282","Huckarde","8 Einzelmaßnahme Bushaltestellenprogramm","V","B","B","S","S","E",null,"31903-23","Erneuerung und barrierefreier Ausbau der Haltestelle.",null,"nach Auftragserteilung ruhend",{"$f":"IF(R18=0,\"keine\",IF(AND(R18>0,R18<6),\"3\",IF(AND(R18>5,R18<11),\"2\",\"1\")))","v":"1"},{"$f":"SUM(SUMPRODUCT((ISNUMBER(SEARCH(\"x\",S18)))*4),(SUMPRODUCT((ISNUMBER(SEARCH(\"x\",T18:Y18)))*3)),(SUMPRODUCT((ISNUMBER(SEARCH(\"x\",Z18:AB18)))*2)),(SUMPRODUCT((ISNUMBER(SEARCH(\"x\",AC18:AF18)))*1)))","v":20},"x",null,null,null,"x","x","x","x","x","x",null,null,"x",null,"x",".",".",".","."]
[341,"ja","Deusener Straße / Stiegenweg BHS","Huckarde","8 Einzelmaßnahme Bushaltestellenprogramm","V","B","B","S","S","E",null,"31903-23","Umbau der Haltestelleninsel im Bereich Deusener Straße / Stiegenweg zur Entlastung der Haltestelle BSH Höhe Haus Nr. 282a",null,"nach Auftragserteilung ruhend","1",{"$f":"SUM(SUMPRODUCT((ISNUMBER(SEARCH(\"x\",S19)))*4),(SUMPRODUCT((ISNUMBER(SEARCH(\"x\",T19:Y19)))*3)),(SUMPRODUCT((ISNUMBER(SEARCH(\"x\",Z19:AB19)))*2)),(SUMPRODUCT((ISNUMBER(SEARCH(\"x\",AC19:AF19)))*1)))","v":20},"x",null,null,null,"x","x","x","x","x","x",null,null,"x",null,"x",".",".",".","."]
[1010,"ja","Otto-Hahn-Straße 20, BHS Martin-Schmeißer-Weg","Hombruch","8 Einzelmaßnahme Bushaltestellenprogramm","V","B","B","S","S","E",null,"34091-24","Erneuerung und barrieregerechter Umbau von Bushaltestellen durch Ausstattung mit Buskapsteinen und Bodenindikatoren.",null,"nach Auftragserteilung ruhend","1",{"$f":"SUM(SUMPRODUCT((ISNUMBER(SEARCH(\"x\",S20)))*4),(SUMPRODUCT((ISNUMBER(SEARCH(\"x\",T20:Y20)))*3)),(SUMPRODUCT((ISNUMBER(SEARCH(\"x\",Z20:AB20)))*2)),(SUMPRODUCT((ISNUMBER(SEARCH(\"x\",AC20:AF20)))*1)))","v":20},"x",null,null,null,"x","x","x","x","x","x",null,null,"x",null,"x",".",".",".","."]
[1011,"ja","Otto-Hahn-Straße 23, BHS Martin-Schmeißer-Weg","Hombruch","8 Einzelmaßnahme Bushaltestellenprogramm","V","B","B","S","S","E",null,"34091-24","Erneuerung und barrieregerechter Umbau von Bushaltestellen durch Ausstattung mit Buskapsteinen und Bodenindikatoren.",null,"nach Auftragserteilung ruhend","1",{"$f":"SUM(SUMPRODUCT((ISNUMBER(SEARCH(\"x\",S21)))*4),(SUMPRODUCT((ISNUMBER(SEARCH(\"x\",T21:Y21)))*3)),(SUMPRODUCT((ISNUMBER(SEARCH(\"x\",Z21:AB21)))*2)),(SUMPRODUCT((ISNUMBER(SEARCH(\"x\",AC21:AF21)))*1)))","v":20},"x",null,null,null,"x","x","x","x","x","x",null,null,"x",null,"x",".",".",".","."]
[1012,"ja","Otto-Hahn-Straße ggü. 11, BHS Meitnerweg","Hombruch","8 Einzelmaßnahme Bushaltestellenprogramm","V","B","B","S","S","E",null,"34091-24","Erneuerung und barrieregerechter Umbau von Bushaltestellen durch Ausstattung mit Buskapsteinen und Bodenindikatoren.",null,"nach Auftragserteilung ruhend","1",{"$f":"SUM(SUMPRODUCT((ISNUMBER(SEARCH(\"x\",S22)))*4),(SUMPRODUCT((ISNUMBER(SEARCH(\"x\",T22:Y22)))*3)),(SUMPRODUCT((ISNUMBER(SEARCH(\"x\",Z22:AB22)))*2)),(SUMPRODUCT((ISNUMBER(SEARCH(\"x\",AC22:AF22)))*1)))","v":20},"x",null,null,null,"x","x","x","x","x","x",null,null,"x",null,"x",".",".",".","."]
[1013,"ja","Otto-Hahn-Straße 11, BHS Meitnerweg","Hombruch","8 Einzelmaßnahme Bushaltestellenprogramm","V","B","B","S","S","E",null,"34091-24","Erneuerung und barrieregerechter Umbau von Bushaltestellen durch Ausstattung mit Buskapsteinen und Bodenindikatoren.",null,"nach Auftragserteilung ruhend","1",{"$f":"SUM(SUMPRODUCT((ISNUMBER(SEARCH(\"x\",S23)))*4),(SUMPRODUCT((ISNUMBER(SEARCH(\"x\",T23:Y23)))*3)),(SUMPRODUCT((ISNUMBER(SEARCH(\"x\",Z23:AB23)))*2)),(SUMPRODUCT((ISNUMBER(SEARCH(\"x\",AC23:AF23)))*1)))","v":20},"x",null,null,null,"x","x","x","x","x","x",null,null,"x",null,"x",".",".",".","."]
[1148,"ja","Gleiwitzstraße, BHS Gleiwitzstraße U, beide FR","Scharnhorst","8 Einzelmaßnahme Bushaltestellenprogramm","V","B","B","S","S","E",null,"n. v.","Barrierefreier Ausbau der Bushaltestelle Gleiwitzstraße U, beide Fahrtrichtungen",null,"nach Auftragserteilung ruhend","1",{"$f":"SUM(SUMPRODUCT((ISNUMBER(SEARCH(\"x\",S24)))*4),(SUMPRODUCT((ISNUMBER(SEARCH(\"x\",T24:Y24)))*3)),(SUMPRODUCT((ISNUMBER(SEARCH(\"x\",Z24:AB24)))*2)),(SUMPRODUCT((ISNUMBER(SEARCH(\"x\",AC24:AF24)))*1)))","v":17},"x",null,null,null,null,"x","x","x","x","x",null,null,"x",null,"x",".",".",".","."]
[743,"ja","Haltestellen Linie X13","Lütgendortmund","9 Einzelmaßnahme Straße investiv","V","B","B","S","S","E",null,"24501-22","Bau neuer Haltestellen für die neue Schnellbuslinie X13 ; zwei Bussteige an der Kokerei Hansa, zwei Bussteige am Busbahnhof Huckarde; Pausenposition im Bereich Otto-Hahn-Straße. ",null,"nach Auftragserteilung ruhend","1",{"$f":"SUM(SUMPRODUCT((ISNUMBER(SEARCH(\"x\",S25)))*4),(SUMPRODUCT((ISNUMBER(SEARCH(\"x\",T25:Y25)))*3)),(SUMPRODUCT((ISNUMBER(SEARCH(\"x\",Z25:AB25)))*2)),(SUMPRODUCT((ISNUMBER(SEARCH(\"x\",AC25:AF25)))*1)))","v":15},"x",null,null,null,null,"x","x","x",null,"x",null,null,null,"x","x",".",".",".","."]
[975,"ja","Linie 400 - Abschnitt 2; 4-6; Westentor über Rheinische Straße, Lange Straße, Kuithanstraße bis Kreuzstraße","INN-West","8 Einzelmaßnahme Bushaltestellenprogramm","V","V","B","B","S","S","E","35120-24","Einführung der Buslinie 400 mit erforderlichen Anpassungen an BHS, Parkregelungen, Signalsteuerungen (Busbeschleunigung)\nhier: barrierefreier Ausbau der Haltestelle Leibniz Gymnasium ","hier: barrierefreier Ausbau der Haltestelle Leibniz Gymnasium ","nach Auftragserteilung ruhend","1",{"$f":"SUM(SUMPRODUCT((ISNUMBER(SEARCH(\"x\",S26)))*4),(SUMPRODUCT((ISNUMBER(SEARCH(\"x\",T26:Y26)))*3)),(SUMPRODUCT((ISNUMBER(SEARCH(\"x\",Z26:AB26)))*2)),(SUMPRODUCT((ISNUMBER(SEARCH(\"x\",AC26:AF26)))*1)))","v":14},"x",null,null,null,null,"x","x",null,null,"x",null,null,"x","x","x",".",".",".","."]
[982,"nein","Aplerbecker Marktplatz 21, BHS Aplerbeck Markt","Aplerbeck","8 Einzelmaßnahme Bushaltestellenprogramm","V","B","S","S","S","E",null,"n. v.","Barrierefreier Ausbau der Bushaltstelle Aplerbeck Markt, Aplerbecker Marktplatz 21",null,"in Bauvorbereitung","1",{"$f":"SUM(SUMPRODUCT((ISNUMBER(SEARCH(\"x\",S27)))*4),(SUMPRODUCT((ISNUMBER(SEARCH(\"x\",T27:Y27)))*3)),(SUMPRODUCT((ISNUMBER(SEARCH(\"x\",Z27:AB27)))*2)),(SUMPRODUCT((ISNUMBER(SEARCH(\"x\",AC27:AF27)))*1)))","v":14},null,null,null,null,"x","x","x",null,"x","x",null,null,"x",null,"x",".",".",".","."]
[875,"nein","Emscherallee 20, BHS Kokerei Hansa","Huckarde","8 Einzelmaßnahme Bushaltestellenprogramm","V","V","V","B","S","E",null,"38017-25","Erneuerung und barrieregerechter Umbau von Bushaltestellen durch Ausstattung mit Buskapsteinen und Bodenindikatoren.",null,"in Bauvorbereitung","1",{"$f":"SUM(SUMPRODUCT((ISNUMBER(SEARCH(\"x\",S28)))*4),(SUMPRODUCT((ISNUMBER(SEARCH(\"x\",T28:Y28)))*3)),(SUMPRODUCT((ISNUMBER(SEARCH(\"x\",Z28:AB28)))*2)),(SUMPRODUCT((ISNUMBER(SEARCH(\"x\",AC28:AF28)))*1)))","v":11},null,null,null,null,"x","x",null,"x",null,"x",null,null,"x",null,"x",".",".",".","."]
[888,"nein","Emscher Allee 13, BHS Kokerei Hansa","Huckarde","8 Einzelmaßnahme Bushaltestellenprogramm","V","V","V","B","S","E",null,"38017-25","Erneuerung und barrieregerechter Umbau von Bushaltestellen durch Ausstattung mit Buskapsteinen und Bodenindikatoren.",null,"in Bauvorbereitung","1",{"$f":"SUM(SUMPRODUCT((ISNUMBER(SEARCH(\"x\",S29)))*4),(SUMPRODUCT((ISNUMBER(SEARCH(\"x\",T29:Y29)))*3)),(SUMPRODUCT((ISNUMBER(SEARCH(\"x\",Z29:AB29)))*2)),(SUMPRODUCT((ISNUMBER(SEARCH(\"x\",AC29:AF29)))*1)))","v":11},null,null,null,null,"x","x",null,"x",null,"x",null,null,"x",null,"x",".",".",".","."]
[1147,"nein","Osterfeldstr. ggü. 157, BHS Bayrische Straße u. a.","Eving","8 Einzelmaßnahme Bushaltestellenprogramm",null,"V","V","B","B","S","E","n. v.","Barrierefreier Ausbau verschiedener Bauhaltestellen",null,"in Bauvorbereitung","2",{"$f":"SUM(SUMPRODUCT((ISNUMBER(SEARCH(\"x\",S30)))*4),(SUMPRODUCT((ISNUMBER(SEARCH(\"x\",T30:Y30)))*3)),(SUMPRODUCT((ISNUMBER(SEARCH(\"x\",Z30:AB30)))*2)),(SUMPRODUCT((ISNUMBER(SEARCH(\"x\",AC30:AF30)))*1)))","v":6},null,null,null,null,null,"x",null,null,null,"x",null,null,"x",null,"x",".",".",".","."]
[1149,"nein","Hacheneyer Straße/Höhe Hüttenbruchweg, BHS Hacheney U","Hörde","8 Einzelmaßnahme Bushaltestellenprogramm",null,"V","V","B","B","S","E","n. v.","Barrierefreier Ausbau der Bushaltestelle Hacheney U",null,"in Bauvorbereitung","2",{"$f":"SUM(SUMPRODUCT((ISNUMBER(SEARCH(\"x\",S31)))*4),(SUMPRODUCT((ISNUMBER(SEARCH(\"x\",T31:Y31)))*3)),(SUMPRODUCT((ISNUMBER(SEARCH(\"x\",Z31:AB31)))*2)),(SUMPRODUCT((ISNUMBER(SEARCH(\"x\",AC31:AF31)))*1)))","v":6},null,null,null,null,null,"x",null,null,null,"x",null,null,"x",null,"x",".",".",".","."]
[1150,"nein","Gotthelfstraße 110, BHS Weiße Taube u. a. ","Hombruch","8 Einzelmaßnahme Bushaltestellenprogramm",null,"V","V","B","B","S","E","n. v.","Barrierefreier Ausbau verschiedener Bauhaltestellen",null,"in Bauvorbereitung","2",{"$f":"SUM(SUMPRODUCT((ISNUMBER(SEARCH(\"x\",S32)))*4),(SUMPRODUCT((ISNUMBER(SEARCH(\"x\",T32:Y32)))*3)),(SUMPRODUCT((ISNUMBER(SEARCH(\"x\",Z32:AB32)))*2)),(SUMPRODUCT((ISNUMBER(SEARCH(\"x\",AC32:AF32)))*1)))","v":6},null,null,null,null,null,"x",null,null,null,"x",null,null,"x",null,"x",".",".",".","."]
[1322,"nein","Haltestellen Linie X13 am Bahnhof Mengede ","Mengede","9 Einzelmaßnahme Straße investiv","P","V","V","V","B","E",null,"n. v.","Einrichtung einer zusätzlichen Warteposition für 2 Kleinbusse ",null,"in Bauvorbereitung","2",{"$f":"SUM(SUMPRODUCT((ISNUMBER(SEARCH(\"x\",S33)))*4),(SUMPRODUCT((ISNUMBER(SEARCH(\"x\",T33:Y33)))*3)),(SUMPRODUCT((ISNUMBER(SEARCH(\"x\",Z33:AB33)))*2)),(SUMPRODUCT((ISNUMBER(SEARCH(\"x\",AC33:AF33)))*1)))","v":6},null,null,null,null,null,"x",null,null,null,"x",null,null,null,"x","x",".",".",".","."]

{"sheet":"Stadtbahnbau","index":7,"n_rows":20,"n_cols":37,"rows_kept":20,"cut":false,"hidden":false,"merged":[[1,32,3,36],[4,27,16,27],[4,28,16,28],[4,29,16,29],[4,30,16,30],[4,31,16,31],[4,33,16,33],[4,34,16,34],[4,35,16,35],[4,36,16,36],[4,32,16,32],[1,12,16,12],[2,8,2,9],[4,26,16,26],[4,8,16,8],[4,9,16,9],[4,18,16,18],[4,19,16,19],[4,20,16,20],[4,21,16,21],[4,22,16,22],[4,23,16,23],[4,24,16,24],[4,25,16,25],[2,10,2,11],[1,13,16,13],[1,14,16,14],[1,15,16,15],[2,18,3,18],[2,19,3,24],[2,25,3,27],[2,28,3,31],[1,16,16,16],[1,17,16,17],[1,18,1,31],[1,0,16,0],[1,1,16,1],[1,2,16,2],[1,3,16,3],[1,4,16,4],[3,5,16,5],[3,6,3,9],[3,10,16,10],[3,11,16,11],[4,6,16,6],[4,7,16,7]]}
[]
["Projektnr.:","Projekt-blatt","Bezeichnung","Stadtbezirk","Art","P","V","B","S",null,"E",null,"Drucksachen-nummer mit Link zum Online-Dokument","Beschreibung","Bemerkungen","Maßnahmenstatus","Prioritätenklasse","Summe Gewichtungspunkte","Bewertungstatbestände mit Gewichtung",null,null,null,null,null,null,null,null,null,null,null,null,null,"Beteiligter Bereich"]
[null,null,null,null,null,"= Planung","= Vorbereitung","= Bau","= Schlussrechnung",null,"= Ende der Baumaßnahme",null,null,null,null,null,null,null,4,3,null,null,null,null,null,2,null,null,1]
[null,null,null,null,null,2025,2026,null,null,null,2027,2028]
[null,null,null,null,null,null,"I","II","III","IV",null,null,null,null,null,null,null,null,"Maßnahme in Ausführung / Auftrag erteilt","Herstellung der Verkehrssicherheit / hoher Unterhaltungsaufwand / kritischer Zustand","Straßenoffensive","Velorouten / Radschnellwege","Maßnahme ist Bestandteil \neines sonstigen Bauprogramms","ÖPNV / Barrierefreiheit","Vergabeverfahren läuft","Baubeschluss liegt vor","Förderantrag bewilligt","Planung weit fortgeschritten","Verkehrliche Bedeutung (Hauptstraßen)","Radverkehr","Refinanzierung möglich / Förderantrag gestellt / Anliegerbeiträge / BV-Mittel","gemeinsame Maßnahme mit Dritten"," Verkehrswege","Verkehrsbauwerke","Verkehrstechnik","Betrieb","Verkehrswendebüro"]
[]
[]
[]
[]
[]
[]
[]
[]
[]
[]
[]
[]
[136,"ja","Baulos 20 (Bls) -Umbau Hauptbahnhof Dortmund -","überörtlich","11 Einzelmaßnahme Stadtbahnbau","B","B","B","S","S","S","E","31918-23","Umbau und Erweiterung der Stadtbahnanlage Hauptbahnhof. ",null,"im Bau",{"$f":"IF(R18=0,\"keine\",IF(AND(R18>0,R18<6),\"3\",IF(AND(R18>5,R18<11),\"2\",\"1\")))","v":"1"},{"$f":"SUM(SUMPRODUCT((ISNUMBER(SEARCH(\"x\",S18)))*4),(SUMPRODUCT((ISNUMBER(SEARCH(\"x\",T18:Y18)))*3)),(SUMPRODUCT((ISNUMBER(SEARCH(\"x\",Z18:AB18)))*2)),(SUMPRODUCT((ISNUMBER(SEARCH(\"x\",AC18:AF18)))*1)))","v":18},"x",null,null,null,null,"x","x","x","x","x",null,null,"x","x",".","x",".",".","."]
[708,"ja","Kommunale Schiene NRW: Erneuerungsinvestitionen in Stadtbahnstrecken und -anlagen","überörtlich","11 Einzelmaßnahme Stadtbahnbau",null,null,null,null,null,null,null,"26217-22","Erneuerungsinvestitionen in Stadtbahnstrecken und -anlagen.","DSW21 wird als Generalunternehmer für die Stadt Dortmund tätig.","im Bau","1",{"$f":"SUM(SUMPRODUCT((ISNUMBER(SEARCH(\"x\",S19)))*4),(SUMPRODUCT((ISNUMBER(SEARCH(\"x\",T19:Y19)))*3)),(SUMPRODUCT((ISNUMBER(SEARCH(\"x\",Z19:AB19)))*2)),(SUMPRODUCT((ISNUMBER(SEARCH(\"x\",AC19:AF19)))*1)))","v":18},"x",null,null,null,null,"x","x","x","x","x",null,null,"x","x",".","x",".",".","."]
[592,"nein","U47- Vollständige Barrierefreiheit Stadtbahnhaltestellen, 2. BA- 3 Haltestellen \"Parsevalstraße, Buschstraße, Obernette\"(Huckarde) ","überörtlich","11 Einzelmaßnahme Stadtbahnbau","P","V","V","B","B","B","B","38972-25","Umsetzung der vollständigen Barrierefreiheit nach dem Personenbeförderungsgesetz.\n2. Bauabschnitt: Haltestellen der Linie V (Parsevalstraße, Buschstraße, Obernette) ",null,"in Bauvorbereitung","2",{"$f":"SUM(SUMPRODUCT((ISNUMBER(SEARCH(\"x\",S20)))*4),(SUMPRODUCT((ISNUMBER(SEARCH(\"x\",T20:Y20)))*3)),(SUMPRODUCT((ISNUMBER(SEARCH(\"x\",Z20:AB20)))*2)),(SUMPRODUCT((ISNUMBER(SEARCH(\"x\",AC20:AF20)))*1)))","v":9},null,null,null,null,null,"x",null,"x",null,"x",null,null,"x","x",".","x","x",".","."]

{"sheet":"Brücke","index":8,"n_rows":22,"n_cols":37,"rows_kept":22,"cut":false,"hidden":false,"merged":[[1,32,3,36],[4,27,16,27],[4,28,16,28],[4,29,16,29],[4,30,16,30],[4,31,16,31],[4,33,16,33],[4,34,16,34],[4,35,16,35],[4,36,16,36],[4,32,16,32],[1,12,16,12],[2,8,2,9],[4,26,16,26],[4,8,16,8],[4,9,16,9],[4,18,16,18],[4,19,16,19],[4,20,16,20],[4,21,16,21],[4,22,16,22],[4,23,16,23],[4,24,16,24],[4,25,16,25],[2,10,2,11],[1,13,16,13],[1,14,16,14],[1,15,16,15],[2,18,3,18],[2,19,3,24],[2,25,3,27],[2,28,3,31],[1,16,16,16],[1,17,16,17],[1,18,1,31],[1,0,16,0],[1,1,16,1],[1,2,16,2],[1,3,16,3],[1,4,16,4],[3,5,16,5],[3,6,3,9],[3,10,16,10],[3,11,16,11],[4,6,16,6],[4,7,16,7]]}
[]
["Projektnr.:","Projekt-blatt","Bezeichnung","Stadtbezirk","Art","P","V","B","S",null,"E",null,"Drucksachen-nummer mit Link zum Online-Dokument","Beschreibung","Bemerkungen","Maßnahmenstatus","Prioritätenklasse","Summe Gewichtungspunkte","Bewertungstatbestände mit Gewichtung",null,null,null,null,null,null,null,null,null,null,null,null,null,"Beteiligter Bereich"]
[null,null,null,null,null,"= Planung","= Vorbereitung","= Bau","= Schlussrechnung",null,"= Ende der Baumaßnahme",null,null,null,null,null,null,null,4,3,null,null,null,null,null,2,null,null,1]
[null,null,null,null,null,2025,2026,null,null,null,2027,2028]
[null,null,null,null,null,null,"I","II","III","IV",null,null,null,null,null,null,null,null,"Maßnahme in Ausführung / Auftrag erteilt","Herstellung der Verkehrssicherheit / hoher Unterhaltungsaufwand / kritischer Zustand","Straßenoffensive","Velorouten / Radschnellwege","Maßnahme ist Bestandteil \neines sonstigen Bauprogramms","ÖPNV / Barrierefreiheit","Vergabeverfahren läuft","Baubeschluss liegt vor","Förderantrag bewilligt","Planung weit fortgeschritten","Verkehrliche Bedeutung (Hauptstraßen)","Radverkehr","Refinanzierung möglich / Förderantrag gestellt / Anliegerbeiträge / BV-Mittel","gemeinsame Maßnahme mit Dritten"," Verkehrswege","Verkehrsbauwerke","Verkehrstechnik","Betrieb","Verkehrswendebüro"]
[]
[]
[]
[]
[]
[]
[]
[]
[]
[]
[]
[]
[420,"ja","IGA - Brückenbauwerk Haldensprung","Huckarde","13 Einzelmaßnahme FB 61 - 67","B","B","S","S","S","E",null,"30959-23","Brückenbauwerk zwischen dem Grünanger und dem Deusenberg. ",null,"im Bau",{"$f":"IF(R18=0,\"keine\",IF(AND(R18>0,R18<6),\"3\",IF(AND(R18>5,R18<11),\"2\",\"1\")))","v":"1"},{"$f":"SUM(SUMPRODUCT((ISNUMBER(SEARCH(\"x\",S18)))*4),(SUMPRODUCT((ISNUMBER(SEARCH(\"x\",T18:Y18)))*3)),(SUMPRODUCT((ISNUMBER(SEARCH(\"x\",Z18:AB18)))*2)),(SUMPRODUCT((ISNUMBER(SEARCH(\"x\",AC18:AF18)))*1)))","v":16},"x",null,null,null,null,null,"x","x","x","x",null,"x","x","x",".","x",".",".","."]
[29,"nein","B54/B1 - Grunderneuerung (BW. 750)","Innenstadt-Ost","5a Einzelmaßnahme Brücke","P","V","V","B","B","B","S","33937-24","Grunderneuerung des Brückenüberbaus",null,"in Bauvorbereitung","1",{"$f":"SUM(SUMPRODUCT((ISNUMBER(SEARCH(\"x\",S19)))*4),(SUMPRODUCT((ISNUMBER(SEARCH(\"x\",T19:Y19)))*3)),(SUMPRODUCT((ISNUMBER(SEARCH(\"x\",Z19:AB19)))*2)),(SUMPRODUCT((ISNUMBER(SEARCH(\"x\",AC19:AF19)))*1)))","v":12},null,"x",null,null,null,null,null,"x","x","x","x","x","x",null,".","x",".",".","."]
[752,"nein","Franziusstraße - Rückbau und Ersatzneubau (BW 510)","überörtlich","5a Einzelmaßnahme Brücke","V","V","B","B","B","B","S","36124-24","Ersatzneubau Straßenüberführung Franziusstraße.","Abbruch bereits erfolgt","in Bauvorbereitung","1",{"$f":"SUM(SUMPRODUCT((ISNUMBER(SEARCH(\"x\",S20)))*4),(SUMPRODUCT((ISNUMBER(SEARCH(\"x\",T20:Y20)))*3)),(SUMPRODUCT((ISNUMBER(SEARCH(\"x\",Z20:AB20)))*2)),(SUMPRODUCT((ISNUMBER(SEARCH(\"x\",AC20:AF20)))*1)))","v":11},null,null,null,null,null,null,"x","x",null,"x","x","x","x","x",".","x",".",".","."]
[99,"nein","OWIIIa/Westfaliastraße - Vollanschluss","überörtlich","5a Einzelmaßnahme Brücke","V","V","B","B","B","B","B","36122-24","Bau einer Auf- und Abfahrt am \"halben Knoten\" der OWIIIa als Erdbauwerke.","Vorerst Bau von Brückenunterbauten im Bereich des geplanten ICE-Werkes.","in Bauvorbereitung","2",{"$f":"SUM(SUMPRODUCT((ISNUMBER(SEARCH(\"x\",S21)))*4),(SUMPRODUCT((ISNUMBER(SEARCH(\"x\",T21:Y21)))*3)),(SUMPRODUCT((ISNUMBER(SEARCH(\"x\",Z21:AB21)))*2)),(SUMPRODUCT((ISNUMBER(SEARCH(\"x\",AC21:AF21)))*1)))","v":9},null,null,null,null,null,null,"x","x",null,"x","x",null,"x",null,".","x","x",".","."]
[863,"nein","Notweg 37 - Erneuerung Böschungsbefestigung (BW 7112)","Hombruch","5a Einzelmaßnahme Brücke","P","V","V","B","S","S","E","39110-25","Erneuerung der Böschungsbefestigung ",null,"in Bauvorbereitung","3",{"$f":"SUM(SUMPRODUCT((ISNUMBER(SEARCH(\"x\",S22)))*4),(SUMPRODUCT((ISNUMBER(SEARCH(\"x\",T22:Y22)))*3)),(SUMPRODUCT((ISNUMBER(SEARCH(\"x\",Z22:AB22)))*2)),(SUMPRODUCT((ISNUMBER(SEARCH(\"x\",AC22:AF22)))*1)))","v":4},null,null,null,null,null,null,null,"x",null,"x",null,null,null,null,".","x",".",".","."]

{"sheet":"Radverkehr","index":9,"n_rows":22,"n_cols":37,"rows_kept":22,"cut":false,"hidden":false,"merged":[[1,32,3,16383],[4,7,16,7],[4,8,16,8],[4,9,16,9],[4,6,16,6],[1,15,16,15],[2,18,3,18],[2,19,3,24],[2,25,3,27],[2,28,3,31],[1,16,16,16],[1,17,16,17],[4,26,16,26],[4,18,16,18],[4,19,16,19],[4,20,16,20],[1,0,16,0],[1,1,16,1],[1,2,16,2],[1,3,16,3],[1,4,16,4],[3,5,16,5],[2,8,2,9],[2,10,2,11],[1,13,16,13],[1,14,16,14],[3,6,3,9],[3,10,16,10],[3,11,16,11],[1,12,16,12],[1,18,1,31],[4,33,16,33],[4,34,16,34],[4,35,16,35],[4,36,16,36],[4,27,16,27],[4,28,16,28],[4,29,16,29],[4,30,16,30],[4,31,16,31],[4,32,16,32],[4,21,16,21],[4,22,16,22],[4,23,16,23],[4,24,16,24],[4,25,16,25]]}
[]
["Projektnr.:","Projekt-blatt","Bezeichnung","Stadtbezirk","Art","P","V","B","S",null,"E",null,"Drucksachen-nummer mit Link zum Online-Dokument","Beschreibung","Bemerkungen","Maßnahmenstatus","Prioritätenklasse","Summe Gewichtungspunkte","Bewertungstatbestände mit Gewichtung",null,null,null,null,null,null,null,null,null,null,null,null,null,"Beteiligter Bereich"]
[null,null,null,null,null,"= Planung","= Vorbereitung","= Bau","= Schlussrechnung",null,"= Ende der Baumaßnahme",null,null,null,null,null,null,null,4,3,null,null,null,null,null,2,null,null,1]
[null,null,null,null,null,2025,2026,null,null,null,2027,2028]
[null,null,null,null,null,null,"I","II","III","IV",null,null,null,null,null,null,null,null,"Maßnahme in Ausführung / Auftrag erteilt","Herstellung der Verkehrssicherheit / hoher Unterhaltungsaufwand / kritischer Zustand","Straßenoffensive","Velorouten / Radschnellwege","Maßnahme ist Bestandteil \neines sonstigen Bauprogramms","ÖPNV / Barrierefreiheit","Vergabeverfahren läuft","Baubeschluss liegt vor","Förderantrag bewilligt","Planung weit fortgeschritten","Verkehrliche Bedeutung (Hauptstraßen)","Radverkehr","Refinanzierung möglich / Förderantrag gestellt / Anliegerbeiträge / BV-Mittel","gemeinsame Maßnahme mit Dritten"," Verkehrswege","Verkehrsbauwerke","Verkehrstechnik","Betrieb","Verkehrswendebüro"]
[]
[]
[]
[]
[]
[]
[]
[]
[]
[]
[]
[]
[748,"ja","Fahrrad-Anlehnbügel 250 St., 2024-2025 ","überörtlich","3a Einzelmaßnahme Radwege investiv","B","B","B","B","B","S","E","24257-22","Bau von 250 Fahrrad-Anlehnbügeln für das ganze Stadtgebiet Dortmund. ",null,"im Bau",{"$f":"IF(R18=0,\"keine\",IF(AND(R18>0,R18<6),\"3\",IF(AND(R18>5,R18<11),\"2\",\"1\")))","v":"1"},{"$f":"SUM(SUMPRODUCT((ISNUMBER(SEARCH(\"x\",S18)))*4),(SUMPRODUCT((ISNUMBER(SEARCH(\"x\",T18:Y18)))*3)),(SUMPRODUCT((ISNUMBER(SEARCH(\"x\",Z18:AB18)))*2)),(SUMPRODUCT((ISNUMBER(SEARCH(\"x\",AC18:AF18)))*1)))","v":12},"x",null,null,null,null,null,"x","x",null,"x",null,"x",null,null,".",".",".","x","."]
[979,"ja","Rheinischer Esel - Grundinstandsetzung Abschnitt 2","Hombruch","3a Einzelmaßnahme Radwege investiv","B","B","B","S","S","E",null,"34097-24","Erneuerung des Bahntrassenradwegs „Rheinischer Esel“, 2. BA von Hellerstraße bis zur Autobahnbrücke über die A 45",null,"im Bau","1",{"$f":"SUM(SUMPRODUCT((ISNUMBER(SEARCH(\"x\",S19)))*4),(SUMPRODUCT((ISNUMBER(SEARCH(\"x\",T19:Y19)))*3)),(SUMPRODUCT((ISNUMBER(SEARCH(\"x\",Z19:AB19)))*2)),(SUMPRODUCT((ISNUMBER(SEARCH(\"x\",AC19:AF19)))*1)))","v":12},"x",null,null,null,null,null,"x","x",null,"x",null,"x",null,null,".",".",".","x","."]
[349,"nein","Rampe Am Segen","Hombruch","3a Einzelmaßnahme Radwege investiv","V","V","V","B","B","B","E","25528-22","Bau einer barrierefreien Rampe als Ergänzung zu der vorhandenen Treppenanlage.  Mit der Rampe soll eine barrierefreie Anbindung zwischen dem Bahntrassenweg zwischen \" Am Rombergpark\" über die B54 nach Phoenix-West und dem Geh-/Radweg zwischen dem Rombergpark und der Ardeystraße entstehen. ",null,"in Bauvorbereitung","2",{"$f":"SUM(SUMPRODUCT((ISNUMBER(SEARCH(\"x\",S20)))*4),(SUMPRODUCT((ISNUMBER(SEARCH(\"x\",T20:Y20)))*3)),(SUMPRODUCT((ISNUMBER(SEARCH(\"x\",Z20:AB20)))*2)),(SUMPRODUCT((ISNUMBER(SEARCH(\"x\",AC20:AF20)))*1)))","v":9},null,null,null,null,null,"x",null,"x",null,"x",null,"x","x",null,"x",".","x",".","."]
[412,"nein","An der Palmweide - Fuß+Radweg","Hombruch","3a Einzelmaßnahme Radwege investiv","P","V","B","B","S","E",null,"39177-25","Erstellung eines Fuß- und Radweges An der Palmweide von der westlichen Seite der S-Bahn Brücke An der Palmweide, parallel zur S-Bahnstrecke in nördliche Richtung bis hinter die Schrebergartenanlage. ","Herstellung durch EG über Kostenübernahmeerklärung.","in Bauvorbereitung","2",{"$f":"SUM(SUMPRODUCT((ISNUMBER(SEARCH(\"x\",S21)))*4),(SUMPRODUCT((ISNUMBER(SEARCH(\"x\",T21:Y21)))*3)),(SUMPRODUCT((ISNUMBER(SEARCH(\"x\",Z21:AB21)))*2)),(SUMPRODUCT((ISNUMBER(SEARCH(\"x\",AC21:AF21)))*1)))","v":9},null,null,null,null,null,null,null,"x","x","x",null,"x","x","x","x",".",".",".","."]
[902,"nein","Osterlandwehr- Enscheder Str.-Lütgenholz-Heroldstr.-Priorstr.-Westerbleichstr.Feldherrnstr.-Fichtestr. - FE/ Fahrradstraße","Innenstadt-Nord","3b Radwege konsumtiv","P","V","B","B","S","E",null,"n. v.","Optimierung und Ausbau von Nebenstrecken (Ost-West-Fahrradachsen südlich der Mallickrodtstraße) zu Fahrradstraßen mit Radwegweisung als Alternative zu stark befahrenen Straßen. \n","Lediglich Heroldstraße","in Planung","3",{"$f":"SUM(SUMPRODUCT((ISNUMBER(SEARCH(\"x\",S22)))*4),(SUMPRODUCT((ISNUMBER(SEARCH(\"x\",T22:Y22)))*3)),(SUMPRODUCT((ISNUMBER(SEARCH(\"x\",Z22:AB22)))*2)),(SUMPRODUCT((ISNUMBER(SEARCH(\"x\",AC22:AF22)))*1)))","v":2},null,null,null,null,null,null,null,null,null,null,null,"x","x",null,".",".","x",".","."]

{"sheet":"Verkehrswendebüro","index":10,"n_rows":26,"n_cols":37,"rows_kept":26,"cut":false,"hidden":false,"merged":[[1,32,3,36],[4,27,16,27],[4,28,16,28],[4,29,16,29],[4,30,16,30],[4,31,16,31],[4,33,16,33],[4,34,16,34],[4,35,16,35],[4,36,16,36],[4,32,16,32],[1,12,16,12],[4,26,16,26],[4,7,16,7],[2,8,2,9],[4,8,16,8],[4,9,16,9],[4,18,16,18],[4,19,16,19],[4,20,16,20],[4,21,16,21],[4,22,16,22],[4,23,16,23],[4,24,16,24],[4,25,16,25],[1,13,16,13],[1,14,16,14],[1,15,16,15],[2,18,3,18],[2,19,3,24],[2,25,3,27],[2,28,3,31],[1,16,16,16],[1,17,16,17],[1,18,1,31],[2,10,2,11],[1,0,16,0],[1,1,16,1],[1,2,16,2],[1,3,16,3],[1,4,16,4],[3,5,16,5],[3,6,3,9],[3,10,16,10],[3,11,16,11],[4,6,16,6]]}
[]
["Projektnr.:","Projekt-blatt","Bezeichnung","Stadtbezirk","Art","P","V","B","S",null,"E",null,"Drucksachen-nummer mit Link zum Online-Dokument","Beschreibung","Bemerkungen","Maßnahmenstatus","Prioritätenklasse","Summe Gewichtungspunkte","Bewertungstatbestände mit Gewichtung",null,null,null,null,null,null,null,null,null,null,null,null,null,"Beteiligter Bereich"]
[null,null,null,null,null,"= Planung","= Vorbereitung","= Bau","= Schlussrechnung",null,"= Ende der Baumaßnahme",null,null,null,null,null,null,null,4,3,null,null,null,null,null,2,null,null,1]
[null,null,null,null,null,2025,2026,null,null,null,2027,2028]
[null,null,null,null,null,null,"I","II","III","IV",null,null,null,null,null,null,null,null,"Maßnahme in Ausführung / Auftrag erteilt","Herstellung der Verkehrssicherheit / hoher Unterhaltungsaufwand / kritischer Zustand","Straßenoffensive","Velorouten / Radschnellwege","Maßnahme ist Bestandteil \neines sonstigen Bauprogramms","ÖPNV / Barrierefreiheit","Vergabeverfahren läuft","Baubeschluss liegt vor","Förderantrag bewilligt","Planung weit fortgeschritten","Verkehrliche Bedeutung (Hauptstraßen)","Radverkehr","Refinanzierung möglich / Förderantrag gestellt / Anliegerbeiträge / BV-Mittel","gemeinsame Maßnahme mit Dritten"," Verkehrswege","Verkehrsbauwerke","Verkehrstechnik","Betrieb","Verkehrswendebüro"]
[]
[]
[]
[]
[]
[]
[]
[]
[]
[]
[]
[]
[1018,"ja","Veloroute 8 - Lütgendortmund - Teilstück 1a \"Lange Straße\" von Hoher Wall bis Möllerstraße ","INN-West","10 Einzelmaßnahme Verkehrswendebüro","B","B","S","S","S","S","E","36619-24","Einrichtung einer Fahrradstraße (Beschilderung und Markierung) ",null,"im Bau",{"$f":"IF(R18=0,\"keine\",IF(AND(R18>0,R18<6),\"3\",IF(AND(R18>5,R18<11),\"2\",\"1\")))","v":"1"},{"$f":"SUM(SUMPRODUCT((ISNUMBER(SEARCH(\"x\",S18)))*4),(SUMPRODUCT((ISNUMBER(SEARCH(\"x\",T18:Y18)))*3)),(SUMPRODUCT((ISNUMBER(SEARCH(\"x\",Z18:AB18)))*2)),(SUMPRODUCT((ISNUMBER(SEARCH(\"x\",AC18:AF18)))*1)))","v":21},"x",null,null,"x","x","x","x","x",null,"x",null,"x",null,null,".","x","x",".","x"]
[1146,"ja","Veloroute 5  - Hörde - Teilstück 12a \"Am Bruchheck von Goystraße bis An der Goymark\"","Hörde","10 Einzelmaßnahme Verkehrswendebüro","B","B","S","S","S","E",null,"34041-24","Einrichtung einer Fahrradstraße (Beschilderung, Markierung und Rotbeschichtung)",null,"im Bau","1",{"$f":"SUM(SUMPRODUCT((ISNUMBER(SEARCH(\"x\",S19)))*4),(SUMPRODUCT((ISNUMBER(SEARCH(\"x\",T19:Y19)))*3)),(SUMPRODUCT((ISNUMBER(SEARCH(\"x\",Z19:AB19)))*2)),(SUMPRODUCT((ISNUMBER(SEARCH(\"x\",AC19:AF19)))*1)))","v":16},"x",null,null,"x",null,null,"x","x",null,"x",null,"x","x",null,".",".","x",".","x"]
[1016,"nein","Veloroute 1 - Eving - Teilstück 8b \"Evinger Straße 422 bis 448\"","Eving","10 Einzelmaßnahme Verkehrswendebüro","V","V","V","B","S","E",null,"37154-24","Einrichtung einer Fahrradstraße (Beschilderung und Markierung)",null,"in Bauvorbereitung","1",{"$f":"SUM(SUMPRODUCT((ISNUMBER(SEARCH(\"x\",S20)))*4),(SUMPRODUCT((ISNUMBER(SEARCH(\"x\",T20:Y20)))*3)),(SUMPRODUCT((ISNUMBER(SEARCH(\"x\",Z20:AB20)))*2)),(SUMPRODUCT((ISNUMBER(SEARCH(\"x\",AC20:AF20)))*1)))","v":15},null,null,null,"x","x","x",null,"x",null,"x",null,"x","x",null,".",".","x",".","x"]
[1017,"nein","Veloroute 1 - Eving - Teilstück 8d \"Evinger Straße 474 bis 502\"","Eving","10 Einzelmaßnahme Verkehrswendebüro","V","V","V","B","S","E",null,"37154-24","Einrichtung einer Fahrradstraße (Beschilderung und Markierung)",null,"in Bauvorbereitung","1",{"$f":"SUM(SUMPRODUCT((ISNUMBER(SEARCH(\"x\",S21)))*4),(SUMPRODUCT((ISNUMBER(SEARCH(\"x\",T21:Y21)))*3)),(SUMPRODUCT((ISNUMBER(SEARCH(\"x\",Z21:AB21)))*2)),(SUMPRODUCT((ISNUMBER(SEARCH(\"x\",AC21:AF21)))*1)))","v":15},null,null,null,"x","x","x",null,"x",null,"x",null,"x","x",null,".",".","x",".","x"]
[1015,"nein","Veloroute 1 - Eving - Teilstück 7 \"Holzheck\"","Eving","10 Einzelmaßnahme Verkehrswendebüro","V","V","V","B","S","E",null,"37154-24","Einrichtung einer Fahrradstraße (Beschilderung und Markierung)",null,"in Bauvorbereitung","1",{"$f":"SUM(SUMPRODUCT((ISNUMBER(SEARCH(\"x\",S22)))*4),(SUMPRODUCT((ISNUMBER(SEARCH(\"x\",T22:Y22)))*3)),(SUMPRODUCT((ISNUMBER(SEARCH(\"x\",Z22:AB22)))*2)),(SUMPRODUCT((ISNUMBER(SEARCH(\"x\",AC22:AF22)))*1)))","v":15},null,null,null,"x","x","x",null,"x",null,"x",null,"x","x",null,".",".","x",".","x"]
[688,"nein","Veloroute 1 - Eving - Teilstück 1a Leuthardstraße/Krimstraße","Innenstadt-Nord","10 Einzelmaßnahme Verkehrswendebüro","P","V","V","B","B","B","E","38023-25","Ausbau der Straßen zu Fahrradstraßen; Verbesserung der Querung Mallincrodtstraße und Nordmarkt.",null,"in Bauvorbereitung","2",{"$f":"SUM(SUMPRODUCT((ISNUMBER(SEARCH(\"x\",S23)))*4),(SUMPRODUCT((ISNUMBER(SEARCH(\"x\",T23:Y23)))*3)),(SUMPRODUCT((ISNUMBER(SEARCH(\"x\",Z23:AB23)))*2)),(SUMPRODUCT((ISNUMBER(SEARCH(\"x\",AC23:AF23)))*1)))","v":9},null,null,null,"x",null,null,null,"x",null,"x",null,"x","x",null,".",".",".",".","x"]
[432,"nein","RS1  - Abschnitt 4b von Arneckestraße/Sonnenstraße bis Chemnitzer Straße","Innenstadt-West","10 Einzelmaßnahme Verkehrswendebüro","V","V","V","B","B","B","B","35563-24","Bau des zweiten Abschnitts des Radschnellweges auf Dortmunder Stadtgebiet. Der Radschnellweg soll von der Sonnenstraße bis zur Ruhrallee fortgeführt werden.",null,"in Bauvorbereitung","2",{"$f":"SUM(SUMPRODUCT((ISNUMBER(SEARCH(\"x\",S24)))*4),(SUMPRODUCT((ISNUMBER(SEARCH(\"x\",T24:Y24)))*3)),(SUMPRODUCT((ISNUMBER(SEARCH(\"x\",Z24:AB24)))*2)),(SUMPRODUCT((ISNUMBER(SEARCH(\"x\",AC24:AF24)))*1)))","v":8},null,null,null,"x",null,null,null,null,null,"x",null,"x","x","x",".",".","x",".","x"]
[1176,"nein","Veloroute 1 - Eving - Teilstück 1b Nordstraße ","Eving","10 Einzelmaßnahme Verkehrswendebüro","P","V","V","B","B","B","E","n. v.","Einrichtung einer Fahrradstraße ",null,"in Bauvorbereitung","2",{"$f":"SUM(SUMPRODUCT((ISNUMBER(SEARCH(\"x\",S25)))*4),(SUMPRODUCT((ISNUMBER(SEARCH(\"x\",T25:Y25)))*3)),(SUMPRODUCT((ISNUMBER(SEARCH(\"x\",Z25:AB25)))*2)),(SUMPRODUCT((ISNUMBER(SEARCH(\"x\",AC25:AF25)))*1)))","v":7},null,null,null,"x",null,null,null,null,null,"x",null,"x","x",null,".",".","x",".","x"]
[1177,"nein","Veloroute 5 - Hörde - Teilstück 12b \"Am Bruchheck von Goystraße bis Burgunderstraße\"","Hörde","10 Einzelmaßnahme Verkehrswendebüro","P","P","V","B","B","B","E","n. v.","Einrichtung einer Fahrradstraße (Beschilderung, Markierung und Rotbeschichtung) ",null,"in Planung","3",{"$f":"SUM(SUMPRODUCT((ISNUMBER(SEARCH(\"x\",S26)))*4),(SUMPRODUCT((ISNUMBER(SEARCH(\"x\",T26:Y26)))*3)),(SUMPRODUCT((ISNUMBER(SEARCH(\"x\",Z26:AB26)))*2)),(SUMPRODUCT((ISNUMBER(SEARCH(\"x\",AC26:AF26)))*1)))","v":5},null,null,null,"x",null,null,null,null,null,null,null,"x","x",null,".",".","x",".","x"]

{"sheet":"Besonderheiten","index":11,"n_rows":22,"n_cols":37,"rows_kept":22,"cut":false,"hidden":false,"merged":[[1,32,3,36],[4,28,16,28],[4,29,16,29],[4,30,16,30],[4,31,16,31],[4,32,16,32],[4,33,16,33],[4,34,16,34],[4,35,16,35],[4,36,16,36],[1,12,16,12],[2,8,2,9],[4,26,16,26],[4,8,16,8],[4,9,16,9],[4,18,16,18],[4,19,16,19],[4,20,16,20],[4,21,16,21],[4,22,16,22],[4,23,16,23],[4,24,16,24],[4,25,16,25],[2,10,2,11],[1,13,16,13],[1,14,16,14],[1,15,16,15],[2,18,3,18],[2,19,3,24],[2,25,3,27],[2,28,3,31],[1,16,16,16],[1,17,16,17],[4,27,16,27],[1,18,1,31],[1,0,16,0],[1,1,16,1],[1,2,16,2],[1,3,16,3],[1,4,16,4],[3,5,16,5],[3,6,3,9],[3,10,16,10],[3,11,16,11],[4,6,16,6],[4,7,16,7]]}
[]
["Projektnr.:","Projekt-blatt","Bezeichnung","Stadtbezirk","Art","P","V","B","S",null,"E",null,"Drucksachen-nummer mit Link zum Online-Dokument","Beschreibung","Bemerkungen","Maßnahmenstatus","Prioritätenklasse","Summe Gewichtungspunkte","Bewertungstatbestände mit Gewichtung",null,null,null,null,null,null,null,null,null,null,null,null,null,"Beteiligter Bereich"]
[null,null,null,null,null,"= Planung","= Vorbereitung","= Bau","= Schlussrechnung",null,"= Ende der Baumaßnahme",null,null,null,null,null,null,null,4,3,null,null,null,null,null,2,null,null,1]
[null,null,null,null,null,2025,2026,null,null,null,2027,2028]
[null,null,null,null,null,null,"I","II","III","IV",null,null,null,null,null,null,null,null,"Maßnahme in Ausführung / Auftrag erteilt","Herstellung der Verkehrssicherheit / hoher Unterhaltungsaufwand / kritischer Zustand","Straßenoffensive","Velorouten / Radschnellwege","Maßnahme ist Bestandteil \neines sonstigen Bauprogramms","ÖPNV / Barrierefreiheit","Vergabeverfahren läuft","Baubeschluss liegt vor","Förderantrag bewilligt","Planung weit fortgeschritten","Verkehrliche Bedeutung (Hauptstraßen)","Radverkehr","Refinanzierung möglich / Förderantrag gestellt / Anliegerbeiträge / BV-Mittel","gemeinsame Maßnahme mit Dritten"," Verkehrswege","Verkehrsbauwerke","Verkehrstechnik","Betrieb","Verkehrswendebüro"]
[]
[]
[]
[]
[]
[]
[]
[]
[]
[]
[]
[]
[636,"ja","Wasserriefen Phoenix West","Hörde","9 Einzelmaßnahme Straße investiv","B","B","B","B","B","S","E","25972-22","Ertüchtigung der Wasserriefen zum Erhalt des Habitats für die Kreuzkröte. ","Nur Finanzierung durch FB 66.","im Bau",{"$f":"IF(R18=0,\"keine\",IF(AND(R18>0,R18<6),\"3\",IF(AND(R18>5,R18<11),\"2\",\"1\")))","v":"1"},{"$f":"SUM(SUMPRODUCT((ISNUMBER(SEARCH(\"x\",S18)))*4),(SUMPRODUCT((ISNUMBER(SEARCH(\"x\",T18:Y18)))*3)),(SUMPRODUCT((ISNUMBER(SEARCH(\"x\",Z18:AB18)))*2)),(SUMPRODUCT((ISNUMBER(SEARCH(\"x\",AC18:AF18)))*1)))","v":12},"x",null,null,null,null,null,"x","x",null,"x",null,null,null,"x","x",".",".",".","."]
[1139,"ja","Neubau Steuerkabelstrecke VSR (KRITIS)","überörtlich","1a Einzelmaßnahme Verkehrstechnik investiv","B","B","S","S","S","E",null,"37929-25","Für den Umzug des Verkehrsrechners muss eine Steuerkabelstrecke zum Rechenzentrum erstellt werden. ",null,"im Bau","1",{"$f":"SUM(SUMPRODUCT((ISNUMBER(SEARCH(\"x\",S19)))*4),(SUMPRODUCT((ISNUMBER(SEARCH(\"x\",T19:Y19)))*3)),(SUMPRODUCT((ISNUMBER(SEARCH(\"x\",Z19:AB19)))*2)),(SUMPRODUCT((ISNUMBER(SEARCH(\"x\",AC19:AF19)))*1)))","v":11},"x",null,null,null,null,null,"x","x",null,"x",null,null,null,null,".",".","x",".","."]
[643,"nein","Stadterneuerung Westerfilde /Bodelschwingh: Grün verbindet - coole Wege für Westerfilde und Bodelschwingh","Mengede","13 Einzelmaßnahme FB 61 - 67","V","V","V","V","B","E",null,"22804-21","Anlage von bis zu 50 Baumscheiben entlang der beiden Straßenzüge \"Mosselde\" und Rohdesdiek\" (Länge ca. 1 km).",null,"in Bauvorbereitung","2",{"$f":"SUM(SUMPRODUCT((ISNUMBER(SEARCH(\"x\",S20)))*4),(SUMPRODUCT((ISNUMBER(SEARCH(\"x\",T20:Y20)))*3)),(SUMPRODUCT((ISNUMBER(SEARCH(\"x\",Z20:AB20)))*2)),(SUMPRODUCT((ISNUMBER(SEARCH(\"x\",AC20:AF20)))*1)))","v":8},null,null,null,null,null,null,null,"x","x","x",null,null,"x","x","x",".",".",".","."]
[628,"nein","Weingartenstraße Bewohnerparkzone","Hörde","13 Einzelmaßnahme FB 61 - 67",null,"V","V","V","B","S","E","18751-20","Einichtung von Bewohnerparkzonen Phoenix-See und Weingartenstraße  (17 + 22 PSA).",null,"in Bauvorbereitung","2",{"$f":"SUM(SUMPRODUCT((ISNUMBER(SEARCH(\"x\",S21)))*4),(SUMPRODUCT((ISNUMBER(SEARCH(\"x\",T21:Y21)))*3)),(SUMPRODUCT((ISNUMBER(SEARCH(\"x\",Z21:AB21)))*2)),(SUMPRODUCT((ISNUMBER(SEARCH(\"x\",AC21:AF21)))*1)))","v":8},null,null,null,null,null,null,"x","x",null,"x",null,null,null,"x",".",".","x",".","."]
[1161,"nein","Friedensplatz - Polleranlage Südzufahrt ","INN-West","1a Einzelmaßnahme Verkehrstechnik investiv","P","V","V","B","B","S","E","n. v.","Errichtung einer Polleranlage ",null,"in Bauvorbereitung","3",{"$f":"SUM(SUMPRODUCT((ISNUMBER(SEARCH(\"x\",S22)))*4),(SUMPRODUCT((ISNUMBER(SEARCH(\"x\",T22:Y22)))*3)),(SUMPRODUCT((ISNUMBER(SEARCH(\"x\",Z22:AB22)))*2)),(SUMPRODUCT((ISNUMBER(SEARCH(\"x\",AC22:AF22)))*1)))","v":2},null,null,null,null,null,null,null,null,null,"x",null,null,null,null,".",".","x",".","."]